Workbook

Sheet 表紙

Sheet 簡易説明書
D1: ＜확산도법＞
C4: ＜확산도법에 의한 바닥 충격음 계산 프로그램 간이 설명서＞
D6: 바닥 충격음의 성능을 추정하기 위해서는 기본이 되는 바닥 구조의 성능을 파악하는 것이 가장 중요합니다. 이 소프트웨어의 ＜바닥 충격음 계산 시트＞에 의해 각종 조건하에서 바닥 구조의 중량 바닥 충격음 성능을 계산할 수 있습니다. 설계 시의 조건 검토 툴로서 이용하십시오. 단, 이것은 성능을 보증하는 것이 아니므로 이 점 양지하시기 바랍니다.
D8: 1. 입력 데이터에 관하여
D9: ■입력 데이터는 각 항목 난의 단위에 맞추어 아래 그림의 요령으로 입력하십시오.
D26: ■가진점 위치 입력에서는 x, y의 ２방향에 관해 각각의 가진점에서 가장 거리가 가까운 가장자리 또는 작은 보까지의 거리를 입력하십시오.
D27: ■가진점 위치 입력에서 작은 보가 있는 경우에는 보 두께 난의 작은 칼럼에 1을 입력하십시오. 작은 보가 없는 경우에는 0을 입력하십시오. X 방향 가장자리에 작은 보가 있는 경우에는 ｘ 방향 난에, ｙ 방향 가장자리에 보가 있는 경우에는 ｙ 방향 난에 1을 입력하십시오.
D28: ■작은 보의 조건은 보의 두께만 입력하고 보의 폭은 무시하십시오.
D29: ■가진점이 5점 미만일 때는 필요 없는 셀에 ｘ 방향, ｙ 방향 모두 0.0000001과 같은 충분히 작은 값을 입력해 두십시오. 단, 0은 적합하지 않습니다.
D31: 2. 참고값
D32: ■참고값은 각각 자동적으로 계산되어 결과가 표시됩니다.
D33: ■고유 진동수의 계산값은 작은 보가 없는 평판일 때의 값입니다.
D35: 3. 계산 결과
D36: ■입력 데이터 난에 조건을 입력하고 버튼을 누르면(마우스 왼쪽 클릭) 계산 결과가 표시됩니다.
D37: ■맨 아래 난의 결정 주파수는 낮은 주파수를 우선적으로 하나만 표시하고 있습니다.
D39: 4. 기타
D40: ■중공 슬래브를 계산하는 경우에는 <중공 환산> 시트를 이용해서 균질판으로 환산했을 때의 판 두께와 단위부피 중량을 구해서 <바닥 충격음 계산 시트>에 데이터를 입력하십시오.
D41: ■가진력과 실내 평균 흡음률은 <가진력·흡음률 설정 시트>에서 변경이 가능합니다. 필요하면 값을 입력하십시오.
D42: ■이 소프트웨어는 맨바닥 슬래브의 중량 바닥 충격음 계산용이기 때문에, 실제로 바닥 충격음 성능을 측정하려면 계산 결과에 바닥 마감재의 바닥 충격음 개선량을 고려할 필요가 있습니다. 단, 바닥 마감재가 카펫 등인 경우에는 맨바닥의 경우와 결과에 거의 차이가 없습니다.
D44: 하치노헤공업대학 하시모토 연구실

Sheet 床衝撃音計算シート
J1: <확산도법>
C3: 물건명
C5: <입력 데이터>
C7: 영률(N/m2) | D7: 29000000000 | F7: 단위부피 중량(kg/m3) | G7: 2400 | J7: 포아송비 | L7: 0.16
C9: 슬래브 규격(m) | D9: 11 | E9: × | F9: 6 | J9: 판 두께(mm) | L9: 200
C11: 구속 조건 | D11: 0.8 | F11: （단순 지지 0, 주변 고정 1, 중간 0~1） | J11: 감쇄 정수 | L11: 0.03
C13: 방 규격(m) | D13: 7.1 | E13: × | F13: 3.5 | J13: 천장 높이(m) | L13: 2.4
C15: 가진점 수 | D15: 5
D16: （ｘ 방향） | F16: （ｙ 방향） | J16: （ｘ 방향） | L16: （ｙ 방향）
C17: 가진점 위치 1(m) | D17: 1.8 | F17: 0.9 | G17: 작은 보 두께(m) | I17: 0 | J17: 0 | K17: 0 | L17: 0
C19: 가진점 위치 2(m) | D19: 1.8 | F19: 2.7 | G19: 작은 보 두께(m) | I19: 0 | J19: 0 | K19: 0 | L19: 0
C21: 가진점 위치 3(m) | D21: 3.55 | F21: 1.75 | G21: 작은 보 두께(m) | I21: 0 | J21: 0 | K21: 0 | L21: 0
C23: 가진점 위치 4(m) | D23: 5.4 | F23: 0.9 | G23: 작은 보 두께(m) | I23: 0 | J23: 0 | K23: 0 | L23: 0
C25: 가진점 위치 5(m) | D25: 5.4 | F25: 2.7 | G25: 작은 보 두께(m) | I25: 0 | J25: 0 | K25: 0 | L25: 0
C27: <참고값>
C29: 종파 속도(m/s) | D29: ='計算表（参考）'!Q36 -> 3521.476061 | F29: 고유 진동수(s)(Hz) | G29: ='計算表（参考）'!Q37 -> 11.50470658 | J29: 고유 진동수(c)(Hz) | L29: ='計算表（参考）'!Q38 -> 23.22882452
C31: 코인시던스 주파수(Hz) | D31: ='計算表（参考）'!Q39 -> 90.53866307 | F31: 방 등가 반경(m) | G31: ='計算表（参考）'!Q40 -> 2.813185514 | J31: (고유 진동수의 ｓ는 단순 지지, ｃ는 주변 고정）
C34: <계산 결과>
C36: 중심 주파수 | D36: 바닥 충격음 수준
C37: (Hz) | D37: (dB)
C38: 31.5 | D38: ='計算表（参考）'!C20 -> 81.84332917
C39: 63 | D39: ='計算表（参考）'!E20 -> 76.79237718
C40: 125 | D40: ='計算表（参考）'!F20 -> 56.99600124
C41: 250 | D41: ='計算表（参考）'!G20 -> 44.80150373
C42: 500 | D42: ='計算表（参考）'!H20 -> 38.03682866
C43: 1K | D43: ='計算表（参考）'!I20 -> 30.46389908
C44: 2K | D44: ='計算表（参考）'!J20 -> 22.37082443
C45: 4K | D45: ='計算表（参考）'!K20 -> 15.47984436
C47: 소음 수준 (dB) | D47: ='計算表（参考）'!M20 -> 52.04678396
D48: ='計算表（参考）'!K23 -> 17
C51: Ｌ 수 | D51: ='計算表（参考）'!M22 -> 53.79237718 | F51: Ｌ 등급 | G51: ='計算表（参考）'!M24 -> 55 | J51: 決定周波数(Hz) | L51: ='計算表（参考）'!M26 -> 63
J53: 작성: 하치노헤공업대학 하시모토 연구실

Sheet ボイド換算シート
B1: <확산도법>
C4: 중공 슬래브 환산용 시트
D8: １) 원형 1방향 중공 슬래브의 경우
G9: ｂ
H11: ｄ
I12: ｈ
G13: ｒ
G15: ｒ
E16: 입력 조건
E17: b (mm) | F17: 250 | H17: d (mm) | I17: 125
E19: h (mm) | F19: 250 | H19: r (mm) | I19: 62.5
E22: 환산 전의
E23: 판 두께(mm) | F23: =F19 -> 250 | H23: 단위부피 중량(kg/m3) | J23: 2300
E25: 환산 후의
E26: 판 두께(mm) | F26: =((F17*F19^3/12-(3.14*I19^4/4+(F19/2-I17)^2*3.14*I19^2))*12/F17)^(1/3) -> 246.8951941 | H26: 단위부피 중량(kg/m3) | J26: =((F17*F19-3.14*I19^2)*J23)/F17/F26 -> 1871.872199
D29: 2) 2방향 중공 슬래브의 경우(중공 슬래브, 하프 PC 등)
E31: <ｘ 방향> | I31: <ｙ 방향>
L32: ｄ１
N33: ｈ
L34: ｄ２
F37: ｂｘ | J37: ｂｙ
F38: ｔｘ | J38: ｔｙ
E41: 입력 조건
E42: tx (mm) | F42: 1350 | H42: ty (mm) | I42: 580 | K42: h (mm) | M42: 250
E44: bx (mm) | F44: 1200 | H44: by (mm) | I44: 430 | K44: d1 (mm) | M44: 60
K46: d2 (mm) | M46: 120
E47: 환산 전의
E48: 판 두께(mm) | F48: =M42 -> 250 | H48: 단위부피 중량(kg/m3) | J48: 2400
E50: 환산 전의
E51: 판 두께(mm) | F51: =(12*((F42*I42-F44*I44)*M42^3/12+F44*I44*(M42^3/12-(M46^3/12+(M42/2-M44-M46/2)^2*M46)))/(F42*I42))^(1/3) -> 243.6396479 | H51: 단위부피 중량(kg/m3) | J51: =((F42*I42*M42-F44*I44*M46)*J48)/F42/I42/F51 -> 1683.662327
K62: 작성: 하치노헤공업대학 하시모토 연구실

Sheet 加振力・吸音率設定シート
L1: <확산도법>
B3: <가진력 및 실내 평균 흡음률 설정 시트>
C4: 조건에 따라서는 가진력이나 실내 평균 흡음력을 변경해야 하는 경우가 있을 것으로 생각합니다. 그 설정이나 변경을 하기 위해 바닥 충격음 계산 시트와는 별도로 설정 시트를 마련하였습니다. 이곳에서 설정한 값은 바닥 충격음 계산 시트에서의 계산에 직접 반영됩니다. 필요하면 색으로 표시한 아래 표의 청색 난에 수치를 입력하십시오.
C5: ■가진력과 실내 평균 흡음률의 초기값은 아래와 같습니다. 필요하면 수시로 수정하십시오. 또 실내 평균 흡음률도 평균적인 값을 입력해 놓았지만, 현장 등의 상황에 맞추어 변경하면 예측 정밀도의 향상을 기대할 수 있습니다.
C6: <데이터 입력 표>
C7: 주파수(Hz) | F7: 31.5 | G7: 63 | H7: 125 | I7: 250 | J7: 500 | K7: 1000 | L7: 2000 | M7: 4000
C8: 가진력(dB) | F8: 47 | G8: 40 | H8: 22 | I8: 11.5 | J8: 5.5 | K8: 0 | L8: -5 | M8: -10
C9: 실내 평균 흡음률 | F9: 0.1 | G9: 0.1 | H9: 0.1 | I9: 0.1 | J9: 0.15 | K9: 0.15 | L9: 0.2 | M9: 0.2
C10: <참고> ■일본공업규격 가진력의 충격력 특성은 뱅 머신에 상당하는 충격 특성(1)과 임팩트 볼에 상당하는 충격력 특성(2)이 각각 아래의 표와 같습니다.

Sheet 計算表（参考） (hidden)
B2: <L等級算出＞ | P2: <入力データ＞ | T2: ＜計算経過表＞ | AV2: ＜小梁拘束計算＞
E4: 63 | F4: 125 | G4: 250 | H4: 500 | I4: 1000 | J4: 2000 | K4: 4000 | Q4: =床衝撃音計算シート!D7 -> 29000000000 | T4: 周波数(Hz) | W4: 31.5 | X4: 63 | Y4: 125 | Z4: 250 | AA4: 500 | AB4: 1000 | AC4: 2000 | AD4: 4000 | AG4: 周波数(Hz) | AJ4: 31.5 | AK4: 63 | AL4: 125 | AM4: 250 | AN4: 500 | AO4: 1000 | AP4: 2000 | AQ4: 4000 | AV4: 周波数(Hz) | AY4: 31.5 | AZ4: 63 | BA4: 125 | BB4: 250 | BC4: 500 | BD4: 1000 | BE4: 2000 | BF4: 4000
C5: L-85 | E5: 108 | F5: 98 | G5: 91 | H5: 85 | I5: 82 | J5: 81 | K5: 81 | Q5: =床衝撃音計算シート!G7 -> 2400 | T5: 加振力(dB) | W5: =加振力・吸音率設定シート!F8 -> 47 | X5: =加振力・吸音率設定シート!G8 -> 40 | Y5: =加振力・吸音率設定シート!H8 -> 22 | Z5: =加振力・吸音率設定シート!I8 -> 11.5 | AA5: =加振力・吸音率設定シート!J8 -> 5.5 | AB5: =加振力・吸音率設定シート!K8 -> 0 | AC5: =加振力・吸音率設定シート!L8 -> -5 | AD5: =加振力・吸音率設定シート!M8 -> -10 | AE5: (可変） | AG5: 駆動点インピーダンス(dB) | AH5: ｓ | AI5: 1 | AJ5: =20*LOG10($Q$41)+W$49+AY$15 -> 105.4721718 | AK5: =20*LOG10($Q$41)+X$49+AZ$15 -> 113.9388282 | AL5: 117.5538951 | AM5: 117.8499067 | AN5: 117.8499067 | AO5: 117.8499067 | AP5: 117.8499067 | AQ5: 117.8499067 | AV5: 小梁による端部拘束 加振点１(dB) | AW5: s | AX5: x | AY5: =-3*$BG5*LOG10($Q$16/W$47)-1.2*$BG5 -> -0.445902593 | AZ5: 0.005642400515 | BA5: 0.4519965958 | BB5: 0.9035415893 | BC5: 1.355086583 | BD5: 1.806631576 | BE5: 2.25817657 | BF5: 2.709721563 | BG5: =(Q18-$Q$7/1000)/($Q$7/1000) -> -1
C6: L-80 | E6: 103 | F6: 93 | G6: 86 | H6: 80 | I6: 77 | J6: 76 | K6: 76 | Q6: =床衝撃音計算シート!L7 -> 0.16 | T6: 室内平均吸音率 | W6: =加振力・吸音率設定シート!F9 -> 0.1 | X6: =加振力・吸音率設定シート!G9 -> 0.1 | Y6: =加振力・吸音率設定シート!H9 -> 0.1 | Z6: =加振力・吸音率設定シート!I9 -> 0.1 | AA6: =加振力・吸音率設定シート!J9 -> 0.15 | AB6: =加振力・吸音率設定シート!K9 -> 0.15 | AC6: =加振力・吸音率設定シート!L9 -> 0.2 | AD6: =加振力・吸音率設定シート!M9 -> 0.2 | AE6: (可変） | AH6: ｃ | AJ6: =20*LOG10($Q$41)+W$51+AY$26 -> 121.741296 | AK6: =20*LOG10($Q$41)+X$51+AZ$26 -> 115.3154722 | AL6: 116.4727142 | AM6: 117.8499067 | AN6: 117.8499067 | AO6: 117.8499067 | AP6: 117.8499067 | AQ6: 117.8499067 | AY6: =MAX(AY5,0) -> 0 | AZ6: =MAX(AZ5,0) -> 0.005642400515 | BA6: 0.4519965958 | BB6: 0.9035415893 | BC6: 1.355086583 | BD6: 1.806631576 | BE6: 2.25817657 | BF6: 2.709721563
C7: L-75 | E7: 98 | F7: 88 | G7: 81 | H7: 75 | I7: 72 | J7: 71 | K7: 71 | Q7: =床衝撃音計算シート!L9 -> 200 | T7: モード数 | U7: s | V7: 1 | W7: ='計算表s-1'!C6 -> 0.9742905471 | X7: ='計算表s-1'!D6 -> 2.882921685 | Y7: ='計算表s-1'!E6 -> 5.360774624 | Z7: ='計算表s-1'!F6 -> 10.69607617 | AA7: ='計算表s-1'!G6 -> 16.89421637 | AB7: ='計算表s-1'!H6 -> 35.03041876 | AC7: ='計算表s-1'!I6 -> 46.08881159 | AD7: ='計算表s-1'!J6 -> 93.07723196 | AH7: ｓ | AI7: 2 | AJ7: =20*LOG10($Q$41)+W$53+AY$37 -> 103.4477987 | AK7: =20*LOG10($Q$41)+X$53+AZ$37 -> 112.3154644 | AL7: 116.6592736 | AM7: 117.8499067 | AN7: 117.8499067 | AO7: 117.8499067 | AP7: 117.8499067 | AQ7: 117.8499067 | AY7: =IF($P$18=1,AY6) -> FALSE | AZ7: =IF($P$18=1,AZ6) -> FALSE | BA7: FALSE | BB7: FALSE | BC7: FALSE | BD7: FALSE | BE7: FALSE | BF7: FALSE
C8: L-70 | E8: 93 | F8: 83 | G8: 76 | H8: 70 | I8: 67 | J8: 66 | K8: 66 | Q8: =床衝撃音計算シート!L11 -> 0.03 | U8: c | W8: ='計算表c-1'!C6 -> 0.4905227757 | X8: ='計算表c-1'!D6 -> 1.954401079 | Y8: ='計算表c-1'!E6 -> 4.312977866 | Z8: ='計算表c-1'!F6 -> 10.0220641 | AA8: ='計算表c-1'!G6 -> 15.59143973 | AB8: ='計算表c-1'!H6 -> 34.4149945 | AC8: ='計算表c-1'!I6 -> 45.27911036 | AD8: ='計算表c-1'!J6 -> 91.44202493 | AH8: ｃ | AJ8: =20*LOG10($Q$41)+W$55+AY$48 -> 102.8490041 | AK8: =20*LOG10($Q$41)+X$55+AZ$48 -> 110.2829354 | AL8: 115.4296625 | AM8: 117.8499067 | AN8: 117.8499067 | AO8: 117.8499067 | AP8: 117.8499067 | AQ8: 117.8499067 | AY8: =IF($P$18=0,W69) -> 0 | AZ8: =IF($P$18=0,X69) -> 0 | BA8: 0 | BB8: 0 | BC8: 0 | BD8: 0 | BE8: 0 | BF8: 0
C9: L-65 | E9: 88 | F9: 78 | G9: 71 | H9: 65 | I9: 62 | J9: 61 | K9: 61 | Q9: =床衝撃音計算シート!D9 -> 11 | U9: s | V9: 2 | W9: ='計算表s-2'!C6 -> 1.086089749 | X9: ='計算表s-2'!D6 -> 2.34627637 | Y9: ='計算表s-2'!E6 -> 4.466977373 | Z9: ='計算表s-2'!F6 -> 10.55029557 | AA9: ='計算表s-2'!G6 -> 19.30174614 | AB9: ='計算表s-2'!H6 -> 31.40905995 | AC9: ='計算表s-2'!I6 -> 41.32426324 | AD9: ='計算表s-2'!J6 -> 83.45513591 | AH9: ｓ | AI9: 3 | AJ9: =20*LOG10($Q$41)+W$57+AY$59 -> 104.1229614 | AK9: =20*LOG10($Q$41)+X$57+AZ$59 -> 113.3371385 | AL9: 116.2276509 | AM9: 117.8499067 | AN9: 117.8499067 | AO9: 117.8499067 | AP9: 117.8499067 | AQ9: 117.8499067 | AY9: =MAX(AY7,AY8) -> 0 | AZ9: =MAX(AZ7,AZ8) -> 0 | BA9: 0 | BB9: 0 | BC9: 0 | BD9: 0 | BE9: 0 | BF9: 0
C10: L-60 | E10: 83 | F10: 73 | G10: 66 | H10: 60 | I10: 57 | J10: 56 | K10: 56 | Q10: =床衝撃音計算シート!F9 -> 6 | U10: c | W10: ='計算表c-2'!C6 -> 1.044617253 | X10: ='計算表c-2'!D6 -> 1.883302829 | Y10: ='計算表c-2'!E6 -> 3.599743351 | Z10: ='計算表c-2'!F6 -> 8.983839716 | AA10: ='計算表c-2'!G6 -> 18.46999892 | AB10: ='計算表c-2'!H6 -> 31.63485899 | AC10: ='計算表c-2'!I6 -> 41.62134246 | AD10: ='計算表c-2'!J6 -> 84.05509304 | AH10: ｃ | AJ10: =20*LOG10($Q$41)+W$59+AY$70 -> 103.165666 | AK10: =20*LOG10($Q$41)+X$59+AZ$70 -> 110.3535064 | AL10: 115.346302 | AM10: 117.8499067 | AN10: 117.8499067 | AO10: 117.8499067 | AP10: 117.8499067 | AQ10: 117.8499067 | AX10: y | AY10: =-3*$BG10*LOG10($Q$17/W$47)-1.2*$BG10 -> -1.34899258 | AZ10: -0.8974475865 | BA10: -0.4510933911 | BB10: 0.0004516023512 | BC10: 0.4519965958 | BD10: 0.9035415893 | BE10: 1.355086583 | BF10: 1.806631576 | BG10: =(Q19-$Q$7/1000)/($Q$7/1000) -> -1
C11: L-55 | E11: 78 | F11: 68 | G11: 61 | H11: 55 | I11: 52 | J11: 51 | K11: 51 | Q11: =床衝撃音計算シート!D13 -> 7.1 | U11: s | V11: 3 | W11: ='計算表s-3'!C6 -> 1.136429029 | X11: ='計算表s-3'!D6 -> 2.661003864 | Y11: ='計算表s-3'!E6 -> 4.124327177 | Z11: ='計算表s-3'!F6 -> 10.34447626 | AA11: ='計算表s-3'!G6 -> 19.02156281 | AB11: ='計算表s-3'!H6 -> 35.03338249 | AC11: ='計算表s-3'!I6 -> 46.09271091 | AD11: ='計算表s-3'!J6 -> 93.08510671 | AH11: ｓ | AI11: 4 | AJ11: =20*LOG10($Q$41)+W$61+AY$81 -> 107.2204917 | AK11: =20*LOG10($Q$41)+X$61+AZ$81 -> 110.6099394 | AL11: 117.1600148 | AM11: 117.8499067 | AN11: 117.8499067 | AO11: 117.8499067 | AP11: 117.8499067 | AQ11: 117.8499067 | AY11: =MAX(AY10,0) -> 0 | AZ11: =MAX(AZ10,0) -> 0 | BA11: 0 | BB11: 0.0004516023512 | BC11: 0.4519965958 | BD11: 0.9035415893 | BE11: 1.355086583 | BF11: 1.806631576
C12: L-50 | E12: 73 | F12: 63 | G12: 56 | H12: 50 | I12: 47 | J12: 46 | K12: 46 | Q12: =床衝撃音計算シート!F13 -> 3.5 | U12: c | W12: ='計算表c-3'!C6 -> 0.9379130502 | X12: ='計算表c-3'!D6 -> 1.896635514 | Y12: ='計算表c-3'!E6 -> 3.551678354 | Z12: ='計算表c-3'!F6 -> 8.855842179 | AA12: ='計算表c-3'!G6 -> 17.75197949 | AB12: ='計算表c-3'!H6 -> 34.15270639 | AC12: ='計算表c-3'!I6 -> 44.93402321 | AD12: ='計算表c-3'!J6 -> 90.74511487 | AH12: ｃ | AJ12: =20*LOG10($Q$41)+W$63+AY$92 -> 123.3022205 | AK12: =20*LOG10($Q$41)+X$63+AZ$92 -> 113.0031353 | AL12: 116.0826923 | AM12: 117.8499067 | AN12: 117.8499067 | AO12: 117.8499067 | AP12: 117.8499067 | AQ12: 117.8499067 | AY12: =IF($P$19=1,AY11) -> FALSE | AZ12: =IF($P$19=1,AZ11) -> FALSE | BA12: FALSE | BB12: FALSE | BC12: FALSE | BD12: FALSE | BE12: FALSE | BF12: FALSE
C13: L-45 | E13: 68 | F13: 58 | G13: 51 | H13: 45 | I13: 42 | J13: 41 | K13: 41 | Q13: =床衝撃音計算シート!L13 -> 2.4 | U13: s | V13: 4 | W13: ='計算表s-4'!C6 -> 0.868088431 | X13: ='計算表s-4'!D6 -> 1.94650256 | Y13: ='計算表s-4'!E6 -> 4.931853361 | Z13: ='計算表s-4'!F6 -> 9.316751822 | AA13: ='計算表s-4'!G6 -> 16.43979117 | AB13: ='計算表s-4'!H6 -> 34.596925 | AC13: ='計算表s-4'!I6 -> 45.51847263 | AD13: ='計算表s-4'!J6 -> 91.92542159 | AH13: ｓ | AI13: 5 | AJ13: =20*LOG10($Q$41)+W$65+AY$103 -> 104.1599724 | AK13: =20*LOG10($Q$41)+X$65+AZ$103 -> 109.6368619 | AL13: 116.0965205 | AM13: 117.8499067 | AN13: 117.8499067 | AO13: 117.8499067 | AP13: 117.8499067 | AQ13: 117.8499067 | AY13: =IF($P$19=0,W71) -> 2.899724316 | AZ13: =IF($P$19=0,X71) -> 0 | BA13: 0 | BB13: 0 | BC13: 0 | BD13: 0 | BE13: 0 | BF13: 0
C14: L-40 | E14: 63 | F14: 53 | G14: 46 | H14: 40 | I14: 37 | J14: 36 | K14: 36 | Q14: =床衝撃音計算シート!D11 -> 0.8 | U14: c | W14: ='計算表c-4'!C6 -> 0.4112322141 | X14: ='計算表c-4'!D6 -> 1.571315771 | Y14: ='計算表c-4'!E6 -> 4.01941495 | Z14: ='計算表c-4'!F6 -> 9.095817349 | AA14: ='計算表c-4'!G6 -> 15.09935863 | AB14: ='計算表c-4'!H6 -> 33.84015657 | AC14: ='計算表c-4'!I6 -> 44.52280776 | AD14: ='計算表c-4'!J6 -> 89.91465743 | AH14: ｃ | AJ14: =20*LOG10($Q$41)+W$67+AY$114 -> 104.4868271 | AK14: =20*LOG10($Q$41)+X$67+AZ$114 -> 106.9668758 | AL14: 115.6444376 | AM14: 117.8499067 | AN14: 117.8499067 | AO14: 117.8499067 | AP14: 117.8499067 | AQ14: 117.8499067 | AY14: =MAX(AY12,AY13) -> 2.899724316 | AZ14: =MAX(AZ12,AZ13) -> 0 | BA14: 0 | BB14: 0 | BC14: 0 | BD14: 0 | BE14: 0 | BF14: 0
C15: L-35 | E15: 58 | F15: 48 | G15: 41 | H15: 35 | I15: 32 | J15: 31 | K15: 31 | Q15: =床衝撃音計算シート!D15 -> 5 | U15: s | V15: 5 | W15: ='計算表s-5'!C6 -> 0.8777270325 | X15: ='計算表s-5'!D6 -> 1.768482352 | Y15: ='計算表s-5'!E6 -> 4.029220646 | Z15: ='計算表s-5'!F6 -> 9.026324509 | AA15: ='計算表s-5'!G6 -> 18.58619333 | AB15: ='計算表s-5'!H6 -> 31.77989275 | AC15: ='計算表s-5'!I6 -> 41.81216043 | AD15: ='計算表s-5'!J6 -> 84.44045356 | AG15: cbの値 | AJ15: =SQRT(3.14*$Q$36*$Q$7/1000*AJ4/1.7320508) -> 200.5474556 | AK15: 283.6169316 | AL15: 399.500094 | AM15: 564.9784511 | AN15: 799.0001881 | AO15: 1129.956902 | AP15: 1598.000376 | AQ15: 2259.913805 | AY15: =SQRT(AY9^2+AY14^2) -> 2.899724316 | AZ15: =SQRT(AZ9^2+AZ14^2) -> 0 | BA15: 0 | BB15: 0 | BC15: 0 | BD15: 0 | BE15: 0 | BF15: 0
C16: L-30 | E16: 53 | F16: 43 | G16: 36 | H16: 30 | I16: 27 | J16: 26 | K16: 26 | Q16: =床衝撃音計算シート!D17 -> 1.8 | U16: c | W16: ='計算表c-5'!C6 -> 0.8581622451 | X16: ='計算表c-5'!D6 -> 1.401698559 | Y16: ='計算表c-5'!E6 -> 3.728976107 | Z16: ='計算表c-5'!F6 -> 8.037261876 | AA16: ='計算表c-5'!G6 -> 17.60891023 | AB16: ='計算表c-5'!H6 -> 31.71942527 | AC16: ='計算表c-5'!I6 -> 41.73260459 | AD16: ='計算表c-5'!J6 -> 84.27978905 | AG16: ｋｒの値 | AJ16: =2*3.14*AJ4/AJ15*$Q$40 -> 2.774926049 | AK16: =2*3.14*AK4/AK15*$Q$40 -> 3.924338053 | AL16: 5.527785004 | AM16: 7.817468523 | AN16: 11.05557001 | AO16: 15.63493705 | AP16: 22.11114002 | AQ16: 31.26987409 | AW16: c | AX16: x | AY16: =-3*$BG16*LOG10($Q$16/W$47)-1.2*$BG16 -> -0.445902593 | AZ16: 0.005642400515 | BA16: 0.4519965958 | BB16: 0.9035415893 | BC16: 1.355086583 | BD16: 1.806631576 | BE16: 2.25817657 | BF16: 2.709721563 | BG16: =(Q18-$Q$7/1000)/($Q$7/1000) -> -1
C17: 計算値 | E17: =E20 -> 76.79237718 | F17: =F20 -> 56.99600124 | G17: 44.80150373 | H17: 38.03682866 | I17: 30.46389908 | J17: 22.37082443 | K17: 15.47984436 | Q17: =床衝撃音計算シート!F17 -> 0.9 | U17: s | V17: 1 | W17: =1-W7^(-0.75) -> -0.01972633029 | X17: =1-X7^(-0.75) -> 0.548013601 | Y17: 0.7161562485 | Z17: 0.8309241285 | AA17: 0.8799957959 | AB17: 0.930550999 | AC17: 0.9434668262 | AD17: 0.9666291395 | AG17: αの値 | AJ17: =1-EXP(-12.5*3.14*$Q$9*$Q$10*$Q$8*AJ4/(2*($Q$9+$Q$10))/AJ15) -> 0.3016400139 | AK17: =1-EXP(-12.5*3.14*$Q$9*$Q$10*$Q$8*AK4/(2*($Q$9+$Q$10))/AK15) -> 0.3981408066 | AL17: 0.5108989154 | AM17: 0.6362999806 | AN17: 0.7607801291 | AO17: 0.8677222959 | AP17: 0.9427738533 | AQ17: 0.982502609 | AY17: =MAX(AY16,0) -> 0 | AZ17: =MAX(AZ16,0) -> 0.005642400515 | BA17: 0.4519965958 | BB17: 0.9035415893 | BC17: 1.355086583 | BD17: 1.806631576 | BE17: 2.25817657 | BF17: 2.709721563
P18: =床衝撃音計算シート!I17 -> 0 | Q18: =床衝撃音計算シート!J17 -> 0 | W18: =1-(1/W7)^(-0.75) -> 0.01934472976 | X18: =1-(1/X7)^(-0.75) -> -1.212455955 | Y18: -2.523065048 | Z18: -4.914504482 | AA18: -7.33304139 | AB18: -13.3990552 | AC18: -16.68872916 | AD18: -28.96626353 | AG18: ｒ／ｐの値 | AJ18: =$Q$40/(2*($Q$9+$Q$10)*AJ17/(1-AJ17)) -> 0.1915622154 | AK18: 0.1250770594 | AL18: 0.07921056309 | AM18: 0.0472934362 | AN18: 0.02601701975 | AO18: 0.01261320189 | AP18: 0.005022343695 | AQ18: 0.001473530196 | AY18: =IF($P$18=1,AY17) -> FALSE | AZ18: =IF($P$18=1,AZ17) -> FALSE | BA18: FALSE | BB18: FALSE | BC18: FALSE | BD18: FALSE | BE18: FALSE | BF18: FALSE
C19: 31.5 | E19: 63 | F19: 125 | G19: 250 | H19: 500 | I19: 1000 | J19: 2000 | K19: 4000 | P19: =床衝撃音計算シート!K17 -> 0 | Q19: =床衝撃音計算シート!L17 -> 0 | T19: 拡散度指数 | W19: =MAX(W17,W18) -> 0.01934472976 | X19: =MAX(X17,X18) -> 0.548013601 | Y19: 0.7161562485 | Z19: 0.8309241285 | AA19: 0.8799957959 | AB19: 0.930550999 | AC19: 0.9434668262 | AD19: 0.9666291395 | AG19: 拡散板面平均レベル差(dB) | AJ19: =(-10.3*LOG10(AJ16)+1.3)*10^(-1.753*AJ18+0.001753) -> -1.513187469 | AK19: =(-10.3*LOG10(AK16)+1.3)*10^(-1.753*AK18+0.001753) -> -2.91850754 | AL19: -4.629698785 | AM19: -6.552344099 | AN19: -8.541335112 | AO19: -10.49549122 | AP19: -12.34738729 | AQ19: -14.07287494 | AY19: =IF($P$18=0,W74) -> 0 | AZ19: =IF($P$18=0,X74) -> 0 | BA19: 0 | BB19: 0 | BC19: 0 | BD19: 0 | BE19: 0 | BF19: 0
C20: =AJ82 -> 81.84332917 | E20: =AK82 -> 76.79237718 | F20: 56.99600124 | G20: 44.80150373 | H20: 38.03682866 | I20: 30.46389908 | J20: 22.37082443 | K20: 15.47984436 | M20: =10*LOG10(10^((C20-39)/10)+10^((E20-26)/10)+10^((F20-16)/10)+10^((G20-9)/10)+10^((H20-3)/10)+10^(I20/10)+10^((J20+1)/10)+10^((K20+1)/10)) -> 52.04678396 | Q20: =床衝撃音計算シート!D19 -> 1.8 | U20: c | W20: =1-W8^(-0.75) -> -0.7061044555 | X20: =1-X8^(-0.75) -> 0.3950217941 | Y20: 0.6658687634 | Z20: 0.822465763 | AA20: 0.8725513221 | AB20: 0.9296216272 | AC20: 0.942710295 | AD20: 0.9661825681 | AG20: 板面平均レベル差(dB) | AH20: s | AI20: 1 | AJ20: =(AJ19+3)*W19-3 -> -2.971238013 | AK20: =(AK19+3)*X19-3 -> -2.955341024 | AL20: -4.167118968 | AM20: -5.951728425 | AN20: -7.876351602 | AO20: -9.974936838 | AP20: -11.81894982 | AQ20: -13.70336357 | AY20: =MAX(AY18,AY19) -> 0 | AZ20: =MAX(AZ18,AZ19) -> 0 | BA20: 0 | BB20: 0 | BC20: 0 | BD20: 0 | BE20: 0 | BF20: 0
Q21: =床衝撃音計算シート!F19 -> 2.7 | W21: =1-(1/W8)^(-0.75) -> 0.4138694165 | X21: =1-(1/X8)^(-0.75) -> -0.6529521069 | Y21: -1.992836019 | Z21: -4.632716354 | AA21: -6.846295594 | AB21: -13.20891049 | AC21: -16.45514312 | AD21: -28.57054821 | AJ21: =AJ20 -> -2.971238013 | AK21: =AK20 -> -2.955341024 | AL21: -4.167118968 | AM21: -5.951728425 | AN21: -7.876351602 | AO21: -9.974936838 | AP21: -11.81894982 | AQ21: -13.70336357 | AX21: y | AY21: =-3*$BG21*LOG10($Q$17/W$47)-1.2*$BG21 -> -1.34899258 | AZ21: -0.8974475865 | BA21: -0.4510933911 | BB21: 0.0004516023512 | BC21: 0.4519965958 | BD21: 0.9035415893 | BE21: 1.355086583 | BF21: 1.806631576 | BG21: =(Q19-$Q$7/1000)/($Q$7/1000) -> -1
C22: L値 | E22: =30+E20-E16 -> 53.79237718 | F22: =30+F20-F16 -> 43.99600124 | G22: 38.80150373 | H22: 38.03682866 | I22: 33.46389908 | J22: 26.37082443 | K22: 19.47984436 | M22: =MAX(E22,F22,G22,H22,I22,J22,K22) -> 53.79237718 | P22: =床衝撃音計算シート!I19 -> 0 | Q22: =床衝撃音計算シート!J19 -> 0 | W22: =MAX(W20,W21) -> 0.4138694165 | X22: =MAX(X20,X21) -> 0.3950217941 | Y22: 0.6658687634 | Z22: 0.822465763 | AA22: 0.8725513221 | AB22: 0.9296216272 | AC22: 0.942710295 | AD22: 0.9661825681 | AH22: c | AJ22: =(AJ19+3)*W22-3 -> -2.384653766 | AK22: =(AK19+3)*X22-3 -> -2.967808702 | AL22: -4.085165515 | AM22: -5.9216814 | AN22: -7.835099278 | AO22: -9.96797074 | AP22: -11.81187823 | AQ22: -13.69841875 | AY22: =MAX(AY21,0) -> 0 | AZ22: =MAX(AZ21,0) -> 0 | BA22: 0 | BB22: 0.0004516023512 | BC22: 0.4519965958 | BD22: 0.9035415893 | BE22: 1.355086583 | BF22: 1.806631576
E23: =ROUND(E22,0.1)-2 -> 52 | F23: 42 | G23: 37 | H23: 36 | I23: 31 | J23: 24 | K23: 17 | P23: =床衝撃音計算シート!K19 -> 0 | Q23: =床衝撃音計算シート!L19 -> 0 | U23: s | V23: 2 | W23: =1-W9^(-0.75) -> 0.06005873981 | X23: =1-X9^(-0.75) -> 0.4725083067 | Y23: 0.6745459461 | Z23: 0.8291749605 | AA23: 0.8914068201 | AB23: 0.9246282158 | AC23: 0.9386455368 | AD23: 0.9637831897 | AJ23: =AJ22 -> -2.384653766 | AK23: =AK22 -> -2.967808702 | AL23: -4.085165515 | AM23: -5.9216814 | AN23: -7.835099278 | AO23: -9.96797074 | AP23: -11.81187823 | AQ23: -13.69841875 | AY23: =IF($P$19=1,AY22) -> FALSE | AZ23: =IF($P$19=1,AZ22) -> FALSE | BA23: FALSE | BB23: FALSE | BC23: FALSE | BD23: FALSE | BE23: FALSE | BF23: FALSE
C24: L等級 | E24: =(ROUNDUP(E23/5,0.1))*5 -> 55 | F24: 45 | G24: 40 | H24: 40 | I24: 35 | J24: 25 | K24: 20 | M24: =MAX(E24,F24,G24,H24,I24,J24,K24) -> 55 | Q24: =床衝撃音計算シート!D21 -> 3.55 | W24: =1-(1/W9)^(-0.75) -> -0.06389626922 | X24: =1-(1/X9)^(-0.75) -> -0.8957644503 | Y24: -2.072630339 | Z24: -4.853942741 | AA24: -8.208681441 | AB24: -12.26756439 | AC24: -15.29873278 | AD24: -26.61148736 | AH24: s | AI24: 2 | AJ24: =(AJ19+3)*W25-3 -> -2.910703913 | AK24: =(AK19+3)*X25-3 -> -2.961494136 | AL24: -4.099306709 | AM24: -5.945514778 | AN24: -7.939583911 | AO24: -9.930542669 | AP24: -11.77388336 | AQ24: -13.67185073 | AY24: =IF($P$19=0,W76) -> 10.68656773 | AZ24: =IF($P$19=0,X76) -> 4.66596782 | BA24: 0 | BB24: 0 | BC24: 0 | BD24: 0 | BE24: 0 | BF24: 0
Q25: =床衝撃音計算シート!F21 -> 1.75 | W25: =MAX(W23,W24) -> 0.06005873981 | X25: 0.4725083067 | Y25: 0.6745459461 | Z25: 0.8291749605 | AA25: 0.8914068201 | AB25: 0.9246282158 | AC25: 0.9386455368 | AD25: 0.9637831897 | AJ25: =AJ24 -> -2.910703913 | AK25: =AK24 -> -2.961494136 | AL25: -4.099306709 | AM25: -5.945514778 | AN25: -7.939583911 | AO25: -9.930542669 | AP25: -11.77388336 | AQ25: -13.67185073 | AY25: =MAX(AY23,AY24) -> 10.68656773 | AZ25: =MAX(AZ23,AZ24) -> 4.66596782 | BA25: 0 | BB25: 0 | BC25: 0 | BD25: 0 | BE25: 0 | BF25: 0
C26: 決定ｆ | E26: =IF(E24=$M$24,63) -> 63 | F26: =IF(F24=$M$24,125) -> FALSE | G26: =IF(G24=$M$24,250) -> FALSE | H26: =IF(H24=$M$24,500) -> FALSE | I26: =IF(I24=$M$24,1000) -> FALSE | J26: =IF(J24=$M$24,2000) -> FALSE | K26: =IF(K24=$M$24,4000) -> FALSE | M26: =MIN(E26,F26,G26,H26,I26,J26,K26) -> 63 | P26: =床衝撃音計算シート!I21 -> 0 | Q26: =床衝撃音計算シート!J21 -> 0 | U26: c | W26: =1-W10^(-0.75) -> 0.0322078298 | X26: =1-X10^(-0.75) -> 0.3779720768 | Y26: 0.6173547325 | Z26: 0.8072903317 | AA26: 0.8877594341 | AB26: 0.9250320608 | AC26: 0.9389742765 | AD26: 0.9639772408 | AH26: c | AJ26: =(AJ19+3)*W28-3 -> -2.952112995 | AK26: =(AK19+3)*X28-3 -> -2.969198126 | AL26: -4.006102257 | AM26: -5.867773046 | AN26: -7.919372523 | AO26: -9.933569686 | AP26: -11.77695622 | AQ26: -13.67399943 | AY26: =SQRT(AY20^2+AY25^2) -> 10.68656773 | AZ26: =SQRT(AZ20^2+AZ25^2) -> 4.66596782 | BA26: 0 | BB26: 0 | BC26: 0 | BD26: 0 | BE26: 0 | BF26: 0
P27: =床衝撃音計算シート!K21 -> 0 | Q27: =床衝撃音計算シート!L21 -> 0 | W27: =1-(1/W10)^(-0.75) -> -0.0332796966 | X27: =1-(1/X10)^(-0.75) -> -0.6076448705 | Y27: -1.613386562 | Z27: -4.189153243 | AA27: -7.90943477 | AB27: -12.33903547 | AC27: -15.38653247 | AD27: -26.76022776 | AJ27: =AJ26 -> -2.952112995 | AK27: =AK26 -> -2.969198126 | AL27: -4.006102257 | AM27: -5.867773046 | AN27: -7.919372523 | AO27: -9.933569686 | AP27: -11.77695622 | AQ27: -13.67399943 | AV27: 小梁による端部拘束 加振点2(dB) | AW27: s | AX27: x | AY27: =-3*$BG27*LOG10($Q$20/W$47)-1.2*$BG27 -> -0.445902593 | AZ27: 0.005642400515 | BA27: 0.4519965958 | BB27: 0.9035415893 | BC27: 1.355086583 | BD27: 1.806631576 | BE27: 2.25817657 | BF27: 2.709721563 | BG27: =(Q22-$Q$7/1000)/($Q$7/1000) -> -1
Q28: =床衝撃音計算シート!D23 -> 5.4 | W28: =MAX(W26,W27) -> 0.0322078298 | X28: 0.3779720768 | Y28: 0.6173547325 | Z28: 0.8072903317 | AA28: 0.8877594341 | AB28: 0.9250320608 | AC28: 0.9389742765 | AD28: 0.9639772408 | AH28: s | AI28: 3 | AJ28: =(AJ19+3)*W31-3 -> -2.864013664 | AK28: =(AK19+3)*X31-3 -> -2.957621636 | AL28: -4.066589732 | AM28: -5.936481761 | AN28: -7.932948332 | AO28: -9.974969867 | AP28: -11.81898335 | AQ28: -13.70338702 | AY28: =MAX(AY27,0) -> 0 | AZ28: =MAX(AZ27,0) -> 0.005642400515 | BA28: 0.4519965958 | BB28: 0.9035415893 | BC28: 1.355086583 | BD28: 1.806631576 | BE28: 2.25817657 | BF28: 2.709721563
Q29: =床衝撃音計算シート!F23 -> 0.9 | U29: s | V29: 3 | W29: =1-W11^(-0.75) -> 0.09146165601 | X29: =1-X11^(-0.75) -> 0.5200280349 | Y29: 0.6544704715 | Z29: 0.8266321276 | AA29: 0.8902093508 | AB29: 0.9305554054 | AC29: 0.9434704132 | AD29: 0.9666312568 | AJ29: =AJ28 -> -2.864013664 | AK29: =AK28 -> -2.957621636 | AL29: -4.066589732 | AM29: -5.936481761 | AN29: -7.932948332 | AO29: -9.974969867 | AP29: -11.81898335 | AQ29: -13.70338702 | AY29: =IF($P$22=1,AY28) -> FALSE | AZ29: =IF($P$22=1,AZ28) -> FALSE | BA29: FALSE | BB29: FALSE | BC29: FALSE | BD29: FALSE | BE29: FALSE | BF29: FALSE
P30: =床衝撃音計算シート!I23 -> 0 | Q30: =床衝撃音計算シート!J23 -> 0 | W30: =1-(1/W11)^(-0.75) -> -0.1006690104 | X30: =1-(1/X11)^(-0.75) -> -1.08345502 | Y30: -1.894108658 | Z30: -4.7680814 | AA30: -8.108243798 | AB30: -13.39996886 | AC30: -16.68985156 | AD30: -28.96816497 | AH30: c | AJ30: =(AJ19+3)*W34-3 -> -2.930214539 | AK30: =(AK19+3)*X34-3 -> -2.968930637 | AL30: -3.999783538 | AM30: -5.86036556 | AN30: -7.900598819 | AO30: -9.964935184 | AP30: -11.80879671 | AQ30: -13.69626398 | AY30: =IF($P$22=0,W79) -> 0 | AZ30: =IF($P$22=0,X79) -> 0 | BA30: 0 | BB30: 0 | BC30: 0 | BD30: 0 | BE30: 0 | BF30: 0
P31: =床衝撃音計算シート!K23 -> 0 | Q31: =床衝撃音計算シート!L23 -> 0 | W31: =MAX(W29,W30) -> 0.09146165601 | X31: 0.5200280349 | Y31: 0.6544704715 | Z31: 0.8266321276 | AA31: 0.8902093508 | AB31: 0.9305554054 | AC31: 0.9434704132 | AD31: 0.9666312568 | AJ31: =AJ30 -> -2.930214539 | AK31: =AK30 -> -2.968930637 | AL31: -3.999783538 | AM31: -5.86036556 | AN31: -7.900598819 | AO31: -9.964935184 | AP31: -11.80879671 | AQ31: -13.69626398 | AY31: =MAX(AY29,AY30) -> 0 | AZ31: 0 | BA31: 0 | BB31: 0 | BC31: 0 | BD31: 0 | BE31: 0 | BF31: 0
Q32: =床衝撃音計算シート!D25 -> 5.4 | U32: c | W32: =1-W12^(-0.75) -> -0.0492477968 | X32: =1-X12^(-0.75) -> 0.381254446 | Y32: 0.613477501 | Z32: 0.8052050926 | AA32: 0.8843714953 | AB32: 0.9292166429 | AC32: 0.9423806279 | AD32: 0.9659879696 | AH32: s | AI32: 4 | AJ32: =(AJ19+3)*W37-3 -> -2.850334576 | AK32: =(AK19+3)*X37-3 -> -2.967958667 | AL32: -4.137262864 | AM32: -5.886202383 | AN32: -7.862612696 | AO32: -9.970052615 | AP32: -11.81399163 | AQ32: -13.69989655 | AX32: y | AY32: =-3*$BG32*LOG10($Q$21/W$47)-1.2*$BG32 -> 0.08237118419 | AZ32: 0.5339161777 | BA32: 0.980270373 | BB32: 1.431815367 | BC32: 1.88336036 | BD32: 2.334905354 | BE32: 2.786450347 | BF32: 3.23799534 | BG32: =(Q23-$Q$7/1000)/($Q$7/1000) -> -1
Q33: =床衝撃音計算シート!F25 -> 2.7 | W33: =1-(1/W12)^(-0.75) -> 0.04693628802 | X33: =1-(1/X12)^(-0.75) -> -0.6161732292 | Y33: -1.587171517 | Z33: -4.133604432 | AA33: -7.648386507 | AB33: -13.12761475 | AC33: -16.35527418 | AD33: -28.40136144 | AJ33: =AJ32 -> -2.850334576 | AK33: =AK32 -> -2.967958667 | AL33: -4.137262864 | AM33: -5.886202383 | AN33: -7.862612696 | AO33: -9.970052615 | AP33: -11.81399163 | AQ33: -13.69989655 | AY33: =MAX(AY32,0) -> 0.08237118419 | AZ33: =MAX(AZ32,0) -> 0.5339161777 | BA33: 0.980270373 | BB33: 1.431815367 | BC33: 1.88336036 | BD33: 2.334905354 | BE33: 2.786450347 | BF33: 3.23799534
N34: =SQRT(Q4*(Q7/1000)^3/12/(1-Q6^2)/(Q5*Q7/1000)) -> 203.3125152 | P34: =床衝撃音計算シート!I25 -> 0 | Q34: =床衝撃音計算シート!J25 -> 0 | W34: =MAX(W32,W33) -> 0.04693628802 | X34: 0.381254446 | Y34: 0.613477501 | Z34: 0.8052050926 | AA34: 0.8843714953 | AB34: 0.9292166429 | AC34: 0.9423806279 | AD34: 0.9659879696 | AH34: c | AJ34: =(AJ19+3)*W40-3 -> -2.276709475 | AK34: =(AK19+3)*X40-3 -> -2.976573262 | AL34: -4.055601875 | AM34: -5.874103584 | AN34: -7.817906736 | AO34: -9.961264224 | AP34: -11.80507015 | AQ34: -13.69365818 | AY34: =IF($P$23=1,AY33) -> FALSE | AZ34: =IF($P$23=1,AZ33) -> FALSE | BA34: FALSE | BB34: FALSE | BC34: FALSE | BD34: FALSE | BE34: FALSE | BF34: FALSE
P35: =床衝撃音計算シート!K25 -> 0 | Q35: =床衝撃音計算シート!L25 -> 0 | U35: s | V35: 4 | W35: =1-W13^(-0.75) -> -0.1119289144 | X35: =1-X13^(-0.75) -> 0.3931815657 | Y35: 0.6978362348 | Z35: 0.8124782684 | AA35: 0.8775164465 | AB35: 0.9298993774 | AC35: 0.9429363905 | AD35: 0.9663160296 | AJ35: =AJ34 -> -2.276709475 | AK35: =AK34 -> -2.976573262 | AL35: -4.055601875 | AM35: -5.874103584 | AN35: -7.817906736 | AO35: -9.961264224 | AP35: -11.80507015 | AQ35: -13.69365818 | AY35: =IF($P$23=0,W81) -> 0 | AZ35: =IF($P$23=0,X81) -> 0 | BA35: 0 | BB35: 0 | BC35: 0 | BD35: 0 | BE35: 0 | BF35: 0
N36: 340 | Q36: =SQRT(Q4/Q5/(1-Q6^2)) -> 3521.476061 | W36: =1-(1/W13)^(-0.75) -> 0.1006619334 | X36: =1-(1/X13)^(-0.75) -> -0.6479393892 | Y36: -2.309463659 | Z36: -4.332715261 | AA36: -7.16436143 | AB36: -13.26520855 | AC36: -16.52430328 | AD36: -28.68771162 | AH36: s | AI36: 5 | AJ36: =(AJ19+3)*W43-3 -> -2.8614542 | AK36: =(AK19+3)*X43-3 -> -2.971646969 | AL36: -4.056650056 | AM36: -5.870191058 | AN36: -7.922291028 | AO36: -9.935494114 | AP36: -11.77890979 | AQ36: -13.67536547 | AY36: =MAX(AY34,AY35) -> 0 | AZ36: 0 | BA36: 0 | BB36: 0 | BC36: 0 | BD36: 0 | BE36: 0 | BF36: 0
Q37: =3.14/2*N34*(1/Q9^2+1/Q10^2) -> 11.50470658 | W37: =MAX(W35,W36) -> 0.1006619334 | X37: 0.3931815657 | Y37: 0.6978362348 | Z37: 0.8124782684 | AA37: 0.8775164465 | AB37: 0.9298993774 | AC37: 0.9429363905 | AD37: 0.9663160296 | AJ37: =AJ36 -> -2.8614542 | AK37: =AK36 -> -2.971646969 | AL37: -4.056650056 | AM37: -5.870191058 | AN37: -7.922291028 | AO37: -9.935494114 | AP37: -11.77890979 | AQ37: -13.67536547 | AY37: =SQRT(AY31^2+AY36^2) -> 0 | AZ37: 0 | BA37: 0 | BB37: 0 | BC37: 0 | BD37: 0 | BE37: 0 | BF37: 0
Q38: =2*3.14/3*N34*SQRT((1/Q9^2+1/Q10^2)^2+2*(1/Q9^4+1/Q10^4)) -> 23.22882452 | U38: c | W38: =1-W14^(-0.75) -> -0.9473080266 | X38: =1-X14^(-0.75) -> 0.287471241 | Y38: 0.647728209 | Z38: 0.8090724051 | AA38: 0.8694487229 | AB38: 0.9287268871 | AC38: 0.9419819549 | AD38: 0.9657526376 | AH38: c | AJ38: =(AJ19+3)*W46-3 -> -2.838850867 | AK38: =(AK19+3)*X46-3 -> -2.981767142 | AL38: -4.0223822 | AM38: -5.808153914 | AN38: -7.89669837 | AO38: -9.934693653 | AP38: -11.77809721 | AQ38: -13.67479727 | AW38: c | AX38: x | AY38: =-3*$BG38*LOG10($Q$20/W$47)-1.2*$BG38 -> -0.445902593 | AZ38: 0.005642400515 | BA38: 0.4519965958 | BB38: 0.9035415893 | BC38: 1.355086583 | BD38: 1.806631576 | BE38: 2.25817657 | BF38: 2.709721563 | BG38: =(Q22-$Q$7/1000)/($Q$7/1000) -> -1
Q39: =N36^2/2/3.14/N34 -> 90.53866307 | W39: =1-(1/W14)^(-0.75) -> 0.4864705602 | X39: =1-(1/X14)^(-0.75) -> -0.4034521237 | Y39: -1.838717222 | Z39: -4.23758758 | AA39: -6.659825488 | AB39: -13.03053634 | AC39: -16.23601679 | AD39: -28.19932893 | AJ39: =AJ38 -> -2.838850867 | AK39: =AK38 -> -2.981767142 | AL39: -4.0223822 | AM39: -5.808153914 | AN39: -7.89669837 | AO39: -9.934693653 | AP39: -11.77809721 | AQ39: -13.67479727 | AY39: =MAX(AY38,0) -> 0 | AZ39: =MAX(AZ38,0) -> 0.005642400515 | BA39: 0.4519965958 | BB39: 0.9035415893 | BC39: 1.355086583 | BD39: 1.806631576 | BE39: 2.25817657 | BF39: 2.709721563
Q40: =SQRT(Q11*Q12/3.14) -> 2.813185514 | W40: =MAX(W38,W39) -> 0.4864705602 | X40: 0.287471241 | Y40: 0.647728209 | Z40: 0.8090724051 | AA40: 0.8694487229 | AB40: 0.9287268871 | AC40: 0.9419819549 | AD40: 0.9657526376 | AG40: 音響放射率 | AJ40: =$Q$43+20*LOG10(AJ4/$Q$37) -> -2.196017845 | AK40: 3.824582068 | AL40: 9.775971339 | AM40: 15.79657125 | AN40: 21.81717117 | AO40: 27.83777108 | AP40: 33.85837099 | AQ40: 39.87897091 | AY40: =IF($P$22=1,AY39) -> FALSE | AZ40: =IF($P$22=1,AZ39) -> FALSE | BA40: FALSE | BB40: FALSE | BC40: FALSE | BD40: FALSE | BE40: FALSE | BF40: FALSE
Q41: =8*SQRT(Q4*(Q7/1000)^3/(12*(1-Q6^2))*Q5*Q7/1000) -> 780720.0584 | U41: s | V41: 1 | W41: =1-W15^(-0.75) -> -0.1027584503 | X41: =1-X15^(-0.75) -> 0.3479221437 | Y41: 0.6483713834 | Z41: 0.8079710122 | AA41: 0.8882861132 | AB41: 0.9252888056 | AC41: 0.939183273 | AD41: 0.9641006089 | AJ41: =MIN(AJ40,0) -> -2.196017845 | AK41: =MIN(AK40,0) -> 0 | AL41: 0 | AM41: 0 | AN41: 0 | AO41: 0 | AP41: 0 | AQ41: 0 | AR41: =Q11*Q12 -> 24.85 | AY41: =IF($P$22=0,W84) -> 0 | AZ41: =IF($P$22=0,X84) -> 0 | BA41: 0 | BB41: 0 | BC41: 0 | BD41: 0 | BE41: 0 | BF41: 0
N42: ramd | Q42: =N36/Q39 -> 3.755301751 | W42: =1-(1/W15)^(-0.75) -> 0.09318309943 | X42: =1-(1/X15)^(-0.75) -> -0.5335592068 | Y42: -1.843909605 | Z42: -4.207547107 | AA42: -7.951438613 | AB42: -12.38487502 | AC42: -15.44284474 | AD42: -26.8556257 | AJ42: =$Q$43*LOG10($Q$39/AJ4)/(LOG10($Q$39/$Q$37)) -> -5.601163986 | AK42: -1.923886193 | AL42: 1.711118943 | AM42: 5.388396736 | AN42: 9.065674529 | AO42: 12.74295232 | AP42: 16.42023011 | AQ42: 20.09750791 | AY42: =MAX(AY40,AY41) -> 0 | AZ42: =MAX(AZ40,AZ41) -> 0 | BA42: 0 | BB42: 0 | BC42: 0 | BD42: 0 | BE42: 0 | BF42: 0
N43: sig0 | P43: =10*LOG10(Q42^2*Q11*Q12/(Q9*Q10)^2) -> -10.94471798 | Q43: =MIN($P$43,0) -> -10.94471798 | W43: =MAX(W41,W42) -> 0.09318309943 | X43: 0.3479221437 | Y43: 0.6483713834 | Z43: 0.8079710122 | AA43: 0.8882861132 | AB43: 0.9252888056 | AC43: 0.939183273 | AD43: 0.9641006089 | AJ43: =MIN(AJ42,0) -> -5.601163986 | AK43: =MIN(AK42,0) -> -1.923886193 | AL43: 0 | AM43: 0 | AN43: 0 | AO43: 0 | AP43: 0 | AQ43: 0 | AX43: y | AY43: =-3*$BG43*LOG10($Q$21/W$47)-1.2*$BG43 -> 0.08237118419 | AZ43: 0.5339161777 | BA43: 0.980270373 | BB43: 1.431815367 | BC43: 1.88336036 | BD43: 2.334905354 | BE43: 2.786450347 | BF43: 3.23799534 | BG43: =(Q23-$Q$7/1000)/($Q$7/1000) -> -1
N44: lx/ly | P44: =Q9/Q10 -> 1.833333333 | Q44: =MIN(P44,3) -> 1.833333333 | U44: c | W44: =1-W16^(-0.75) -> -0.1215611239 | X44: =1-X16^(-0.75) -> 0.2237367435 | Y44: 0.6273442733 | Z44: 0.790507292 | AA44: 0.8836676127 | AB44: 0.9251820133 | AC44: 0.9390963414 | AD44: 0.9640492943 | AJ44: =MIN(AJ41,AJ43) -> -5.601163986 | AK44: =MIN(AK41,AK43) -> -1.923886193 | AL44: 0 | AM44: 0 | AN44: 0 | AO44: 0 | AP44: 0 | AQ44: 0 | AY44: =MAX(AY43,0) -> 0.08237118419 | AZ44: =MAX(AZ43,0) -> 0.5339161777 | BA44: 0.980270373 | BB44: 1.431815367 | BC44: 1.88336036 | BD44: 2.334905354 | BE44: 2.786450347 | BF44: 3.23799534
W45: =1-(1/W16)^(-0.75) -> 0.1083856433 | X45: =1-(1/X16)^(-0.75) -> -0.2882227667 | Y45: -1.683441924 | Z45: -3.773435837 | AA45: -7.596058445 | AB45: -12.36576996 | AC45: -15.41937485 | AD45: -26.81586564 | AG45: 10log(F/A) | AJ45: =10*LOG10($Q$11*$Q$12/(W6*($Q$11*$Q$12+$Q$12*$Q$13+$Q$11*$Q$13)*2)) -> 3.928147618 | AK45: =10*LOG10($Q$11*$Q$12/(X6*($Q$11*$Q$12+$Q$12*$Q$13+$Q$11*$Q$13)*2)) -> 3.928147618 | AL45: 3.928147618 | AM45: 3.928147618 | AN45: 2.167235027 | AO45: 2.167235027 | AP45: 0.9178476612 | AQ45: 0.9178476612 | AY45: =IF($P$23=1,AY44) -> FALSE | AZ45: =IF($P$23=1,AZ44) -> FALSE | BA45: FALSE | BB45: FALSE | BC45: FALSE | BD45: FALSE | BE45: FALSE | BF45: FALSE
W46: =MAX(W44,W45) -> 0.1083856433 | X46: 0.2237367435 | Y46: 0.6273442733 | Z46: 0.790507292 | AA46: 0.8836676127 | AB46: 0.9251820133 | AC46: 0.9390963414 | AD46: 0.9640492943 | AG46: 床衝撃音レベル(dB) 補正前 | AH46: s | AI46: 1 | AJ46: =AJ$44+W$5-AJ5+AJ$21+AJ$45+152.1 -> 88.98357384 | AK46: =AK$44+X$5-AK5+AK$21+AK$45+152.1 -> 77.21009221 | AL46: 56.30713354 | AM46: 43.72651244 | AN46: 34.04097668 | AO46: 26.44239144 | AP46: 18.34899109 | AQ46: 11.46457734 | AY46: =IF($P$23=0,W86) -> 0 | AZ46: =IF($P$23=0,X86) -> 0 | BA46: 0 | BB46: 0 | BC46: 0 | BD46: 0 | BE46: 0 | BF46: 0
T47: 曲げ波の波長(m) | W47: =SQRT(3.14*$Q$36*$Q$7/1000/W4/1.73205) -> 6.366587361 | X47: 4.501857096 | Y47: 3.19600149 | Z47: 2.259914326 | AA47: 1.598000745 | AB47: 1.129957163 | AC47: 0.7990003726 | AD47: 0.5649785816 | AH47: c | AJ47: =AJ$44+W$5-AJ6+AJ$23+AJ$45+152.1 -> 73.30103391 | AK47: =AK$44+X$5-AK6+AK$23+AK$45+152.1 -> 75.82098056 | AL47: 57.47026792 | AM47: 43.75655947 | AN47: 34.082229 | AO47: 26.44935754 | AP47: 18.35606268 | AQ47: 11.46952217 | AY47: =MAX(AY45,AY46) -> 0 | AZ47: =MAX(AZ45,AZ46) -> 0 | BA47: 0 | BB47: 0 | BC47: 0 | BD47: 0 | BE47: 0 | BF47: 0
T48: 共振による低下量(dB) | U48: s | V48: 1 | W48: =21.5*W19-20*LOG10(2.2925*($Q$44/(1+$Q$44^2))*LN(1/2/$Q$8^2)) -> -15.27745929 | X48: =21.5*X19-20*LOG10(2.2925*($Q$44/(1+$Q$44^2))*LN(1/2/$Q$8^2)) -> -3.911078558 | Y48: -0.2960116369 | Z48: 2.171497782 | AA48: 3.226538631 | AB48: 4.313475498 | AC48: 4.591165784 | AD48: 5.089155519 | AH48: s | AI48: 2 | AJ48: =AJ$44+W$5-AJ7+AJ$25+AJ$45+152.1 -> 91.06848104 | AK48: =AK$44+X$5-AK7+AK$25+AK$45+152.1 -> 78.82730293 | AL48: 57.2695673 | AM48: 43.73272609 | AN48: 33.97774437 | AO48: 26.48678561 | AP48: 18.39405755 | AQ48: 11.49609018 | AY48: =SQRT(AY42^2+AY47^2) -> 0 | AZ48: =SQRT(AZ42^2+AZ47^2) -> 0 | BA48: 0 | BB48: 0 | BC48: 0 | BD48: 0 | BE48: 0 | BF48: 0
W49: =MIN(W48,0) -> -15.27745929 | X49: -3.911078558 | Y49: -0.2960116369 | Z49: 0 | AA49: 0 | AB49: 0 | AC49: 0 | AD49: 0 | AH49: c | AJ49: =AJ$44+W$5-AJ8+AJ$27+AJ$45+152.1 -> 91.62586653 | AK49: =AK$44+X$5-AK8+AK$27+AK$45+152.1 -> 80.85212788 | AL49: 58.59238284 | AM49: 43.81046782 | AN49: 33.99795575 | AO49: 26.48375859 | AP49: 18.39098469 | AQ49: 11.49394148 | AV49: 小梁による端部拘束 加振点3(dB) | AW49: s | AX49: x | AY49: =-3*$BG49*LOG10($Q$24/W$47)-1.2*$BG49 -> 0.4389649509 | AZ49: 0.8905099444 | BA49: 1.33686414 | BB49: 1.788409133 | BC49: 2.239954127 | BD49: 2.69149912 | BE49: 3.143044114 | BF49: 3.594589107 | BG49: =(Q26-$Q$7/1000)/($Q$7/1000) -> -1
U50: c | W50: =21.5*W22-20*LOG10(2.2925*($Q$44/(1+$Q$44^2))*LN(1/2/$Q$8^2)) -> -6.795178525 | X50: =21.5*X22-20*LOG10(2.2925*($Q$44/(1+$Q$44^2))*LN(1/2/$Q$8^2)) -> -7.200402406 | Y50: -1.377192567 | Z50: 1.989642925 | AA50: 3.066482445 | AB50: 4.293494004 | AC50: 4.574900363 | AD50: 5.079554235 | AH50: s | AI50: 3 | AJ50: =AJ$44+W$5-AJ9+AJ$29+AJ$45+152.1 -> 90.44000859 | AK50: =AK$44+X$5-AK9+AK$29+AK$45+152.1 -> 77.80950127 | AL50: 57.73390698 | AM50: 43.74175911 | AN50: 33.98437995 | AO50: 26.44235841 | AP50: 18.34895756 | AQ50: 11.46455389 | AY50: =MAX(AY49,0) -> 0.4389649509 | AZ50: =MAX(AZ49,0) -> 0.8905099444 | BA50: 1.33686414 | BB50: 1.788409133 | BC50: 2.239954127 | BD50: 2.69149912 | BE50: 3.143044114 | BF50: 3.594589107
W51: =MIN(W50,0) -> -6.795178525 | X51: -7.200402406 | Y51: -1.377192567 | Z51: 0 | AA51: 0 | AB51: 0 | AC51: 0 | AD51: 0 | AH51: c | AJ51: =AJ$44+W$5-AJ10+AJ$31+AJ$45+152.1 -> 91.33110313 | AK51: =AK$44+X$5-AK10+AK$31+AK$45+152.1 -> 80.78182443 | AL51: 58.68206204 | AM51: 43.81787531 | AN51: 34.01672946 | AO51: 26.45239309 | AP51: 18.35914421 | AQ51: 11.47167693 | AY51: =IF($P$26=1,AY50) -> FALSE | AZ51: =IF($P$26=1,AZ50) -> FALSE | BA51: FALSE | BB51: FALSE | BC51: FALSE | BD51: FALSE | BE51: FALSE | BF51: FALSE
U52: s | V52: 2 | W52: =21.5*W25-20*LOG10(2.2925*($Q$44/(1+$Q$44^2))*LN(1/2/$Q$8^2)) -> -14.40210807 | X52: =21.5*X25-20*LOG10(2.2925*($Q$44/(1+$Q$44^2))*LN(1/2/$Q$8^2)) -> -5.534442386 | Y52: -1.190633139 | Z52: 2.133890671 | AA52: 3.471875653 | AB52: 4.186135659 | AC52: 4.487508062 | AD52: 5.027967598 | AH52: s | AI52: 4 | AJ52: =AJ$44+W$5-AJ11+AJ$33+AJ$45+152.1 -> 87.3561574 | AK52: =AK$44+X$5-AK11+AK$33+AK$45+152.1 -> 80.52636333 | AL52: 56.73086994 | AM52: 43.79203849 | AN52: 34.05471558 | AO52: 26.44727566 | AP52: 18.35394928 | AQ52: 11.46804436 | AY52: =IF($P$26=0,W89) -> 0 | AZ52: =IF($P$26=0,X89) -> 0 | BA52: 0 | BB52: 0 | BC52: 0 | BD52: 0 | BE52: 0 | BF52: 0
W53: =MIN(W52,0) -> -14.40210807 | X53: -5.534442386 | Y53: -1.190633139 | Z53: 0 | AA53: 0 | AB53: 0 | AC53: 0 | AD53: 0 | AH53: c | AJ53: =AJ$44+W$5-AJ12+AJ$35+AJ$45+152.1 -> 71.84805361 | AK53: =AK$44+X$5-AK12+AK$35+AK$45+152.1 -> 78.12455289 | AL53: 57.88985348 | AM53: 43.80413728 | AN53: 34.09942154 | AO53: 26.45606405 | AP53: 18.36287076 | AQ53: 11.47428273 | AY53: =MAX(AY51,AY52) -> 0 | AZ53: =MAX(AZ51,AZ52) -> 0 | BA53: 0 | BB53: 0 | BC53: 0 | BD53: 0 | BE53: 0 | BF53: 0
U54: c | W54: =21.5*W28-20*LOG10(2.2925*($Q$44/(1+$Q$44^2))*LN(1/2/$Q$8^2)) -> -15.00090264 | X54: =21.5*X28-20*LOG10(2.2925*($Q$44/(1+$Q$44^2))*LN(1/2/$Q$8^2)) -> -7.566971328 | Y54: -2.42024423 | Z54: 1.663371152 | AA54: 3.393456854 | AB54: 4.194818327 | AC54: 4.494575964 | AD54: 5.032139697 | AH54: s | AI54: 5 | AJ54: =AJ$44+W$5-AJ13+AJ$37+AJ$45+152.1 -> 90.40555702 | AK54: =AK$44+X$5-AK13+AK$37+AK$45+152.1 -> 81.4957526 | AL54: 57.87497705 | AM54: 43.80804981 | AN54: 33.99503725 | AO54: 26.48183416 | AP54: 18.38903112 | AQ54: 11.49257544 | AX54: y | AY54: =-3*$BG54*LOG10($Q$25/W$47)-1.2*$BG54 -> -0.4826059622 | AZ54: -0.03106096874 | BA54: 0.4152932266 | BB54: 0.8668382201 | BC54: 1.318383214 | BD54: 1.769928207 | BE54: 2.221473201 | BF54: 2.673018194 | BG54: =(Q27-$Q$7/1000)/($Q$7/1000) -> -1
W55: =MIN(W54,0) -> -15.00090264 | X55: -7.566971328 | Y55: -2.42024423 | Z55: 0 | AA55: 0 | AB55: 0 | AC55: 0 | AD55: 0 | AH55: c | AJ55: =AJ$44+W$5-AJ14+AJ$39+AJ$45+152.1 -> 90.10130567 | AK55: =AK$44+X$5-AK14+AK$39+AK$45+152.1 -> 84.15561853 | AL55: 58.36132777 | AM55: 43.87008695 | AN55: 34.02062991 | AO55: 26.48263462 | AP55: 18.3898437 | AQ55: 11.49314364 | AY55: =MAX(AY54,0) -> 0 | AZ55: =MAX(AZ54,0) -> 0 | BA55: 0.4152932266 | BB55: 0.8668382201 | BC55: 1.318383214 | BD55: 1.769928207 | BE55: 2.221473201 | BF55: 2.673018194
U56: s | V56: 3 | W56: =21.5*W31-20*LOG10(2.2925*($Q$44/(1+$Q$44^2))*LN(1/2/$Q$8^2)) -> -13.72694538 | X56: =21.5*X31-20*LOG10(2.2925*($Q$44/(1+$Q$44^2))*LN(1/2/$Q$8^2)) -> -4.512768228 | Y56: -1.622255843 | Z56: 2.079219764 | AA56: 3.446130062 | AB56: 4.313570236 | AC56: 4.591242903 | AD56: 5.089201042 | AG56: Fast-Peak補正(dB) | AJ56: 4 | AK56: 4 | AL56: 4 | AM56: 4 | AN56: 4 | AO56: 4 | AP56: 4 | AQ56: 4 | AY56: =IF($P$27=1,AY55) -> FALSE | AZ56: =IF($P$27=1,AZ55) -> FALSE | BA56: FALSE | BB56: FALSE | BC56: FALSE | BD56: FALSE | BE56: FALSE | BF56: FALSE
W57: =MIN(W56,0) -> -13.72694538 | X57: -4.512768228 | Y57: -1.622255843 | Z57: 0 | AA57: 0 | AB57: 0 | AC57: 0 | AD57: 0 | AG57: 音場補正(dB) | AJ57: -7 | AK57: -7 | AL57: -5 | AM57: -3 | AN57: -1 | AO57: 0 | AP57: 0 | AQ57: 0 | AR57: =Q11*Q12 -> 24.85 | AY57: =IF($P$27=0,W91) -> 0 | AZ57: =IF($P$27=0,X91) -> 0 | BA57: 0 | BB57: 0 | BC57: 0 | BD57: 0 | BE57: 0 | BF57: 0
U58: c | W58: =21.5*W34-20*LOG10(2.2925*($Q$44/(1+$Q$44^2))*LN(1/2/$Q$8^2)) -> -14.68424079 | X58: =21.5*X34-20*LOG10(2.2925*($Q$44/(1+$Q$44^2))*LN(1/2/$Q$8^2)) -> -7.49640039 | Y58: -2.503604707 | Z58: 1.618538511 | AA58: 3.320616169 | AB58: 4.284786842 | AC58: 4.567812521 | AD58: 5.075370366 | AJ58: =IF(AR57<15,-20) -> FALSE | AK58: -7 | AL58: -5 | AM58: -3 | AN58: -1 | AO58: 0 | AP58: 0 | AQ58: 0 | AY58: =MAX(AY56,AY57) -> 0 | AZ58: =MAX(AZ56,AZ57) -> 0 | BA58: 0 | BB58: 0 | BC58: 0 | BD58: 0 | BE58: 0 | BF58: 0
W59: =MIN(W58,0) -> -14.68424079 | X59: -7.49640039 | Y59: -2.503604707 | Z59: 0 | AA59: 0 | AB59: 0 | AC59: 0 | AD59: 0 | AJ59: =MIN(AJ57,AJ58) -> -7 | AK59: -7 | AL59: -5 | AM59: -3 | AN59: 0 | AO59: 0 | AP59: 0 | AQ59: 0 | AY59: =SQRT(AY53^2+AY58^2) -> 0 | AZ59: =SQRT(AZ53^2+AZ58^2) -> 0 | BA59: 0 | BB59: 0 | BC59: 0 | BD59: 0 | BE59: 0 | BF59: 0
U60: s | V60: 4 | W60: =21.5*W37-20*LOG10(2.2925*($Q$44/(1+$Q$44^2))*LN(1/2/$Q$8^2)) -> -13.52913941 | X60: =21.5*X37-20*LOG10(2.2925*($Q$44/(1+$Q$44^2))*LN(1/2/$Q$8^2)) -> -7.239967318 | Y60: -0.6898919326 | Z60: 1.77491179 | AA60: 3.17323262 | AB60: 4.299465635 | AC60: 4.579761415 | AD60: 5.082423656 | AG60: 床衝撃音レベル(dB) 補正後 | AH60: s | AI60: 1 | AJ60: =AJ46+AJ$56+AJ$59 -> 85.98357384 | AK60: 74.21009221 | AL60: 55.30713354 | AM60: 44.72651244 | AN60: 38.04097668 | AO60: 30.44239144 | AP60: 22.34899109 | AQ60: 15.46457734 | AW60: c | AX60: x | AY60: =-3*$BG60*LOG10($Q$24/W$47)-1.2*$BG60 -> 0.4389649509 | AZ60: 0.8905099444 | BA60: 1.33686414 | BB60: 1.788409133 | BC60: 2.239954127 | BD60: 2.69149912 | BE60: 3.143044114 | BF60: 3.594589107 | BG60: =(Q26-$Q$7/1000)/($Q$7/1000) -> -1
W61: =MIN(W60,0) -> -13.52913941 | X61: -7.239967318 | Y61: -0.6898919326 | Z61: 0 | AA61: 0 | AB61: 0 | AC61: 0 | AD61: 0 | AI61: 2 | AJ61: =AJ48+AJ$56+AJ$59 -> 88.06848104 | AK61: 75.82730293 | AL61: 56.2695673 | AM61: 44.73272609 | AN61: 37.97774437 | AO61: 30.48678561 | AP61: 22.39405755 | AQ61: 15.49609018 | AY61: =MAX(AY60,0) -> 0.4389649509 | AZ61: =MAX(AZ60,0) -> 0.8905099444 | BA61: 1.33686414 | BB61: 1.788409133 | BC61: 2.239954127 | BD61: 2.69149912 | BE61: 3.143044114 | BF61: 3.594589107
U62: c | W62: =21.5*W40-20*LOG10(2.2925*($Q$44/(1+$Q$44^2))*LN(1/2/$Q$8^2)) -> -5.234253936 | X62: =21.5*X40-20*LOG10(2.2925*($Q$44/(1+$Q$44^2))*LN(1/2/$Q$8^2)) -> -9.512739298 | Y62: -1.767214486 | Z62: 1.701685729 | AA62: 2.999776562 | AB62: 4.274257093 | AC62: 4.55924105 | AD62: 5.070310728 | AI62: 3 | AJ62: =AJ50+AJ$56+AJ$59 -> 87.44000859 | AK62: 74.80950127 | AL62: 56.73390698 | AM62: 44.74175911 | AN62: 37.98437995 | AO62: 30.44235841 | AP62: 22.34895756 | AQ62: 15.46455389 | AY62: =IF($P$26=1,AY61) -> FALSE | AZ62: =IF($P$26=1,AZ61) -> FALSE | BA62: FALSE | BB62: FALSE | BC62: FALSE | BD62: FALSE | BE62: FALSE | BF62: FALSE
W63: =MIN(W62,0) -> -5.234253936 | X63: -9.512739298 | Y63: -1.767214486 | Z63: 0 | AA63: 0 | AB63: 0 | AC63: 0 | AD63: 0 | AI63: 4 | AJ63: =AJ52+AJ$56+AJ$59 -> 84.3561574 | AK63: 77.52636333 | AL63: 55.73086994 | AM63: 44.79203849 | AN63: 38.05471558 | AO63: 30.44727566 | AP63: 22.35394928 | AQ63: 15.46804436 | AY63: =IF($P$26=0,W94) -> 0 | AZ63: =IF($P$26=0,X94) -> 0 | BA63: 0 | BB63: 0 | BC63: 0 | BD63: 0 | BE63: 0 | BF63: 0
U64: s | V64: 5 | W64: =21.5*W43-20*LOG10(2.2925*($Q$44/(1+$Q$44^2))*LN(1/2/$Q$8^2)) -> -13.68993434 | X64: =21.5*X43-20*LOG10(2.2925*($Q$44/(1+$Q$44^2))*LN(1/2/$Q$8^2)) -> -8.213044889 | Y64: -1.753386236 | Z64: 1.678005782 | AA64: 3.404780454 | AB64: 4.20033834 | AC64: 4.499069389 | AD64: 5.034792112 | AI64: 5 | AJ64: =AJ54+AJ$56+AJ$59 -> 87.40555702 | AK64: 78.4957526 | AL64: 56.87497705 | AM64: 44.80804981 | AN64: 37.99503725 | AO64: 30.48183416 | AP64: 22.38903112 | AQ64: 15.49257544 | AY64: =MAX(AY62,AY63) -> 0 | AZ64: =MAX(AZ62,AZ63) -> 0 | BA64: 0 | BB64: 0 | BC64: 0 | BD64: 0 | BE64: 0 | BF64: 0
W65: =MIN(W64,0) -> -13.68993434 | X65: =MIN(X64,0) -> -8.213044889 | Y65: -1.753386236 | Z65: 0 | AA65: 0 | AB65: 0 | AC65: 0 | AD65: 0 | AH65: c | AI65: 1 | AJ65: =AJ47+AJ$56+AJ$59 -> 70.30103391 | AK65: 72.82098056 | AL65: 56.47026792 | AM65: 44.75655947 | AN65: 38.082229 | AO65: 30.44935754 | AP65: 22.35606268 | AQ65: 15.46952217 | AX65: y | AY65: =-3*$BG65*LOG10($Q$25/W$47)-1.2*$BG65 -> -0.4826059622 | AZ65: -0.03106096874 | BA65: 0.4152932266 | BB65: 0.8668382201 | BC65: 1.318383214 | BD65: 1.769928207 | BE65: 2.221473201 | BF65: 2.673018194 | BG65: =(Q27-$Q$7/1000)/($Q$7/1000) -> -1
U66: c | W66: =21.5*W46-20*LOG10(2.2925*($Q$44/(1+$Q$44^2))*LN(1/2/$Q$8^2)) -> -13.36307965 | X66: =21.5*X46-20*LOG10(2.2925*($Q$44/(1+$Q$44^2))*LN(1/2/$Q$8^2)) -> -10.88303099 | Y66: -2.205469103 | Z66: 1.302535798 | AA66: 3.305482694 | AB66: 4.198042305 | AC66: 4.497200361 | AD66: 5.033688847 | AI66: 2 | AJ66: =AJ49+AJ$56+AJ$59 -> 88.62586653 | AK66: 77.85212788 | AL66: 57.59238284 | AM66: 44.81046782 | AN66: 37.99795575 | AO66: 30.48375859 | AP66: 22.39098469 | AQ66: 15.49394148 | AY66: =MAX(AY65,0) -> 0 | AZ66: =MAX(AZ65,0) -> 0 | BA66: 0.4152932266 | BB66: 0.8668382201 | BC66: 1.318383214 | BD66: 1.769928207 | BE66: 2.221473201 | BF66: 2.673018194
W67: =MIN(W66,0) -> -13.36307965 | X67: =MIN(X66,0) -> -10.88303099 | Y67: -2.205469103 | Z67: 0 | AA67: 0 | AB67: 0 | AC67: 0 | AD67: 0 | AI67: 3 | AJ67: =AJ51+AJ$56+AJ$59 -> 88.33110313 | AK67: 77.78182443 | AL67: 57.68206204 | AM67: 44.81787531 | AN67: 38.01672946 | AO67: 30.45239309 | AP67: 22.35914421 | AQ67: 15.47167693 | AY67: =IF($P$27=1,AY66) -> FALSE | AZ67: =IF($P$27=1,AZ66) -> FALSE | BA67: FALSE | BB67: FALSE | BC67: FALSE | BD67: FALSE | BE67: FALSE | BF67: FALSE
T68: 拘束による増加量(dB) | U68: s | V68: 1 | W68: =-30.6*LOG10($Q$16/W$47)-23.1 -> -6.311793552 | X68: -10.91755249 | Y68: -15.47036528 | Z68: -20.07612421 | AA68: -24.68188314 | AB68: -29.28764208 | AC68: -33.89340101 | AD68: -38.49915995 | AI68: 4 | AJ68: =AJ53+AJ$56+AJ$59 -> 68.84805361 | AK68: 75.12455289 | AL68: 56.88985348 | AM68: 44.80413728 | AN68: 38.09942154 | AO68: 30.45606405 | AP68: 22.36287076 | AQ68: 15.47428273 | AY68: =IF($P$27=0,W96) -> 0 | AZ68: =IF($P$27=0,X96) -> 0 | BA68: 0 | BB68: 0 | BC68: 0 | BD68: 0 | BE68: 0 | BF68: 0
W69: =MAX(W68,0) -> 0 | X69: =MAX(X68,0) -> 0 | Y69: 0 | Z69: 0 | AA69: 0 | AB69: 0 | AC69: 0 | AD69: 0 | AI69: 5 | AJ69: =AJ55+AJ$56+AJ$59 -> 87.10130567 | AK69: 81.15561853 | AL69: 57.36132777 | AM69: 44.87008695 | AN69: 38.02062991 | AO69: 30.48263462 | AP69: 22.3898437 | AQ69: 15.49314364 | AY69: =MAX(AY67,AY68) -> 0 | AZ69: =MAX(AZ67,AZ68) -> 0 | BA69: 0 | BB69: 0 | BC69: 0 | BD69: 0 | BE69: 0 | BF69: 0
W70: =-30.6*LOG10($Q$17/W$47)-23.1 -> 2.899724316 | X70: -1.706034618 | Y70: -6.25884741 | Z70: -10.86460634 | AA70: -15.47036528 | AB70: -20.07612421 | AC70: -24.68188314 | AD70: -29.28764208 | AG70: 床衝撃音レベル(dB) 補正後 | AH70: s | AI70: 1 | AJ70: =MAX(AJ60,0) -> 85.98357384 | AK70: =MAX(AK60,0) -> 74.21009221 | AL70: 55.30713354 | AM70: 44.72651244 | AN70: 38.04097668 | AO70: 30.44239144 | AP70: 22.34899109 | AQ70: 15.46457734 | AY70: =SQRT(AY64^2+AY69^2) -> 0 | AZ70: =SQRT(AZ64^2+AZ69^2) -> 0 | BA70: 0 | BB70: 0 | BC70: 0 | BD70: 0 | BE70: 0 | BF70: 0
W71: =MAX(W70,0) -> 2.899724316 | X71: =MAX(X70,0) -> 0 | Y71: 0 | Z71: 0 | AA71: 0 | AB71: 0 | AC71: 0 | AD71: 0 | AI71: 2 | AJ71: =MAX(AJ61,0) -> 88.06848104 | AK71: 75.82730293 | AL71: 56.2695673 | AM71: 44.73272609 | AN71: 37.97774437 | AO71: 30.48678561 | AP71: 22.39405755 | AQ71: 15.49609018 | AV71: 小梁による端部拘束 加振点4(dB) | AW71: s | AX71: x | AY71: =-3*$BG71*LOG10($Q$28/W$47)-1.2*$BG71 -> 0.9854611712 | AZ71: 1.437006165 | BA71: 1.88336036 | BB71: 2.334905354 | BC71: 2.786450347 | BD71: 3.23799534 | BE71: 3.689540334 | BF71: 4.141085327 | BG71: =(Q30-$Q$7/1000)/($Q$7/1000) -> -1
W72: =SQRT(W69^2+W71^2) -> 2.899724316 | X72: =SQRT(X69^2+X71^2) -> 0 | Y72: 0 | Z72: 0 | AA72: 0 | AB72: 0 | AC72: 0 | AD72: 0 | AI72: 3 | AJ72: 87.44000859 | AK72: 74.80950127 | AL72: 56.73390698 | AM72: 44.74175911 | AN72: 37.98437995 | AO72: 30.44235841 | AP72: 22.34895756 | AQ72: 15.46455389 | AY72: =MAX(AY71,0) -> 0.9854611712 | AZ72: =MAX(AZ71,0) -> 1.437006165 | BA72: 1.88336036 | BB72: 2.334905354 | BC72: 2.786450347 | BD72: 3.23799534 | BE72: 3.689540334 | BF72: 4.141085327
U73: c | W73: =-40*LOG10($Q$16/W$47)-23.3 -> -1.354632094 | X73: -7.375232007 | Y73: -13.32662128 | Z73: -19.34722119 | AA73: -25.3678211 | AB73: -31.38842102 | AC73: -37.40902093 | AD73: -43.42962084 | AI73: 4 | AJ73: 84.3561574 | AK73: 77.52636333 | AL73: 55.73086994 | AM73: 44.79203849 | AN73: 38.05471558 | AO73: 30.44727566 | AP73: 22.35394928 | AQ73: 15.46804436 | AY73: =IF($P$30=1,AY72) -> FALSE | AZ73: =IF($P$30=1,AZ72) -> FALSE | BA73: FALSE | BB73: FALSE | BC73: FALSE | BD73: FALSE | BE73: FALSE | BF73: FALSE
W74: =MAX(W73,0) -> 0 | X74: =MAX(X73,0) -> 0 | Y74: 0 | Z74: 0 | AA74: 0 | AB74: 0 | AC74: 0 | AD74: 0 | AI74: 5 | AJ74: =MAX(AJ64,0) -> 87.40555702 | AK74: =MAX(AK64,0) -> 78.4957526 | AL74: 56.87497705 | AM74: 44.80804981 | AN74: 37.99503725 | AO74: 30.48183416 | AP74: 22.38903112 | AQ74: 15.49257544 | AY74: =IF($P$30=0,W99) -> 0 | AZ74: =IF($P$30=0,X99) -> 0 | BA74: 0 | BB74: 0 | BC74: 0 | BD74: 0 | BE74: 0 | BF74: 0
W75: =-40*LOG10($Q$17/W$47)-23.3 -> 10.68656773 | X75: 4.66596782 | Y75: -1.285421451 | Z75: -7.306021365 | AA75: -13.32662128 | AB75: -19.34722119 | AC75: -25.3678211 | AD75: -31.38842102 | AH75: c | AI75: 1 | AJ75: =MAX(AJ65,0) -> 70.30103391 | AK75: =MAX(AK65,0) -> 72.82098056 | AL75: 56.47026792 | AM75: 44.75655947 | AN75: 38.082229 | AO75: 30.44935754 | AP75: 22.35606268 | AQ75: 15.46952217 | AY75: =MAX(AY73,AY74) -> 0 | AZ75: =MAX(AZ73,AZ74) -> 0 | BA75: 0 | BB75: 0 | BC75: 0 | BD75: 0 | BE75: 0 | BF75: 0
W76: =MAX(W75,0) -> 10.68656773 | X76: =MAX(X75,0) -> 4.66596782 | Y76: 0 | Z76: 0 | AA76: 0 | AB76: 0 | AC76: 0 | AD76: 0 | AI76: 2 | AJ76: =MAX(AJ66,0) -> 88.62586653 | AK76: 77.85212788 | AL76: 57.59238284 | AM76: 44.81046782 | AN76: 37.99795575 | AO76: 30.48375859 | AP76: 22.39098469 | AQ76: 15.49394148 | AX76: y | AY76: =-3*$BG76*LOG10($Q$29/W$47)-1.2*$BG76 -> -1.34899258 | AZ76: -0.8974475865 | BA76: -0.4510933911 | BB76: 0.0004516023512 | BC76: 0.4519965958 | BD76: 0.9035415893 | BE76: 1.355086583 | BF76: 1.806631576 | BG76: =(Q31-$Q$7/1000)/($Q$7/1000) -> -1
W77: =SQRT(W74^2+W76^2) -> 10.68656773 | X77: =SQRT(X74^2+X76^2) -> 4.66596782 | Y77: 0 | Z77: 0 | AA77: 0 | AB77: 0 | AC77: 0 | AD77: 0 | AI77: 3 | AJ77: 88.33110313 | AK77: 77.78182443 | AL77: 57.68206204 | AM77: 44.81787531 | AN77: 38.01672946 | AO77: 30.45239309 | AP77: 22.35914421 | AQ77: 15.47167693 | AY77: =MAX(AY76,0) -> 0 | AZ77: =MAX(AZ76,0) -> 0 | BA77: 0 | BB77: 0.0004516023512 | BC77: 0.4519965958 | BD77: 0.9035415893 | BE77: 1.355086583 | BF77: 1.806631576
U78: s | V78: 2 | W78: =-30.6*LOG10($Q$20/W$47)-23.1 -> -6.311793552 | X78: -10.91755249 | Y78: -15.47036528 | Z78: -20.07612421 | AA78: -24.68188314 | AB78: -29.28764208 | AC78: -33.89340101 | AD78: -38.49915995 | AI78: 4 | AJ78: 68.84805361 | AK78: 75.12455289 | AL78: 56.88985348 | AM78: 44.80413728 | AN78: 38.09942154 | AO78: 30.45606405 | AP78: 22.36287076 | AQ78: 15.47428273 | AY78: =IF($P$31=1,AY77) -> FALSE | AZ78: =IF($P$31=1,AZ77) -> FALSE | BA78: FALSE | BB78: FALSE | BC78: FALSE | BD78: FALSE | BE78: FALSE | BF78: FALSE
W79: =MAX(W78,0) -> 0 | X79: 0 | Y79: 0 | Z79: 0 | AA79: 0 | AB79: 0 | AC79: 0 | AD79: 0 | AI79: 5 | AJ79: 87.10130567 | AK79: 81.15561853 | AL79: 57.36132777 | AM79: 44.87008695 | AN79: 38.02062991 | AO79: 30.48263462 | AP79: 22.3898437 | AQ79: 15.49314364 | AY79: =IF($P$31=0,W101) -> 2.899724316 | AZ79: =IF($P$31=0,X101) -> 0 | BA79: 0 | BB79: 0 | BC79: 0 | BD79: 0 | BE79: 0 | BF79: 0
W80: =-30.6*LOG10($Q$21/W$47)-23.1 -> -11.70018608 | X80: -16.30594501 | Y80: -20.8587578 | Z80: -25.46451674 | AA80: -30.07027567 | AB80: -34.67603461 | AC80: -39.28179354 | AD80: -43.88755247 | AG80: 平均床衝撃音レベル(dB) | AI80: ｓ | AJ80: =SUM(AJ70:AJ74)/$Q$15 -> 86.65075558 | AK80: =SUM(AK70:AK74)/$Q$15 -> 76.17380247 | AL80: 56.18329096 | AM80: 44.76021719 | AN80: 38.01057076 | AO80: 30.46012906 | AP80: 22.36699732 | AQ80: 15.47716824 | AY80: =MAX(AY78,AY79) -> 2.899724316 | AZ80: =MAX(AZ78,AZ79) -> 0 | BA80: 0 | BB80: 0 | BC80: 0 | BD80: 0 | BE80: 0 | BF80: 0
W81: =MAX(W80,0) -> 0 | X81: 0 | Y81: 0 | Z81: 0 | AA81: 0 | AB81: 0 | AC81: 0 | AD81: 0 | AI81: ｃ | AJ81: =SUM(AJ75:AJ79)/$Q$15 -> 80.64147257 | AK81: =SUM(AK75:AK79)/$Q$15 -> 76.94702086 | AL81: 57.19917881 | AM81: 44.81182537 | AN81: 38.04339313 | AO81: 30.46484158 | AP81: 22.37178121 | AQ81: 15.48051339 | AY81: =SQRT(AY75^2+AY80^2) -> 2.899724316 | AZ81: =SQRT(AZ75^2+AZ80^2) -> 0 | BA81: 0 | BB81: 0 | BC81: 0 | BD81: 0 | BE81: 0 | BF81: 0
W82: =SQRT(W79^2+W81^2) -> 0 | X82: 0 | Y82: 0 | Z82: 0 | AA82: 0 | AB82: 0 | AC82: 0 | AD82: 0 | AG82: 拘束条件考慮 | AJ82: =AJ80+$Q$14*(AJ81-AJ80) -> 81.84332917 | AK82: =AK80+$Q$14*(AK81-AK80) -> 76.79237718 | AL82: 56.99600124 | AM82: 44.80150373 | AN82: 38.03682866 | AO82: 30.46389908 | AP82: 22.37082443 | AQ82: 15.47984436 | AW82: c | AX82: x | AY82: =-3*$BG82*LOG10($Q$28/W$47)-1.2*$BG82 -> 0.9854611712 | AZ82: 1.437006165 | BA82: 1.88336036 | BB82: 2.334905354 | BC82: 2.786450347 | BD82: 3.23799534 | BE82: 3.689540334 | BF82: 4.141085327 | BG82: =(Q30-$Q$7/1000)/($Q$7/1000) -> -1
U83: c | W83: =-40*LOG10($Q$20/W$47)-23.3 -> -1.354632094 | X83: -7.375232007 | Y83: -13.32662128 | Z83: -19.34722119 | AA83: -25.3678211 | AB83: -31.38842102 | AC83: -37.40902093 | AD83: -43.42962084 | AY83: =MAX(AY82,0) -> 0.9854611712 | AZ83: =MAX(AZ82,0) -> 1.437006165 | BA83: 1.88336036 | BB83: 2.334905354 | BC83: 2.786450347 | BD83: 3.23799534 | BE83: 3.689540334 | BF83: 4.141085327
W84: =MAX(W83,0) -> 0 | X84: 0 | Y84: 0 | Z84: 0 | AA84: 0 | AB84: 0 | AC84: 0 | AD84: 0 | AY84: =IF($P$30=1,AY83) -> FALSE | AZ84: =IF($P$30=1,AZ83) -> FALSE | BA84: FALSE | BB84: FALSE | BC84: FALSE | BD84: FALSE | BE84: FALSE | BF84: FALSE
W85: =-40*LOG10($Q$21/W$47)-23.3 -> -8.398282456 | X85: -14.41888237 | Y85: -20.37027164 | Z85: -26.39087155 | AA85: -32.41147147 | AB85: -38.43207138 | AC85: -44.45267129 | AD85: -50.47327121 | AY85: =IF($P$30=0,W104) -> 0 | AZ85: =IF($P$30=0,X104) -> 0 | BA85: 0 | BB85: 0 | BC85: 0 | BD85: 0 | BE85: 0 | BF85: 0
W86: =MAX(W85,0) -> 0 | X86: 0 | Y86: 0 | Z86: 0 | AA86: 0 | AB86: 0 | AC86: 0 | AD86: 0 | AY86: =MAX(AY84,AY85) -> 0 | AZ86: =MAX(AZ84,AZ85) -> 0 | BA86: 0 | BB86: 0 | BC86: 0 | BD86: 0 | BE86: 0 | BF86: 0
W87: =SQRT(W84^2+W86^2) -> 0 | X87: 0 | Y87: 0 | Z87: 0 | AA87: 0 | AB87: 0 | AC87: 0 | AD87: 0 | AX87: y | AY87: =-3*$BG87*LOG10($Q$29/W$47)-1.2*$BG87 -> -1.34899258 | AZ87: -0.8974475865 | BA87: -0.4510933911 | BB87: 0.0004516023512 | BC87: 0.4519965958 | BD87: 0.9035415893 | BE87: 1.355086583 | BF87: 1.806631576 | BG87: =(Q31-$Q$7/1000)/($Q$7/1000) -> -1
U88: s | V88: 3 | W88: =-30.6*LOG10($Q$24/W$47)-23.1 -> -15.3374425 | X88: -19.94320143 | Y88: -24.49601422 | Z88: -29.10177316 | AA88: -33.70753209 | AB88: -38.31329103 | AC88: -42.91904996 | AD88: -47.52480889 | AY88: =MAX(AY87,0) -> 0 | AZ88: =MAX(AZ87,0) -> 0 | BA88: 0 | BB88: 0.0004516023512 | BC88: 0.4519965958 | BD88: 0.9035415893 | BE88: 1.355086583 | BF88: 1.806631576
W89: =MAX(W88,0) -> 0 | X89: 0 | Y89: 0 | Z89: 0 | AA89: 0 | AB89: 0 | AC89: 0 | AD89: 0 | AY89: =IF($P$31=1,AY88) -> FALSE | AZ89: =IF($P$31=1,AZ88) -> FALSE | BA89: FALSE | BB89: FALSE | BC89: FALSE | BD89: FALSE | BE89: FALSE | BF89: FALSE
W90: =-30.6*LOG10($Q$25/W$47)-23.1 -> -5.937419185 | X90: -10.54317812 | Y90: -15.09599091 | Z90: -19.70174984 | AA90: -24.30750878 | AB90: -28.91326771 | AC90: -33.51902665 | AD90: -38.12478558 | AY90: =IF($P$31=0,W106) -> 10.68656773 | AZ90: =IF($P$31=0,X106) -> 4.66596782 | BA90: 0 | BB90: 0 | BC90: 0 | BD90: 0 | BE90: 0 | BF90: 0
W91: =MAX(W90,0) -> 0 | X91: 0 | Y91: 0 | Z91: 0 | AA91: 0 | AB91: 0 | AC91: 0 | AD91: 0 | AY91: =MAX(AY89,AY90) -> 10.68656773 | AZ91: =MAX(AZ89,AZ90) -> 4.66596782 | BA91: 0 | BB91: 0 | BC91: 0 | BD91: 0 | BE91: 0 | BF91: 0
W92: =SQRT(W89^2+W91^2) -> 0 | X92: 0 | Y92: 0 | Z92: 0 | AA92: 0 | AB92: 0 | AC92: 0 | AD92: 0 | AY92: =SQRT(AY86^2+AY91^2) -> 10.68656773 | AZ92: =SQRT(AZ86^2+AZ91^2) -> 4.66596782 | BA92: 0 | BB92: 0 | BC92: 0 | BD92: 0 | BE92: 0 | BF92: 0
U93: c | W93: =-40*LOG10($Q$24/W$47)-23.3 -> -13.15286601 | X93: -19.17346592 | Y93: -25.1248552 | Z93: -31.14545511 | AA93: -37.16605502 | AB93: -43.18665494 | AC93: -49.20725485 | AD93: -55.22785476 | AV93: 小梁による端部拘束 加振点5(dB) | AW93: s | AX93: x | AY93: =-3*$BG93*LOG10($Q$32/W$47)-1.2*$BG93 -> 0.9854611712 | AZ93: 1.437006165 | BA93: 1.88336036 | BB93: 2.334905354 | BC93: 2.786450347 | BD93: 3.23799534 | BE93: 3.689540334 | BF93: 4.141085327 | BG93: =(Q34-$Q$7/1000)/($Q$7/1000) -> -1
W94: =MAX(W93,0) -> 0 | X94: 0 | Y94: 0 | Z94: 0 | AA94: 0 | AB94: 0 | AC94: 0 | AD94: 0 | AY94: =MAX(AY93,0) -> 0.9854611712 | AZ94: =MAX(AZ93,0) -> 1.437006165 | BA94: 1.88336036 | BB94: 2.334905354 | BC94: 2.786450347 | BD94: 3.23799534 | BE94: 3.689540334 | BF94: 4.141085327
W95: =-40*LOG10($Q$25/W$47)-23.3 -> -0.8652538369 | X95: -6.88585375 | Y95: -12.83724302 | Z95: -18.85784293 | AA95: -24.87844285 | AB95: -30.89904276 | AC95: -36.91964267 | AD95: -42.94024259 | AY95: =IF($P$34=1,AY94) -> FALSE | AZ95: =IF($P$34=1,AZ94) -> FALSE | BA95: FALSE | BB95: FALSE | BC95: FALSE | BD95: FALSE | BE95: FALSE | BF95: FALSE
W96: =MAX(W95,0) -> 0 | X96: 0 | Y96: 0 | Z96: 0 | AA96: 0 | AB96: 0 | AC96: 0 | AD96: 0 | AY96: =IF($P$34=0,W109) -> 0 | AZ96: =IF($P$34=0,X109) -> 0 | BA96: 0 | BB96: 0 | BC96: 0 | BD96: 0 | BE96: 0 | BF96: 0
W97: =SQRT(W94^2+W96^2) -> 0 | X97: 0 | Y97: 0 | Z97: 0 | AA97: 0 | AB97: 0 | AC97: 0 | AD97: 0 | AY97: =MAX(AY95,AY96) -> 0 | AZ97: =MAX(AZ95,AZ96) -> 0 | BA97: 0 | BB97: 0 | BC97: 0 | BD97: 0 | BE97: 0 | BF97: 0
U98: s | V98: 4 | W98: =-30.6*LOG10($Q$28/W$47)-23.1 -> -20.91170395 | X98: -25.51746288 | Y98: -30.07027567 | Z98: -34.67603461 | AA98: -39.28179354 | AB98: -43.88755247 | AC98: -48.49331141 | AD98: -53.09907034 | AX98: y | AY98: =-3*$BG98*LOG10($Q$33/W$47)-1.2*$BG98 -> 0.08237118419 | AZ98: 0.5339161777 | BA98: 0.980270373 | BB98: 1.431815367 | BC98: 1.88336036 | BD98: 2.334905354 | BE98: 2.786450347 | BF98: 3.23799534 | BG98: =(Q35-$Q$7/1000)/($Q$7/1000) -> -1
W99: =MAX(W98,0) -> 0 | X99: 0 | Y99: 0 | Z99: 0 | AA99: 0 | AB99: 0 | AC99: 0 | AD99: 0 | AY99: =MAX(AY98,0) -> 0.08237118419 | AZ99: =MAX(AZ98,0) -> 0.5339161777 | BA99: 0.980270373 | BB99: 1.431815367 | BC99: 1.88336036 | BD99: 2.334905354 | BE99: 2.786450347 | BF99: 3.23799534
W100: =-30.6*LOG10($Q$29/W$47)-23.1 -> 2.899724316 | X100: -1.706034618 | Y100: -6.25884741 | Z100: -10.86460634 | AA100: -15.47036528 | AB100: -20.07612421 | AC100: -24.68188314 | AD100: -29.28764208 | AY100: =IF($P$35=1,AY99) -> FALSE | AZ100: =IF($P$35=1,AZ99) -> FALSE | BA100: FALSE | BB100: FALSE | BC100: FALSE | BD100: FALSE | BE100: FALSE | BF100: FALSE
W101: =MAX(W100,0) -> 2.899724316 | X101: 0 | Y101: 0 | Z101: 0 | AA101: 0 | AB101: 0 | AC101: 0 | AD101: 0 | AY101: =IF($P$35=0,W111) -> 0 | AZ101: =IF($P$35=0,X111) -> 0 | BA101: 0 | BB101: 0 | BC101: 0 | BD101: 0 | BE101: 0 | BF101: 0
W102: =SQRT(W99^2+W101^2) -> 2.899724316 | X102: 0 | Y102: 0 | Z102: 0 | AA102: 0 | AB102: 0 | AC102: 0 | AD102: 0 | AY102: =MAX(AY100,AY101) -> 0 | AZ102: =MAX(AZ100,AZ101) -> 0 | BA102: 0 | BB102: 0 | BC102: 0 | BD102: 0 | BE102: 0 | BF102: 0
U103: c | W103: =-40*LOG10($Q$28/W$47)-23.3 -> -20.43948228 | X103: -26.4600822 | Y103: -32.41147147 | Z103: -38.43207138 | AA103: -44.45267129 | AB103: -50.47327121 | AC103: -56.49387112 | AD103: -62.51447103 | AY103: =SQRT(AY97^2+AY102^2) -> 0 | AZ103: =SQRT(AZ97^2+AZ102^2) -> 0 | BA103: 0 | BB103: 0 | BC103: 0 | BD103: 0 | BE103: 0 | BF103: 0
W104: =MAX(W103,0) -> 0 | X104: 0 | Y104: 0 | Z104: 0 | AA104: 0 | AB104: 0 | AC104: 0 | AD104: 0 | AW104: c | AX104: x | AY104: =-3*$BG104*LOG10($Q$32/W$47)-1.2*$BG104 -> 0.9854611712 | AZ104: 1.437006165 | BA104: 1.88336036 | BB104: 2.334905354 | BC104: 2.786450347 | BD104: 3.23799534 | BE104: 3.689540334 | BF104: 4.141085327 | BG104: =(Q34-$Q$7/1000)/($Q$7/1000) -> -1
W105: =-40*LOG10($Q$29/W$47)-23.3 -> 10.68656773 | X105: 4.66596782 | Y105: -1.285421451 | Z105: -7.306021365 | AA105: -13.32662128 | AB105: -19.34722119 | AC105: -25.3678211 | AD105: -31.38842102 | AY105: =MAX(AY104,0) -> 0.9854611712 | AZ105: =MAX(AZ104,0) -> 1.437006165 | BA105: 1.88336036 | BB105: 2.334905354 | BC105: 2.786450347 | BD105: 3.23799534 | BE105: 3.689540334 | BF105: 4.141085327
W106: =MAX(W105,0) -> 10.68656773 | X106: 4.66596782 | Y106: 0 | Z106: 0 | AA106: 0 | AB106: 0 | AC106: 0 | AD106: 0 | AY106: =IF($P$34=1,AY105) -> FALSE | AZ106: =IF($P$34=1,AZ105) -> FALSE | BA106: FALSE | BB106: FALSE | BC106: FALSE | BD106: FALSE | BE106: FALSE | BF106: FALSE
W107: =SQRT(W104^2+W106^2) -> 10.68656773 | X107: 4.66596782 | Y107: 0 | Z107: 0 | AA107: 0 | AB107: 0 | AC107: 0 | AD107: 0 | AY107: =IF($P$34=0,W114) -> 0 | AZ107: =IF($P$34=0,X114) -> 0 | BA107: 0 | BB107: 0 | BC107: 0 | BD107: 0 | BE107: 0 | BF107: 0
U108: s | V108: 5 | W108: =-30.6*LOG10($Q$32/W$47)-23.1 -> -20.91170395 | X108: -25.51746288 | Y108: -30.07027567 | Z108: -34.67603461 | AA108: -39.28179354 | AB108: -43.88755247 | AC108: -48.49331141 | AD108: -53.09907034 | AY108: =MAX(AY106,AY107) -> 0 | AZ108: =MAX(AZ106,AZ107) -> 0 | BA108: 0 | BB108: 0 | BC108: 0 | BD108: 0 | BE108: 0 | BF108: 0
W109: =MAX(W108,0) -> 0 | X109: 0 | Y109: 0 | Z109: 0 | AA109: 0 | AB109: 0 | AC109: 0 | AD109: 0 | AX109: y | AY109: =-3*$BG109*LOG10($Q$33/W$47)-1.2*$BG109 -> 0.08237118419 | AZ109: 0.5339161777 | BA109: 0.980270373 | BB109: 1.431815367 | BC109: 1.88336036 | BD109: 2.334905354 | BE109: 2.786450347 | BF109: 3.23799534 | BG109: =(Q35-$Q$7/1000)/($Q$7/1000) -> -1
W110: =-30.6*LOG10($Q$33/W$47)-23.1 -> -11.70018608 | X110: -16.30594501 | Y110: -20.8587578 | Z110: -25.46451674 | AA110: -30.07027567 | AB110: -34.67603461 | AC110: -39.28179354 | AD110: -43.88755247 | AY110: =MAX(AY109,0) -> 0.08237118419 | AZ110: =MAX(AZ109,0) -> 0.5339161777 | BA110: 0.980270373 | BB110: 1.431815367 | BC110: 1.88336036 | BD110: 2.334905354 | BE110: 2.786450347 | BF110: 3.23799534
W111: =MAX(W110,0) -> 0 | X111: 0 | Y111: 0 | Z111: 0 | AA111: 0 | AB111: 0 | AC111: 0 | AD111: 0 | AY111: =IF($P$35=1,AY110) -> FALSE | AZ111: =IF($P$35=1,AZ110) -> FALSE | BA111: FALSE | BB111: FALSE | BC111: FALSE | BD111: FALSE | BE111: FALSE | BF111: FALSE
W112: =SQRT(W109^2+W111^2) -> 0 | X112: 0 | Y112: 0 | Z112: 0 | AA112: 0 | AB112: 0 | AC112: 0 | AD112: 0 | AY112: =IF($P$35=0,W116) -> 0 | AZ112: =IF($P$35=0,X116) -> 0 | BA112: 0 | BB112: 0 | BC112: 0 | BD112: 0 | BE112: 0 | BF112: 0
U113: c | W113: =-40*LOG10($Q$32/W$47)-23.3 -> -20.43948228 | X113: -26.4600822 | Y113: -32.41147147 | Z113: -38.43207138 | AA113: -44.45267129 | AB113: -50.47327121 | AC113: -56.49387112 | AD113: -62.51447103 | AY113: =MAX(AY111,AY112) -> 0 | AZ113: =MAX(AZ111,AZ112) -> 0 | BA113: 0 | BB113: 0 | BC113: 0 | BD113: 0 | BE113: 0 | BF113: 0
W114: =MAX(W113,0) -> 0 | X114: 0 | Y114: 0 | Z114: 0 | AA114: 0 | AB114: 0 | AC114: 0 | AD114: 0 | AY114: =SQRT(AY108^2+AY113^2) -> 0 | AZ114: =SQRT(AZ108^2+AZ113^2) -> 0 | BA114: 0 | BB114: 0 | BC114: 0 | BD114: 0 | BE114: 0 | BF114: 0
W115: =-40*LOG10($Q$33/W$47)-23.3 -> -8.398282456 | X115: -14.41888237 | Y115: -20.37027164 | Z115: -26.39087155 | AA115: -32.41147147 | AB115: -38.43207138 | AC115: -44.45267129 | AD115: -50.47327121
W116: =MAX(W115,0) -> 0 | X116: 0 | Y116: 0 | Z116: 0 | AA116: 0 | AB116: 0 | AC116: 0 | AD116: 0
W117: =SQRT(W114^2+W116^2) -> 0 | X117: 0 | Y117: 0 | Z117: 0 | AA117: 0 | AB117: 0 | AC117: 0 | AD117: 0

Sheet 計算表s-1 (hidden)
B1: ヤング率 | C1: 辺長ｘ | D1: 辺長ｙ | E1: 板厚 | F1: ポアソン比 | G1: 密度 | H1: 曲げ剛性 | I1: 面密度 | J1: 加振点ｘ | K1: 加振点ｙ | L1: 縮退重み | M1: 周波数重み
B2: =床衝撃音計算シート!D7 -> 29000000000 | C2: =床衝撃音計算シート!D9 -> 11 | D2: =床衝撃音計算シート!F9 -> 6 | E2: =(床衝撃音計算シート!L9)/1000 -> 0.2 | F2: =床衝撃音計算シート!L7 -> 0.16 | G2: =床衝撃音計算シート!G7 -> 2400 | H2: =B2*E2^3/12/(1-F2^2) -> 19841269.84 | I2: =G2*E2 -> 480 | J2: =床衝撃音計算シート!D17 -> 1.8 | K2: =床衝撃音計算シート!F17 -> 0.9 | L2: 1 | M2: 0
B4: 周波数 | C4: 31.5Hz | D4: 63Hz | E4: 125Hz | F4: 250Hz | G4: 500Hz | H4: 1000Hz | I4: (2000Hz) | J4: (4000Hz)
B5: モード数１ | C5: =M8 -> 1.50177269 | D5: =S8 -> 4.443739157 | E5: =Y8 -> 8.263104834 | F5: =AE8 -> 16.48694543 | G5: =AK8 -> 26.04076663 | H5: =AQ8 -> 53.99593211 | I5: =H6*I7/H7 -> 71.04135289 | J5: =H6*J7/H7 -> 143.4693639
B6: モード数２ | C6: =C5*($D$7^2+$C$7^2)/2/$D$7^2 -> 0.9742905471 | D6: =D5*($D$7^2+$C$7^2)/2/$D$7^2 -> 2.882921685 | E6: 5.360774624 | F6: 10.69607617 | G6: 16.89421637 | H6: 35.03041876 | I6: 46.08881159 | J6: 93.07723196
C7: =MIN(C2,D2) -> 6 | D7: =MAX(C2,D2) -> 11 | H7: =0.354*SQRT(I2/H2)*C2*D2*1000-0.139*SQRT(SQRT(I2/H2*1000^2))*(C2+D2) -> 109.6760758 | I7: =0.354*SQRT(I2/H2)*C2*D2*2000-0.139*SQRT(SQRT(I2/H2*2000^2))*(C2+D2) -> 222.4220287 | J7: =0.354*SQRT(I2/H2)*C2*D2*4000-0.139*SQRT(SQRT(I2/H2*4000^2))*(C2+D2) -> 449.185519
M8: =M9+O9+Q9 -> 1.50177269 | S8: =S9+U9+W9 -> 4.443739157 | Y8: =Y9+AA9+AC9 -> 8.263104834 | AE8: =AE9+AG9+AI9 -> 16.48694543 | AK8: =AK9+AM9+AO9 -> 26.04076663 | AQ8: =AQ9+AS9+AU9 -> 53.99593211
B9: m | C9: n | D9: fi | F9: No. | G9: m | H9: n | I9: fi | J9: 縮退ﾁｪｯｸ | K9: 周波数重み | L9: 重み | M9: =SUM(N10:N409) -> 0.07962777245 | O9: =SUM(P10:P409) -> 0.8516281639 | Q9: =SUM(R10:R409) -> 0.570516754 | S9: =SUM(T10:T409) -> 0.07723459813 | U9: =SUM(V10:V409) -> 3.349660276 | W9: =SUM(X10:X409) -> 1.016844283 | Y9: =SUM(Z10:Z409) -> 0.38479929 | AA9: =SUM(AB10:AB409) -> 6.596519739 | AC9: =SUM(AD10:AD409) -> 1.281785805 | AE9: =SUM(AF10:AF409) -> 0.9313870425 | AG9: =SUM(AH10:AH409) -> 13.2101258 | AI9: =SUM(AJ10:AJ409) -> 2.345432592 | AK9: =SUM(AL10:AL409) -> 1.990039513 | AM9: =SUM(AN10:AN409) -> 18.18951134 | AO9: =SUM(AP10:AP409) -> 5.861215773 | AQ9: =SUM(AR10:AR409) -> 2.77876104 | AS9: =SUM(AT10:AT409) -> 47.14923111 | AU9: =SUM(AV10:AV409) -> 4.06793996
B10: 1 | C10: 1 | D10: =3.1416/2*SQRT($H$2/$I$2)*(B10^2/$C$2^2+C10^2/$D$2^2) -> 11.51056885 | F10: 1 | G10: 1 | H10: 1 | I10: 11.51056885 | J10: =1 -> 1 | K10: =ABS(SIN(G10*3.1416*$J$2/$C$2)*SIN(H10*3.1416*$K$2/$D$2))*(1/F10^$M$2)+(1-1/F10^$M$2) -> 0.2232430342 | L10: =$J10*$K10 -> 0.2232430342 | M10: =10^(LOG10($I10/22.27)/LOG10(2)*70/20)*$L10 -> 0.0001038196187 | N10: =IF($I10<22.27,M10,0) -> 0.0001038196187 | O10: =AND($I10>22.27,$I10<44.45) -> FALSE | P10: =IF($O10=TRUE,$L10,0) -> 0 | Q10: =10^(LOG10(44.45/$I10)/LOG10(2)*70/20)*$L10 -> 1482732.875 | R10: =IF($I10>44.45,Q10,0) -> 0 | S10: =10^(LOG10($I10/44.548)/LOG10(2)*70/20)*$L10 -> 3.276216274e-08 | T10: =IF($I10<44.528,S10,0) -> 3.276216274e-08 | U10: =AND($I10>44.548,$I10<89.095) -> FALSE | V10: =IF($U10=TRUE,$L10,0) -> 0 | W10: =10^(LOG10(89.095/$I10)/LOG10(2)*70/20)*$L10 -> 4809795323 | X10: =IF($I10>89.095,W10,0) -> 0 | Y10: =10^(LOG10($I10/89.09)/LOG10(2)*70/20)*$L10 -> 1.036842091e-11 | Z10: =IF($I10<89.09,Y10,0) -> 1.036842091e-11 | AA10: =AND($I10>89.09,$I10<176.78) -> FALSE | AB10: =IF($AA10=TRUE,$L10,0) -> 0 | AC10: =10^(LOG10(176.78/$I10)/LOG10(2)*70/20)*$L10 -> 1.386794175e+13 | AD10: =IF($I10>176.78,AC10,0) -> 0 | AE10: =10^(LOG10($I10/176.78)/LOG10(2)*70/20)*$L10 -> 3.593716591e-15 | AF10: =IF($I10<176.78,AE10,0) -> 3.593716591e-15 | AG10: =AND($I10>176.78,$I10<353.55) -> FALSE | AH10: =IF($AG10=TRUE,$L10,0) -> 0 | AI10: =10^(LOG10(353.55/$I10)/LOG10(2)*70/20)*$L10 -> 4.383986315e+16 | AJ10: =IF($I10>353.55,AI10,0) -> 0 | AK10: =10^(LOG10($I10/353.55)/LOG10(2)*70/20)*$L10 -> 1.13680675e-18 | AL10: =IF($I10<353.55,AK10,0) -> 1.13680675e-18 | AM10: =AND($I10>353.55,$I10<707.1) -> FALSE | AN10: =IF($AM10=TRUE,$L10,0) -> 0 | AO10: =10^(LOG10(707.1/$I10)/LOG10(2)*70/20)*$L10 -> 1.386338199e+20 | AP10: =IF($I10>707.1,AO10,0) -> 0 | AQ10: =10^(LOG10($I10/707.1)/LOG10(2)*70/20)*$L10 -> 3.594898588e-22 | AR10: =IF($I10<707.1,AQ10,0) -> 3.594898588e-22 | AS10: =AND($I10>707.1,$I10<1414.2) -> FALSE | AT10: =IF($AS10=TRUE,$L10,0) -> 0 | AU10: =10^(LOG10(1414.2/$I10)/LOG10(2)*70/20)*$L10 -> 4.383986315e+23 | AV10: =IF($I10>1414.2,AU10,0) -> 0
B11: 1 | C11: 2 | D11: 38.12417709 | F11: 2 | G11: 2 | H11: 1 | I11: 19.42866717 | J11: =IF(ABS(I11-I10)>0.0001,1,$L$2) -> 1 | K11: 0.3887757287 | L11: =$J11*$K11 -> 0.3887757287 | M11: =10^(LOG10($I11/22.27)/LOG10(2)*70/20)*$L11 -> 0.07952395283 | N11: =IF($I11<22.27,M11,0) -> 0.07952395283 | O11: =AND($I11>22.27,$I11<44.45) -> FALSE | P11: =IF($O11=TRUE,$L11,0) -> 0 | Q11: =10^(LOG10(44.45/$I11)/LOG10(2)*70/20)*$L11 -> 5870.658829 | R11: =IF($I11>44.45,Q11,0) -> 0 | S11: =10^(LOG10($I11/44.548)/LOG10(2)*70/20)*$L11 -> 2.509522492e-05 | T11: =IF($I11<44.528,S11,0) -> 2.509522492e-05 | U11: FALSE | V11: =IF($U11=TRUE,$L11,0) -> 0 | W11: =10^(LOG10(89.095/$I11)/LOG10(2)*70/20)*$L11 -> 19043664.47 | X11: 0 | Y11: =10^(LOG10($I11/89.09)/LOG10(2)*70/20)*$L11 -> 7.942023145e-09 | Z11: =IF($I11<89.09,Y11,0) -> 7.942023145e-09 | AA11: =AND($I11>89.09,$I11<176.78) -> FALSE | AB11: =IF($AA11=TRUE,$L11,0) -> 0 | AC11: =10^(LOG10(176.78/$I11)/LOG10(2)*70/20)*$L11 -> 5.490803908e+10 | AD11: =IF($I11>176.78,AC11,0) -> 0 | AE11: =10^(LOG10($I11/176.78)/LOG10(2)*70/20)*$L11 -> 2.752722001e-12 | AF11: =IF($I11<176.78,AE11,0) -> 2.752722001e-12 | AG11: =AND($I11>176.78,$I11<353.55) -> FALSE | AH11: =IF($AG11=TRUE,$L11,0) -> 0 | AI11: =10^(LOG10(353.55/$I11)/LOG10(2)*70/20)*$L11 -> 1.735773746e+14 | AJ11: =IF($I11>353.55,AI11,0) -> 0 | AK11: =10^(LOG10($I11/353.55)/LOG10(2)*70/20)*$L11 -> 8.707734378e-16 | AL11: =IF($I11<353.55,AK11,0) -> 8.707734378e-16 | AM11: =AND($I11>353.55,$I11<707.1) -> FALSE | AN11: =IF($AM11=TRUE,$L11,0) -> 0 | AO11: =10^(LOG10(707.1/$I11)/LOG10(2)*70/20)*$L11 -> 5.48899854e+17 | AP11: =IF($I11>707.1,AO11,0) -> 0 | AQ11: =10^(LOG10($I11/707.1)/LOG10(2)*70/20)*$L11 -> 2.753627389e-19 | AR11: =IF($I11<707.1,AQ11,0) -> 2.753627389e-19 | AS11: =AND($I11>707.1,$I11<1414.2) -> FALSE | AT11: =IF($AS11=TRUE,$L11,0) -> 0 | AU11: =10^(LOG10(1414.2/$I11)/LOG10(2)*70/20)*$L11 -> 1.735773746e+21 | AV11: =IF($I11>1414.2,AU11,0) -> 0
B12: 1 | C12: 3 | D12: 82.48019082 | F12: 3 | G12: 3 | H12: 1 | I12: 32.6254977 | J12: 1 | K12: 0.4538063874 | L12: 0.4538063874 | M12: 38.4604921 | N12: 0 | O12: TRUE | P12: 0.4538063874 | Q12: 16.53913854 | R12: 0 | S12: 0.01213690549 | T12: 0.01213690549 | U12: FALSE | V12: 0 | W12: 53650.84469 | X12: 0 | Y12: 3.841032891e-06 | Z12: 3.841032891e-06 | AA12: FALSE | AB12: 0 | AC12: 154689906.5 | AD12: 0 | AE12: 1.331310115e-09 | AF12: 1.331310115e-09 | AG12: FALSE | AH12: 0 | AI12: 4.890115965e+11 | AJ12: 0 | AK12: 4.211356923e-13 | AL12: 4.211356923e-13 | AM12: FALSE | AN12: 0 | AO12: 1.546390447e+15 | AP12: 0 | AQ12: 1.331747992e-16 | AR12: 1.331747992e-16 | AS12: FALSE | AT12: 0 | AU12: 4.890115965e+18 | AV12: 0
B13: 1 | C13: 4 | D13: 144.57861 | F13: 4 | G13: 1 | H13: 2 | I13: 38.12417709 | J13: 1 | K13: 0.3978217766 | L13: 0.3978217766 | M13: 206.2076581 | N13: 0 | O13: TRUE | P13: 0.3978217766 | Q13: 2.370602992 | R13: 0 | S13: 0.06507256465 | T13: 0.06507256465 | U13: FALSE | V13: 0 | W13: 7689.932135 | X13: 0 | Y13: 2.059387059e-05 | Z13: 2.059387059e-05 | AA13: FALSE | AB13: 0 | AC13: 22172155.72 | AD13: 0 | AE13: 7.137879055e-09 | AF13: 7.137879055e-09 | AG13: FALSE | AH13: 0 | AI13: 7.009145917e+10 | AJ13: 0 | AK13: 2.257937954e-12 | AL13: 2.257937954e-12 | AM13: FALSE | AN13: 0 | AO13: 2.216486555e+14 | AP13: 0 | AQ13: 7.140226751e-16 | AR13: 7.140226751e-16 | AS13: FALSE | AT13: 0 | AU13: 7.009145917e+17 | AV13: 0
B14: 1 | C14: 5 | D14: 224.4194348 | F14: 5 | G14: 2 | H14: 2 | I14: 46.04227541 | J14: 1 | K14: 0.6928030324 | L14: 0.6928030324 | M14: 3221.894333 | N14: 0 | O14: FALSE | P14: 0 | Q14: 0.4601450771 | R14: 0.4601450771 | S14: 1.016727163 | T14: 0 | U14: TRUE | V14: 0.6928030324 | W14: 1492.651628 | X14: 0 | Y14: 0.0003217692086 | Z14: 0.0003217692086 | AA14: FALSE | AB14: 0 | AC14: 4303718.648 | AD14: 0 | AE14: 1.115258875e-07 | AF14: 1.115258875e-07 | AG14: FALSE | AH14: 0 | AI14: 1.360507854e+10 | AJ14: 0 | AK14: 3.527918199e-11 | AL14: 3.527918199e-11 | AM14: FALSE | AN14: 0 | AO14: 4.302303592e+13 | AP14: 0 | AQ14: 1.115625691e-14 | AR14: 1.115625691e-14 | AS14: FALSE | AT14: 0 | AU14: 1.360507854e+17 | AV14: 0
B15: 1 | C15: 6 | D15: 322.002665 | F15: 6 | G15: 4 | H15: 1 | I15: 51.10106045 | J15: 1 | K15: 0.401523998 | L15: 0.401523998 | M15: 6274.691228 | N15: 0 | O15: FALSE | P15: 0 | Q15: 0.07936283398 | R15: 0.07936283398 | S15: 1.980092564 | T15: 0 | U15: TRUE | V15: 0.401523998 | W15: 257.4428571 | X15: 0 | Y15: 0.0006266507283 | Z15: 0.0006266507283 | AA15: FALSE | AB15: 0 | AC15: 742277.4371 | AD15: 0 | AE15: 2.171984663e-07 | AF15: 2.171984663e-07 | AG15: FALSE | AH15: 0 | AI15: 2346515572 | AJ15: 0 | AK15: 6.870677648e-11 | AL15: 6.870677648e-11 | AM15: FALSE | AN15: 0 | AO15: 7.420333774e+12 | AP15: 0 | AQ15: 2.172699044e-14 | AR15: 2.172699044e-14 | AS15: FALSE | AT15: 0 | AU15: 2.346515572e+16 | AV15: 0
B16: 1 | C16: 7 | D16: 437.3283007 | F16: 7 | G16: 3 | H16: 2 | I16: 59.23910594 | J16: 1 | K16: 0.8086884497 | L16: 0.8086884497 | M16: 70445.02406 | N16: 0 | O16: FALSE | P16: 0 | Q16: 0.02867468607 | R16: 0.02867468607 | S16: 22.23020437 | T16: 0 | U16: TRUE | V16: 0.8086884497 | W16: 93.01700477 | X16: 0 | Y16: 0.007035314413 | Z16: 0.007035314413 | AA16: FALSE | AB16: 0 | AC16: 268193.201 | AD16: 0 | AE16: 2.438454839e-06 | AF16: 2.438454839e-06 | AG16: FALSE | AH16: 0 | AI16: 847822513.6 | AJ16: 0 | AK16: 7.713607485e-10 | AL16: 7.713607485e-10 | AM16: FALSE | AN16: 0 | AO16: 2.681050194e+12 | AP16: 0 | AQ16: 2.439256863e-13 | AR16: 2.439256863e-13 | AS16: FALSE | AT16: 0 | AU16: 8478225135517163 | AV16: 0
B17: 1 | C17: 8 | D17: 570.3963419 | F17: 8 | G17: 5 | H17: 1 | I17: 74.85535541 | J17: 1 | K17: 0.2454440301 | L17: 0.2454440301 | M17: 324688.1161 | N17: 0 | O17: FALSE | P17: 0 | Q17: 0.0005730929508 | R17: 0.0005730929508 | S17: 102.461221 | T17: 0 | U17: TRUE | V17: 0.2454440301 | W17: 1.859040047 | X17: 0 | Y17: 0.03242646324 | Z17: 0.03242646324 | AA17: FALSE | AB17: 0 | AC17: 5360.115628 | AD17: 0 | AE17: 1.123908066e-05 | AF17: 1.123908066e-05 | AG17: FALSE | AH17: 0 | AI17: 16944600.72 | AJ17: 0 | AK17: 3.555278341e-09 | AL17: 3.555278341e-09 | AM17: FALSE | AN17: 0 | AO17: 5.35835323e+10 | AP17: 0 | AQ17: 1.124277727e-12 | AR17: 1.124277727e-12 | AS17: FALSE | AT17: 0 | AU17: 1.694460072e+14 | AV17: 0
B18: 1 | C18: 9 | D18: 721.2067886 | F18: 9 | G18: 4 | H18: 2 | I18: 77.71466869 | J18: 1 | K18: 0.7155206018 | L18: 0.7155206018 | M18: 1463595.137 | N18: 0 | O18: FALSE | P18: 0 | Q18: 0.001080462855 | R18: 0.001080462855 | S18: 461.8639775 | T18: 0 | U18: TRUE | V18: 0.7155206018 | W18: 3.50488296 | X18: 0 | Y18: 0.1461686202 | Z18: 0.1461686202 | AA18: FALSE | AB18: 0 | AC18: 10105.52621 | AD18: 0 | AE18: 5.066235255e-05 | AF18: 5.066235255e-05 | AG18: FALSE | AH18: 0 | AI18: 31945972.54 | AJ18: 0 | AK18: 1.602611193e-08 | AL18: 1.602611193e-08 | AM18: FALSE | AN18: 0 | AO18: 1.010220353e+11 | AP18: 0 | AQ18: 5.067901573e-12 | AR18: 5.067901573e-12 | AS18: FALSE | AT18: 0 | AU18: 3.194597254e+14 | AV18: 0
B19: 1 | C19: 10 | D19: 889.7596408 | F19: 10 | G19: 1 | H19: 3 | I19: 82.48019082 | J19: 1 | K19: 0.4856801645 | L19: 0.4856801645 | M19: 1984548.698 | N19: 0 | O19: FALSE | P19: 0 | Q19: 0.0003671347447 | R19: 0.0003671347447 | S19: 626.2603174 | T19: 0 | U19: TRUE | V19: 0.4856801645 | W19: 1.190938036 | X19: 0 | Y19: 0.1981960294 | Z19: 0.1981960294 | AA19: FALSE | AB19: 0 | AC19: 3433.796699 | AD19: 0 | AE19: 6.86951625e-05 | AF19: 6.86951625e-05 | AG19: FALSE | AH19: 0 | AI19: 10855048.29 | AJ19: 0 | AK19: 2.173046272e-08 | AL19: 2.173046272e-08 | AM19: FALSE | AN19: 0 | AO19: 3.432667672e+10 | AP19: 0 | AQ19: 6.871775679e-12 | AR19: 6.871775679e-12 | AS19: FALSE | AT19: 0 | AU19: 1.085504829e+14 | AV19: 0
B20: 1 | C20: 11 | D20: 1076.054898 | F20: 11 | G20: 2 | H20: 3 | I20: 90.39828914 | J20: 1 | K20: 0.8458076218 | L20: 0.8458076218 | M20: 10033449.79 | N20: 0 | O20: FALSE | P20: 0 | Q20: 0.0002202314916 | R20: 0.0002202314916 | S20: 3166.236968 | T20: 0 | U20: FALSE | V20: 0 | W20: 0.7144027195 | X20: 0.7144027195 | Y20: 1.002036338 | Z20: 0 | AA20: TRUE | AB20: 0.8458076218 | AC20: 2059.816402 | AD20: 0 | AE20: 0.0003473079116 | AF20: 0.0003473079116 | AG20: FALSE | AH20: 0 | AI20: 6511569.695 | AJ20: 0 | AK20: 1.098645283e-07 | AL20: 1.098645283e-07 | AM20: FALSE | AN20: 0 | AO20: 2.059139138e+10 | AP20: 0 | AQ20: 3.474221435e-11 | AR20: 3.474221435e-11 | AS20: FALSE | AT20: 0 | AU20: 6.511569695e+13 | AV20: 0
B21: 1 | C21: 12 | D21: 1280.092562 | F21: 12 | G21: 5 | H21: 2 | I21: 101.4689636 | J21: 1 | K21: 0.4373842187 | L21: 0.4373842187 | M21: 19878829 | N21: 0 | O21: FALSE | P21: 0 | Q21: 2.972500482e-05 | R21: 2.972500482e-05 | S21: 6273.124853 | T21: 0 | U21: FALSE | V21: 0 | W21: 0.09642410414 | X21: 0.09642410414 | Y21: 1.985290147 | Z21: 0 | AA21: TRUE | AB21: 0.4373842187 | AC21: 278.0167906 | AD21: 0 | AE21: 0.0006881057592 | AF21: 0.0006881057592 | AG21: FALSE | AH21: 0 | AI21: 878877.2176 | AJ21: 0 | AK21: 2.176697165e-07 | AL21: 2.176697165e-07 | AM21: FALSE | AN21: 0 | AO21: 2779253791 | AP21: 0 | AQ21: 6.883320817e-11 | AR21: 6.883320817e-11 | AS21: FALSE | AT21: 0 | AU21: 8.788772176e+12 | AV21: 0
B22: 1 | C22: 13 | D22: 1501.87263 | F22: 13 | G22: 3 | H22: 3 | I22: 103.5951197 | J22: 1 | K22: 0.9872861729 | L22: 0.9872861729 | M22: 57106043.63 | N22: 0 | O22: FALSE | P22: 0 | Q22: 5.272183891e-05 | R22: 5.272183891e-05 | S22: 18020.84728 | T22: 0 | U22: FALSE | V22: 0 | W22: 0.1710228851 | X22: 0.1710228851 | Y22: 5.703156145 | Z22: 0 | AA22: TRUE | AB22: 0.9872861729 | AC22: 493.1052673 | AD22: 0 | AE22: 0.001976725968 | AF22: 0.001976725968 | AG22: FALSE | AH22: 0 | AI22: 1558823.064 | AJ22: 0 | AK22: 6.253012351e-07 | AL22: 6.253012351e-07 | AM22: FALSE | AN22: 0 | AO22: 4929431350 | AP22: 0 | AQ22: 1.977376127e-10 | AR22: 1.977376127e-10 | AS22: FALSE | AT22: 0 | AU22: 1.558823064e+13 | AV22: 0
B23: 1 | C23: 14 | D23: 1741.395104 | F23: 14 | G23: 6 | H23: 1 | I23: 103.8883826 | J23: 1 | K23: 0.0259145646 | L23: 0.0259145646 | M23: 1549019.763 | N23: 0 | O23: FALSE | P23: 0 | Q23: 1.339113498e-06 | R23: 1.339113498e-06 | S23: 488.8212667 | T23: 0 | U23: FALSE | V23: 0 | W23: 0.004343912478 | X23: 0.004343912478 | Y23: 0.154699941 | Z23: 0 | AA23: TRUE | AB23: 0.0259145646 | AC23: 12.52467541 | AD23: 0 | AE23: 5.361932636e-05 | AF23: 5.361932636e-05 | AG23: FALSE | AH23: 0 | AI23: 39593.47868 | AJ23: 0 | AK23: 1.696149671e-08 | AL23: 1.696149671e-08 | AM23: FALSE | AN23: 0 | AO23: 125205573.1 | AP23: 0 | AQ23: 5.363696212e-12 | AR23: 5.363696212e-12 | AS23: FALSE | AT23: 0 | AU23: 3.959347868e+11 | AV23: 0
B24: 1 | C24: 15 | D24: 1998.659984 | F24: 15 | G24: 4 | H24: 3 | I24: 122.0706824 | J24: 1 | K24: 0.873542335 | L24: 0.873542335 | M24: 340553592.6 | N24: 0 | O24: FALSE | P24: 0 | Q24: 6.921001793e-06 | R24: 6.921001793e-06 | S24: 107467.8597 | T24: 0 | U24: FALSE | V24: 0 | W24: 0.02245084237 | X24: 0.02245084237 | Y24: 34.01094159 | Z24: 0 | AA24: TRUE | AB24: 0.873542335 | AC24: 64.73185515 | AD24: 0 | AE24: 0.01178826421 | AF24: 0.01178826421 | AG24: FALSE | AH24: 0 | AI24: 204632.7943 | AJ24: 0 | AK24: 3.729002546e-06 | AL24: 3.729002546e-06 | AM24: FALSE | AN24: 0 | AO24: 647105714.1 | AP24: 0 | AQ24: 1.179214144e-09 | AR24: 1.179214144e-09 | AS24: FALSE | AT24: 0 | AU24: 2.046327943e+12 | AV24: 0
B25: 1 | C25: 16 | D25: 2273.667269 | F25: 16 | G25: 6 | H25: 2 | I25: 130.5019908 | J25: 1 | K25: 0.04618006633 | L25: 0.04618006633 | M25: 39138014.05 | N25: 0 | O25: FALSE | P25: 0 | Q25: 1.683049283e-07 | R25: 1.683049283e-07 | S25: 12350.70983 | T25: 0 | U25: FALSE | V25: 0 | W25: 0.0005459596065 | X25: 0.0005459596065 | Y25: 3.908696718 | Z25: 0 | AA25: TRUE | AB25: 0.04618006633 | AC25: 1.574149316 | AD25: 0 | AE25: 0.00135476254 | AF25: 0.00135476254 | AG25: FALSE | AH25: 0 | AI25: 4976.260491 | AJ25: 0 | AK25: 4.285544396e-07 | AL25: 4.285544396e-07 | AM25: FALSE | AN25: 0 | AO25: 15736317.38 | AP25: 0 | AQ25: 1.355208131e-10 | AR25: 1.355208131e-10 | AS25: FALSE | AT25: 0 | AU25: 4.976260491e+10 | AV25: 0
B26: 1 | C26: 17 | D26: 2566.41696 | F26: 17 | G26: 7 | H26: 1 | I26: 138.200142 | J26: 1 | K26: 0.2003140498 | L26: 0.2003140498 | M26: 330568244.8 | N26: 0 | O26: FALSE | P26: 0 | Q26: 3.749282839e-07 | R26: 3.749282839e-07 | S26: 104316.8022 | T26: 0 | U26: FALSE | V26: 0 | W26: 0.001216219278 | X26: 0.001216219278 | Y26: 33.01370917 | Z26: 0 | AA26: TRUE | AB26: 0.2003140498 | AC26: 3.506689363 | AD26: 0 | AE26: 0.01144262135 | AF26: 0.01144262135 | AG26: FALSE | AH26: 0 | AI26: 11085.47934 | AJ26: 0 | AK26: 3.619664726e-06 | AL26: 3.619664726e-06 | AM26: FALSE | AN26: 0 | AO26: 35055363.68 | AP26: 0 | AQ26: 1.14463849e-09 | AR26: 1.14463849e-09 | AS26: FALSE | AT26: 0 | AU26: 1.108547934e+11 | AV26: 0
B27: 1 | C27: 18 | D27: 2876.909056 | F27: 18 | G27: 1 | H27: 4 | I27: 144.57861 | J27: 1 | K27: 0.467666128 | L27: 0.467666128 | M27: 1304122042 | N27: 0 | O27: FALSE | P27: 0 | Q27: 5.180123454e-07 | R27: 5.180123454e-07 | S27: 411539.3515 | T27: 0 | U27: FALSE | V27: 0 | W27: 0.001680365626 | X27: 0.001680365626 | Y27: 130.2421104 | Z27: 0 | AA27: TRUE | AB27: 0.467666128 | AC27: 4.844948912 | AD27: 0 | AE27: 0.04514219061 | AF27: 0.04514219061 | AG27: FALSE | AH27: 0 | AI27: 15316.03616 | AJ27: 0 | AK27: 1.42799093e-05 | AL27: 1.42799093e-05 | AM27: FALSE | AN27: 0 | AO27: 48433559 | AP27: 0 | AQ27: 4.515703818e-09 | AR27: 4.515703818e-09 | AS27: FALSE | AT27: 0 | AU27: 1.531603616e+11 | AV27: 0
B28: 1 | C28: 19 | D28: 3205.143558 | F28: 19 | G28: 5 | H28: 3 | I28: 145.8249774 | J28: 1 | K28: 0.5339799172 | L28: 0.5339799172 | M28: 1645319627 | N28: 0 | O28: FALSE | P28: 0 | Q28: 5.35286243e-07 | R28: 5.35286243e-07 | S28: 519210.4347 | T28: 0 | U28: FALSE | V28: 0 | W28: 0.001736399935 | X28: 0.001736399935 | Y28: 164.3173672 | Z28: 0 | AA28: TRUE | AB28: 0.5339799172 | AC28: 5.006510991 | AD28: 0 | AE28: 0.05695274663 | AF28: 0.05695274663 | AG28: FALSE | AH28: 0 | AI28: 15826.77233 | AJ28: 0 | AK28: 1.801596346e-05 | AL28: 1.801596346e-05 | AM28: FALSE | AN28: 0 | AO28: 50048648.57 | AP28: 0 | AQ28: 5.697147877e-09 | AR28: 5.697147877e-09 | AS28: FALSE | AT28: 0 | AU28: 1.582677233e+11 | AV28: 0
B29: 1 | C29: 20 | D29: 3551.120465 | F29: 20 | G29: 2 | H29: 4 | I29: 152.4967084 | J29: 1 | K29: 0.8144363398 | L29: 0.8144363398 | M29: 4221564032 | N29: 0 | O29: FALSE | P29: 0 | Q29: 4.853191398e-07 | R29: 4.853191398e-07 | S29: 1332191.059 | T29: 0 | U29: FALSE | V29: 0 | W29: 0.001574313059 | X29: 0.001574313059 | Y29: 421.6057937 | Z29: 0 | AA29: TRUE | AB29: 0.8144363398 | AC29: 4.539170657 | AD29: 0 | AE29: 0.1461294588 | AF29: 0.1461294588 | AG29: FALSE | AH29: 0 | AI29: 14349.39835 | AJ29: 0 | AK29: 4.622539115e-05 | AL29: 4.622539115e-05 | AM29: FALSE | AN29: 0 | AO29: 45376781.85 | AP29: 0 | AQ29: 1.461775218e-08 | AR29: 1.461775218e-08 | AS29: FALSE | AT29: 0 | AU29: 1.434939835e+11 | AV29: 0
B30: 2 | C30: 1 | D30: 19.42866717 | F30: 21 | G30: 7 | H30: 2 | I30: 164.8137502 | J30: 1 | K30: 0.3569620501 | L30: 0.3569620501 | M30: 4565023945 | N30: 0 | O30: FALSE | P30: 0 | Q30: 8.621593605e-08 | R30: 8.621593605e-08 | S30: 1440576.061 | T30: 0 | U30: FALSE | V30: 0 | W30: 0.0002796734415 | X30: 0.0002796734415 | Y30: 455.9069883 | Z30: 0 | AA30: TRUE | AB30: 0.3569620501 | AC30: 0.8063742289 | AD30: 0 | AE30: 0.1580183253 | AF30: 0.1580183253 | AG30: FALSE | AH30: 0 | AI30: 2549.14078 | AJ30: 0 | AK30: 4.99862174e-05 | AL30: 4.99862174e-05 | AM30: FALSE | AN30: 0 | AO30: 8061090.942 | AP30: 0 | AQ30: 1.580702986e-08 | AR30: 1.580702986e-08 | AS30: FALSE | AT30: 0 | AU30: 2.54914078e+10 | AV30: 0
B31: 2 | C31: 2 | D31: 46.04227541 | F31: 22 | G31: 3 | H31: 4 | I31: 165.6935389 | J31: 1 | K31: 0.950667405 | L31: 0.950667405 | M31: 1.293398033e+10 | N31: 0 | O31: FALSE | P31: 0 | Q31: 2.158298578e-07 | R31: 2.158298578e-07 | S31: 4081551.961 | T31: 0 | U31: FALSE | V31: 0 | W31: 0.0007001243837 | X31: 0.0007001243837 | Y31: 1291.711082 | Z31: 0 | AA31: TRUE | AB31: 0.950667405 | AC31: 2.018648096 | AD31: 0 | AE31: 0.44770979 | AF31: 0.44770979 | AG31: FALSE | AH31: 0 | AI31: 6381.426882 | AJ31: 0 | AK31: 0.0001416248328 | AL31: 0.0001416248328 | AM31: FALSE | AN31: 0 | AO31: 20179843.67 | AP31: 0 | AQ31: 4.478570447e-08 | AR31: 4.478570447e-08 | AS31: FALSE | AT31: 0 | AU31: 6.381426882e+10 | AV31: 0
B32: 2 | C32: 3 | D32: 90.39828914 | F32: 23 | G32: 6 | H32: 3 | I32: 174.8580045 | J32: 1 | K32: 0.05637886997 | L32: 0.05637886997 | M32: 1434341906 | N32: 0 | O32: FALSE | P32: 0 | Q32: 6.844891367e-09 | R32: 6.844891367e-09 | S32: 452632.59 | T32: 0 | U32: FALSE | V32: 0 | W32: 2.220394991e-05 | X32: 2.220394991e-05 | Y32: 143.2471124 | Z32: 0 | AA32: TRUE | AB32: 0.05637886997 | AC32: 0.06401999736 | AD32: 0 | AE32: 0.0496497518 | AF32: 0.0496497518 | AG32: FALSE | AH32: 0 | AI32: 202.3824425 | AJ32: 0 | AK32: 1.570579414e-05 | AL32: 1.570579414e-05 | AM32: FALSE | AN32: 0 | AO32: 639989.4767 | AP32: 0 | AQ32: 4.966608193e-09 | AR32: 4.966608193e-09 | AS32: FALSE | AT32: 0 | AU32: 2023824425 | AV32: 0
B33: 2 | C33: 4 | D33: 152.4967084 | F33: 24 | G33: 8 | H33: 1 | I33: 177.7906336 | J33: 1 | K33: 0.3747596739 | L33: 0.3747596739 | M33: 1.156840158e+10 | N33: 0 | O33: FALSE | P33: 0 | Q33: 3.74989288e-08 | R33: 3.74989288e-08 | S33: 3650618.831 | T33: 0 | U33: FALSE | V33: 0 | W33: 0.0001216417167 | X33: 0.0001216417167 | Y33: 1155.331317 | Z33: 0 | AA33: FALSE | AB33: 0 | AC33: 0.3507259932 | AD33: 0.3507259932 | AE33: 0.4004402751 | AF33: 0 | AG33: TRUE | AH33: 0.3747596739 | AI33: 1108.728305 | AJ33: 0 | AK33: 0.0001266719832 | AL33: 0.0001266719832 | AM33: FALSE | AN33: 0 | AO33: 3506106.75 | AP33: 0 | AQ33: 4.005719826e-08 | AR33: 4.005719826e-08 | AS33: FALSE | AT33: 0 | AU33: 1.108728305e+10 | AV33: 0
B34: 2 | C34: 5 | D34: 232.3375331 | F34: 25 | G34: 4 | H34: 4 | I34: 184.1691016 | J34: 1 | K34: 0.8411423634 | L34: 0.8411423634 | M34: 3.911749353e+10 | N34: 0 | O34: FALSE | P34: 0 | Q34: 5.58668914e-08 | R34: 5.58668914e-08 | S34: 12344234.21 | T34: 0 | U34: FALSE | V34: 0 | W34: 0.0001812250321 | X34: 0.0001812250321 | Y34: 3906.647343 | Z34: 0 | AA34: FALSE | AB34: 0 | AC34: 0.5225208185 | AD34: 0.5225208185 | AE34: 1.354052222 | AF34: 0 | AG34: TRUE | AH34: 0.8411423634 | AI34: 1651.812619 | AJ34: 0 | AK34: 0.0004283297436 | AL34: 0.0004283297436 | AM34: FALSE | AN34: 0 | AO34: 5223490.144 | AP34: 0 | AQ34: 1.354497579e-07 | AR34: 1.354497579e-07 | AS34: FALSE | AT34: 0 | AU34: 1.651812619e+10 | AV34: 0
B35: 2 | C35: 6 | D35: 329.9207633 | F35: 26 | G35: 8 | H35: 2 | I35: 204.4042418 | J35: 1 | K35: 0.6678262539 | L35: 0.6678262539 | M35: 1.04362468e+11 | N35: 0 | O35: FALSE | P35: 0 | Q35: 1.319985465e-08 | R35: 1.319985465e-08 | S35: 32933468.65 | T35: 0 | U35: FALSE | V35: 0 | W35: 4.281863593e-05 | X35: 4.281863593e-05 | Y35: 10422.63502 | Z35: 0 | AA35: FALSE | AB35: 0 | AC35: 0.1234577168 | AD35: 0.1234577168 | AE35: 3.612507319 | AF35: 0 | AG35: TRUE | AH35: 0.6678262539 | AI35: 390.2792143 | AJ35: 0 | AK35: 0.001142750854 | AL35: 0.001142750854 | AM35: FALSE | AN35: 0 | AO35: 1234171.241 | AP35: 0 | AQ35: 3.613695497e-07 | AR35: 3.613695497e-07 | AS35: FALSE | AT35: 0 | AU35: 3902792143 | AV35: 0
B36: 2 | C36: 7 | D36: 445.246399 | F36: 27 | G36: 5 | H36: 4 | I36: 207.9233966 | J36: 1 | K36: 0.514174427 | L36: 0.514174427 | M36: 9.799089516e+10 | N36: 0 | O36: FALSE | P36: 0 | Q36: 8.333390509e-09 | R36: 8.333390509e-09 | S36: 30922803.34 | T36: 0 | U36: FALSE | V36: 0 | W36: 2.703245026e-05 | X36: 2.703245026e-05 | Y36: 9786.308774 | Z36: 0 | AA36: FALSE | AB36: 0 | AC36: 0.07794187077 | AD36: 0.07794187077 | AE36: 3.391955296 | AF36: 0 | AG36: TRUE | AH36: 0.514174427 | AI36: 246.3927965 | AJ36: 0 | AK36: 0.001072983241 | AL36: 0.001072983241 | AM36: FALSE | AN36: 0 | AO36: 779162.436 | AP36: 0 | AQ36: 3.393070933e-07 | AR36: 3.393070933e-07 | AS36: FALSE | AT36: 0 | AU36: 2463927965 | AV36: 0
B37: 2 | C37: 8 | D37: 578.3144402 | F37: 28 | G37: 7 | H37: 3 | I37: 209.1697639 | J37: 1 | K37: 0.4357966241 | L37: 0.4357966241 | M37: 8.903010061e+10 | N37: 0 | O37: FALSE | P37: 0 | Q37: 6.588967607e-09 | R37: 6.588967607e-09 | S37: 28095062.18 | T37: 0 | U37: FALSE | V37: 0 | W37: 2.137376604e-05 | X37: 2.137376604e-05 | Y37: 8891.398057 | Z37: 0 | AA37: FALSE | AB37: 0 | AC37: 0.06162635258 | AD37: 0.06162635258 | AE37: 3.081777351 | AF37: 0 | AG37: TRUE | AH37: 0.4357966241 | AI37: 194.8155619 | AJ37: 0 | AK37: 0.0009748641009 | AL37: 0.0009748641009 | AM37: FALSE | AN37: 0 | AO37: 616060.8992 | AP37: 0 | AQ37: 3.082790968e-07 | AR37: 3.082790968e-07 | AS37: FALSE | AT37: 0 | AU37: 1948155619 | AV37: 0
B38: 2 | C38: 9 | D38: 729.1248869 | F38: 29 | G38: 9 | H38: 1 | I38: 222.6598574 | J38: 1 | K38: 0.452326539 | L38: 0.452326539 | M38: 1.911129593e+11 | N38: 0 | O38: FALSE | P38: 0 | Q38: 3.306743547e-09 | R38: 3.306743547e-09 | S38: 60309158.81 | T38: 0 | U38: FALSE | V38: 0 | W38: 1.072665206e-05 | X38: 1.072665206e-05 | Y38: 19086.36948 | Z38: 0 | AA38: FALSE | AB38: 0 | AC38: 0.03092784118 | AD38: 0.03092784118 | AE38: 6.615375985 | AF38: 0 | AG38: TRUE | AH38: 0.452326539 | AI38: 97.77026396 | AJ38: 0 | AK38: 0.002092653631 | AL38: 0.002092653631 | AM38: FALSE | AN38: 0 | AO38: 309176.7215 | AP38: 0 | AQ38: 6.617551827e-07 | AR38: 6.617551827e-07 | AS38: FALSE | AT38: 0 | AU38: 977702639.6 | AV38: 0
B39: 2 | C39: 10 | D39: 897.6777391 | F39: 30 | G39: 1 | H39: 5 | I39: 224.4194348 | J39: 1 | K39: 0.3477065099 | L39: 0.3477065099 | M39: 1.609894316e+11 | N39: 0 | O39: FALSE | P39: 0 | Q39: 2.319609025e-09 | R39: 2.319609025e-09 | S39: 50803133.56 | T39: 0 | U39: FALSE | V39: 0 | W39: 7.524514244e-06 | X39: 7.524514244e-06 | Y39: 16077.94566 | Z39: 0 | AA39: FALSE | AB39: 0 | AC39: 0.02169521117 | AD39: 0.02169521117 | AE39: 5.572649932 | AF39: 0 | AG39: TRUE | AH39: 0.3477065099 | AI39: 68.58372396 | AJ39: 0 | AK39: 0.001762806247 | AL39: 0.001762806247 | AM39: FALSE | AN39: 0 | AO39: 216880.7781 | AP39: 0 | AQ39: 5.574482814e-07 | AR39: 5.574482814e-07 | AS39: FALSE | AT39: 0 | AU39: 685837239.6 | AV39: 0
B40: 2 | C40: 11 | D40: 1083.972997 | F40: 31 | G40: 2 | H40: 5 | I40: 232.3375331 | J40: 1 | K40: 0.6055277479 | L40: 0.6055277479 | M40: 4.195703079e+11 | N40: 0 | O40: FALSE | P40: 0 | Q40: 2.699291985e-09 | R40: 2.699291985e-09 | S40: 132403016.6 | T40: 0 | U40: FALSE | V40: 0 | W40: 8.756157082e-06 | X40: 8.756157082e-06 | Y40: 41902.30714 | Z40: 0 | AA40: FALSE | AB40: 0 | AC40: 0.02524637083 | AD40: 0.02524637083 | AE40: 14.52342818 | AF40: 0 | AG40: TRUE | AH40: 0.6055277479 | AI40: 79.8097845 | AJ40: 0 | AK40: 0.004594221821 | AL40: 0.004594221821 | AM40: FALSE | AN40: 0 | AO40: 252380.6986 | AP40: 0 | AQ40: 1.452820503e-06 | AR40: 1.452820503e-06 | AS40: FALSE | AT40: 0 | AU40: 798097845 | AV40: 0
B41: 2 | C41: 12 | D41: 1288.01066 | F41: 32 | G41: 6 | H41: 4 | I41: 236.9564238 | J41: 1 | K41: 0.0542877592 | L41: 0.0542877592 | M41: 4.729018331e+10 | N41: 0 | O41: FALSE | P41: 0 | Q41: 1.924949531e-10 | R41: 1.924949531e-10 | S41: 14923274.62 | T41: 0 | U41: FALSE | V41: 0 | W41: 6.244289452e-07 | X41: 6.244289452e-07 | Y41: 4722.850375 | Z41: 0 | AA41: FALSE | AB41: 0 | AC41: 0.001800397659 | AD41: 0.001800397659 | AE41: 1.636949917 | AF41: 0 | AG41: TRUE | AH41: 0.0542877592 | AI41: 5.691485327 | AJ41: 0 | AK41: 0.0005178192737 | AL41: 0.0005178192737 | AM41: FALSE | AN41: 0 | AO41: 17998.0569 | AP41: 0 | AQ41: 1.637488321e-07 | AR41: 1.637488321e-07 | AS41: FALSE | AT41: 0 | AU41: 56914853.27 | AV41: 0
B42: 2 | C42: 13 | D42: 1509.790729 | F42: 33 | G42: 3 | H42: 5 | I42: 245.5343636 | J42: 1 | K42: 0.7068145963 | L42: 0.7068145963 | M42: 9.309700592e+11 | N42: 0 | O42: FALSE | P42: 0 | Q42: 1.657531606e-09 | R42: 1.657531606e-09 | S42: 293784478.8 | T42: 0 | U42: FALSE | V42: 0 | W42: 5.376819992e-06 | X42: 5.376819992e-06 | Y42: 92975.5815 | Z42: 0 | AA42: FALSE | AB42: 0 | AC42: 0.01550282734 | AD42: 0.01550282734 | AE42: 32.22553297 | AF42: 0 | AG42: TRUE | AH42: 0.7068145963 | AI42: 49.00812547 | AJ42: 0 | AK42: 0.01019396006 | AL42: 0.01019396006 | AM42: FALSE | AN42: 0 | AO42: 154977.3003 | AP42: 0 | AQ42: 3.223613216e-06 | AR42: 3.223613216e-06 | AS42: FALSE | AT42: 0 | AU42: 490081254.7 | AV42: 0
B43: 2 | C43: 14 | D43: 1749.313203 | F43: 34 | G43: 8 | H43: 3 | I43: 248.7602555 | J43: 1 | K43: 0.8153147565 | L43: 0.8153147565 | M43: 1.249868135e+12 | N43: 0 | O43: FALSE | P43: 0 | Q43: 1.642755472e-09 | R43: 1.642755472e-09 | S43: 394418547.7 | T43: 0 | U43: FALSE | V43: 0 | W43: 5.328888109e-06 | X43: 5.328888109e-06 | Y43: 124823.7959 | Z43: 0 | AA43: FALSE | AB43: 0 | AC43: 0.01536462675 | AD43: 0.01536462675 | AE43: 43.26419138 | AF43: 0 | AG43: TRUE | AH43: 0.8153147565 | AI43: 48.57124052 | AJ43: 0 | AK43: 0.01368583847 | AL43: 0.01368583847 | AM43: FALSE | AN43: 0 | AO43: 153595.7488 | AP43: 0 | AQ43: 4.327842126e-06 | AR43: 4.327842126e-06 | AS43: FALSE | AT43: 0 | AU43: 485712405.2 | AV43: 0
B44: 2 | C44: 15 | D44: 2006.578082 | F44: 35 | G44: 9 | H44: 2 | I44: 249.2734656 | J44: 1 | K44: 0.806051342 | L44: 0.806051342 | M44: 1.265634212e+12 | N44: 0 | O44: FALSE | P44: 0 | Q44: 1.585636806e-09 | R44: 1.585636806e-09 | S44: 399393818.9 | T44: 0 | U44: FALSE | V44: 0 | W44: 5.143602479e-06 | X44: 5.143602479e-06 | Y44: 126398.3472 | Z44: 0 | AA44: FALSE | AB44: 0 | AC44: 0.01483039813 | AD44: 0.01483039813 | AE44: 43.80993419 | AF44: 0 | AG44: TRUE | AH44: 0.806051342 | AI44: 46.88241675 | AJ44: 0 | AK44: 0.01385847426 | AL44: 0.01385847426 | AM44: FALSE | AN44: 0 | AO44: 148255.2191 | AP44: 0 | AQ44: 4.382434357e-06 | AR44: 4.382434357e-06 | AS44: FALSE | AT44: 0 | AU44: 468824167.5 | AV44: 0
B45: 2 | C45: 16 | D45: 2281.585368 | F45: 36 | G45: 4 | H45: 5 | I45: 264.0099264 | J45: 1 | K45: 0.6253834905 | L45: 0.6253834905 | M45: 1.914749209e+12 | N45: 0 | O45: FALSE | P45: 0 | Q45: 6.309100402e-10 | R45: 6.309100402e-10 | S45: 604233823.3 | T45: 0 | U45: FALSE | V45: 0 | W45: 2.046591272e-06 | X45: 2.046591272e-06 | Y45: 191225.1843 | Z45: 0 | AA45: FALSE | AB45: 0 | AC45: 0.005900876572 | AD45: 0.005900876572 | AE45: 66.27905285 | AF45: 0 | AG45: TRUE | AH45: 0.6253834905 | AI45: 18.65407471 | AJ45: 0 | AK45: 0.02096617046 | AL45: 0.02096617046 | AM45: FALSE | AN45: 0 | AO45: 58989.36372 | AP45: 0 | AQ45: 6.630085248e-06 | AR45: 6.630085248e-06 | AS45: FALSE | AT45: 0 | AU45: 186540747.1 | AV45: 0
B46: 2 | C46: 17 | D46: 2574.335058 | F46: 37 | G46: 7 | H46: 4 | I46: 271.2681832 | J46: 1 | K46: 0.4196327844 | L46: 0.4196327844 | M46: 1.761090793e+12 | N46: 0 | O46: FALSE | P46: 0 | Q46: 3.088471429e-10 | R46: 3.088471429e-10 | S46: 555744124.8 | T46: 0 | U46: FALSE | V46: 0 | W46: 1.00186053e-06 | X46: 1.00186053e-06 | Y46: 175879.384 | Z46: 0 | AA46: FALSE | AB46: 0 | AC46: 0.002888635073 | AD46: 0.002888635073 | AE46: 60.96016607 | AF46: 0 | AG46: TRUE | AH46: 0.4196327844 | AI46: 9.131662695 | AJ46: 0 | AK46: 0.01928363757 | AL46: 0.01928363757 | AM46: FALSE | AN46: 0 | AO46: 28876.85294 | AP46: 0 | AQ46: 6.098021628e-06 | AR46: 6.098021628e-06 | AS46: FALSE | AT46: 0 | AU46: 91316626.95 | AV46: 0
B47: 2 | C47: 18 | D47: 2884.827154 | F47: 38 | G47: 10 | H47: 1 | I47: 272.8078134 | J47: 1 | K47: 0.4129629101 | L47: 0.4129629101 | M47: 1.850978194e+12 | N47: 0 | O47: FALSE | P47: 0 | Q47: 2.845819206e-10 | R47: 2.845819206e-10 | S47: 584109723.7 | T47: 0 | U47: FALSE | V47: 0 | W47: 9.231472597e-07 | X47: 9.231472597e-07 | Y47: 184856.4003 | Z47: 0 | AA47: FALSE | AB47: 0 | AC47: 0.002661683411 | AD47: 0.002661683411 | AE47: 64.07161889 | AF47: 0 | AG47: TRUE | AH47: 0.4129629101 | AI47: 8.414214497 | AJ47: 0 | AK47: 0.02026788896 | AL47: 0.02026788896 | AM47: FALSE | AN47: 0 | AO47: 26608.08253 | AP47: 0 | AQ47: 6.409269247e-06 | AR47: 6.409269247e-06 | AS47: FALSE | AT47: 0 | AU47: 84142144.97 | AV47: 0
B48: 2 | C48: 19 | D48: 3213.061656 | F48: 39 | G48: 5 | H48: 5 | I48: 287.7642213 | J48: 1 | K48: 0.3822851064 | L48: 0.3822851064 | M48: 3.187025627e+12 | N48: 0 | O48: FALSE | P48: 0 | Q48: 1.416366722e-10 | R48: 1.416366722e-10 | S48: 1005723711 | T48: 0 | U48: FALSE | V48: 0 | W48: 4.594512033e-07 | X48: 4.594512033e-07 | Y48: 318286.8859 | Z48: 0 | AA48: FALSE | AB48: 0 | AC48: 0.001324722175 | AD48: 0.001324722175 | AE48: 110.3189071 | AF48: 0 | AG48: TRUE | AH48: 0.3822851064 | AI48: 4.187761958 | AJ48: 0 | AK48: 0.03489737574 | AL48: 0.03489737574 | AM48: FALSE | AN48: 0 | AO48: 13242.86609 | AP48: 0 | AQ48: 1.103551917e-05 | AR48: 1.103551917e-05 | AS48: FALSE | AT48: 0 | AU48: 41877619.58 | AV48: 0
B49: 2 | C49: 20 | D49: 3559.038563 | F49: 40 | G49: 9 | H49: 3 | I49: 293.6294793 | J49: 1 | K49: 0.9840666636 | L49: 0.9840666636 | M49: 1.037304489e+13 | N49: 0 | O49: FALSE | P49: 0 | Q49: 2.883562013e-10 | R49: 2.883562013e-10 | S49: 3273402357 | T49: 0 | U49: FALSE | V49: 0 | W49: 9.353905423e-07 | X49: 9.353905423e-07 | Y49: 1035951.555 | Z49: 0 | AA49: FALSE | AB49: 0 | AC49: 0.002696984109 | AD49: 0.002696984109 | AE49: 359.0629976 | AF49: 0 | AG49: TRUE | AH49: 0.9840666636 | AI49: 8.525808401 | AJ49: 0 | AK49: 0.1135830355 | AL49: 0.1135830355 | AM49: FALSE | AN49: 0 | AO49: 26960.97344 | AP49: 0 | AQ49: 3.591810958e-05 | AR49: 3.591810958e-05 | AS49: FALSE | AT49: 0 | AU49: 85258084.01 | AV49: 0
B50: 3 | C50: 1 | D50: 32.6254977 | F50: 41 | G50: 10 | H50: 2 | I50: 299.4214216 | J50: 1 | K50: 0.7359048811 | L50: 0.7359048811 | M50: 9.734992102e+12 | N50: 0 | O50: FALSE | P50: 0 | Q50: 1.718281352e-10 | R50: 1.718281352e-10 | S50: 3072053233 | T50: 0 | U50: FALSE | V50: 0 | W50: 5.573884377e-07 | X50: 5.573884377e-07 | Y50: 972229.4962 | Z50: 0 | AA50: FALSE | AB50: 0 | AC50: 0.00160710173 | AD50: 0.00160710173 | AE50: 336.9767973 | AF50: 0 | AG50: TRUE | AH50: 0.7359048811 | AI50: 5.080430911 | AJ50: 0 | AK50: 0.1065964686 | AL50: 0.1065964686 | AM50: FALSE | AN50: 0 | AO50: 16065.73317 | AP50: 0 | AQ50: 3.370876313e-05 | AR50: 3.370876313e-05 | AS50: FALSE | AT50: 0 | AU50: 50804309.11 | AV50: 0
B51: 3 | C51: 2 | D51: 59.23910594 | F51: 42 | G51: 8 | H51: 4 | I51: 310.8586748 | J51: 1 | K51: 0.7850744648 | L51: 0.7850744648 | M51: 1.605867345e+13 | N51: 0 | O51: FALSE | P51: 0 | Q51: 1.185491788e-10 | R51: 1.185491788e-10 | S51: 5067605518 | T51: 0 | U51: FALSE | V51: 0 | W51: 3.845583351e-07 | X51: 3.845583351e-07 | Y51: 1603772.847 | Z51: 0 | AA51: FALSE | AB51: 0 | AC51: 0.001108785766 | AD51: 0.001108785766 | AE51: 555.8710568 | AF51: 0 | AG51: TRUE | AH51: 0.7850744648 | AI51: 3.505135594 | AJ51: 0 | AK51: 0.1758396783 | AL51: 0.1758396783 | AM51: FALSE | AN51: 0 | AO51: 11084.21198 | AP51: 0 | AQ51: 5.560538865e-05 | AR51: 5.560538865e-05 | AS51: FALSE | AT51: 0 | AU51: 35051355.94 | AV51: 0
B52: 3 | C52: 3 | D52: 103.5951197 | F52: 43 | G52: 6 | H52: 5 | I52: 316.7972485 | J52: 1 | K52: 0.04036257097 | L52: 0.04036257097 | M52: 1.028800148e+12 | N52: 0 | O52: FALSE | P52: 0 | Q52: 4.891174288e-12 | R52: 4.891174288e-12 | S52: 324656536.8 | T52: 0 | U52: FALSE | V52: 0 | W52: 1.586634222e-08 | X52: 1.586634222e-08 | Y52: 102745.8306 | Z52: 0 | AA52: FALSE | AB52: 0 | AC52: 4.574695904e-05 | AD52: 4.574695904e-05 | AE52: 35.61192196 | AF52: 0 | AG52: TRUE | AH52: 0.04036257097 | AI52: 0.1446170211 | AJ52: 0 | AK52: 0.0112651825 | AL52: 0.0112651825 | AM52: FALSE | AN52: 0 | AO52: 457.319175 | AP52: 0 | AQ52: 3.562363496e-06 | AR52: 3.562363496e-06 | AS52: FALSE | AT52: 0 | AU52: 1446170.211 | AV52: 0
B53: 3 | C53: 4 | D53: 165.6935389 | F53: 44 | G53: 1 | H53: 6 | I53: 322.002665 | J53: 1 | K53: 0.1519510618 | L53: 0.1519510618 | M53: 4.681131244e+12 | N53: 0 | O53: FALSE | P53: 0 | Q53: 1.523502509e-11 | R53: 1.523502509e-11 | S53: 1477215824 | T53: 0 | U53: FALSE | V53: 0 | W53: 4.942046788e-08 | X53: 4.942046788e-08 | Y53: 467502.5746 | Z53: 0 | AA53: FALSE | AB53: 0 | AC53: 0.0001424925852 | AD53: 0.0001424925852 | AE53: 162.03738 | AF53: 0 | AG53: TRUE | AH53: 0.1519510618 | AI53: 0.4504529619 | AJ53: 0 | AK53: 0.0512575721 | AL53: 0.0512575721 | AM53: FALSE | AN53: 0 | AO53: 1424.457338 | AP53: 0 | AQ53: 1.620906752e-05 | AR53: 1.620906752e-05 | AS53: FALSE | AT53: 0 | AU53: 4504529.619 | AV53: 0
B54: 3 | C54: 5 | D54: 245.5343636 | F54: 45 | G54: 11 | H54: 1 | I54: 328.2345016 | J54: 1 | K54: 0.2668446407 | L54: 0.2668446407 | M54: 1.027295739e+13 | N54: 0 | O54: FALSE | P54: 0 | Q54: 2.140957252e-11 | R54: 2.140957252e-11 | S54: 3241817934 | T54: 0 | U54: FALSE | V54: 0 | W54: 6.944990802e-08 | X54: 6.944990802e-08 | Y54: 1025955.86 | Z54: 0 | AA54: FALSE | AB54: 0 | AC54: 0.0002002428823 | AD54: 0.0002002428823 | AE54: 355.5984685 | AF54: 0 | AG54: TRUE | AH54: 0.2668446407 | AI54: 0.6330153903 | AJ54: 0 | AK54: 0.1124870949 | AL54: 0.1124870949 | AM54: FALSE | AN54: 0 | AO54: 2001.770427 | AP54: 0 | AQ54: 3.557154272e-05 | AR54: 3.557154272e-05 | AS54: FALSE | AT54: 0 | AU54: 6330153.903 | AV54: 0
B55: 3 | C55: 6 | D55: 343.1175938 | F55: 46 | G55: 2 | H55: 6 | I55: 329.9207633 | J55: 1 | K55: 0.2646214022 | L55: 0.2646214022 | M55: 1.081275493e+13 | N55: 0 | O55: FALSE | P55: 0 | Q55: 2.000322806e-11 | R55: 2.000322806e-11 | S55: 3412160831 | T55: 0 | U55: FALSE | V55: 0 | W55: 6.48879069e-08 | X55: 6.48879069e-08 | Y55: 1079865.208 | Z55: 0 | AA55: FALSE | AB55: 0 | AC55: 0.0001870893983 | AD55: 0.0001870893983 | AE55: 374.2835626 | AF55: 0 | AG55: TRUE | AH55: 0.2646214022 | AI55: 0.5914340981 | AJ55: 0 | AK55: 0.1183977839 | AL55: 0.1183977839 | AM55: FALSE | AN55: 0 | AO55: 1870.278836 | AP55: 0 | AQ55: 3.74406667e-05 | AR55: 3.74406667e-05 | AS55: FALSE | AT55: 0 | AU55: 5914340.981 | AV55: 0
B56: 3 | C56: 7 | D56: 458.4432295 | F56: 47 | G56: 3 | H56: 6 | I56: 343.1175938 | J56: 1 | K56: 0.3088847212 | L56: 0.3088847212 | M56: 1.991361789e+13 | N56: 0 | O56: FALSE | P56: 0 | Q56: 1.479889189e-11 | R56: 1.479889189e-11 | S56: 6284103117 | T56: 0 | U56: FALSE | V56: 0 | W56: 4.800570768e-08 | X56: 4.800570768e-08 | Y56: 1988764.498 | Z56: 0 | AA56: FALSE | AB56: 0 | AC56: 0.0001384134486 | AD56: 0.0001384134486 | AE56: 689.3099766 | AF56: 0 | AG56: TRUE | AH56: 0.3088847212 | AI56: 0.4375578407 | AJ56: 0 | AK56: 0.2180506487 | AL56: 0.2180506487 | AM56: FALSE | AN56: 0 | AO56: 1383.679385 | AP56: 0 | AQ56: 6.895366953e-05 | AR56: 6.895366953e-05 | AS56: FALSE | AT56: 0 | AU56: 4375578.407 | AV56: 0
B57: 3 | C57: 8 | D57: 591.5112707 | F57: 48 | G57: 10 | H57: 3 | I57: 343.7774354 | J57: 1 | K57: 0.898428454 | L57: 0.898428454 | M57: 5.922954043e+13 | N57: 0 | O57: FALSE | P57: 0 | Q57: 4.209351048e-11 | R57: 4.209351048e-11 | S57: 1.86909552e+10 | T57: 0 | U57: FALSE | V57: 0 | W57: 1.365459506e-07 | X57: 1.365459506e-07 | Y57: 5915228.862 | Z57: 0 | AA57: FALSE | AB57: 0 | AC57: 0.0003936989333 | AD57: 0.0003936989333 | AE57: 2050.23082 | AF57: 0 | AG57: TRUE | AH57: 0.898428454 | AI57: 1.244575992 | AJ57: 0 | AK57: 0.6485531554 | AL57: 0.6485531554 | AM57: FALSE | AN57: 0 | AO57: 3935.694857 | AP57: 0 | AQ57: 0.0002050905155 | AR57: 0.0002050905155 | AS57: FALSE | AT57: 0 | AU57: 12445759.92 | AV57: 0
B58: 3 | C58: 9 | D58: 742.3217174 | F58: 49 | G58: 7 | H58: 5 | I58: 351.1090079 | J58: 1 | K58: 0.3119940534 | L58: 0.3119940534 | M58: 2.628789003e+13 | N58: 0 | O58: FALSE | P58: 0 | Q58: 1.143729748e-11 | R58: 1.143729748e-11 | S58: 8295620244 | T58: 0 | U58: FALSE | V58: 0 | W58: 3.710112646e-08 | X58: 3.710112646e-08 | Y58: 2625360.33 | Z58: 0 | AA58: FALSE | AB58: 0 | AC58: 0.0001069725895 | AD58: 0.0001069725895 | AE58: 909.9554367 | AF58: 0 | AG58: TRUE | AH58: 0.3119940534 | AI58: 0.3381658049 | AJ58: 0 | AK58: 0.2878478189 | AL58: 0.2878478189 | AM58: FALSE | AN58: 0 | AO58: 1069.37417 | AP58: 0 | AQ58: 9.102547272e-05 | AR58: 9.102547272e-05 | AS58: FALSE | AT58: 0 | AU58: 3381658.049 | AV58: 0
B59: 3 | C59: 10 | D59: 910.8745696 | F59: 50 | G59: 11 | H59: 2 | I59: 354.8481099 | J59: 1 | K59: 0.4755203646 | L59: 0.4755203646 | M59: 4.531768071e+13 | N59: 0 | O59: FALSE | P59: 0 | Q59: 1.541193183e-11 | R59: 1.541193183e-11 | S59: 1.430081567e+10 | T59: 0 | U59: FALSE | V59: 0 | W59: 4.999433067e-08 | X59: 4.999433067e-08 | Y59: 4525857.384 | Z59: 0 | AA59: FALSE | AB59: 0 | AC59: 0.0001441471869 | AD59: 0.0001441471869 | AE59: 1568.671731 | AF59: 0 | AG59: FALSE | AH59: 0 | AI59: 0.4556835516 | AJ59: 0.4556835516 | AK59: 0.4962207137 | AL59: 0 | AM59: TRUE | AN59: 0.4755203646 | AO59: 1440.997915 | AP59: 0 | AQ59: 0.0001569187677 | AR59: 0.0001569187677 | AS59: FALSE | AT59: 0 | AU59: 4556835.516 | AV59: 0
B60: 3 | C60: 11 | D60: 1097.169827 | F60: 51 | G60: 9 | H60: 4 | I60: 355.7278986 | J60: 1 | K60: 0.9475673084 | L60: 0.9475673084 | M60: 9.294207919e+13 | N60: 0 | O60: FALSE | P60: 0 | Q60: 2.983968727e-11 | R60: 2.983968727e-11 | S60: 2.932955794e+10 | T60: 0 | U60: FALSE | V60: 0 | W60: 9.67961193e-08 | X60: 9.67961193e-08 | Y60: 9282085.684 | Z60: 0 | AA60: FALSE | AB60: 0 | AC60: 0.000279089411 | AD60: 0.000279089411 | AE60: 3217.190508 | AF60: 0 | AG60: FALSE | AH60: 0 | AI60: 0.8822680258 | AJ60: 0.8822680258 | AK60: 1.017699585 | AL60: 0 | AM60: TRUE | AN60: 0.9475673084 | AO60: 2789.976468 | AP60: 0 | AQ60: 0.0003218248663 | AR60: 0.0003218248663 | AS60: FALSE | AT60: 0 | AU60: 8822680.258 | AV60: 0
B61: 3 | C61: 12 | D61: 1301.20749 | F61: 52 | G61: 4 | H61: 6 | I61: 361.5931566 | J61: 1 | K61: 0.2732985512 | L61: 0.2732985512 | M61: 3.242022442e+13 | N61: 0 | O61: FALSE | P61: 0 | Q61: 7.116151006e-12 | R61: 7.116151006e-12 | S61: 1.023078953e+10 | T61: 0 | U61: FALSE | V61: 0 | W61: 2.308388139e-08 | X61: 2.308388139e-08 | Y61: 3237793.942 | Z61: 0 | AA61: FALSE | AB61: 0 | AC61: 6.655707799e-05 | AD61: 6.655707799e-05 | AE61: 1122.22622 | AF61: 0 | AG61: FALSE | AH61: 0 | AI61: 0.210402758 | AJ61: 0.210402758 | AK61: 0.3549958128 | AL61: 0 | AM61: TRUE | AN61: 0.2732985512 | AO61: 665.3519412 | AP61: 0 | AQ61: 0.0001122595328 | AR61: 0.0001122595328 | AS61: FALSE | AT61: 0 | AU61: 2104027.58 | AV61: 0
B62: 3 | C62: 13 | D62: 1522.987559 | F62: 53 | G62: 5 | H62: 6 | I62: 385.3474515 | J62: 1 | K62: 0.1670622383 | L62: 0.1670622383 | M62: 4.15270087e+13 | N62: 0 | O62: FALSE | P62: 0 | Q62: 2.075928809e-12 | R62: 2.075928809e-12 | S62: 1.310460039e+10 | T62: 0 | U62: FALSE | V62: 0 | W62: 6.734046869e-09 | X62: 6.734046869e-09 | Y62: 4147284.591 | Z62: 0 | AA62: FALSE | AB62: 0 | AC62: 1.941607978e-05 | AD62: 1.941607978e-05 | AE62: 1437.457601 | AF62: 0 | AG62: FALSE | AH62: 0 | AI62: 0.06137884742 | AJ62: 0.06137884742 | AK62: 0.4547135151 | AL62: 0 | AM62: TRUE | AN62: 0.1670622383 | AO62: 194.096958 | AP62: 0 | AQ62: 0.000143793039 | AR62: 0.000143793039 | AS62: FALSE | AT62: 0 | AU62: 613788.4742 | AV62: 0
B63: 3 | C63: 14 | D63: 1762.510033 | F63: 54 | G63: 12 | H63: 1 | I63: 388.9399221 | J63: 1 | K63: 0.05174462261 | L63: 0.05174462261 | M63: 1.432760966e+13 | N63: 0 | O63: FALSE | P63: 0 | Q63: 5.77222458e-13 | R63: 5.77222458e-13 | S63: 4521336959 | T63: 0 | U63: FALSE | V63: 0 | W63: 1.872435639e-09 | X63: 1.872435639e-09 | Y63: 1430892.247 | Z63: 0 | AA63: FALSE | AB63: 0 | AC63: 5.398738746e-06 | AD63: 5.398738746e-06 | AE63: 495.9502757 | AF63: 0 | AG63: FALSE | AH63: 0 | AI63: 0.01706669758 | AJ63: 0.01706669758 | AK63: 0.1568848312 | AL63: 0 | AM63: TRUE | AN63: 0.05174462261 | AO63: 53.96963649 | AP63: 0 | AQ63: 4.96113397e-05 | AR63: 4.96113397e-05 | AS63: FALSE | AT63: 0 | AU63: 170666.9758 | AV63: 0
B64: 3 | C64: 15 | D64: 2019.774913 | F64: 55 | G64: 8 | H64: 5 | I64: 390.6994995 | J64: 1 | K64: 0.5836973983 | L64: 0.5836973983 | M64: 1.703289863e+14 | N64: 0 | O64: FALSE | P64: 0 | Q64: 6.17836365e-12 | R64: 6.17836365e-12 | S64: 5.375039933e+10 | T64: 0 | U64: FALSE | V64: 0 | W64: 2.004181946e-08 | X64: 2.004181946e-08 | Y64: 17010682.98 | Z64: 0 | AA64: FALSE | AB64: 0 | AC64: 5.778599006e-05 | AD64: 5.778599006e-05 | AE64: 5895.938659 | AF64: 0 | AG64: FALSE | AH64: 0 | AI64: 0.1826752623 | AJ64: 0.1826752623 | AK64: 1.865072744 | AL64: 0 | AM64: TRUE | AN64: 0.5836973983 | AO64: 577.6699011 | AP64: 0 | AQ64: 0.0005897877873 | AR64: 0.0005897877873 | AS64: FALSE | AT64: 0 | AU64: 1826752.623 | AV64: 0
B65: 3 | C65: 16 | D65: 2294.782198 | F65: 56 | G65: 11 | H65: 3 | I65: 399.2041236 | J65: 1 | K65: 0.580538378 | L65: 0.580538378 | M65: 2.176040604e+14 | N65: 0 | O65: FALSE | P65: 0 | Q65: 4.783892246e-12 | R65: 4.783892246e-12 | S65: 6.866890597e+10 | T65: 0 | U65: FALSE | V65: 0 | W65: 1.551833303e-08 | X65: 1.551833303e-08 | Y65: 21732024.41 | Z65: 0 | AA65: FALSE | AB65: 0 | AC65: 4.474355435e-05 | AD65: 4.474355435e-05 | AE65: 7532.365571 | AF65: 0 | AG65: FALSE | AH65: 0 | AI65: 0.1414450202 | AJ65: 0.1414450202 | AK65: 2.382726574 | AL65: 0 | AM65: TRUE | AN65: 0.580538378 | AO65: 447.2884274 | AP65: 0 | AQ65: 0.0007534843017 | AR65: 0.0007534843017 | AS65: FALSE | AT65: 0 | AU65: 1414450.202 | AV65: 0
B66: 3 | C66: 17 | D66: 2587.531889 | F66: 57 | G66: 10 | H66: 4 | I66: 405.8758546 | J66: 1 | K66: 0.8651054481 | L66: 0.8651054481 | M66: 3.93184814e+14 | N66: 0 | O66: FALSE | P66: 0 | Q66: 5.879330464e-12 | R66: 5.879330464e-12 | S66: 1.240765957e+11 | T66: 0 | U66: FALSE | V66: 0 | W66: 1.907179415e-08 | X66: 1.907179415e-08 | Y66: 39267199.15 | Z66: 0 | AA66: FALSE | AB66: 0 | AC66: 5.498914454e-05 | AD66: 5.498914454e-05 | AE66: 13610.09418 | AF66: 0 | AG66: FALSE | AH66: 0 | AI66: 0.1738337683 | AJ66: 0.1738337683 | AK66: 4.305305257 | AL66: 0 | AM66: TRUE | AN66: 0.8651054481 | AO66: 549.7106419 | AP66: 0 | AQ66: 0.001361457063 | AR66: 0.001361457063 | AS66: FALSE | AT66: 0 | AU66: 1738337.683 | AV66: 0
B67: 3 | C67: 18 | D67: 2898.023985 | F67: 58 | G67: 6 | H67: 6 | I67: 414.3804787 | J67: 1 | K67: 0.01763882855 | L67: 0.01763882855 | M67: 1.020255059e+13 | N67: 0 | O67: FALSE | P67: 0 | Q67: 9.419269742e-14 | R67: 9.419269742e-14 | S67: 3219599791 | T67: 0 | U67: FALSE | V67: 0 | W67: 3.055490325e-10 | X67: 3.055490325e-10 | Y67: 1018924.363 | Z67: 0 | AA67: FALSE | AB67: 0 | AC67: 8.809805614e-07 | AD67: 8.809805614e-07 | AE67: 353.1613367 | AF67: 0 | AG67: FALSE | AH67: 0 | AI67: 0.002784989147 | AJ67: 0.002784989147 | AK67: 0.1117161526 | AL67: 0 | AM67: TRUE | AN67: 0.01763882855 | AO67: 8.806908963 | AP67: 0 | AQ67: 3.532774938e-05 | AR67: 3.532774938e-05 | AS67: FALSE | AT67: 0 | AU67: 27849.89147 | AV67: 0
B68: 3 | C68: 19 | D68: 3226.258486 | F68: 59 | G68: 12 | H68: 2 | I68: 415.5535303 | J68: 1 | K68: 0.09220954091 | L68: 0.09220954091 | M68: 5.511742273e+13 | N68: 0 | O68: FALSE | P68: 0 | Q68: 4.76485107e-13 | R68: 4.76485107e-13 | S68: 1.739330191e+10 | T68: 0 | U68: FALSE | V68: 0 | W68: 1.545656589e-09 | X68: 1.545656589e-09 | Y68: 5504553.426 | Z68: 0 | AA68: FALSE | AB68: 0 | AC68: 4.456546299e-06 | AD68: 4.456546299e-06 | AE68: 1907.889847 | AF68: 0 | AG68: FALSE | AH68: 0 | AI68: 0.0140882031 | AJ68: 0.0140882031 | AK68: 0.6035261825 | AL68: 0 | AM68: TRUE | AN68: 0.09220954091 | AO68: 44.55080993 | AP68: 0 | AQ68: 0.0001908517364 | AR68: 0.0001908517364 | AS68: FALSE | AT68: 0 | AU68: 140882.031 | AV68: 0
B69: 3 | C69: 20 | D69: 3572.235394 | F69: 60 | G69: 9 | H69: 5 | I69: 435.5687233 | J69: 1 | K69: 0.7045096961 | L69: 0.7045096961 | M69: 7.27664391e+14 | N69: 0 | O69: FALSE | P69: 0 | Q69: 2.106829253e-12 | R69: 2.106829253e-12 | S69: 2.296276897e+11 | T69: 0 | U69: FALSE | V69: 0 | W69: 6.834283946e-09 | X69: 6.834283946e-09 | Y69: 72671531.4 | Z69: 0 | AA69: FALSE | AB69: 0 | AC69: 1.97050904e-05 | AD69: 1.97050904e-05 | AE69: 25188.10631 | AF69: 0 | AG69: FALSE | AH69: 0 | AI69: 0.06229247875 | AJ69: 0.06229247875 | AK69: 7.96779839 | AL69: 0 | AM69: TRUE | AN69: 0.7045096961 | AO69: 196.986114 | AP69: 0 | AQ69: 0.002519639085 | AR69: 0.002519639085 | AS69: FALSE | AT69: 0 | AU69: 622924.7875 | AV69: 0
B70: 4 | C70: 1 | D70: 51.10106045 | F70: 61 | G70: 1 | H70: 7 | I70: 437.3283007 | J70: 1 | K70: 0.07692788716 | L70: 0.07692788716 | M70: 8.32693502e+13 | N70: 0 | O70: FALSE | P70: 0 | Q70: 2.195173983e-13 | R70: 2.195173983e-13 | S70: 2.627715296e+10 | T70: 0 | U70: FALSE | V70: 0 | W70: 7.120862924e-10 | X70: 7.120862924e-10 | Y70: 8316074.378 | Z70: 0 | AA70: FALSE | AB70: 0 | AC70: 2.053137516e-06 | AD70: 2.053137516e-06 | AE70: 2882.368948 | AF70: 0 | AG70: FALSE | AH70: 0 | AI70: 0.006490456146 | AJ70: 0.006490456146 | AK70: 0.9117848869 | AL70: 0 | AM70: TRUE | AN70: 0.07692788716 | AO70: 20.52462448 | AP70: 0 | AQ70: 0.0002883316979 | AR70: 0.0002883316979 | AS70: FALSE | AT70: 0 | AU70: 64904.56146 | AV70: 0
B71: 4 | C71: 2 | D71: 77.71466869 | F71: 62 | G71: 2 | H71: 7 | I71: 445.246399 | J71: 1 | K71: 0.133969221 | L71: 0.133969221 | M71: 1.786535755e+14 | N71: 0 | O71: FALSE | P71: 0 | Q71: 3.103022073e-13 | R71: 3.103022073e-13 | S71: 5.637737438e+10 | T71: 0 | U71: FALSE | V71: 0 | W71: 1.006580572e-09 | X71: 1.006580572e-09 | Y71: 17842056.15 | Z71: 0 | AA71: FALSE | AB71: 0 | AC71: 2.902244232e-06 | AD71: 2.902244232e-06 | AE71: 6184.094355 | AF71: 0 | AG71: FALSE | AH71: 0 | AI71: 0.009174684483 | AJ71: 0.009174684483 | AK71: 1.956225547 | AL71: 0 | AM71: TRUE | AN71: 0.133969221 | AO71: 29.01289978 | AP71: 0 | AQ71: 0.0006186128345 | AR71: 0.0006186128345 | AS71: FALSE | AT71: 0 | AU71: 91746.84483 | AV71: 0
B72: 4 | C72: 3 | D72: 122.0706824 | F72: 63 | G72: 7 | H72: 6 | I72: 448.6922381 | J72: 1 | K72: 0.1363443776 | L72: 0.1363443776 | M72: 1.988712059e+14 | N72: 0 | O72: FALSE | P72: 0 | Q72: 2.887281137e-13 | R72: 2.887281137e-13 | S72: 6.275741416e+10 | T72: 0 | U72: FALSE | V72: 0 | W72: 9.365969785e-10 | X72: 9.365969785e-10 | Y72: 19861182.25 | Z72: 0 | AA72: FALSE | AB72: 0 | AC72: 2.700462591e-06 | AD72: 2.700462591e-06 | AE72: 6883.927727 | AF72: 0 | AG72: FALSE | AH72: 0 | AI72: 0.008536804711 | AJ72: 0.008536804711 | AK72: 2.17760508 | AL72: 0 | AM72: TRUE | AN72: 0.1363443776 | AO72: 26.99574683 | AP72: 0 | AQ72: 0.0006886191897 | AR72: 0.0006886191897 | AS72: FALSE | AT72: 0 | AU72: 85368.04711 | AV72: 0
B73: 4 | C73: 4 | D73: 184.1691016 | F73: 64 | G73: 13 | H73: 1 | I73: 454.9240747 | J73: 1 | K73: 0.1767318476 | L73: 0.1767318476 | M73: 3.026202196e+14 | N73: 0 | O73: FALSE | P73: 0 | Q73: 3.187999219e-13 | R73: 3.187999219e-13 | S73: 9.549729619e+10 | T73: 0 | U73: FALSE | V73: 0 | W73: 1.034146068e-09 | X73: 1.034146068e-09 | Y73: 30222551.86 | Z73: 0 | AA73: FALSE | AB73: 0 | AC73: 2.98172302e-06 | AD73: 2.98172302e-06 | AE73: 10475.20032 | AF73: 0 | AG73: FALSE | AH73: 0 | AI73: 0.009425935841 | AJ73: 0.009425935841 | AK73: 3.313638717 | AL73: 0 | AM73: TRUE | AN73: 0.1767318476 | AO73: 29.80742634 | AP73: 0 | AQ73: 0.001047864569 | AR73: 0.001047864569 | AS73: FALSE | AT73: 0 | AU73: 94259.35841 | AV73: 0
B74: 4 | C74: 5 | D74: =3.1416/2*SQRT($H$2/$I$2)*(B74^2/$C$2^2+C74^2/$D$2^2) -> 264.0099264 | F74: 65 | G74: 3 | H74: 7 | I74: 458.4432295 | J74: 1 | K74: =ABS(SIN(G74*3.1416*$J$2/$C$2)*SIN(H74*3.1416*$K$2/$D$2))*(1/F74^$M$2)+(1-1/F74^$M$2) -> 0.1563783017 | L74: 0.1563783017 | M74: 2.92866833e+14 | N74: 0 | O74: FALSE | P74: 0 | Q74: 2.579106684e-13 | R74: 2.579106684e-13 | S74: 9.241943825e+10 | T74: 0 | U74: =AND($I74>44.548,$I74<89.095) -> FALSE | V74: 0 | W74: 8.366291375e-10 | X74: =IF($I74>89.095,W74,0) -> 8.366291375e-10 | Y74: 29248485.32 | Z74: 0 | AA74: FALSE | AB74: 0 | AC74: 2.412228247e-06 | AD74: 2.412228247e-06 | AE74: 10137.5868 | AF74: 0 | AG74: FALSE | AH74: 0 | AI74: 0.007625627378 | AJ74: 0.007625627378 | AK74: 3.206840832 | AL74: 0 | AM74: TRUE | AN74: 0.1563783017 | AO74: 24.1143511 | AP74: 0 | AQ74: 0.001014092112 | AR74: 0.001014092112 | AS74: FALSE | AT74: 0 | AU74: 76256.27378 | AV74: 0
B75: 4 | C75: 6 | D75: 361.5931566 | F75: 66 | G75: 12 | H75: 3 | I75: 459.909544 | J75: =IF(ABS(I75-I74)>0.0001,1,$L$2) -> 1 | K75: 0.1125738902 | L75: =$J75*$K75 -> 0.1125738902 | M75: =10^(LOG10($I75/22.27)/LOG10(2)*70/20)*$L75 -> 2.188043903e+14 | N75: =IF($I75<22.27,M75,0) -> 0 | O75: =AND($I75>22.27,$I75<44.45) -> FALSE | P75: =IF($O75=TRUE,$L75,0) -> 0 | Q75: =10^(LOG10(44.45/$I75)/LOG10(2)*70/20)*$L75 -> 1.788981419e-13 | R75: =IF($I75>44.45,Q75,0) -> 1.788981419e-13 | S75: =10^(LOG10($I75/44.548)/LOG10(2)*70/20)*$L75 -> 6.904769183e+10 | T75: =IF($I75<44.528,S75,0) -> 0 | U75: FALSE | V75: =IF($U75=TRUE,$L75,0) -> 0 | W75: =10^(LOG10(89.095/$I75)/LOG10(2)*70/20)*$L75 -> 5.803226332e-10 | X75: 5.803226332e-10 | Y75: =10^(LOG10($I75/89.09)/LOG10(2)*70/20)*$L75 -> 21851900.84 | Z75: =IF($I75<89.09,Y75,0) -> 0 | AA75: =AND($I75>89.09,$I75<176.78) -> FALSE | AB75: =IF($AA75=TRUE,$L75,0) -> 0 | AC75: =10^(LOG10(176.78/$I75)/LOG10(2)*70/20)*$L75 -> 1.673227223e-06 | AD75: =IF($I75>176.78,AC75,0) -> 1.673227223e-06 | AE75: =10^(LOG10($I75/176.78)/LOG10(2)*70/20)*$L75 -> 7573.914996 | AF75: =IF($I75<176.78,AE75,0) -> 0 | AG75: =AND($I75>176.78,$I75<353.55) -> FALSE | AH75: =IF($AG75=TRUE,$L75,0) -> 0 | AI75: =10^(LOG10(353.55/$I75)/LOG10(2)*70/20)*$L75 -> 0.005289469326 | AJ75: =IF($I75>353.55,AI75,0) -> 0.005289469326 | AK75: =10^(LOG10($I75/353.55)/LOG10(2)*70/20)*$L75 -> 2.395869978 | AL75: =IF($I75<353.55,AK75,0) -> 0 | AM75: =AND($I75>353.55,$I75<707.1) -> TRUE | AN75: =IF($AM75=TRUE,$L75,0) -> 0.1125738902 | AO75: =10^(LOG10(707.1/$I75)/LOG10(2)*70/20)*$L75 -> 16.72677068 | AP75: =IF($I75>707.1,AO75,0) -> 0 | AQ75: =10^(LOG10($I75/707.1)/LOG10(2)*70/20)*$L75 -> 0.0007576406108 | AR75: =IF($I75<707.1,AQ75,0) -> 0.0007576406108 | AS75: =AND($I75>707.1,$I75<1414.2) -> FALSE | AT75: =IF($AS75=TRUE,$L75,0) -> 0 | AU75: =10^(LOG10(1414.2/$I75)/LOG10(2)*70/20)*$L75 -> 52894.69326 | AV75: =IF($I75>1414.2,AU75,0) -> 0
B76: 4 | C76: 7 | D76: 476.9187923 | F76: 67 | G76: 11 | H76: 4 | I76: 461.3025428 | J76: 1 | K76: 0.5590060192 | L76: 0.5590060192 | M76: 1.125396915e+15 | N76: 0 | O76: FALSE | P76: 0 | Q76: 8.57657247e-13 | R76: 8.57657247e-13 | S76: 3.551393976e+11 | T76: 0 | U76: FALSE | V76: 0 | W76: 2.782130136e-09 | X76: 2.782130136e-09 | Y76: 112392908.4 | Z76: 0 | AA76: FALSE | AB76: 0 | AC76: 8.0216342e-06 | AD76: 8.0216342e-06 | AE76: 38955.61949 | AF76: 0 | AG76: FALSE | AH76: 0 | AI76: 0.02535829411 | AJ76: 0.02535829411 | AK76: 12.32290028 | AL76: 0 | AM76: TRUE | AN76: 0.5590060192 | AO76: 80.18996698 | AP76: 0 | AQ76: 0.003896843225 | AR76: 0.003896843225 | AS76: FALSE | AT76: 0 | AU76: 253582.9411 | AV76: 0
B77: 4 | C77: 8 | D77: 609.9868335 | F77: 68 | G77: 4 | H77: 7 | I77: 476.9187923 | J77: 1 | K77: 0.1383621796 | L77: 0.1383621796 | M77: 4.102163655e+14 | N77: 0 | O77: FALSE | P77: 0 | Q77: 1.441479003e-13 | R77: 1.441479003e-13 | S77: 1.294512105e+11 | T77: 0 | U77: FALSE | V77: 0 | W77: 4.67597305e-10 | X77: 4.67597305e-10 | Y77: 40968132.92 | Z77: 0 | AA77: FALSE | AB77: 0 | AC77: 1.348209591e-06 | AD77: 1.348209591e-06 | AE77: 14199.64142 | AF77: 0 | AG77: FALSE | AH77: 0 | AI77: 0.004262011268 | AJ77: 0.004262011268 | AK77: 4.491797781 | AL77: 0 | AM77: TRUE | AN77: 0.1383621796 | AO77: 13.47766302 | AP77: 0 | AQ77: 0.001420431178 | AR77: 0.001420431178 | AS77: FALSE | AT77: 0 | AU77: 42620.11268 | AV77: 0
B78: 4 | C78: 9 | D78: 760.7972802 | F78: 69 | G78: 13 | H78: 2 | I78: 481.537683 | J78: 1 | K78: 0.3149382816 | L78: 0.3149382816 | M78: 1.044452723e+15 | N78: 0 | O78: FALSE | P78: 0 | Q78: 2.933246989e-13 | R78: 2.933246989e-13 | S78: 3.295959907e+11 | T78: 0 | U78: FALSE | V78: 0 | W78: 9.515077116e-10 | X78: 9.515077116e-10 | Y78: 104309046.6 | Z78: 0 | AA78: FALSE | AB78: 0 | AC78: 2.74345427e-06 | AD78: 2.74345427e-06 | AE78: 36153.73593 | AF78: 0 | AG78: FALSE | AH78: 0 | AI78: 0.008672711637 | AJ78: 0.008672711637 | AK78: 11.43657547 | AL78: 0 | AM78: TRUE | AN78: 0.3149382816 | AO78: 27.42552226 | AP78: 0 | AQ78: 0.003616562713 | AR78: 0.003616562713 | AS78: FALSE | AT78: 0 | AU78: 86727.11637 | AV78: 0
B79: 4 | C79: 10 | D79: 929.3501323 | F79: 70 | G79: 10 | H79: 5 | I79: 485.7166793 | J79: 1 | K79: 0.6431998771 | L79: 0.6431998771 | M79: 2358530147989477 | N79: 0 | O79: FALSE | P79: 0 | Q79: 5.417974876e-13 | R79: 5.417974876e-13 | S79: 7.442769436e+11 | T79: 0 | U79: FALSE | V79: 0 | W79: 1.757521577e-09 | X79: 1.757521577e-09 | Y79: 235545396.8 | Z79: 0 | AA79: FALSE | AB79: 0 | AC79: 5.067410403e-06 | AD79: 5.067410403e-06 | AE79: 81640.53215 | AF79: 0 | AG79: FALSE | AH79: 0 | AI79: 0.01601928986 | AJ79: 0.01601928986 | AK79: 25.82549448 | AL79: 0 | AM79: TRUE | AN79: 0.6431998771 | AO79: 50.65744246 | AP79: 0 | AQ79: 0.008166738427 | AR79: 0.008166738427 | AS79: FALSE | AT79: 0 | AU79: 160192.8986 | AV79: 0
B80: 4 | C80: 11 | D80: 1115.64539 | F80: 71 | G80: 8 | H80: 6 | I80: 488.2827297 | J80: 1 | K80: 0.2550813312 | L80: 0.2550813312 | M80: 994443660771172 | N80: 0 | O80: FALSE | P80: 0 | Q80: 2.020987742e-13 | R80: 2.020987742e-13 | S80: 3.138147244e+11 | T80: 0 | U80: FALSE | V80: 0 | W80: 6.555825092e-10 | X80: 6.555825092e-10 | Y80: 99314662.93 | Z80: 0 | AA80: FALSE | AB80: 0 | AC80: 1.890221815e-06 | AD80: 1.890221815e-06 | AE80: 34422.67199 | AF80: 0 | AG80: FALSE | AH80: 0 | AI80: 0.005975440857 | AJ80: 0.005975440857 | AK80: 10.88898495 | AL80: 0 | AM80: TRUE | AN80: 0.2550813312 | AO80: 18.89600313 | AP80: 0 | AQ80: 0.003443399384 | AR80: 0.003443399384 | AS80: FALSE | AT80: 0 | AU80: 59754.40857 | AV80: 0
B81: 4 | C81: 12 | D81: 1319.683053 | F81: 72 | G81: 5 | H81: 7 | I81: 500.6730872 | J81: 1 | K81: 0.08457818501 | L81: 0.08457818501 | M81: 4.412578232e+14 | N81: 0 | O81: FALSE | P81: 0 | Q81: 5.007383081e-14 | R81: 5.007383081e-14 | S81: 1.392469052e+11 | T81: 0 | U81: FALSE | V81: 0 | W81: 1.624330864e-10 | X81: 1.624330864e-10 | Y81: 44068230.01 | Z81: 0 | AA81: FALSE | AB81: 0 | AC81: 4.683385526e-07 | AD81: 4.683385526e-07 | AE81: 15274.14162 | AF81: 0 | AG81: FALSE | AH81: 0 | AI81: 0.001480529586 | AJ81: 0.001480529586 | AK81: 4.831696338 | AL81: 0 | AM81: TRUE | AN81: 0.08457818501 | AO81: 4.681845636 | AP81: 0 | AQ81: 0.001527916539 | AR81: 0.001527916539 | AS81: FALSE | AT81: 0 | AU81: 14805.29586 | AV81: 0
B82: 4 | C82: 13 | D82: 1541.463122 | F82: 73 | G82: 12 | H82: 4 | I82: 522.0079633 | J82: 1 | K82: 0.1083984877 | L82: 0.1083984877 | M82: 9.186867565e+14 | N82: 0 | O82: FALSE | P82: 0 | Q82: 3.950622239e-14 | R82: 3.950622239e-14 | S82: 2.899082599e+11 | T82: 0 | U82: FALSE | V82: 0 | W82: 1.281531197e-10 | X82: 1.281531197e-10 | Y82: 91748853.31 | Z82: 0 | AA82: FALSE | AB82: 0 | AC82: 3.695001304e-07 | AD82: 3.695001304e-07 | AE82: 31800.34639 | AF82: 0 | AG82: FALSE | AH82: 0 | AI82: 0.001168077819 | AJ82: 0.001168077819 | AK82: 10.05946003 | AL82: 0 | AM82: TRUE | AN82: 0.1083984877 | AO82: 3.693786393 | AP82: 0 | AQ82: 0.003181080574 | AR82: 0.003181080574 | AS82: FALSE | AT82: 0 | AU82: 11680.77819 | AV82: 0
B83: 4 | C83: 14 | D83: 1780.985596 | F83: 74 | G83: 13 | H83: 3 | I83: 525.8936967 | J83: 1 | K83: 0.3844919645 | L83: 0.3844919645 | M83: 3552052400328776 | N83: 0 | O83: FALSE | P83: 0 | Q83: 1.285528429e-13 | R83: 1.285528429e-13 | S83: 1.120914526e+12 | T83: 0 | U83: FALSE | V83: 0 | W83: 4.170089385e-10 | X83: 4.170089385e-10 | Y83: 354741953.5 | Z83: 0 | AA83: FALSE | AB83: 0 | AC83: 1.202349638e-06 | AD83: 1.202349638e-06 | AE83: 122954.3105 | AF83: 0 | AG83: FALSE | AH83: 0 | AI83: 0.003800913256 | AJ83: 0.003800913256 | AK83: 38.89435535 | AL83: 0 | AM83: TRUE | AN83: 0.3844919645 | AO83: 12.01954308 | AP83: 0 | AQ83: 0.0122994751 | AR83: 0.0122994751 | AS83: FALSE | AT83: 0 | AU83: 38009.13256 | AV83: 0
B84: 4 | C84: 15 | D84: 2038.250476 | F84: 75 | G84: 14 | H84: 1 | I84: 526.1869596 | J84: 1 | K84: 0.3595215396 | L84: 0.3595215396 | M84: 3342966508481423 | N84: 0 | O84: FALSE | P84: 0 | Q84: 1.194274934e-13 | R84: 1.194274934e-13 | S84: 1.054933683e+12 | T84: 0 | U84: FALSE | V84: 0 | W84: 3.874074751e-10 | X84: 3.874074751e-10 | Y84: 333860634.9 | Z84: 0 | AA84: FALSE | AB84: 0 | AC84: 1.117000607e-06 | AD84: 1.117000607e-06 | AE84: 115716.8014 | AF84: 0 | AG84: FALSE | AH84: 0 | AI84: 0.003531104663 | AJ84: 0.003531104663 | AK84: 36.60490123 | AL84: 0 | AM84: TRUE | AN84: 0.3595215396 | AO84: 11.16633339 | AP84: 0 | AQ84: 0.01157548614 | AR84: 0.01157548614 | AS84: FALSE | AT84: 0 | AU84: 35311.04663 | AV84: 0
B85: 4 | C85: 16 | D85: 2313.257761 | F85: 76 | G85: 6 | H85: 7 | I85: 529.7061144 | J85: 1 | K85: 0.008929965981 | L85: 0.008929965981 | M85: 8.972536823e+13 | N85: 0 | O85: FALSE | P85: 0 | Q85: 2.745180295e-15 | R85: 2.745180295e-15 | S85: 2.831446649e+10 | T85: 0 | U85: FALSE | V85: 0 | W85: 8.905012874e-12 | X85: 8.905012874e-12 | Y85: 8960834.137 | Z85: 0 | AA85: FALSE | AB85: 0 | AC85: 2.567556237e-08 | AD85: 2.567556237e-08 | AE85: 3105.844043 | AF85: 0 | AG85: FALSE | AH85: 0 | AI85: 8.116656106e-05 | AJ85: 8.116656106e-05 | AK85: 0.9824771603 | AL85: 0 | AM85: TRUE | AN85: 0.008929965981 | AO85: 0.2566712028 | AP85: 0 | AQ85: 0.0003106865576 | AR85: 0.0003106865576 | AS85: FALSE | AT85: 0 | AU85: 811.6656106 | AV85: 0
B86: 4 | C86: 17 | D86: 2606.007451 | F86: 77 | G86: 9 | H86: 6 | I86: 533.1519535 | J86: 1 | K86: 0.3078774578 | L86: 0.3078774578 | M86: 3.335680749e+15 | N86: 0 | O86: FALSE | P86: 0 | Q86: 8.777236866e-14 | R86: 8.777236866e-14 | S86: 1.052634529e+12 | T86: 0 | U86: FALSE | V86: 0 | W86: 2.847223093e-10 | X86: 2.847223093e-10 | Y86: 333133009.3 | Z86: 0 | AA86: FALSE | AB86: 0 | AC86: 8.209314813e-07 | AD86: 8.209314813e-07 | AE86: 115464.6048 | AF86: 0 | AG86: FALSE | AH86: 0 | AI86: 0.002595159718 | AJ86: 0.002595159718 | AK86: 36.52512344 | AL86: 0 | AM86: TRUE | AN86: 0.3078774578 | AO86: 8.206615602 | AP86: 0 | AQ86: 0.01155025819 | AR86: 0.01155025819 | AS86: FALSE | AT86: 0 | AU86: 25951.59718 | AV86: 0
B87: 4 | C87: 18 | D87: 2916.499548 | F87: 78 | G87: 11 | H87: 5 | I87: 541.1433675 | J87: 1 | K87: 0.4156170831 | L87: 0.4156170831 | M87: 5353333427944528 | N87: 0 | O87: FALSE | P87: 0 | Q87: 9.966645228e-14 | R87: 9.966645228e-14 | S87: 1.689341408e+12 | T87: 0 | U87: FALSE | V87: 0 | W87: 3.233051914e-10 | X87: 3.233051914e-10 | Y87: 534635119.1 | Z87: 0 | AA87: FALSE | AB87: 0 | AC87: 9.321763734e-07 | AD87: 9.321763734e-07 | AE87: 185305.6618 | AF87: 0 | AG87: FALSE | AH87: 0 | AI87: 0.002946831288 | AJ87: 0.002946831288 | AK87: 58.61806898 | AL87: 0 | AM87: TRUE | AN87: 0.4156170831 | AO87: 9.318698752 | AP87: 0 | AQ87: 0.018536661 | AR87: 0.018536661 | AS87: FALSE | AT87: 0 | AU87: 29468.31288 | AV87: 0
B88: 4 | C88: 19 | D88: 3244.734049 | F88: 79 | G88: 14 | H88: 2 | I88: 552.8005678 | J88: 1 | K88: 0.640671715 | L88: 0.640671715 | M88: 1.057268447e+16 | N88: 0 | O88: FALSE | P88: 0 | Q88: 1.199146774e-13 | R88: 1.199146774e-13 | S88: 3.336402245e+12 | T88: 0 | U88: FALSE | V88: 0 | W88: 3.889878375e-10 | X88: 3.889878375e-10 | Y88: 1055889474 | Z88: 0 | AA88: FALSE | AB88: 0 | AC88: 1.12155722e-06 | AD88: 1.12155722e-06 | AE88: 365973.5225 | AF88: 0 | AG88: FALSE | AH88: 0 | AI88: 0.003545509199 | AJ88: 0.003545509199 | AK88: 115.7690541 | AL88: 0 | AM88: TRUE | AN88: 0.640671715 | AO88: 11.21188453 | AP88: 0 | AQ88: 0.03660938936 | AR88: 0.03660938936 | AS88: FALSE | AT88: 0 | AU88: 35455.09199 | AV88: 0
B89: 4 | C89: 20 | D89: 3590.710956 | F89: 80 | G89: 7 | H89: 7 | I89: 564.0178738 | J89: 1 | K89: 0.06902672988 | L89: 0.06902672988 | M89: 1.438809401e+15 | N89: 0 | O89: FALSE | P89: 0 | Q89: 1.022863885e-14 | R89: 1.022863885e-14 | S89: 4.540423892e+11 | T89: 0 | U89: FALSE | V89: 0 | W89: 3.318039287e-11 | X89: 3.318039287e-11 | Y89: 143693279.3 | Z89: 0 | AA89: FALSE | AB89: 0 | AC89: 9.566805333e-08 | AD89: 9.566805333e-08 | AE89: 49804.39417 | AF89: 0 | AG89: FALSE | AH89: 0 | AI89: 0.0003024294768 | AJ89: 0.0003024294768 | AK89: 15.75471243 | AL89: 0 | AM89: TRUE | AN89: 0.06902672988 | AO89: 0.9563659781 | AP89: 0 | AQ89: 0.004982077517 | AR89: 0.004982077517 | AS89: FALSE | AT89: 0 | AU89: 3024.294768 | AV89: 0
B90: 5 | C90: 1 | D90: 74.85535541 | F90: 81 | G90: 1 | H90: 8 | I90: 570.3963419 | J90: 1 | K90: 0.2890374835 | L90: 0.2890374835 | M90: 6866313033204137 | N90: 0 | O90: FALSE | P90: 0 | Q90: 3.758125242e-14 | R90: 3.758125242e-14 | S90: 2.16678955e+12 | T90: 0 | U90: FALSE | V90: 0 | W90: 1.21908764e-10 | X90: 1.21908764e-10 | Y90: 685735744.9 | Z90: 0 | AA90: FALSE | AB90: 0 | AC90: 3.514959627e-07 | AD90: 3.514959627e-07 | AE90: 237677.4579 | AF90: 0 | AG90: FALSE | AH90: 0 | AI90: 0.001111162362 | AJ90: 0.001111162362 | AK90: 75.18493224 | AL90: 0 | AM90: TRUE | AN90: 0.2890374835 | AO90: 3.513803913 | AP90: 0 | AQ90: 0.02377556316 | AR90: 0.02377556316 | AS90: FALSE | AT90: 0 | AU90: 11111.62362 | AV90: 0
B91: 5 | C91: 2 | D91: 101.4689636 | F91: 82 | G91: 2 | H91: 8 | I91: 578.3144402 | J91: 1 | K91: 0.5033561681 | L91: 0.5033561681 | M91: 1.403646393e+16 | N91: 0 | O91: FALSE | P91: 0 | Q91: 5.575445678e-14 | R91: 5.575445678e-14 | S91: 4.429460646e+12 | T91: 0 | U91: FALSE | V91: 0 | W91: 1.808603086e-10 | X91: 1.808603086e-10 | Y91: 1401815647 | Z91: 0 | AA91: FALSE | AB91: 0 | AC91: 5.214692219e-07 | AD91: 5.214692219e-07 | AE91: 485872.2649 | AF91: 0 | AG91: FALSE | AH91: 0 | AI91: 0.001648488272 | AJ91: 0.001648488272 | AK91: 153.6968362 | AL91: 0 | AM91: TRUE | AN91: 0.5033561681 | AO91: 5.212977636 | AP91: 0 | AQ91: 0.04860320716 | AR91: 0.04860320716 | AS91: FALSE | AT91: 0 | AU91: 16484.88272 | AV91: 0
B92: 5 | C92: 3 | D92: 145.8249774 | F92: 83 | G92: 10 | H92: 6 | I92: 583.2999095 | J92: 1 | K92: 0.2810844821 | L92: 0.2810844821 | M92: 8660884060190382 | N92: 0 | O92: FALSE | P92: 0 | Q92: 2.817721258e-14 | R92: 2.817721258e-14 | S92: 2.73309897e+12 | T92: 0 | U92: FALSE | V92: 0 | W92: 9.140326457e-11 | X92: 9.140326457e-11 | Y92: 864958785.6 | Z92: 0 | AA92: FALSE | AB92: 0 | AC92: 2.635403512e-07 | AD92: 2.635403512e-07 | AE92: 299796.5424 | AF92: 0 | AG92: FALSE | AH92: 0 | AI92: 0.0008331137484 | AJ92: 0.0008331137484 | AK92: 94.83517254 | AL92: 0 | AM92: TRUE | AN92: 0.2810844821 | AO92: 2.634536995 | AP92: 0 | AQ92: 0.02998951475 | AR92: 0.02998951475 | AS92: FALSE | AT92: 0 | AU92: 8331.137484 | AV92: 0
B93: 5 | C93: 4 | D93: 207.9233966 | F93: 84 | G93: 13 | H93: 4 | I93: 587.9921159 | J93: 1 | K93: 0.3702310315 | L93: 0.3702310315 | M93: 1.252144741e+16 | N93: 0 | O93: FALSE | P93: 0 | Q93: 3.381252579e-14 | R93: 3.381252579e-14 | S93: 3.951369718e+12 | T93: 0 | U93: FALSE | V93: 0 | W93: 1.09683498e-10 | X93: 1.09683498e-10 | Y93: 1250511595 | Z93: 0 | AA93: FALSE | AB93: 0 | AC93: 3.16247212e-07 | AD93: 3.16247212e-07 | AE93: 433429.9608 | AF93: 0 | AG93: FALSE | AH93: 0 | AI93: 0.0009997326749 | AJ93: 0.0009997326749 | AK93: 137.107669 | AL93: 0 | AM93: TRUE | AN93: 0.3702310315 | AO93: 3.161432304 | AP93: 0 | AQ93: 0.04335725188 | AR93: 0.04335725188 | AS93: FALSE | AT93: 0 | AU93: 9997.326749 | AV93: 0
B94: 5 | C94: 5 | D94: 287.7642213 | F94: 85 | G94: 3 | H94: 8 | I94: 591.5112707 | J94: 1 | K94: 0.5875527389 | L94: 0.5875527389 | M94: 2.129901587e+16 | N94: 0 | O94: FALSE | P94: 0 | Q94: 5.006343981e-14 | R94: 5.006343981e-14 | S94: 6.721290566e+12 | T94: 0 | U94: FALSE | V94: 0 | W94: 1.623993793e-10 | X94: 1.623993793e-10 | Y94: 2127123602 | Z94: 0 | AA94: FALSE | AB94: 0 | AC94: 4.68241366e-07 | AD94: 4.68241366e-07 | AE94: 737265.5344 | AF94: 0 | AG94: FALSE | AH94: 0 | AI94: 0.001480222356 | AJ94: 0.001480222356 | AK94: 233.2205155 | AL94: 0 | AM94: TRUE | AN94: 0.5875527389 | AO94: 4.68087409 | AP94: 0 | AQ94: 0.0737508026 | AR94: 0.0737508026 | AS94: FALSE | AT94: 0 | AU94: 14802.22356 | AV94: 0
B95: 5 | C95: 6 | D95: 385.3474515 | F95: 86 | G95: 14 | H95: 3 | I95: 597.1565816 | J95: 1 | K95: 0.7821631753 | L95: 0.7821631753 | M95: 3.16645047e+16 | N95: 0 | O95: FALSE | P95: 0 | Q95: 5.967721462e-14 | R95: 5.967721462e-14 | S95: 9.992308471e+12 | T95: 0 | U95: FALSE | V95: 0 | W95: 1.935852321e-10 | X95: 1.935852321e-10 | Y95: 3162320537 | Z95: 0 | AA95: FALSE | AB95: 0 | AC95: 5.581586203e-07 | AD95: 5.581586203e-07 | AE95: 1096066.979 | AF95: 0 | AG95: FALSE | AH95: 0 | AI95: 0.001764472189 | AJ95: 0.001764472189 | AK95: 346.7208134 | AL95: 0 | AM95: TRUE | AN95: 0.7821631753 | AO95: 5.579750986 | AP95: 0 | AQ95: 0.1096427483 | AR95: 0.1096427483 | AS95: FALSE | AT95: 0 | AU95: 17644.72189 | AV95: 0
B96: 5 | C96: 7 | D96: 500.6730872 | F96: 87 | G96: 12 | H96: 5 | I96: 601.848788 | J96: 1 | K96: 0.08059352086 | L96: 0.08059352086 | M96: 3.573524158e+15 | N96: 0 | O96: FALSE | P96: 0 | Q96: 5.61422804e-15 | R96: 5.61422804e-15 | S96: 1.127690329e+12 | T96: 0 | U96: FALSE | V96: 0 | W96: 1.821183587e-11 | X96: 1.821183587e-11 | Y96: 356886328.8 | Z96: 0 | AA96: FALSE | AB96: 0 | AC96: 5.250965209e-08 | AD96: 5.250965209e-08 | AE96: 123697.5555 | AF96: 0 | AG96: FALSE | AH96: 0 | AI96: 0.0001659955027 | AJ96: 0.0001659955027 | AK96: 39.12946736 | AL96: 0 | AM96: TRUE | AN96: 0.08059352086 | AO96: 0.5249238699 | AP96: 0 | AQ96: 0.01237382405 | AR96: 0.01237382405 | AS96: FALSE | AT96: 0 | AU96: 1659.955027 | AV96: 0
B97: 5 | C97: 8 | D97: 633.7411284 | F97: 88 | G97: 15 | H97: 1 | I97: 602.7285767 | J97: 1 | K97: 0.4493716679 | L97: 0.4493716679 | M97: 2.026647434e+16 | N97: 0 | O97: FALSE | P97: 0 | Q97: 3.077653231e-14 | R97: 3.077653231e-14 | S97: 6.395453369e+12 | T97: 0 | U97: FALSE | V97: 0 | W97: 9.983512448e-11 | X97: 9.983512448e-11 | Y97: 2024004122 | Z97: 0 | AA97: FALSE | AB97: 0 | AC97: 2.878516855e-07 | AD97: 2.878516855e-07 | AE97: 701524.1045 | AF97: 0 | AG97: FALSE | AH97: 0 | AI97: 0.00090996766 | AJ97: 0.00090996766 | AK97: 221.9143655 | AL97: 0 | AM97: TRUE | AN97: 0.4493716679 | AO97: 2.877570403 | AP97: 0 | AQ97: 0.07017548405 | AR97: 0.07017548405 | AS97: FALSE | AT97: 0 | AU97: 9099.6766 | AV97: 0
B98: 5 | C98: 9 | D98: 784.5515751 | F98: 89 | G98: 8 | H98: 7 | I98: 603.6083654 | J98: 1 | K98: 0.1291393929 | L98: 0.1291393929 | M98: 5923745883804326 | N98: 0 | O98: FALSE | P98: 0 | Q98: 8.695760584e-15 | R98: 8.695760584e-15 | S98: 1.869345399e+12 | T98: 0 | U98: FALSE | V98: 0 | W98: 2.820793232e-11 | X98: 2.820793232e-11 | Y98: 591601967 | Z98: 0 | AA98: FALSE | AB98: 0 | AC98: 8.13311037e-08 | AD98: 8.13311037e-08 | AE98: 205050.4916 | AF98: 0 | AG98: FALSE | AH98: 0 | AI98: 0.0002571069681 | AJ98: 0.0002571069681 | AK98: 64.86398606 | AL98: 0 | AM98: TRUE | AN98: 0.1291393929 | AO98: 0.8130436215 | AP98: 0 | AQ98: 0.02051179341 | AR98: 0.02051179341 | AS98: FALSE | AT98: 0 | AU98: 2571.069681 | AV98: 0
B99: 5 | C99: 10 | D99: 953.1044273 | F99: 90 | G99: 4 | H99: 8 | I99: 609.9868335 | J99: 1 | K99: 0.5198616223 | L99: 0.5198616223 | M99: 2.694660121e+16 | N99: 0 | O99: FALSE | P99: 0 | Q99: 3.097833225e-14 | R99: 3.097833225e-14 | S99: 8.503488501e+12 | T99: 0 | U99: FALSE | V99: 0 | W99: 1.004897376e-10 | X99: 1.004897376e-10 | Y99: 2691145534 | Z99: 0 | AA99: FALSE | AB99: 0 | AC99: 2.897391124e-07 | AD99: 2.897391124e-07 | AE99: 932756.7276 | AF99: 0 | AG99: FALSE | AH99: 0 | AI99: 0.0009159342654 | AJ99: 0.0009159342654 | AK99: 295.0605917 | AL99: 0 | AM99: TRUE | AN99: 0.5198616223 | AO99: 2.896438466 | AP99: 0 | AQ99: 0.09330635175 | AR99: 0.09330635175 | AS99: FALSE | AT99: 0 | AU99: 9159.342654 | AV99: 0
B100: 5 | C100: 11 | D100: 1139.399685 | F100: 91 | G100: 15 | H100: 2 | I100: 629.3421849 | J100: 1 | K100: 0.8007857261 | L100: 0.8007857261 | M100: 5.968503844e+16 | N100: 0 | O100: FALSE | P100: 0 | Q100: 3.318590625e-14 | R100: 3.318590625e-14 | S100: 1.883469585e+13 | T100: 0 | U100: FALSE | V100: 0 | W100: 1.076508246e-10 | X100: 1.076508246e-10 | Y100: 5960719253 | Z100: 0 | AA100: FALSE | AB100: 0 | AC100: 3.103864643e-07 | AD100: 3.103864643e-07 | AE100: 2065997.886 | AF100: 0 | AG100: FALSE | AH100: 0 | AI100: 0.0009812054572 | AJ100: 0.0009812054572 | AK100: 653.5407793 | AL100: 0 | AM100: TRUE | AN100: 0.8007857261 | AO100: 3.102844097 | AP100: 0 | AQ100: 0.2066677406 | AR100: 0.2066677406 | AS100: FALSE | AT100: 0 | AU100: 9812.054572 | AV100: 0
B101: 5 | C101: 12 | D101: 1343.437348 | F101: 92 | G101: 5 | H101: 8 | I101: 633.7411284 | J101: 1 | K101: 0.317781583 | L101: 0.317781583 | M101: 2.568321368e+16 | N101: 0 | O101: FALSE | P101: 0 | Q101: 1.214491826e-14 | R101: 1.214491826e-14 | S101: 8.104803661e+12 | T101: 0 | U101: FALSE | V101: 0 | W101: 3.939655756e-11 | X101: 3.939655756e-11 | Y101: 2564971562 | Z101: 0 | AA101: FALSE | AB101: 0 | AC101: 1.135909386e-07 | AD101: 1.135909386e-07 | AE101: 889024.5621 | AF101: 0 | AG101: FALSE | AH101: 0 | AI101: 0.0003590879812 | AJ101: 0.0003590879812 | AK101: 281.2267181 | AL101: 0 | AM101: TRUE | AN101: 0.317781583 | AO101: 1.135535901 | AP101: 0 | AQ101: 0.08893169682 | AR101: 0.08893169682 | AS101: FALSE | AT101: 0 | AU101: 3590.879812 | AV101: 0
B102: 5 | C102: 13 | D102: 1565.217417 | F102: 93 | G102: 11 | H102: 6 | I102: 638.7265977 | J102: 1 | K102: 0.1816286301 | L102: 0.1816286301 | M102: 1.607948129e+16 | N102: 0 | O102: FALSE | P102: 0 | Q102: 6.336991041e-15 | R102: 6.336991041e-15 | S102: 5.07417181e+12 | T102: 0 | U102: FALSE | V102: 0 | W102: 2.055638637e-11 | X102: 2.055638637e-11 | Y102: 1605850917 | Z102: 0 | AA102: FALSE | AB102: 0 | AC102: 5.926962575e-08 | AD102: 5.926962575e-08 | AE102: 556591.3205 | AF102: 0 | AG102: FALSE | AH102: 0 | AI102: 0.0001873653877 | AJ102: 0.0001873653877 | AK102: 176.0675206 | AL102: 0 | AM102: TRUE | AN102: 0.1816286301 | AO102: 0.5925013799 | AP102: 0 | AQ102: 0.05567743871 | AR102: 0.05567743871 | AS102: FALSE | AT102: 0 | AU102: 1873.653877 | AV102: 0
B103: 5 | C103: 14 | D103: 1804.739891 | F103: 94 | G103: 9 | H103: 7 | I103: 648.4775892 | J103: 1 | K103: 0.155868357 | L103: 0.155868357 | M103: 1.645694986e+16 | N103: 0 | O103: FALSE | P103: 0 | Q103: 4.55987652e-15 | R103: 4.55987652e-15 | S103: 5.193288859e+12 | T103: 0 | U103: FALSE | V103: 0 | W103: 1.479165474e-11 | X103: 1.479165474e-11 | Y103: 1643548541 | Z103: 0 | AA103: FALSE | AB103: 0 | AC103: 4.264834415e-08 | AD103: 4.264834415e-08 | AE103: 569657.3967 | AF103: 0 | AG103: FALSE | AH103: 0 | AI103: 0.0001348215623 | AJ103: 0.0001348215623 | AK103: 180.2007357 | AL103: 0 | AM103: TRUE | AN103: 0.155868357 | AO103: 0.4263432144 | AP103: 0 | AQ103: 0.05698447608 | AR103: 0.05698447608 | AS103: FALSE | AT103: 0 | AU103: 1348.215623 | AV103: 0
B104: 5 | C104: 15 | D104: 2062.004771 | F104: 95 | G104: 14 | H104: 4 | I104: 659.2550008 | J104: 1 | K104: 0.7531524867 | L104: 0.7531524867 | M104: 9.631721733e+16 | N104: 0 | O104: FALSE | P104: 0 | Q104: 1.819065825e-14 | R104: 1.819065825e-14 | S104: 3.039464397e+13 | T104: 0 | U104: FALSE | V104: 0 | W104: 5.900816287e-11 | X104: 5.900816287e-11 | Y104: 9619159286 | Z104: 0 | AA104: FALSE | AB104: 0 | AC104: 1.701365048e-07 | AD104: 1.701365048e-07 | AE104: 3334020.93 | AF104: 0 | AG104: FALSE | AH104: 0 | AI104: 0.0005378419686 | AJ104: 0.0005378419686 | AK104: 1054.65676 | AL104: 0 | AM104: TRUE | AN104: 0.7531524867 | AO104: 1.700805642 | AP104: 0 | AQ104: 0.3335117512 | AR104: 0.3335117512 | AS104: FALSE | AT104: 0 | AU104: 5378.419686 | AV104: 0
B105: 5 | C105: 16 | D105: 2337.012056 | F105: 96 | G105: 6 | H105: 8 | I105: 662.7741556 | J105: 1 | K105: 0.03355213552 | L105: 0.03355213552 | M105: 4564821078702914 | N105: 0 | O105: FALSE | P105: 0 | Q105: 7.617335566e-16 | R105: 7.617335566e-16 | S105: 1.440512042e+12 | T105: 0 | U105: FALSE | V105: 0 | W105: 2.470965984e-12 | X105: 2.470965984e-12 | Y105: 455886728.1 | Z105: 0 | AA105: FALSE | AB105: 0 | AC105: 7.12446373e-09 | AD105: 7.12446373e-09 | AE105: 158011.3031 | AF105: 0 | AG105: FALSE | AH105: 0 | AI105: 2.252212482e-05 | AJ105: 2.252212482e-05 | AK105: 49.98399604 | AL105: 0 | AM105: TRUE | AN105: 0.03355213552 | AO105: 0.07122121217 | AP105: 0 | AQ105: 0.01580632741 | AR105: 0.01580632741 | AS105: FALSE | AT105: 0 | AU105: 225.2212482 | AV105: 0
B106: 5 | C106: 17 | D106: 2629.761746 | F106: 97 | G106: 13 | H106: 5 | I106: 667.8329406 | J106: 1 | K106: 0.2752641941 | L106: 0.2752641941 | M106: 4.091174428e+16 | N106: 0 | O106: FALSE | P106: 0 | Q106: 5.720552329e-15 | R106: 5.720552329e-15 | S106: 1.291044255e+13 | T106: 0 | U106: FALSE | V106: 0 | W106: 1.855673824e-11 | X106: 1.855673824e-11 | Y106: 4085838397 | Z106: 0 | AA106: FALSE | AB106: 0 | AC106: 5.350409895e-08 | AD106: 5.350409895e-08 | AE106: 1416160.22 | AF106: 0 | AG106: FALSE | AH106: 0 | AI106: 0.0001691391858 | AJ106: 0.0001691391858 | AK106: 447.9764768 | AL106: 0 | AM106: TRUE | AN106: 0.2752641941 | AO106: 0.5348650688 | AP106: 0 | AQ106: 0.1416626005 | AR106: 0.1416626005 | AS106: FALSE | AT106: 0 | AU106: 1691.391858 | AV106: 0
B107: 5 | C107: 18 | D107: 2940.253843 | F107: 98 | G107: 15 | H107: 3 | I107: 673.6981987 | J107: 1 | K107: 0.9776381438 | L107: 0.9776381438 | M107: 1.608531473e+17 | N107: 0 | O107: FALSE | P107: 0 | Q107: 1.835326038e-14 | R107: 1.835326038e-14 | S107: 5.076012657e+13 | T107: 0 | U107: FALSE | V107: 0 | W107: 5.953562331e-11 | X107: 5.953562331e-11 | Y107: 1.6064335e+10 | Z107: 0 | AA107: FALSE | AB107: 0 | AC107: 1.716573161e-07 | AD107: 1.716573161e-07 | AE107: 5567932.449 | AF107: 0 | AG107: FALSE | AH107: 0 | AI107: 0.0005426496147 | AJ107: 0.0005426496147 | AK107: 1761.313957 | AL107: 0 | AM107: TRUE | AN107: 0.9776381438 | AO107: 1.716008754 | AP107: 0 | AQ107: 0.5569763779 | AR107: 0.5569763779 | AS107: FALSE | AT107: 0 | AU107: 5426.496147 | AV107: 0
B108: 5 | C108: 19 | D108: 3268.488344 | F108: 99 | G108: 16 | H108: 1 | I108: 684.548926 | J108: 1 | K108: 0.4230551631 | L108: 0.4230551631 | M108: 8.381614433e+16 | N108: 0 | O108: FALSE | P108: 0 | Q108: 6.595577592e-15 | R108: 6.595577592e-15 | S108: 2.644970376e+13 | T108: 0 | U108: FALSE | V108: 0 | W108: 2.139520799e-11 | X108: 2.139520799e-11 | Y108: 8370682474 | Z108: 0 | AA108: FALSE | AB108: 0 | AC108: 6.168817551e-08 | AD108: 6.168817551e-08 | AE108: 2901296.23 | AF108: 0 | AG108: FALSE | AH108: 0 | AI108: 0.0001950109989 | AJ108: 0.0001950109989 | AK108: 917.7721874 | AL108: 0 | AM108: TRUE | AN108: 0.4230551631 | AO108: 0.6166789253 | AP108: 0 | AQ108: 0.2902250485 | AR108: 0.2902250485 | AS108: FALSE | AT108: 0 | AU108: 1950.109989 | AV108: 0
B109: 5 | C109: 20 | D109: 3614.465251 | F109: 100 | G109: 7 | H109: 8 | I109: 697.085915 | J109: 1 | K109: 0.2593508419 | L109: 0.2593508419 | M109: 6.345388422e+16 | N109: 0 | O109: FALSE | P109: 0 | Q109: 3.274188099e-15 | R109: 3.274188099e-15 | S109: 2.002402346e+13 | T109: 0 | U109: FALSE | V109: 0 | W109: 1.062104636e-11 | X109: 1.062104636e-11 | Y109: 6337112269 | Z109: 0 | AA109: FALSE | AB109: 0 | AC109: 3.062335137e-08 | AD109: 3.062335137e-08 | AE109: 2196456.5 | AF109: 0 | AG109: FALSE | AH109: 0 | AI109: 9.680769922e-05 | AJ109: 9.680769922e-05 | AK109: 694.8089844 | AL109: 0 | AM109: TRUE | AN109: 0.2593508419 | AO109: 0.3061328246 | AP109: 0 | AQ109: 0.2197178929 | AR109: 0.2197178929 | AS109: FALSE | AT109: 0 | AU109: 968.0769922 | AV109: 0
B110: 6 | C110: 1 | D110: 103.8883826 | F110: 101 | G110: 10 | H110: 7 | I110: 698.6255452 | J110: 1 | K110: 0.1423039436 | L110: 0.1423039436 | M110: 3.57213365e+16 | N110: 0 | O110: FALSE | P110: 0 | Q110: 1.751026364e-15 | R110: 1.751026364e-15 | S110: 1.127251529e+13 | T110: 0 | U110: FALSE | V110: 0 | W110: 5.680104998e-12 | X110: 5.680104998e-12 | Y110: 3567474593 | Z110: 0 | AA110: FALSE | AB110: 0 | AC110: 1.63772801e-08 | AD110: 1.63772801e-08 | AE110: 1236494.231 | AF110: 0 | AG110: FALSE | AH110: 0 | AI110: 5.177247868e-05 | AJ110: 5.177247868e-05 | AK110: 391.1424153 | AL110: 0 | AM110: TRUE | AN110: 0.1423039436 | AO110: 0.1637189527 | AP110: 0 | AQ110: 0.1236900922 | AR110: 0.1236900922 | AS110: FALSE | AT110: 0 | AU110: 517.7247868 | AV110: 0
B111: 6 | C111: 2 | D111: 130.5019908 | F111: 102 | G111: 12 | H111: 6 | I111: 699.4320182 | J111: 1 | K111: 0.03522013743 | L111: 0.03522013743 | M111: 8960399360777995 | N111: 0 | O111: FALSE | P111: 0 | Q111: 4.276034884e-16 | R111: 4.276034884e-16 | S111: 2.827616452e+12 | T111: 0 | U111: FALSE | V111: 0 | W111: 1.387090887e-12 | X111: 1.387090887e-12 | Y111: 894871250.5 | Z111: 0 | AA111: FALSE | AB111: 0 | AC111: 3.99935846e-09 | AD111: 3.99935846e-09 | AE111: 310164.266 | AF111: 0 | AG111: FALSE | AH111: 0 | AI111: 1.264292357e-05 | AJ111: 1.264292357e-05 | AK111: 98.11481293 | AL111: 0 | AM111: TRUE | AN111: 0.03522013743 | AO111: 0.03998043476 | AP111: 0 | AQ111: 0.03102662811 | AR111: 0.03102662811 | AS111: FALSE | AT111: 0 | AU111: 126.4292357 | AV111: 0
B112: 6 | C112: 3 | D112: 174.8580045 | F112: 103 | G112: 16 | H112: 2 | I112: 711.1625342 | J112: 1 | K112: 0.7538893975 | L112: 0.7538893975 | M112: 2.327170159e+17 | N112: 0 | O112: FALSE | P112: 0 | Q112: 7.543513033e-15 | R112: 7.543513033e-15 | S112: 7.343807306e+13 | T112: 0 | U112: FALSE | V112: 0 | W112: 2.447018901e-11 | X112: 2.447018901e-11 | Y112: 2.324134881e+10 | Z112: 0 | AA112: FALSE | AB112: 0 | AC112: 7.055417807e-08 | AD112: 7.055417807e-08 | AE112: 8055500.598 | AF112: 0 | AG112: FALSE | AH112: 0 | AI112: 0.0002230385423 | AJ112: 0.0002230385423 | AK112: 2548.210806 | AL112: 0 | AM112: FALSE | AN112: 0 | AO112: 0.7053097996 | AP112: 0.7053097996 | AQ112: 0.8058150106 | AR112: 0 | AS112: TRUE | AT112: 0.7538893975 | AU112: 2230.385423 | AV112: 0
B113: 6 | C113: 4 | D113: 236.9564238 | F113: 104 | G113: 1 | H113: 9 | I113: 721.2067886 | J113: 1 | K113: 0.4381403907 | L113: 0.4381403907 | M113: 1.592031249e+17 | N113: 0 | O113: FALSE | P113: 0 | Q113: 3.724444505e-15 | R113: 3.724444505e-15 | S113: 5.02394321e+13 | T113: 0 | U113: FALSE | V113: 0 | W113: 1.208162041e-11 | X113: 1.208162041e-11 | Y113: 1.589954797e+10 | Z113: 0 | AA113: FALSE | AB113: 0 | AC113: 3.483458167e-08 | AD113: 3.483458167e-08 | AE113: 5510816.917 | AF113: 0 | AG113: FALSE | AH113: 0 | AI113: 0.0001101204001 | AJ113: 0.0001101204001 | AK113: 1743.246499 | AL113: 0 | AM113: FALSE | AN113: 0 | AO113: 0.3482312811 | AP113: 0.3482312811 | AQ113: 0.5512629461 | AR113: 0 | AS113: TRUE | AT113: 0.4381403907 | AU113: 1101.204001 | AV113: 0
B114: 6 | C114: 5 | D114: 316.7972485 | F114: 105 | G114: 2 | H114: 9 | I114: 729.1248869 | J114: 1 | K114: 0.7630175349 | L114: 0.7630175349 | M114: 3.147807788e+17 | N114: 0 | O114: FALSE | P114: 0 | Q114: 5.712777964e-15 | R114: 5.712777964e-15 | S114: 9.933478109e+13 | T114: 0 | U114: FALSE | V114: 0 | W114: 1.853151919e-11 | X114: 1.853151919e-11 | Y114: 3.14370217e+10 | Z114: 0 | AA114: FALSE | AB114: 0 | AC114: 5.343138562e-08 | AD114: 5.343138562e-08 | AE114: 10896138.14 | AF114: 0 | AG114: FALSE | AH114: 0 | AI114: 0.0001689093217 | AJ114: 0.0001689093217 | AK114: 3446.794722 | AL114: 0 | AM114: FALSE | AN114: 0 | AO114: 0.5341381745 | AP114: 0.5341381745 | AQ114: 1.089972195 | AR114: 0 | AS114: TRUE | AT114: 0.7630175349 | AU114: 1689.093217 | AV114: 0
B115: 6 | C115: 6 | D115: 414.3804787 | F115: 106 | G115: 15 | H115: 4 | I115: 735.7966179 | J115: 1 | K115: 0.9413772245 | L115: 0.9413772245 | M115: 4.317488831e+17 | N115: 0 | O115: FALSE | P115: 0 | Q115: 6.339903744e-15 | R115: 6.339903744e-15 | S115: 1.362461868e+14 | T115: 0 | U115: FALSE | V115: 0 | W115: 2.056583481e-11 | X115: 2.056583481e-11 | Y115: 4.311857623e+10 | Z115: 0 | AA115: FALSE | AB115: 0 | AC115: 5.929686815e-08 | AD115: 5.929686815e-08 | AE115: 14944989.62 | AF115: 0 | AG115: FALSE | AH115: 0 | AI115: 0.0001874515074 | AJ115: 0.0001874515074 | AK115: 4727.575099 | AL115: 0 | AM115: FALSE | AN115: 0 | AO115: 0.5927737143 | AP115: 0.5927737143 | AQ115: 1.494990512 | AR115: 0 | AS115: TRUE | AT115: 0.9413772245 | AU115: 1874.515074 | AV115: 0
B116: 6 | C116: 7 | D116: 529.7061144 | F116: 107 | G116: 8 | H116: 8 | I116: 736.6764066 | J116: 1 | K116: 0.4852092852 | L116: 0.4852092852 | M116: 2.256475467e+17 | N116: 0 | O116: FALSE | P116: 0 | Q116: 3.222657141e-15 | R116: 3.222657141e-15 | S116: 7.120717391e+13 | T116: 0 | U116: FALSE | V116: 0 | W116: 1.045388654e-11 | X116: 1.045388654e-11 | Y116: 2.253532395e+10 | Z116: 0 | AA116: FALSE | AB116: 0 | AC116: 3.014138437e-08 | AD116: 3.014138437e-08 | AE116: 7810790.891 | AF116: 0 | AG116: FALSE | AH116: 0 | AI116: 9.528408686e-05 | AJ116: 9.528408686e-05 | AK116: 2470.80135 | AL116: 0 | AM116: FALSE | AN116: 0 | AO116: 0.3013147392 | AP116: 0.3013147392 | AQ116: 0.7813359912 | AR116: 0 | AS116: TRUE | AT116: 0.4852092852 | AU116: 952.8408686 | AV116: 0
B117: 6 | C117: 8 | D117: 662.7741556 | F117: 108 | G117: 14 | H117: 5 | I117: 739.0958255 | J117: 1 | K117: 0.5599636298 | L117: 0.5599636298 | M117: 2.705314045e+17 | N117: 0 | O117: FALSE | P117: 0 | Q117: 3.580044839e-15 | R117: 3.580044839e-15 | S117: 8.537108889e+13 | T117: 0 | U117: FALSE | V117: 0 | W117: 1.16132064e-11 | X117: 1.16132064e-11 | Y117: 2.701785563e+10 | Z117: 0 | AA117: FALSE | AB117: 0 | AC117: 3.348401732e-08 | AD117: 3.348401732e-08 | AE117: 9364445.839 | AF117: 0 | AG117: FALSE | AH117: 0 | AI117: 0.0001058509449 | AJ117: 0.0001058509449 | AK117: 2962.271778 | AL117: 0 | AM117: FALSE | AN117: 0 | AO117: 0.3347300783 | AP117: 0.3347300783 | AQ117: 0.9367525868 | AR117: 0 | AS117: TRUE | AT117: 0.5599636298 | AU117: 1058.509449 | AV117: 0
B118: 6 | C118: 9 | D118: 813.5846023 | F118: 109 | G118: 3 | H118: 9 | I118: 742.3217174 | J118: 1 | K118: 0.8906477577 | L118: 0.8906477577 | M118: 4.526420294e+17 | N118: 0 | O118: FALSE | P118: 0 | Q118: 5.413069383e-15 | R118: 5.413069383e-15 | S118: 1.428393979e+14 | T118: 0 | U118: FALSE | V118: 0 | W118: 1.755930299e-11 | X118: 1.755930299e-11 | Y118: 4.520516581e+10 | Z118: 0 | AA118: FALSE | AB118: 0 | AC118: 5.062822315e-08 | AD118: 5.062822315e-08 | AE118: 15668205.97 | AF118: 0 | AG118: FALSE | AH118: 0 | AI118: 0.0001600478582 | AJ118: 0.0001600478582 | AK118: 4956.351413 | AL118: 0 | AM118: FALSE | AN118: 0 | AO118: 0.5061157666 | AP118: 0.5061157666 | AQ118: 1.567335935 | AR118: 0 | AS118: TRUE | AT118: 0.8906477577 | AU118: 1600.478582 | AV118: 0
B119: 6 | C119: 10 | D119: 982.1374545 | F119: 110 | G119: 11 | H119: 7 | I119: 754.0522334 | J119: 1 | K119: 0.09195267606 | L119: 0.09195267606 | M119: 5.607675467e+16 | N119: 0 | O119: FALSE | P119: 0 | Q119: 4.657280411e-16 | R119: 4.657280411e-16 | S119: 1.769603649e+13 | T119: 0 | U119: FALSE | V119: 0 | W119: 1.510762047e-12 | X119: 1.510762047e-12 | Y119: 5600361496 | Z119: 0 | AA119: FALSE | AB119: 0 | AC119: 4.355935888e-09 | AD119: 4.355935888e-09 | AE119: 1941097.126 | AF119: 0 | AG119: FALSE | AH119: 0 | AI119: 1.377014965e-05 | AJ119: 1.377014965e-05 | AK119: 614.0307002 | AL119: 0 | AM119: FALSE | AN119: 0 | AO119: 0.04354503663 | AP119: 0.04354503663 | AQ119: 0.1941735566 | AR119: 0 | AS119: TRUE | AT119: 0.09195267606 | AU119: 137.7014965 | AV119: 0
B120: 6 | C120: 11 | D120: 1168.432712 | F120: 111 | G120: 16 | H120: 3 | I120: 755.518548 | J120: 1 | K120: 0.920384826 | L120: 0.920384826 | M120: 5.741130747e+17 | N120: 0 | O120: FALSE | P120: 0 | Q120: 4.557513627e-15 | R120: 4.557513627e-15 | S120: 1.811717882e+14 | T120: 0 | U120: FALSE | V120: 0 | W120: 1.478398982e-11 | X120: 1.478398982e-11 | Y120: 5.733642714e+10 | Z120: 0 | AA120: FALSE | AB120: 0 | AC120: 4.262624411e-08 | AD120: 4.262624411e-08 | AE120: 19872926.78 | AF120: 0 | AG120: FALSE | AH120: 0 | AI120: 0.0001347516987 | AJ120: 0.0001347516987 | AK120: 6286.43821 | AL120: 0 | AM120: FALSE | AN120: 0 | AO120: 0.4261222866 | AP120: 0.4261222866 | AQ120: 1.987946311 | AR120: 0 | AS120: TRUE | AT120: 0.920384826 | AU120: 1347.516987 | AV120: 0
B121: 6 | C121: 12 | D121: 1372.470375 | F121: 112 | G121: 4 | H121: 9 | I121: 760.7972802 | J121: 1 | K121: 0.7880374944 | L121: 0.7880374944 | M121: 5.330059661e+17 | N121: 0 | O121: FALSE | P121: 0 | Q121: 3.59872123e-15 | R121: 3.59872123e-15 | S121: 1.681996949e+14 | T121: 0 | U121: FALSE | V121: 0 | W121: 1.167379022e-11 | X121: 1.167379022e-11 | Y121: 5.323107779e+10 | Z121: 0 | AA121: FALSE | AB121: 0 | AC121: 3.365869687e-08 | AD121: 3.365869687e-08 | AE121: 18450004.02 | AF121: 0 | AG121: FALSE | AH121: 0 | AI121: 0.0001064031485 | AJ121: 0.0001064031485 | AK121: 5836.322529 | AL121: 0 | AM121: FALSE | AN121: 0 | AO121: 0.3364762994 | AP121: 0.3364762994 | AQ121: 1.845607235 | AR121: 0 | AS121: TRUE | AT121: 0.7880374944 | AU121: 1064.031485 | AV121: 0
B122: 6 | C122: 13 | D122: 1594.250444 | F122: 113 | G122: 13 | H122: 6 | I122: 765.4161709 | J122: 1 | K122: 0.1202930787 | L122: 0.1202930787 | M122: 8.729489604e+16 | N122: 0 | O122: FALSE | P122: 0 | Q122: 5.120105872e-16 | R122: 5.120105872e-16 | S122: 2.754748693e+13 | T122: 0 | U122: FALSE | V122: 0 | W122: 1.660896692e-12 | X122: 1.660896692e-12 | Y122: 8718103919 | Z122: 0 | AA122: FALSE | AB122: 0 | AC122: 4.788814706e-09 | AD122: 4.788814706e-09 | AE122: 3021713.236 | AF122: 0 | AG122: FALSE | AH122: 0 | AI122: 1.513858258e-05 | AJ122: 1.513858258e-05 | AK122: 955.863913 | AL122: 0 | AM122: FALSE | AN122: 0 | AO122: 0.0478724015 | AP122: 0.0478724015 | AQ122: 0.3022707098 | AR122: 0 | AS122: TRUE | AT122: 0.1202930787 | AU122: 151.3858258 | AV122: 0
B123: 6 | C123: 14 | D123: 1833.772918 | F123: 114 | G123: 17 | H123: 1 | I123: 771.6480075 | J123: 1 | K123: 0.2873750793 | L123: 0.2873750793 | M123: 2.291617557e+17 | N123: 0 | O123: FALSE | P123: 0 | Q123: 1.113121524e-15 | R123: 1.113121524e-15 | S123: 7.231614626e+13 | T123: 0 | U123: FALSE | V123: 0 | W123: 3.610823492e-12 | X123: 3.610823492e-12 | Y123: 2.28862865e+10 | Z123: 0 | AA123: FALSE | AB123: 0 | AC123: 1.041098144e-08 | AD123: 1.041098144e-08 | AE123: 7932435.251 | AF123: 0 | AG123: FALSE | AH123: 0 | AI123: 3.291158919e-05 | AJ123: 3.291158919e-05 | AK123: 2509.281327 | AL123: 0 | AM123: FALSE | AN123: 0 | AO123: 0.1040755833 | AP123: 0.1040755833 | AQ123: 0.7935044282 | AR123: 0 | AS123: TRUE | AT123: 0.2873750793 | AU123: 329.1158919 | AV123: 0
B124: 6 | C124: 15 | D124: 2091.037798 | F124: 115 | G124: 9 | H124: 8 | I124: 781.5456304 | J124: 1 | K124: 0.5856367478 | L124: 0.5856367478 | M124: 5.415974039e+17 | N124: 0 | O124: FALSE | P124: 0 | Q124: 1.955989773e-15 | R124: 1.955989773e-15 | S124: 1.709108789e+14 | T124: 0 | U124: FALSE | V124: 0 | W124: 6.344980017e-12 | X124: 6.344980017e-12 | Y124: 5.408910101e+10 | Z124: 0 | AA124: FALSE | AB124: 0 | AC124: 1.829429474e-08 | AD124: 1.829429474e-08 | AE124: 18747396.68 | AF124: 0 | AG124: FALSE | AH124: 0 | AI124: 5.783261802e-05 | AJ124: 5.783261802e-05 | AK124: 5930.397277 | AL124: 0 | AM124: FALSE | AN124: 0 | AO124: 0.182882796 | AP124: 0.182882796 | AQ124: 1.875356282 | AR124: 0 | AS124: TRUE | AT124: 0.5856367478 | AU124: 578.3261802 | AV124: 0
B125: 6 | C125: 16 | D125: 2366.045083 | F125: 116 | G125: 5 | H125: 9 | I125: 784.5515751 | J125: 1 | K125: 0.4817124244 | L125: 0.4817124244 | M125: 4.6582173e+17 | N125: 0 | O125: FALSE | P125: 0 | Q125: 1.538659296e-15 | R125: 1.538659296e-15 | S125: 1.469984913e+14 | T125: 0 | U125: FALSE | V125: 0 | W125: 4.991213461e-12 | X125: 4.991213461e-12 | Y125: 4.652141687e+10 | Z125: 0 | AA125: FALSE | AB125: 0 | AC125: 1.439101934e-08 | AD125: 1.439101934e-08 | AE125: 16124421.37 | AF125: 0 | AG125: FALSE | AH125: 0 | AI125: 4.549343587e-05 | AJ125: 4.549343587e-05 | AK125: 5100.66684 | AL125: 0 | AM125: FALSE | AN125: 0 | AO125: 0.1438628759 | AP125: 0.1438628759 | AQ125: 1.61297248 | AR125: 0 | AS125: TRUE | AT125: 0.4817124244 | AU125: 454.9343587 | AV125: 0
B126: 6 | C126: 17 | D126: 2658.794774 | F126: 117 | G126: 17 | H126: 2 | I126: 798.2616157 | J126: 1 | K126: 0.5121058535 | L126: 0.5121058535 | M126: 6.057150467e+17 | N126: 0 | O126: FALSE | P126: 0 | Q126: 1.337327056e-15 | R126: 1.337327056e-15 | S126: 1.911443634e+14 | T126: 0 | U126: FALSE | V126: 0 | W126: 4.33811749e-12 | X126: 4.33811749e-12 | Y126: 6.049250256e+10 | Z126: 0 | AA126: FALSE | AB126: 0 | AC126: 1.250796689e-08 | AD126: 1.250796689e-08 | AE126: 20966829.19 | AF126: 0 | AG126: FALSE | AH126: 0 | AI126: 3.954065908e-05 | AJ126: 3.954065908e-05 | AK126: 6632.474302 | AL126: 0 | AM126: FALSE | AN126: 0 | AO126: 0.1250385429 | AP126: 0.1250385429 | AQ126: 2.097372532 | AR126: 0 | AS126: TRUE | AT126: 0.5121058535 | AU126: 395.4065908 | AV126: 0
B127: 6 | C127: 18 | D127: 2969.28687 | F127: 118 | G127: 6 | H127: 9 | I127: 813.5846023 | J127: 1 | K127: 0.05086034374 | L127: 0.05086034374 | M127: 7.504045928e+16 | N127: 0 | O127: FALSE | P127: 0 | Q127: 1.064754813e-16 | R127: 1.064754813e-16 | S127: 2.368037726e+13 | T127: 0 | U127: FALSE | V127: 0 | W127: 3.453928085e-13 | X127: 3.453928085e-13 | Y127: 7494258562 | Z127: 0 | AA127: FALSE | AB127: 0 | AC127: 9.958609517e-10 | AD127: 9.958609517e-10 | AE127: 2597525.85 | AF127: 0 | AG127: FALSE | AH127: 0 | AI127: 3.148153391e-06 | AJ127: 3.148153391e-06 | AK127: 821.679964 | AL127: 0 | AM127: FALSE | AN127: 0 | AO127: 0.00995533514 | AP127: 0.00995533514 | AQ127: 0.2598380194 | AR127: 0 | AS127: TRUE | AT127: 0.05086034374 | AU127: 31.48153391 | AV127: 0
B128: 6 | C128: 19 | D128: 3297.521371 | F128: 119 | G128: 12 | H128: 7 | I128: 814.7576539 | J128: 1 | K128: 0.01783081162 | L128: 0.01783081162 | M128: 2.675238402e+16 | N128: 0 | O128: FALSE | P128: 0 | Q128: 3.670846691e-17 | R128: 3.670846691e-17 | S128: 8.442199743e+12 | T128: 0 | U128: FALSE | V128: 0 | W128: 1.190775597e-13 | X128: 1.190775597e-13 | Y128: 2671749146 | Z128: 0 | AA128: FALSE | AB128: 0 | AC128: 3.433328345e-10 | AD128: 3.433328345e-10 | AE128: 926033.8984 | AF128: 0 | AG128: FALSE | AH128: 0 | AI128: 1.085356771e-06 | AJ128: 1.085356771e-06 | AK128: 292.9339472 | AL128: 0 | AM128: FALSE | AN128: 0 | AO128: 0.003432199471 | AP128: 0.003432199471 | AQ128: 0.09263384771 | AR128: 0 | AS128: TRUE | AT128: 0.01783081162 | AU128: 10.85356771 | AV128: 0
B129: 6 | C129: 20 | D129: 3643.498278 | F129: 120 | G129: 15 | H129: 5 | I129: 815.6374426 | J129: 1 | K129: 0.6999074118 | L129: 0.6999074118 | M129: 1.063362864e+18 | N129: 0 | O129: FALSE | P129: 0 | Q129: 1.422938759e-15 | R129: 1.422938759e-15 | S129: 3.355634283e+14 | T129: 0 | U129: FALSE | V129: 0 | W129: 4.615830878e-12 | X129: 4.615830878e-12 | Y129: 1.061975943e+11 | Z129: 0 | AA129: FALSE | AB129: 0 | AC129: 1.330868975e-08 | AD129: 1.330868975e-08 | AE129: 36808310.53 | AF129: 0 | AG129: FALSE | AH129: 0 | AI129: 4.207193455e-05 | AJ129: 4.207193455e-05 | AK129: 11643.63822 | AL129: 0 | AM129: FALSE | AN129: 0 | AO129: 0.1330431388 | AP129: 0.1330431388 | AQ129: 3.682041703 | AR129: 0 | AS129: TRUE | AT129: 0.6999074118 | AU129: 420.7193455 | AV129: 0
B130: 7 | C130: 1 | D130: 138.200142 | F130: 121 | G130: 16 | H130: 4 | I130: 817.6169672 | J130: 1 | K130: 0.886247451 | L130: 0.886247451 | M130: 1.384955603e+18 | N130: 0 | O130: FALSE | P130: 0 | Q130: 1.751703751e-15 | R130: 1.751703751e-15 | S130: 4.37047847e+14 | T130: 0 | U130: FALSE | V130: 0 | W130: 5.682302354e-12 | X130: 5.682302354e-12 | Y130: 1.383149235e+11 | Z130: 0 | AA130: FALSE | AB130: 0 | AC130: 1.638361567e-08 | AD130: 1.638361567e-08 | AE130: 47940244.7 | AF130: 0 | AG130: FALSE | AH130: 0 | AI130: 5.179250694e-05 | AJ130: 5.179250694e-05 | AK130: 15165.02272 | AL130: 0 | AM130: FALSE | AN130: 0 | AO130: 0.1637822876 | AP130: 0.1637822876 | AQ130: 4.795601257 | AR130: 0 | AS130: TRUE | AT130: 0.886247451 | AU130: 517.9250694 | AV130: 0
B131: 7 | C131: 2 | D131: 164.8137502 | F131: 122 | G131: 10 | H131: 8 | I131: 831.6935864 | J131: 1 | K131: 0.534671824 | L131: 0.534671824 | M131: 1.018972705e+18 | N131: 0 | O131: FALSE | P131: 0 | Q131: 8.665598424e-16 | R131: 8.665598424e-16 | S131: 3.215553089e+14 | T131: 0 | U131: FALSE | V131: 0 | W131: 2.811009014e-12 | X131: 2.811009014e-12 | Y131: 1.01764368e+11 | Z131: 0 | AA131: FALSE | AB131: 0 | AC131: 8.104899821e-09 | AD131: 8.104899821e-09 | AE131: 35271744.96 | AF131: 0 | AG131: FALSE | AH131: 0 | AI131: 2.562151655e-05 | AJ131: 2.562151655e-05 | AK131: 11157.57371 | AL131: 0 | AM131: FALSE | AN131: 0 | AO131: 0.08102234942 | AP131: 0.08102234942 | AQ131: 3.528334607 | AR131: 0 | AS131: TRUE | AT131: 0.534671824 | AU131: 256.2151655 | AV131: 0
B132: 7 | C132: 3 | D132: 209.1697639 | F132: 123 | G132: 14 | H132: 6 | I132: 836.6790557 | J132: 1 | K132: 0.244709448 | L132: 0.244709448 | M132: 4.99923716e+17 | N132: 0 | O132: FALSE | P132: 0 | Q132: 3.699851115e-16 | R132: 3.699851115e-16 | S132: 1.577599912e+14 | T132: 0 | U132: FALSE | V132: 0 | W132: 1.20018426e-12 | X132: 1.20018426e-12 | Y132: 4.992716763e+10 | Z132: 0 | AA132: FALSE | AB132: 0 | AC132: 3.460456067e-09 | AD132: 3.460456067e-09 | AE132: 17304861.78 | AF132: 0 | AG132: FALSE | AH132: 0 | AI132: 1.09393249e-05 | AJ132: 1.09393249e-05 | AK132: 5474.07765 | AL132: 0 | AM132: FALSE | AN132: 0 | AO132: 0.03459318274 | AP132: 0.03459318274 | AQ132: 1.731055346 | AR132: 0 | AS132: TRUE | AT132: 0.244709448 | AU132: 109.393249 | AV132: 0
B133: 7 | C133: 4 | D133: 271.2681832 | F133: 124 | G133: 17 | H133: 3 | I133: 842.6176295 | J133: 1 | K133: 0.6252037214 | L133: 0.6252037214 | M133: 1.386716827e+18 | N133: 0 | O133: FALSE | P133: 0 | Q133: 8.706464564e-16 | R133: 8.706464564e-16 | S133: 4.37603633e+14 | T133: 0 | U133: FALSE | V133: 0 | W133: 2.824265465e-12 | X133: 2.824265465e-12 | Y133: 1.384908162e+11 | Z133: 0 | AA133: FALSE | AB133: 0 | AC133: 8.143121759e-09 | AD133: 8.143121759e-09 | AE133: 48001209.47 | AF133: 0 | AG133: FALSE | AH133: 0 | AI133: 2.574234519e-05 | AJ133: 2.574234519e-05 | AK133: 15184.30781 | AL133: 0 | AM133: FALSE | AN133: 0 | AO133: 0.08140444313 | AP133: 0.08140444313 | AQ133: 4.801699739 | AR133: 0 | AS133: TRUE | AT133: 0.6252037214 | AU133: 257.4234519 | AV133: 0
B134: 7 | C134: 5 | D134: 351.1090079 | F134: 125 | G134: 7 | H134: 9 | I134: 847.8963617 | J134: 1 | K134: 0.3931395949 | L134: 0.3931395949 | M134: 9.376644206e+17 | N134: 0 | O134: FALSE | P134: 0 | Q134: 5.09134642e-16 | R134: 5.09134642e-16 | S134: 2.958970059e+14 | T134: 0 | U134: FALSE | V134: 0 | W134: 1.651567495e-12 | X134: 1.651567495e-12 | Y134: 9.364414451e+10 | Z134: 0 | AA134: FALSE | AB134: 0 | AC134: 4.761916104e-09 | AD134: 4.761916104e-09 | AE134: 32457258.32 | AF134: 0 | AG134: FALSE | AH134: 0 | AI134: 1.50535497e-05 | AJ134: 1.50535497e-05 | AK134: 10267.26215 | AL134: 0 | AM134: FALSE | AN134: 0 | AO134: 0.04760350393 | AP134: 0.04760350393 | AQ134: 3.246793373 | AR134: 0 | AS134: TRUE | AT134: 0.3931395949 | AU134: 150.535497 | AV134: 0
B135: 7 | C135: 6 | D135: 448.6922381 | F135: 126 | G135: 18 | H135: 1 | I135: 864.0258212 | J135: 1 | K135: 0.07740594304 | L135: 0.07740594304 | M135: 2.298410947e+17 | N135: 0 | O135: FALSE | P135: 0 | Q135: 8.052068185e-17 | R135: 8.052068185e-17 | S135: 7.253052398e+13 | T135: 0 | U135: FALSE | V135: 0 | W135: 2.611987671e-13 | X135: 2.611987671e-13 | Y135: 2.295413179e+10 | Z135: 0 | AA135: FALSE | AB135: 0 | AC135: 7.531067423e-10 | AD135: 7.531067423e-10 | AE135: 7955950.572 | AF135: 0 | AG135: FALSE | AH135: 0 | AI135: 2.380749583e-06 | AJ135: 2.380749583e-06 | AK135: 2516.71997 | AL135: 0 | AM135: FALSE | AN135: 0 | AO135: 0.007528591219 | AP135: 0.007528591219 | AQ135: 0.7958567337 | AR135: 0 | AS135: TRUE | AT135: 0.07740594304 | AU135: 23.80749583 | AV135: 0
B136: 7 | C136: 7 | D136: 564.0178738 | F136: 127 | G136: 13 | H136: 7 | I136: 880.7418066 | J136: 1 | K136: 0.06090047859 | L136: 0.06090047859 | M136: 2.259594995e+17 | N136: 0 | O136: FALSE | P136: 0 | Q136: 5.0698758e-17 | R136: 5.0698758e-17 | S136: 7.130561627e+13 | T136: 0 | U136: FALSE | V136: 0 | W136: 1.644602701e-13 | X136: 1.644602701e-13 | Y136: 2.256647854e+10 | Z136: 0 | AA136: FALSE | AB136: 0 | AC136: 4.741834719e-10 | AD136: 4.741834719e-10 | AE136: 7821589.138 | AF136: 0 | AG136: FALSE | AH136: 0 | AI136: 1.499006767e-06 | AJ136: 1.499006767e-06 | AK136: 2474.217179 | AL136: 0 | AM136: FALSE | AN136: 0 | AO136: 0.00474027561 | AP136: 0.00474027561 | AQ136: 0.7824161711 | AR136: 0 | AS136: TRUE | AT136: 0.06090047859 | AU136: 14.99006767 | AV136: 0
B137: 7 | C137: 8 | D137: 697.085915 | F137: 128 | G137: 11 | H137: 8 | I137: 887.1202746 | J137: 1 | K137: 0.3454894066 | L137: 0.3454894066 | M137: 1.394060501e+18 | N137: 0 | O137: FALSE | P137: 0 | Q137: 2.644687498e-16 | R137: 2.644687498e-16 | S137: 4.399210627e+14 | T137: 0 | U137: FALSE | V137: 0 | W137: 8.579027128e-13 | X137: 8.579027128e-13 | Y137: 1.392242258e+11 | Z137: 0 | AA137: FALSE | AB137: 0 | AC137: 2.473565723e-09 | AD137: 2.473565723e-09 | AE137: 48255410.8 | AF137: 0 | AG137: FALSE | AH137: 0 | AI137: 7.819529731e-06 | AJ137: 7.819529731e-06 | AK137: 15264.71977 | AL137: 0 | AM137: FALSE | AN137: 0 | AO137: 0.02472752418 | AP137: 0.02472752418 | AQ137: 4.827128232 | AR137: 0 | AS137: TRUE | AT137: 0.3454894066 | AU137: 78.19529731 | AV137: 0
B138: 7 | C138: 9 | D138: =3.1416/2*SQRT($H$2/$I$2)*(B138^2/$C$2^2+C138^2/$D$2^2) -> 847.8963617 | F138: 129 | G138: 8 | H138: 9 | I138: 887.4868533 | J138: 1 | K138: =ABS(SIN(G138*3.1416*$J$2/$C$2)*SIN(H138*3.1416*$K$2/$D$2))*(1/F138^$M$2)+(1-1/F138^$M$2) -> 0.7355093991 | L138: 0.7355093991 | M138: 2.982093286e+18 | N138: 0 | O138: FALSE | P138: 0 | Q138: 5.60327248e-16 | R138: 5.60327248e-16 | S138: 9.410535958e+14 | T138: 0 | U138: =AND($I138>44.548,$I138<89.095) -> FALSE | V138: 0 | W138: 1.817629744e-12 | X138: =IF($I138>89.095,W138,0) -> 1.817629744e-12 | Y138: 2.978203806e+11 | Z138: 0 | AA138: FALSE | AB138: 0 | AC138: 5.240718517e-09 | AD138: 5.240718517e-09 | AE138: 103225173.1 | AF138: 0 | AG138: FALSE | AH138: 0 | AI138: 1.656715804e-05 | AJ138: 1.656715804e-05 | AK138: 32653.40228 | AL138: 0 | AM138: FALSE | AN138: 0 | AO138: 0.05238995376 | AP138: 0.05238995376 | AQ138: 10.32591246 | AR138: 0 | AS138: TRUE | AT138: 0.7355093991 | AU138: 165.6715804 | AV138: 0
B139: 7 | C139: 10 | D139: 1016.449214 | F139: 130 | G139: 1 | H139: 10 | I139: 889.7596408 | J139: =IF(ABS(I139-I138)>0.0001,1,$L$2) -> 1 | K139: 0.4917339714 | L139: =$J139*$K139 -> 0.4917339714 | M139: =10^(LOG10($I139/22.27)/LOG10(2)*70/20)*$L139 -> 2.053893405e+18 | N139: =IF($I139<22.27,M139,0) -> 0 | O139: =AND($I139>22.27,$I139<44.45) -> FALSE | P139: =IF($O139=TRUE,$L139,0) -> 0 | Q139: =10^(LOG10(44.45/$I139)/LOG10(2)*70/20)*$L139 -> 3.636378137e-16 | R139: =IF($I139>44.45,Q139,0) -> 3.636378137e-16 | S139: =10^(LOG10($I139/44.548)/LOG10(2)*70/20)*$L139 -> 648143296746146 | T139: =IF($I139<44.528,S139,0) -> 0 | U139: FALSE | V139: =IF($U139=TRUE,$L139,0) -> 0 | W139: =10^(LOG10(89.095/$I139)/LOG10(2)*70/20)*$L139 -> 1.17959444e-12 | X139: 1.17959444e-12 | Y139: =10^(LOG10($I139/89.09)/LOG10(2)*70/20)*$L139 -> 2.051214556e+11 | Z139: =IF($I139<89.09,Y139,0) -> 0 | AA139: =AND($I139>89.09,$I139<176.78) -> FALSE | AB139: =IF($AA139=TRUE,$L139,0) -> 0 | AC139: =10^(LOG10(176.78/$I139)/LOG10(2)*70/20)*$L139 -> 3.401090042e-09 | AD139: =IF($I139>176.78,AC139,0) -> 3.401090042e-09 | AE139: =10^(LOG10($I139/176.78)/LOG10(2)*70/20)*$L139 -> 71095529.85 | AF139: =IF($I139<176.78,AE139,0) -> 0 | AG139: =AND($I139>176.78,$I139<353.55) -> FALSE | AH139: =IF($AG139=TRUE,$L139,0) -> 0 | AI139: =10^(LOG10(353.55/$I139)/LOG10(2)*70/20)*$L139 -> 1.075165477e-05 | AJ139: =IF($I139>353.55,AI139,0) -> 1.075165477e-05 | AK139: =10^(LOG10($I139/353.55)/LOG10(2)*70/20)*$L139 -> 22489.77518 | AL139: =IF($I139<353.55,AK139,0) -> 0 | AM139: =AND($I139>353.55,$I139<707.1) -> FALSE | AN139: =IF($AM139=TRUE,$L139,0) -> 0 | AO139: =10^(LOG10(707.1/$I139)/LOG10(2)*70/20)*$L139 -> 0.03399971769 | AP139: =IF($I139>707.1,AO139,0) -> 0.03399971769 | AQ139: =10^(LOG10($I139/707.1)/LOG10(2)*70/20)*$L139 -> 7.111891364 | AR139: =IF($I139<707.1,AQ139,0) -> 0 | AS139: =AND($I139>707.1,$I139<1414.2) -> TRUE | AT139: =IF($AS139=TRUE,$L139,0) -> 0.4917339714 | AU139: =10^(LOG10(1414.2/$I139)/LOG10(2)*70/20)*$L139 -> 107.5165477 | AV139: =IF($I139>1414.2,AU139,0) -> 0
B140: 7 | C140: 11 | D140: 1202.744472 | F140: 131 | G140: 18 | H140: 2 | I140: 890.6394295 | J140: 1 | K140: 0.1379383231 | L140: 0.1379383231 | M140: 5.828046523e+17 | N140: 0 | O140: FALSE | P140: 0 | Q140: 1.008401277e-16 | R140: 1.008401277e-16 | S140: 1.839145731e+14 | T140: 0 | U140: FALSE | V140: 0 | W140: 3.271124441e-13 | X140: 3.271124441e-13 | Y140: 5.820445128e+10 | Z140: 0 | AA140: FALSE | AB140: 0 | AC140: 9.431537134e-10 | AD140: 9.431537134e-10 | AE140: 20173785.78 | AF140: 0 | AG140: FALSE | AH140: 0 | AI140: 2.981533272e-06 | AJ140: 2.981533272e-06 | AK140: 6381.609473 | AL140: 0 | AM140: FALSE | AN140: 0 | AO140: 0.009428436058 | AP140: 0.009428436058 | AQ140: 2.018042107 | AR140: 0 | AS140: TRUE | AT140: 0.1379383231 | AU140: 29.81533272 | AV140: 0
B141: 7 | C141: 12 | D141: 1406.782135 | F141: 132 | G141: 16 | H141: 5 | I141: 897.4577919 | J141: 1 | K141: 0.6589188091 | L141: 0.6589188091 | M141: 3.042139302e+18 | N141: 0 | O141: FALSE | P141: 0 | Q141: 4.408300853e-16 | R141: 4.408300853e-16 | S141: 9.600022045e+14 | T141: 0 | U141: FALSE | V141: 0 | W141: 1.429996271e-12 | X141: 1.429996271e-12 | Y141: 3.038171505e+11 | Z141: 0 | AA141: FALSE | AB141: 0 | AC141: 4.123066296e-09 | AD141: 4.123066296e-09 | AE141: 105303666.2 | AF141: 0 | AG141: FALSE | AH141: 0 | AI141: 1.303399347e-05 | AJ141: 1.303399347e-05 | AK141: 33310.89569 | AL141: 0 | AM141: FALSE | AN141: 0 | AO141: 0.04121710638 | AP141: 0.04121710638 | AQ141: 10.53383013 | AR141: 0 | AS141: TRUE | AT141: 0.6589188091 | AU141: 130.3399347 | AV141: 0
B142: 7 | C142: 13 | D142: 1628.562203 | F142: 133 | G142: 2 | H142: 10 | I142: 897.6777391 | J142: 1 | K142: 0.8563502718 | L142: 0.8563502718 | M142: 3.964934207e+18 | N142: 0 | O142: FALSE | P142: 0 | Q142: 5.712857718e-16 | R142: 5.712857718e-16 | S142: 1.251206865e+15 | T142: 0 | U142: FALSE | V142: 0 | W142: 1.85317779e-12 | X142: 1.85317779e-12 | Y142: 3.959762829e+11 | Z142: 0 | AA142: FALSE | AB142: 0 | AC142: 5.343213155e-09 | AD142: 5.343213155e-09 | AE142: 137246216.2 | AF142: 0 | AG142: FALSE | AH142: 0 | AI142: 1.689116798e-05 | AJ142: 1.689116798e-05 | AK142: 43415.33925 | AL142: 0 | AM142: FALSE | AN142: 0 | AO142: 0.05341456315 | AP142: 0.05341456315 | AQ142: 13.72913574 | AR142: 0 | AS142: TRUE | AT142: 0.8563502718 | AU142: 168.9116798 | AV142: 0
B143: 7 | C143: 14 | D143: 1868.084678 | F143: 134 | G143: 17 | H143: 4 | I143: 904.7160487 | J143: 1 | K143: 0.6020147104 | L143: 0.6020147104 | M143: 3.052303429e+18 | N143: 0 | O143: FALSE | P143: 0 | Q143: 3.667524432e-16 | R143: 3.667524432e-16 | S143: 963209679131128 | T143: 0 | U143: FALSE | V143: 0 | W143: 1.189697899e-12 | X143: 1.189697899e-12 | Y143: 3.048322376e+11 | Z143: 0 | AA143: FALSE | AB143: 0 | AC143: 3.430221049e-09 | AD143: 3.430221049e-09 | AE143: 105655497.5 | AF143: 0 | AG143: FALSE | AH143: 0 | AI143: 1.084374481e-05 | AJ143: 1.084374481e-05 | AK143: 33422.19112 | AL143: 0 | AM143: FALSE | AN143: 0 | AO143: 0.03429093197 | AP143: 0.03429093197 | AQ143: 10.56902483 | AR143: 0 | AS143: TRUE | AT143: 0.6020147104 | AU143: 108.4374481 | AV143: 0
B144: 7 | C144: 15 | D144: 2125.349557 | F144: 135 | G144: 3 | H144: 10 | I144: 910.8745696 | J144: 1 | K144: 0.9995922957 | L144: 0.9995922957 | M144: 5.484022052e+18 | N144: 0 | O144: FALSE | P144: 0 | Q144: 5.627728288e-16 | R144: 5.627728288e-16 | S144: 1.730582573e+15 | T144: 0 | U144: FALSE | V144: 0 | W144: 1.825562895e-12 | X144: 1.825562895e-12 | Y144: 5.47686936e+11 | Z144: 0 | AA144: FALSE | AB144: 0 | AC144: 5.263591937e-09 | AD144: 5.263591937e-09 | AE144: 189829449.1 | AF144: 0 | AG144: FALSE | AH144: 0 | AI144: 1.663946636e-05 | AJ144: 1.663946636e-05 | AK144: 60049.08666 | AL144: 0 | AM144: FALSE | AN144: 0 | AO144: 0.05261861276 | AP144: 0.05261861276 | AQ144: 18.98918853 | AR144: 0 | AS144: TRUE | AT144: 0.9995922957 | AU144: 166.3946636 | AV144: 0
B145: 7 | C145: 16 | D145: 2400.356842 | F145: 136 | G145: 15 | H145: 6 | I145: 913.2206728 | J145: 1 | K145: 0.3058662157 | L145: 0.3058662157 | M145: 1.729006809e+18 | N145: 0 | O145: FALSE | P145: 0 | Q145: 1.671293905e-16 | R145: 1.671293905e-16 | S145: 545619442003537 | T145: 0 | U145: FALSE | V145: 0 | W145: 5.421463126e-13 | X145: 5.421463126e-13 | Y145: 1.726751703e+11 | Z145: 0 | AA145: FALSE | AB145: 0 | AC145: 1.563154558e-09 | AD145: 1.563154558e-09 | AE145: 59849578.82 | AF145: 0 | AG145: FALSE | AH145: 0 | AI145: 4.941503444e-06 | AJ145: 4.941503444e-06 | AK145: 18932.32353 | AL145: 0 | AM145: FALSE | AN145: 0 | AO145: 0.01562640595 | AP145: 0.01562640595 | AQ145: 5.986926374 | AR145: 0 | AS145: TRUE | AT145: 0.3058662157 | AU145: 49.41503444 | AV145: 0
B146: 7 | C146: 17 | D146: 2693.106533 | F146: 137 | G146: 4 | H146: 10 | I146: 929.3501323 | J146: 1 | K146: 0.8844306869 | L146: 0.8844306869 | M146: 6.128222148e+18 | N146: 0 | O146: FALSE | P146: 0 | Q146: 3.942571869e-16 | R146: 3.942571869e-16 | S146: 1.933871591e+15 | T146: 0 | U146: FALSE | V146: 0 | W146: 1.27891976e-12 | X146: 1.27891976e-12 | Y146: 6.12022924e+11 | Z146: 0 | AA146: FALSE | AB146: 0 | AC146: 3.687471825e-09 | AD146: 3.687471825e-09 | AE146: 212128438.4 | AF146: 0 | AG146: FALSE | AH146: 0 | AI146: 1.165697572e-05 | AJ146: 1.165697572e-05 | AK146: 67102.96555 | AL146: 0 | AM146: FALSE | AN146: 0 | AO146: 0.03686259389 | AP146: 0.03686259389 | AQ146: 21.21982089 | AR146: 0 | AS146: TRUE | AT146: 0.8844306869 | AU146: 116.5697572 | AV146: 0
B147: 7 | C147: 18 | D147: 3003.598629 | F147: 138 | G147: 9 | H147: 9 | I147: 932.3560771 | J147: 1 | K147: 0.8877433833 | L147: 0.8877433833 | M147: 6.386515451e+18 | N147: 0 | O147: FALSE | P147: 0 | Q147: 3.811513252e-16 | R147: 3.811513252e-16 | S147: 2.015380725e+15 | T147: 0 | U147: FALSE | V147: 0 | W147: 1.236406026e-12 | X147: 1.236406026e-12 | Y147: 6.378185656e+11 | Z147: 0 | AA147: FALSE | AB147: 0 | AC147: 3.564893221e-09 | AD147: 3.564893221e-09 | AE147: 221069262.3 | AF147: 0 | AG147: FALSE | AH147: 0 | AI147: 1.126947559e-05 | AJ147: 1.126947559e-05 | AK147: 69931.23225 | AL147: 0 | AM147: FALSE | AN147: 0 | AO147: 0.03563721089 | AP147: 0.03563721089 | AQ147: 22.11419735 | AR147: 0 | AS147: TRUE | AT147: 0.8877433833 | AU147: 112.6947559 | AV147: 0
B148: 7 | C148: 19 | D148: 3331.833131 | F148: 139 | G148: 18 | H148: 3 | I148: 934.9954432 | J148: 1 | K148: 0.1684018105 | L148: 0.1684018105 | M148: 1.251979747e+18 | N148: 0 | O148: FALSE | P148: 0 | Q148: 6.996530351e-17 | R148: 6.996530351e-17 | S148: 395084905143277 | T148: 0 | U148: FALSE | V148: 0 | W148: 2.269584732e-13 | X148: 2.269584732e-13 | Y148: 1.250346817e+11 | Z148: 0 | AA148: FALSE | AB148: 0 | AC148: 6.543827075e-10 | AD148: 6.543827075e-10 | AE148: 43337284.84 | AF148: 0 | AG148: FALSE | AH148: 0 | AI148: 2.068659421e-06 | AJ148: 2.068659421e-06 | AK148: 13708.96026 | AL148: 0 | AM148: FALSE | AN148: 0 | AO148: 0.006541675474 | AP148: 0.006541675474 | AQ148: 4.335153876 | AR148: 0 | AS148: TRUE | AT148: 0.1684018105 | AU148: 20.68659421 | AV148: 0
B149: 7 | C149: 20 | D149: 3677.810038 | F149: 140 | G149: 12 | H149: 8 | I149: 947.8256951 | J149: 1 | K149: 0.06699485857 | L149: 0.06699485857 | M149: 5.835936479e+17 | N149: 0 | O149: FALSE | P149: 0 | Q149: 2.375521177e-17 | R149: 2.375521177e-17 | S149: 1.84163555e+14 | T149: 0 | U149: FALSE | V149: 0 | W149: 7.705886095e-14 | X149: 7.705886095e-14 | Y149: 5.828324793e+10 | Z149: 0 | AA149: FALSE | AB149: 0 | AC149: 2.221815531e-10 | AD149: 2.221815531e-10 | AE149: 20201096.86 | AF149: 0 | AG149: FALSE | AH149: 0 | AI149: 7.02368748e-07 | AJ149: 7.02368748e-07 | AK149: 6390.248837 | AL149: 0 | AM149: FALSE | AN149: 0 | AO149: 0.002221085001 | AP149: 0.002221085001 | AQ149: 2.020774114 | AR149: 0 | AS149: TRUE | AT149: 0.06699485857 | AU149: 7.02368748 | AV149: 0
B150: 8 | C150: 1 | D150: 177.7906336 | F150: 141 | G150: 14 | H150: 7 | I150: 952.0046914 | J150: 1 | K150: 0.1238884453 | L150: 0.1238884453 | M150: 1.135831928e+18 | N150: 0 | O150: FALSE | P150: 0 | Q150: 4.17382318e-17 | R150: 4.17382318e-17 | S150: 3.584323551e+14 | T150: 0 | U150: FALSE | V150: 0 | W150: 1.353934721e-13 | X150: 1.353934721e-13 | Y150: 1.134350487e+11 | Z150: 0 | AA150: FALSE | AB150: 0 | AC150: 3.903760259e-10 | AD150: 3.903760259e-10 | AE150: 39316827.51 | AF150: 0 | AG150: FALSE | AH150: 0 | AI150: 1.234071491e-06 | AJ150: 1.234071491e-06 | AK150: 12437.16185 | AL150: 0 | AM150: FALSE | AN150: 0 | AO150: 0.003902476708 | AP150: 0.003902476708 | AQ150: 3.932975908 | AR150: 0 | AS150: TRUE | AT150: 0.1238884453 | AU150: 12.34071491 | AV150: 0
B151: 8 | C151: 2 | D151: 204.4042418 | F151: 142 | G151: 5 | H151: 10 | I151: 953.1044273 | J151: 1 | K151: 0.5406357609 | L151: 0.5406357609 | M151: 5.023630296e+18 | N151: 0 | O151: FALSE | P151: 0 | Q151: 1.797125393e-16 | R151: 1.797125393e-16 | S151: 1585297608287669 | T151: 0 | U151: FALSE | V151: 0 | W151: 5.829644337e-13 | X151: 5.829644337e-13 | Y151: 5.017078084e+11 | Z151: 0 | AA151: FALSE | AB151: 0 | AC151: 1.680844249e-09 | AD151: 1.680844249e-09 | AE151: 173892986.3 | AF151: 0 | AG151: FALSE | AH151: 0 | AI151: 5.313548557e-06 | AJ151: 5.313548557e-06 | AK151: 55007.8771 | AL151: 0 | AM151: FALSE | AN151: 0 | AO151: 0.0168029159 | AP151: 0.0168029159 | AQ151: 17.39501809 | AR151: 0 | AS151: TRUE | AT151: 0.5406357609 | AU151: 53.13548557 | AV151: 0
B152: 8 | C152: 3 | D152: 248.7602555 | F152: 143 | G152: 19 | H152: 1 | I152: 961.6823672 | J152: 1 | K152: 0.1525733283 | L152: 0.1525733283 | M152: 1.573378215e+18 | N152: 0 | O152: FALSE | P152: 0 | Q152: 4.569941294e-17 | R152: 4.569941294e-17 | S152: 4.965080178e+14 | T152: 0 | U152: FALSE | V152: 0 | W152: 1.482430358e-13 | X152: 1.482430358e-13 | Y152: 1.571326091e+11 | Z152: 0 | AA152: FALSE | AB152: 0 | AC152: 4.274247959e-10 | AD152: 4.274247959e-10 | AE152: 54462494.29 | AF152: 0 | AG152: FALSE | AH152: 0 | AI152: 1.351191468e-06 | AJ152: 1.351191468e-06 | AK152: 17228.21751 | AL152: 0 | AM152: FALSE | AN152: 0 | AO152: 0.004272842593 | AP152: 0.004272842593 | AQ152: 5.448040737 | AR152: 0 | AS152: TRUE | AT152: 0.1525733283 | AU152: 13.51191468 | AV152: 0
B153: 8 | C153: 4 | D153: 310.8586748 | F153: 144 | G153: 6 | H153: 10 | I153: 982.1374545 | J153: 1 | K153: 0.05708160978 | L153: 0.05708160978 | M153: 7.518417123e+17 | N153: 0 | O153: FALSE | P153: 0 | Q153: 1.338605241e-17 | R153: 1.338605241e-17 | S153: 2.372572817e+14 | T153: 0 | U153: FALSE | V153: 0 | W153: 4.34226376e-14 | X153: 4.34226376e-14 | Y153: 7.508611013e+10 | Z153: 0 | AA153: FALSE | AB153: 0 | AC153: 1.251992171e-10 | AD153: 1.251992171e-10 | AE153: 26025004.4 | AF153: 0 | AG153: FALSE | AH153: 0 | AI153: 3.95784511e-07 | AJ153: 3.95784511e-07 | AK153: 8232.535848 | AL153: 0 | AM153: FALSE | AN153: 0 | AO153: 0.001251580518 | AP153: 0.001251580518 | AQ153: 2.60335642 | AR153: 0 | AS153: TRUE | AT153: 0.05708160978 | AU153: 3.95784511 | AV153: 0
B154: 8 | C154: 5 | D154: 390.6994995 | F154: 145 | G154: 10 | H154: 9 | I154: 982.5040331 | J154: 1 | K154: 0.8104876884 | L154: 0.8104876884 | M154: 1.072163342e+19 | N154: 0 | O154: FALSE | P154: 0 | Q154: 1.892423809e-16 | R154: 1.892423809e-16 | S154: 3383405786166060 | T154: 0 | U154: FALSE | V154: 0 | W154: 6.13878018e-13 | X154: 6.13878018e-13 | Y154: 1.070764942e+12 | Z154: 0 | AA154: FALSE | AB154: 0 | AC154: 1.76997648e-09 | AD154: 1.76997648e-09 | AE154: 371129391.1 | AF154: 0 | AG154: FALSE | AH154: 0 | AI154: 5.595316743e-06 | AJ154: 5.595316743e-06 | AK154: 117400.0192 | AL154: 0 | AM154: FALSE | AN154: 0 | AO154: 0.01769394514 | AP154: 0.01769394514 | AQ154: 37.1251458 | AR154: 0 | AS154: TRUE | AT154: 0.8104876884 | AU154: 55.95316743 | AV154: 0
B155: 8 | C155: 6 | D155: 488.2827297 | F155: 146 | G155: 17 | H155: 5 | I155: 984.5568734 | J155: 1 | K155: 0.4475937455 | L155: 0.4475937455 | M155: 6.066494395e+18 | N155: 0 | O155: FALSE | P155: 0 | Q155: 1.020038892e-16 | R155: 1.020038892e-16 | S155: 1.91439228e+15 | T155: 0 | U155: FALSE | V155: 0 | W155: 3.308875372e-13 | X155: 3.308875372e-13 | Y155: 6.058581998e+11 | Z155: 0 | AA155: FALSE | AB155: 0 | AC155: 9.540383286e-10 | AD155: 9.540383286e-10 | AE155: 209991732 | AF155: 0 | AG155: FALSE | AH155: 0 | AI155: 3.01594213e-06 | AJ155: 3.01594213e-06 | AK155: 66427.05741 | AL155: 0 | AM155: FALSE | AN155: 0 | AO155: 0.009537246422 | AP155: 0.009537246422 | AQ155: 21.00607997 | AR155: 0 | AS155: TRUE | AT155: 0.4475937455 | AU155: 30.1594213 | AV155: 0
B156: 8 | C156: 7 | D156: 603.6083654 | F156: 147 | G156: 19 | H156: 2 | I156: 988.2959754 | J156: 1 | K156: 0.2718875092 | L156: 0.2718875092 | M156: 3.851085975e+18 | N156: 0 | O156: FALSE | P156: 0 | Q156: 5.929004926e-17 | R156: 5.929004926e-17 | S156: 1.215279992e+15 | T156: 0 | U156: FALSE | V156: 0 | W156: 1.923293173e-13 | X156: 1.923293173e-13 | Y156: 3.846063086e+11 | Z156: 0 | AA156: FALSE | AB156: 0 | AC156: 5.545374781e-10 | AD156: 5.545374781e-10 | AE156: 133305359.1 | AF156: 0 | AG156: FALSE | AH156: 0 | AI156: 1.753024897e-06 | AJ156: 1.753024897e-06 | AK156: 42168.72092 | AL156: 0 | AM156: FALSE | AN156: 0 | AO156: 0.00554355147 | AP156: 0.00554355147 | AQ156: 13.33492041 | AR156: 0 | AS156: TRUE | AT156: 0.2718875092 | AU156: 17.53024897 | AV156: 0
B157: 8 | C157: 8 | D157: 736.6764066 | F157: 148 | G157: 16 | H157: 6 | I157: 995.0410221 | J157: 1 | K157: 0.2879538053 | L157: 0.2879538053 | M157: 4.414298685e+18 | N157: 0 | O157: FALSE | P157: 0 | Q157: 5.801902709e-17 | R157: 5.801902709e-17 | S157: 1.393011972e+15 | T157: 0 | U157: FALSE | V157: 0 | W157: 1.882062844e-13 | X157: 1.882062844e-13 | Y157: 4.408541211e+11 | Z157: 0 | AA157: FALSE | AB157: 0 | AC157: 5.426496582e-10 | AD157: 5.426496582e-10 | AE157: 152800969.7 | AF157: 0 | AG157: FALSE | AH157: 0 | AI157: 1.71544467e-06 | AJ157: 1.71544467e-06 | AK157: 48335.80204 | AL157: 0 | AM157: FALSE | AN157: 0 | AO157: 0.005424712358 | AP157: 0.005424712358 | AQ157: 15.2851227 | AR157: 0 | AS157: TRUE | AT157: 0.2879538053 | AU157: 17.1544467 | AV157: 0
B158: 8 | C158: 9 | D158: 887.4868533 | F158: 149 | G158: 18 | H158: 4 | I158: 997.0938624 | J158: 1 | K158: 0.1621557322 | L158: 0.1621557322 | M158: 2.546113772e+18 | N158: 0 | O158: FALSE | P158: 0 | Q158: 3.189872453e-17 | R158: 3.189872453e-17 | S158: 803472356597073 | T158: 0 | U158: FALSE | V158: 0 | W158: 1.034753722e-13 | X158: 1.034753722e-13 | Y158: 2.542792931e+11 | Z158: 0 | AA158: FALSE | AB158: 0 | AC158: 2.983475048e-10 | AD158: 2.983475048e-10 | AE158: 88133740.17 | AF158: 0 | AG158: FALSE | AH158: 0 | AI158: 9.43147442e-07 | AJ158: 9.43147442e-07 | AK158: 27879.5025 | AL158: 0 | AM158: FALSE | AN158: 0 | AO158: 0.002982494086 | AP158: 0.002982494086 | AQ158: 8.816272795 | AR158: 0 | AS158: TRUE | AT158: 0.1621557322 | AU158: 9.43147442 | AV158: 0
B159: 8 | C159: 10 | D159: 1056.039705 | F159: 150 | G159: 13 | H159: 8 | I159: 1013.809848 | J159: 1 | K159: 0.2288184653 | L159: 0.2288184653 | M159: 4.35900201e+18 | N159: 0 | O159: FALSE | P159: 0 | Q159: 3.710065532e-17 | R159: 3.710065532e-17 | S159: 1.375562104e+15 | T159: 0 | U159: FALSE | V159: 0 | W159: 1.203497686e-13 | X159: 1.203497686e-13 | Y159: 4.353316657e+11 | Z159: 0 | AA159: FALSE | AB159: 0 | AC159: 3.470009571e-10 | AD159: 3.470009571e-10 | AE159: 150886875 | AF159: 0 | AG159: FALSE | AH159: 0 | AI159: 1.09695258e-06 | AJ159: 1.09695258e-06 | AK159: 47730.31307 | AL159: 0 | AM159: FALSE | AN159: 0 | AO159: 0.003468868637 | AP159: 0.003468868637 | AQ159: 15.09365027 | AR159: 0 | AS159: TRUE | AT159: 0.2288184653 | AU159: 10.9695258 | AV159: 0
B160: 8 | C160: 11 | D160: 1242.334963 | F160: 151 | G160: 7 | H160: 10 | I160: 1016.449214 | J160: 1 | K160: 0.4412286528 | L160: 0.4412286528 | M160: 8.663400387e+18 | N160: 0 | O160: FALSE | P160: 0 | Q160: 6.941055891e-17 | R160: 6.941055891e-17 | S160: 2733893042051533 | T160: 0 | U160: FALSE | V160: 0 | W160: 2.251589529e-13 | X160: 2.251589529e-13 | Y160: 8.652100901e+11 | Z160: 0 | AA160: FALSE | AB160: 0 | AC160: 6.491942033e-10 | AD160: 6.491942033e-10 | AE160: 299883645.1 | AF160: 0 | AG160: FALSE | AH160: 0 | AI160: 2.052257325e-06 | AJ160: 2.052257325e-06 | AK160: 94862.72588 | AL160: 0 | AM160: FALSE | AN160: 0 | AO160: 0.006489807491 | AP160: 0.006489807491 | AQ160: 29.99822788 | AR160: 0 | AS160: TRUE | AT160: 0.4412286528 | AU160: 20.52257325 | AV160: 0
B161: 8 | C161: 12 | D161: 1446.372626 | F161: 152 | G161: 15 | H161: 7 | I161: 1028.546309 | J161: 1 | K161: 0.1548501304 | L161: 0.1548501304 | M161: 3.488802716e+18 | N161: 0 | O161: FALSE | P161: 0 | Q161: 2.122918161e-17 | R161: 2.122918161e-17 | S161: 1.100954942e+15 | T161: 0 | U161: FALSE | V161: 0 | W161: 6.886474302e-14 | X161: 6.886474302e-14 | Y161: 3.484252346e+11 | Z161: 0 | AA161: FALSE | AB161: 0 | AC161: 1.985556932e-10 | AD161: 1.985556932e-10 | AE161: 120764922.4 | AF161: 0 | AG161: FALSE | AH161: 0 | AI161: 6.276817842e-07 | AJ161: 6.276817842e-07 | AK161: 38201.78231 | AL161: 0 | AM161: FALSE | AN161: 0 | AO161: 0.001984904084 | AP161: 0.001984904084 | AQ161: 12.08046428 | AR161: 0 | AS161: TRUE | AT161: 0.1548501304 | AU161: 6.276817842 | AV161: 0
B162: 8 | C162: 13 | D162: 1668.152695 | F162: 153 | G162: 19 | H162: 3 | I162: 1032.651989 | J162: 1 | K162: 0.3319334887 | L162: 0.3319334887 | M162: 7.833065605e+18 | N162: 0 | O162: FALSE | P162: 0 | Q162: 4.344670953e-17 | R162: 4.344670953e-17 | S162: 2471865849157680 | T162: 0 | U162: FALSE | V162: 0 | W162: 1.409355548e-13 | X162: 1.409355548e-13 | Y162: 7.822849106e+11 | Z162: 0 | AA162: FALSE | AB162: 0 | AC162: 4.063553503e-10 | AD162: 4.063553503e-10 | AE162: 271141602.7 | AF162: 0 | AG162: FALSE | AH162: 0 | AI162: 1.284585938e-06 | AJ162: 1.284585938e-06 | AK162: 85770.70458 | AL162: 0 | AM162: FALSE | AN162: 0 | AO162: 0.004062217413 | AP162: 0.004062217413 | AQ162: 27.1230783 | AR162: 0 | AS162: TRUE | AT162: 0.3319334887 | AU162: 12.84585938 | AV162: 0
B163: 8 | C163: 14 | D163: 1907.675169 | F163: 154 | G163: 11 | H163: 9 | I163: 1037.930721 | J163: 1 | K163: 0.523713609 | L163: 0.523713609 | M163: 1.311355978e+19 | N163: 0 | O163: FALSE | P163: 0 | Q163: 6.460314068e-17 | R163: 6.460314068e-17 | S163: 4138221510639036 | T163: 0 | U163: FALSE | V163: 0 | W163: 2.095643046e-13 | X163: 2.095643046e-13 | Y163: 1.309645605e+12 | Z163: 0 | AA163: FALSE | AB163: 0 | AC163: 6.042306113e-10 | AD163: 6.042306113e-10 | AE163: 453925933.4 | AF163: 0 | AG163: FALSE | AH163: 0 | AI163: 1.910116714e-06 | AJ163: 1.910116714e-06 | AK163: 143591.1964 | AL163: 0 | AM163: FALSE | AN163: 0 | AO163: 0.006040319412 | AP163: 0.006040319412 | AQ163: 45.40752326 | AR163: 0 | AS163: TRUE | AT163: 0.523713609 | AU163: 19.10116714 | AV163: 0
B164: 8 | C164: 15 | D164: 2164.940049 | F164: 155 | G164: 8 | H164: 10 | I164: 1056.039705 | J164: 1 | K164: 0.8254773252 | L164: 0.8254773252 | M164: 2.527380526e+19 | N164: 0 | O164: FALSE | P164: 0 | Q164: 8.327721156e-17 | R164: 8.327721156e-17 | S164: 7975607413143150 | T164: 0 | U164: FALSE | V164: 0 | W164: 2.70140596e-13 | X164: 2.70140596e-13 | Y164: 2.524084118e+12 | Z164: 0 | AA164: FALSE | AB164: 0 | AC164: 7.788884553e-10 | AD164: 7.788884553e-10 | AE164: 874852887.8 | AF164: 0 | AG164: FALSE | AH164: 0 | AI164: 2.462251711e-06 | AJ164: 2.462251711e-06 | AK164: 276743.7673 | AL164: 0 | AM164: FALSE | AN164: 0 | AO164: 0.007786323579 | AP164: 0.007786323579 | AQ164: 87.51406328 | AR164: 0 | AS164: TRUE | AT164: 0.8254773252 | AU164: 24.62251711 | AV164: 0
B165: 8 | C165: 16 | D165: 2439.947334 | F165: 156 | G165: 20 | H165: 1 | I165: 1064.617645 | J165: 1 | K165: 0.3431110168 | L165: 0.3431110168 | M165: 1.154116673e+19 | N165: 0 | O165: FALSE | P165: 0 | Q165: 3.150693261e-17 | R165: 3.150693261e-17 | S165: 3642024378716077 | T165: 0 | U165: FALSE | V165: 0 | W165: 1.022044494e-13 | X165: 1.022044494e-13 | Y165: 1.152611383e+12 | Z165: 0 | AA165: FALSE | AB165: 0 | AC165: 2.946830905e-10 | AD165: 2.946830905e-10 | AE165: 399497540.5 | AF165: 0 | AG165: FALSE | AH165: 0 | AI165: 9.315633565e-07 | AJ165: 9.315633565e-07 | AK165: 126373.7663 | AL165: 0 | AM165: FALSE | AN165: 0 | AO165: 0.002945861991 | AP165: 0.002945861991 | AQ165: 39.96289379 | AR165: 0 | AS165: TRUE | AT165: 0.3431110168 | AU165: 9.315633565 | AV165: 0
B166: 8 | C166: 17 | D166: 2732.697025 | F166: 157 | G166: 1 | H166: 11 | I166: 1076.054898 | J166: 1 | K166: 0.4381354706 | L166: 0.4381354706 | M166: 1.668708651e+19 | N166: 0 | O166: FALSE | P166: 0 | Q166: 3.553225943e-17 | R166: 3.553225943e-17 | S166: 5265912650702256 | T166: 0 | U166: FALSE | V166: 0 | W166: 1.152620935e-13 | X166: 1.152620935e-13 | Y166: 1.66653219e+12 | Z166: 0 | AA166: FALSE | AB166: 0 | AC166: 3.323318126e-10 | AD166: 3.323318126e-10 | AE166: 577623577.9 | AF166: 0 | AG166: FALSE | AH166: 0 | AI166: 1.050579924e-06 | AJ166: 1.050579924e-06 | AK166: 182720.6919 | AL166: 0 | AM166: FALSE | AN166: 0 | AO166: 0.003322225423 | AP166: 0.003322225423 | AQ166: 57.78135621 | AR166: 0 | AS166: TRUE | AT166: 0.4381354706 | AU166: 10.50579924 | AV166: 0
B167: 8 | C167: 18 | D167: 3043.189121 | F167: 158 | G167: 18 | H167: 5 | I167: 1076.934687 | J167: 1 | K167: 0.1205616578 | L167: 0.1205616578 | M167: 4.635622614e+18 | N167: 0 | O167: FALSE | P167: 0 | Q167: 9.6849384e-18 | R167: 9.6849384e-18 | S167: 1.46285475e+15 | T167: 0 | U167: FALSE | V167: 0 | W167: 3.141669831e-14 | X167: 3.141669831e-14 | Y167: 4.629576472e+11 | Z167: 0 | AA167: FALSE | AB167: 0 | AC167: 9.058284456e-11 | AD167: 9.058284456e-11 | AE167: 160462098.6 | AF167: 0 | AG167: FALSE | AH167: 0 | AI167: 2.86353922e-07 | AJ167: 2.86353922e-07 | AK167: 50759.26053 | AL167: 0 | AM167: FALSE | AN167: 0 | AO167: 0.0009055306106 | AP167: 0.0009055306106 | AQ167: 16.05148756 | AR167: 0 | AS167: TRUE | AT167: 0.1205616578 | AU167: 2.86353922 | AV167: 0
B168: 8 | C168: 19 | D168: 3371.423622 | F168: 159 | G168: 17 | H168: 6 | I168: 1082.140104 | J168: 1 | K168: 0.1956027366 | L168: 0.1956027366 | M168: 7.954660918e+18 | N168: 0 | O168: FALSE | P168: 0 | Q168: 1.485643799e-17 | R168: 1.485643799e-17 | S168: 2510237454622325 | T168: 0 | U168: FALSE | V168: 0 | W168: 4.819237986e-14 | X168: 4.819237986e-14 | Y168: 7.944285825e+11 | Z168: 0 | AA168: FALSE | AB168: 0 | AC168: 1.38951675e-10 | AD168: 1.38951675e-10 | AE168: 275350625 | AF168: 0 | AG168: FALSE | AH168: 0 | AI168: 4.392593024e-07 | AJ168: 4.392593024e-07 | AK168: 87102.15209 | AL168: 0 | AM168: FALSE | AN168: 0 | AO168: 0.001389059879 | AP168: 0.001389059879 | AQ168: 27.54411897 | AR168: 0 | AS168: TRUE | AT168: 0.1956027366 | AU168: 4.392593024 | AV168: 0
B169: 8 | C169: 20 | D169: 3717.400529 | F169: 160 | G169: 2 | H169: 11 | I169: 1083.972997 | J169: 1 | K169: 0.7630089666 | L169: 0.7630089666 | M169: 3.164621061e+19 | N169: 0 | O169: FALSE | P169: 0 | Q169: 5.682299001e-17 | R169: 5.682299001e-17 | S169: 9986535440954232 | T169: 0 | U169: FALSE | V169: 0 | W169: 1.843264934e-13 | X169: 1.843264934e-13 | Y169: 3.160493514e+12 | Z169: 0 | AA169: FALSE | AB169: 0 | AC169: 5.314631708e-10 | AD169: 5.314631708e-10 | AE169: 1095433729 | AF169: 0 | AG169: FALSE | AH169: 0 | AI169: 1.680081522e-06 | AJ169: 1.680081522e-06 | AK169: 346520.4964 | AL169: 0 | AM169: FALSE | AN169: 0 | AO169: 0.005312884265 | AP169: 0.005312884265 | AQ169: 109.5794025 | AR169: 0 | AS169: TRUE | AT169: 0.7630089666 | AU169: 16.80081522 | AV169: 0
B170: 9 | C170: 1 | D170: 222.6598574 | F170: 161 | G170: 14 | H170: 8 | I170: 1085.072733 | J170: 1 | K170: 0.4654801501 | L170: 0.4654801501 | M170: 1.953500387e+19 | N170: 0 | O170: FALSE | P170: 0 | Q170: 3.425905215e-17 | R170: 3.425905215e-17 | S170: 6164624600001417 | T170: 0 | U170: FALSE | V170: 0 | W170: 1.111319723e-13 | X170: 1.111319723e-13 | Y170: 1.950952478e+12 | Z170: 0 | AA170: FALSE | AB170: 0 | AC170: 3.204235553e-10 | AD170: 3.204235553e-10 | AE170: 676204250.6 | AF170: 0 | AG170: FALSE | AH170: 0 | AI170: 1.01293509e-06 | AJ170: 1.01293509e-06 | AK170: 213904.8911 | AL170: 0 | AM170: FALSE | AN170: 0 | AO170: 0.003203182005 | AP170: 0.003203182005 | AQ170: 67.64266587 | AR170: 0 | AS170: TRUE | AT170: 0.4654801501 | AU170: 10.1293509 | AV170: 0
B171: 9 | C171: 2 | D171: 249.2734656 | F171: 162 | G171: 20 | H171: 2 | I171: 1091.231254 | J171: 1 | K171: 0.6114279657 | L171: 0.6114279657 | M171: 2.740536267e+19 | N171: 0 | O171: FALSE | P171: 0 | Q171: 4.213486018e-17 | R171: 4.213486018e-17 | S171: 8648258993419783 | T171: 0 | U171: FALSE | V171: 0 | W171: 1.366800837e-13 | X171: 1.366800837e-13 | Y171: 2.736961844e+12 | Z171: 0 | AA171: FALSE | AB171: 0 | AC171: 3.940856754e-10 | AD171: 3.940856754e-10 | AE171: 948636757.5 | AF171: 0 | AG171: FALSE | AH171: 0 | AI171: 1.245798576e-06 | AJ171: 1.245798576e-06 | AK171: 300083.9497 | AL171: 0 | AM171: FALSE | AN171: 0 | AO171: 0.003939561006 | AP171: 0.003939561006 | AQ171: 94.89487704 | AR171: 0 | AS171: TRUE | AT171: 0.6114279657 | AU171: 12.45798576 | AV171: 0
B172: 9 | C172: 3 | D172: 293.6294793 | F172: 163 | G172: 19 | H172: 4 | I172: 1094.750408 | J172: 1 | K172: 0.3196219668 | L172: 0.3196219668 | M172: 1.487252776e+19 | N172: 0 | O172: FALSE | P172: 0 | Q172: 2.121655973e-17 | R172: 2.121655973e-17 | S172: 4693295742742776 | T172: 0 | U172: FALSE | V172: 0 | W172: 6.882379927e-14 | X172: 6.882379927e-14 | Y172: 1.485312984e+12 | Z172: 0 | AA172: FALSE | AB172: 0 | AC172: 1.984376413e-10 | AD172: 1.984376413e-10 | AE172: 514812618.2 | AF172: 0 | AG172: FALSE | AH172: 0 | AI172: 6.273085941e-07 | AJ172: 6.273085941e-07 | AK172: 162851.5895 | AL172: 0 | AM172: FALSE | AN172: 0 | AO172: 0.001983723953 | AP172: 0.001983723953 | AQ172: 51.49819435 | AR172: 0 | AS172: TRUE | AT172: 0.3196219668 | AU172: 6.273085941 | AV172: 0
B173: 9 | C173: 4 | D173: 355.7278986 | F173: 164 | G173: 3 | H173: 11 | I173: 1097.169827 | J173: 1 | K173: 0.8906377562 | L173: 0.8906377562 | M173: 4.252029787e+19 | N173: 0 | O173: FALSE | P173: 0 | Q173: 5.762254276e-17 | R173: 5.762254276e-17 | S173: 1.34180508e+16 | T173: 0 | U173: FALSE | V173: 0 | W173: 1.869201401e-13 | X173: 1.869201401e-13 | Y173: 4.246483956e+12 | Z173: 0 | AA173: FALSE | AB173: 0 | AC173: 5.38941356e-10 | AD173: 5.38941356e-10 | AE173: 1471840310 | AF173: 0 | AG173: FALSE | AH173: 0 | AI173: 1.703721845e-06 | AJ173: 1.703721845e-06 | AK173: 465589.8586 | AL173: 0 | AM173: FALSE | AN173: 0 | AO173: 0.005387641529 | AP173: 0.005387641529 | AQ173: 147.2324409 | AR173: 0 | AS173: TRUE | AT173: 0.8906377562 | AU173: 17.03721845 | AV173: 0
B174: 9 | C174: 5 | D174: 435.5687233 | F174: 165 | G174: 12 | H174: 9 | I174: 1098.636142 | J174: 1 | K174: 0.1015548335 | L174: 0.1015548335 | M174: 4.924244543e+18 | N174: 0 | O174: FALSE | P174: 0 | Q174: 6.469163058e-18 | R174: 6.469163058e-18 | S174: 1.553934632e+15 | T174: 0 | U174: FALSE | V174: 0 | W174: 2.098513545e-14 | X174: 2.098513545e-14 | Y174: 4.917821957e+11 | Z174: 0 | AA174: FALSE | AB174: 0 | AC174: 6.050582538e-11 | AD174: 6.050582538e-11 | AE174: 170452748 | AF174: 0 | AG174: FALSE | AH174: 0 | AI174: 1.912733089e-07 | AJ174: 1.912733089e-07 | AK174: 53919.6204 | AL174: 0 | AM174: FALSE | AN174: 0 | AO174: 0.0006048593116 | AP174: 0.0006048593116 | AQ174: 17.0508811 | AR174: 0 | AS174: TRUE | AT174: 0.1015548335 | AU174: 1.912733089 | AV174: 0
B175: 9 | C175: 6 | D175: 533.1519535 | F175: 166 | G175: 9 | H175: 10 | I175: 1100.908929 | J175: 1 | K175: 0.9963326566 | L175: 0.9963326566 | M175: 4.948556455e+19 | N175: 0 | O175: FALSE | P175: 0 | Q175: 6.196075695e-17 | R175: 6.196075695e-17 | S175: 1.561606697e+16 | T175: 0 | U175: FALSE | V175: 0 | W175: 2.009927506e-13 | X175: 2.009927506e-13 | Y175: 4.942102159e+12 | Z175: 0 | AA175: FALSE | AB175: 0 | AC175: 5.795165012e-10 | AD175: 5.795165012e-10 | AE175: 1712943049 | AF175: 0 | AG175: FALSE | AH175: 0 | AI175: 1.831989532e-06 | AJ175: 1.831989532e-06 | AK175: 541858.316 | AL175: 0 | AM175: FALSE | AN175: 0 | AO175: 0.00579325957 | AP175: 0.00579325957 | AQ175: 171.3506448 | AR175: 0 | AS175: TRUE | AT175: 0.9963326566 | AU175: 18.31989532 | AV175: 0
B176: 9 | C176: 7 | D176: 648.4775892 | F176: 167 | G176: 16 | H176: 7 | I176: 1110.366658 | J176: 1 | K176: 0.1457816588 | L176: 0.1457816588 | M176: 7.997801692e+18 | N176: 0 | O176: FALSE | P176: 0 | Q176: 8.207703457e-18 | R176: 8.207703457e-18 | S176: 2523851308011175 | T176: 0 | U176: FALSE | V176: 0 | W176: 2.662473758e-14 | X176: 2.662473758e-14 | Y176: 7.987370332e+11 | Z176: 0 | AA176: FALSE | AB176: 0 | AC176: 7.676632476e-11 | AD176: 7.676632476e-11 | AE176: 276843943.1 | AF176: 0 | AG176: FALSE | AH176: 0 | AI176: 2.426766159e-07 | AJ176: 2.426766159e-07 | AK176: 87574.53606 | AL176: 0 | AM176: FALSE | AN176: 0 | AO176: 0.000767410841 | AP176: 0.000767410841 | AQ176: 27.6934999 | AR176: 0 | AS176: TRUE | AT176: 0.1457816588 | AU176: 2.426766159 | AV176: 0
B177: 9 | C177: 8 | D177: 781.5456304 | F177: 168 | G177: 4 | H177: 11 | I177: 1115.64539 | J177: 1 | K177: 0.7880286451 | L177: 0.7880286451 | M177: 4.56833658e+19 | N177: 0 | O177: FALSE | P177: 0 | Q177: 4.198676637e-17 | R177: 4.198676637e-17 | S177: 1.441621423e+16 | T177: 0 | U177: FALSE | V177: 0 | W177: 1.361996863e-13 | X177: 1.361996863e-13 | Y177: 4.562378197e+12 | Z177: 0 | AA177: FALSE | AB177: 0 | AC177: 3.927005599e-10 | AD177: 3.927005599e-10 | AE177: 1581329922 | AF177: 0 | AG177: FALSE | AH177: 0 | AI177: 1.241419896e-06 | AJ177: 1.241419896e-06 | AK177: 500224.9017 | AL177: 0 | AM177: FALSE | AN177: 0 | AO177: 0.003925714405 | AP177: 0.003925714405 | AQ177: 158.1850032 | AR177: 0 | AS177: TRUE | AT177: 0.7880286451 | AU177: 12.41419896 | AV177: 0
B178: 9 | C178: 9 | D178: 932.3560771 | F178: 169 | G178: 20 | H178: 3 | I178: 1135.587267 | J178: 1 | K178: 0.7464609845 | L178: 0.7464609845 | M178: 5.317204301e+19 | N178: 0 | O178: FALSE | P178: 0 | Q178: 3.23681138e-17 | R178: 3.23681138e-17 | S178: 1.677940207e+16 | T178: 0 | U178: FALSE | V178: 0 | W178: 1.049980108e-13 | X178: 1.049980108e-13 | Y178: 5.310269186e+12 | Z178: 0 | AA178: FALSE | AB178: 0 | AC178: 3.02737684e-10 | AD178: 3.02737684e-10 | AE178: 1840550519 | AF178: 0 | AG178: FALSE | AH178: 0 | AI178: 9.570258429e-07 | AJ178: 9.570258429e-07 | AK178: 582224.6133 | AL178: 0 | AM178: FALSE | AN178: 0 | AO178: 0.003026381443 | AP178: 0.003026381443 | AQ178: 184.1155888 | AR178: 0 | AS178: TRUE | AT178: 0.7464609845 | AU178: 9.570258429 | AV178: 0
B179: 9 | C179: 10 | D179: 1100.908929 | F179: 170 | G179: 5 | H179: 11 | I179: 1139.399685 | J179: 1 | K179: 0.481707015 | L179: 0.481707015 | M179: 3.567655203e+19 | N179: 0 | O179: FALSE | P179: 0 | Q179: 2.00895209e-17 | R179: 2.00895209e-17 | S179: 1.125838274e+16 | T179: 0 | U179: FALSE | V179: 0 | W179: 6.516782983e-14 | X179: 6.516782983e-14 | Y179: 3.563001987e+12 | Z179: 0 | AA179: FALSE | AB179: 0 | AC179: 1.878964919e-10 | AD179: 1.878964919e-10 | AE179: 1234944016 | AF179: 0 | AG179: FALSE | AH179: 0 | AI179: 5.939855129e-07 | AJ179: 5.939855129e-07 | AK179: 390652.0332 | AL179: 0 | AM179: FALSE | AN179: 0 | AO179: 0.001878347118 | AP179: 0.001878347118 | AQ179: 123.5350197 | AR179: 0 | AS179: TRUE | AT179: 0.481707015 | AU179: 5.939855129 | AV179: 0
B180: 9 | C180: 11 | D180: 1287.204187 | F180: 171 | G180: 10 | H180: 10 | I180: 1151.056885 | J180: 1 | K180: 0.9096270014 | L180: 0.9096270014 | M180: 7.583357333e+19 | N180: 0 | O180: FALSE | P180: 0 | Q180: 3.370169e-17 | R180: 3.370169e-17 | S180: 2.393065877e+16 | T180: 0 | U180: FALSE | V180: 0 | W180: 1.093239609e-13 | X180: 1.093239609e-13 | Y180: 7.573466524e+12 | Z180: 0 | AA180: FALSE | AB180: 0 | AC180: 3.152105693e-10 | AD180: 3.152105693e-10 | AE180: 2624979497 | AF180: 0 | AG180: FALSE | AH180: 0 | AI180: 9.964556005e-07 | AJ180: 9.964556005e-07 | AK180: 830364.4248 | AL180: 0 | AM180: FALSE | AN180: 0 | AO180: 0.003151069285 | AP180: 0.003151069285 | AQ180: 262.584287 | AR180: 0 | AS180: TRUE | AT180: 0.9096270014 | AU180: 9.964556005 | AV180: 0
B181: 9 | C181: 12 | D181: 1491.24185 | F181: 172 | G181: 15 | H181: 8 | I181: 1161.61435 | J181: 1 | K181: 0.5818110137 | L181: 0.5818110137 | M181: 5.393644034e+19 | N181: 0 | O181: FALSE | P181: 0 | Q181: 1.938510282e-17 | R181: 1.938510282e-17 | S181: 1.702062151e+16 | T181: 0 | U181: FALSE | V181: 0 | W181: 6.288278788e-14 | X181: 6.288278788e-14 | Y181: 5.38660922e+12 | Z181: 0 | AA181: FALSE | AB181: 0 | AC181: 1.813080975e-10 | AD181: 1.813080975e-10 | AE181: 1867010136 | AF181: 0 | AG181: FALSE | AH181: 0 | AI181: 5.731580307e-07 | AJ181: 5.731580307e-07 | AK181: 590594.631 | AL181: 0 | AM181: FALSE | AN181: 0 | AO181: 0.001812484836 | AP181: 0.001812484836 | AQ181: 186.7624208 | AR181: 0 | AS181: TRUE | AT181: 0.5818110137 | AU181: 5.731580307 | AV181: 0
B182: 9 | C182: 13 | D182: 1713.021919 | F182: 173 | G182: 13 | H182: 9 | I182: 1164.620294 | J182: 1 | K182: 0.3468567833 | L182: 0.3468567833 | M182: 3.313601115e+19 | N182: 0 | O182: FALSE | P182: 0 | Q182: 1.121467442e-17 | R182: 1.121467442e-17 | S182: 1.045666901e+16 | T182: 0 | U182: FALSE | V182: 0 | W182: 3.637896581e-14 | X182: 3.637896581e-14 | Y182: 3.309279257e+12 | Z182: 0 | AA182: FALSE | AB182: 0 | AC182: 1.048904049e-10 | AD182: 1.048904049e-10 | AE182: 1147003182 | AF182: 0 | AG182: FALSE | AH182: 0 | AI182: 3.31583524e-07 | AJ182: 3.31583524e-07 | AK182: 362833.5529 | AL182: 0 | AM182: FALSE | AN182: 0 | AO182: 0.001048559171 | AP182: 0.001048559171 | AQ182: 114.7380439 | AR182: 0 | AS182: TRUE | AT182: 0.3468567833 | AU182: 3.31583524 | AV182: 0
B183: 9 | C183: 14 | D183: 1952.544393 | F183: 174 | G183: 6 | H183: 11 | I183: 1168.432712 | J183: 1 | K183: 0.0508597726 | L183: 0.0508597726 | M183: 5.046925748e+18 | N183: 0 | O183: FALSE | P183: 0 | Q183: 1.583100281e-18 | R183: 1.583100281e-18 | S183: 1592648910283496 | T183: 0 | U183: FALSE | V183: 0 | W183: 5.135374319e-15 | X183: 5.135374319e-15 | Y183: 5.040343151e+11 | Z183: 0 | AA183: FALSE | AB183: 0 | AC183: 1.480667412e-11 | AD183: 1.480667412e-11 | AE183: 174699358.5 | AF183: 0 | AG183: FALSE | AH183: 0 | AI183: 4.680741951e-08 | AJ183: 4.680741951e-08 | AK183: 55262.95823 | AL183: 0 | AM183: FALSE | AN183: 0 | AO183: 0.000148018057 | AP183: 0.000148018057 | AQ183: 17.47568183 | AR183: 0 | AS183: TRUE | AT183: 0.0508597726 | AU183: 0.4680741951 | AV183: 0
B184: 9 | C184: 15 | D184: 2209.809273 | F184: 175 | G184: 18 | H184: 6 | I184: 1174.517917 | J184: 1 | K184: 0.05268659455 | L184: 0.05268659455 | M184: 5.553692962e+18 | N184: 0 | O184: FALSE | P184: 0 | Q184: 1.543849297e-18 | R184: 1.543849297e-18 | S184: 1.752568491e+15 | T184: 0 | U184: FALSE | V184: 0 | W184: 5.008049157e-15 | X184: 5.008049157e-15 | Y184: 5.5464494e+11 | Z184: 0 | AA184: FALSE | AB184: 0 | AC184: 1.443956121e-11 | AD184: 1.443956121e-11 | AE184: 192241108 | AF184: 0 | AG184: FALSE | AH184: 0 | AI184: 4.564688827e-08 | AJ184: 4.564688827e-08 | AK184: 60811.971 | AL184: 0 | AM184: FALSE | AN184: 0 | AO184: 0.000144348135 | AP184: 0.000144348135 | AQ184: 19.23043374 | AR184: 0 | AS184: TRUE | AT184: 0.05268659455 | AU184: 0.4564688827 | AV184: 0
B185: 9 | C185: 16 | D185: 2484.816558 | F185: 176 | G185: 19 | H185: 5 | I185: 1174.591233 | J185: 1 | K185: 0.2376367069 | L185: 0.2376367069 | M185: 2.506746681e+19 | N185: 0 | O185: FALSE | P185: 0 | Q185: 6.958299463e-18 | R185: 6.958299463e-18 | S185: 7910493573775692 | T185: 0 | U185: FALSE | V185: 0 | W185: 2.257183123e-14 | X185: 2.257183123e-14 | Y185: 2.503477185e+12 | Z185: 0 | AA185: FALSE | AB185: 0 | AC185: 6.508069877e-11 | AD185: 6.508069877e-11 | AE185: 867710481.3 | AF185: 0 | AG185: FALSE | AH185: 0 | AI185: 2.05735572e-07 | AJ185: 2.05735572e-07 | AK185: 274484.3971 | AL185: 0 | AM185: FALSE | AN185: 0 | AO185: 0.0006505930033 | AP185: 0.0006505930033 | AQ185: 86.79958771 | AR185: 0 | AS185: TRUE | AT185: 0.2376367069 | AU185: 2.05735572 | AV185: 0
B186: 9 | C186: 17 | D186: 2777.566248 | F186: 177 | G186: 17 | H186: 7 | I186: 1197.465739 | J186: 1 | K186: 0.09902731231 | L186: 0.09902731231 | M186: 1.307198472e+19 | N186: 0 | O186: FALSE | P186: 0 | Q186: 2.31715436e-18 | R186: 2.31715436e-18 | S186: 4.125101747e+15 | T186: 0 | U186: FALSE | V186: 0 | W186: 7.516551627e-15 | X186: 7.516551627e-15 | Y186: 1.305493521e+12 | Z186: 0 | AA186: FALSE | AB186: 0 | AC186: 2.167225279e-11 | AD186: 2.167225279e-11 | AE186: 452486812.4 | AF186: 0 | AG186: FALSE | AH186: 0 | AI186: 6.851114706e-08 | AJ186: 6.851114706e-08 | AK186: 143135.9567 | AL186: 0 | AM186: FALSE | AN186: 0 | AO186: 0.0002166512698 | AP186: 0.0002166512698 | AQ186: 45.26356384 | AR186: 0 | AS186: TRUE | AT186: 0.09902731231 | AU186: 0.6851114706 | AV186: 0
B187: 9 | C187: 18 | D187: 3088.058344 | F187: 178 | G187: 20 | H187: 4 | I187: 1197.685686 | J187: 1 | K187: 0.7187745018 | L187: 0.7187745018 | M187: 9.508381149e+19 | N187: 0 | O187: FALSE | P187: 0 | Q187: 1.678283232e-17 | R187: 1.678283232e-17 | S187: 3.000542039e+16 | T187: 0 | U187: FALSE | V187: 0 | W187: 5.444135607e-14 | X187: 5.444135607e-14 | Y187: 9.495979572e+12 | Z187: 0 | AA187: FALSE | AB187: 0 | AC187: 1.569691648e-10 | AD187: 1.569691648e-10 | AE187: 3291326581 | AF187: 0 | AG187: FALSE | AH187: 0 | AI187: 4.962168741e-07 | AJ187: 4.962168741e-07 | AK187: 1041151.181 | AL187: 0 | AM187: FALSE | AN187: 0 | AO187: 0.001569175535 | AP187: 0.001569175535 | AQ187: 329.2409121 | AR187: 0 | AS187: TRUE | AT187: 0.7187745018 | AU187: 4.962168741 | AV187: 0
B188: 9 | C188: 19 | D188: 3416.292846 | F188: 179 | G188: 7 | H188: 11 | I188: 1202.744472 | J188: 1 | K188: 0.3931351802 | L188: 0.3931351802 | M188: 5.461836656e+19 | N188: 0 | O188: FALSE | P188: 0 | Q188: 8.740406339e-18 | R188: 8.740406339e-18 | S188: 1.723581569e+16 | T188: 0 | U188: FALSE | V188: 0 | W188: 2.835275742e-14 | X188: 2.835275742e-14 | Y188: 5.4547129e+12 | Z188: 0 | AA188: FALSE | AB188: 0 | AC188: 8.174867367e-11 | AD188: 8.174867367e-11 | AE188: 1890615015 | AF188: 0 | AG188: FALSE | AH188: 0 | AI188: 2.584270061e-07 | AJ188: 2.584270061e-07 | AK188: 598061.6044 | AL188: 0 | AM188: FALSE | AN188: 0 | AO188: 0.0008172179482 | AP188: 0.0008172179482 | AQ188: 189.1236851 | AR188: 0 | AS188: TRUE | AT188: 0.3931351802 | AU188: 2.584270061 | AV188: 0
B189: 9 | C189: 20 | D189: 3762.269753 | F189: 180 | G189: 11 | H189: 10 | I189: 1206.483574 | J189: 1 | K189: 0.5877745541 | L189: 0.5877745541 | M189: 8.466052309e+19 | N189: 0 | O189: FALSE | P189: 0 | Q189: 1.260454367e-17 | R189: 1.260454367e-17 | S189: 2.671616278e+16 | T189: 0 | U189: FALSE | V189: 0 | W189: 4.088752344e-14 | X189: 4.088752344e-14 | Y189: 8.455010219e+12 | Z189: 0 | AA189: FALSE | AB189: 0 | AC189: 1.178897968e-10 | AD189: 1.178897968e-10 | AE189: 2930524404 | AF189: 0 | AG189: FALSE | AH189: 0 | AI189: 3.726776945e-07 | AJ189: 3.726776945e-07 | AK189: 927017.9878 | AL189: 0 | AM189: FALSE | AN189: 0 | AO189: 0.001178510348 | AP189: 0.001178510348 | AQ189: 293.1488273 | AR189: 0 | AS189: TRUE | AT189: 0.5877745541 | AU189: 3.726776945 | AV189: 0
B190: 10 | C190: 1 | D190: 272.8078134 | F190: 181 | G190: 14 | H190: 9 | I190: 1235.883179 | J190: 1 | K190: 0.7056027901 | L190: 0.7056027901 | M190: 1.344620819e+20 | N190: 0 | O190: FALSE | P190: 0 | Q190: 1.143687201e-17 | R190: 1.143687201e-17 | S190: 4.243194747e+16 | T190: 0 | U190: FALSE | V190: 0 | W190: 3.709974629e-14 | X190: 3.709974629e-14 | Y190: 1.342867059e+13 | Z190: 0 | AA190: FALSE | AB190: 0 | AC190: 1.069686101e-10 | AD190: 1.069686101e-10 | AE190: 4654405597 | AF190: 0 | AG190: FALSE | AH190: 0 | AI190: 3.381532251e-07 | AJ190: 3.381532251e-07 | AK190: 1472336.386 | AL190: 0 | AM190: FALSE | AN190: 0 | AO190: 0.00106933439 | AP190: 0.00106933439 | AQ190: 465.5936462 | AR190: 0 | AS190: TRUE | AT190: 0.7056027901 | AU190: 3.381532251 | AV190: 0
B191: 10 | C191: 2 | D191: 299.4214216 | F191: 182 | G191: 8 | H191: 11 | I191: 1242.334963 | J191: 1 | K191: 0.7355011396 | L191: 0.7355011396 | M191: 1.489067206e+20 | N191: 0 | O191: FALSE | P191: 0 | Q191: 1.122118995e-17 | R191: 1.122118995e-17 | S191: 4.699021507e+16 | T191: 0 | U191: FALSE | V191: 0 | W191: 3.640010135e-14 | X191: 3.640010135e-14 | Y191: 1.487125048e+13 | Z191: 0 | AA191: FALSE | AB191: 0 | AC191: 1.049513443e-10 | AD191: 1.049513443e-10 | AE191: 5154406834 | AF191: 0 | AG191: FALSE | AH191: 0 | AI191: 3.317761682e-07 | AJ191: 3.317761682e-07 | AK191: 1630502.665 | AL191: 0 | AM191: FALSE | AN191: 0 | AO191: 0.001049168365 | AP191: 0.001049168365 | AQ191: 515.6102152 | AR191: 0 | AS191: TRUE | AT191: 0.7355011396 | AU191: 3.317761682 | AV191: 0
B192: 10 | C192: 3 | D192: 343.7774354 | F192: 183 | G192: 16 | H192: 8 | I192: 1243.434699 | J192: 1 | K192: 0.5477384777 | L192: 0.5477384777 | M192: 1.120397331e+20 | N192: 0 | O192: FALSE | P192: 0 | Q192: 8.27105576e-18 | R192: 8.27105576e-18 | S192: 3.535616882e+16 | T192: 0 | U192: FALSE | V192: 0 | W192: 2.683024433e-14 | X192: 2.683024433e-14 | Y192: 1.118936021e+13 | Z192: 0 | AA192: FALSE | AB192: 0 | AC192: 7.735885633e-11 | AD192: 7.735885633e-11 | AE192: 3878255886 | AF192: 0 | AG192: FALSE | AH192: 0 | AI192: 2.445497491e-07 | AJ192: 2.445497491e-07 | AK192: 1226815.57 | AL192: 0 | AM192: FALSE | AN192: 0 | AO192: 0.0007733342085 | AP192: 0.0007733342085 | AQ192: 387.9531471 | AR192: 0 | AS192: TRUE | AT192: 0.5477384777 | AU192: 2.445497491 | AV192: 0
B193: 10 | C193: 4 | D193: 405.8758546 | F193: 184 | G193: 12 | H193: 10 | I193: 1267.188994 | J193: 1 | K193: 0.1139770782 | L193: 0.1139770782 | M193: 2.905157728e+19 | N193: 0 | O193: FALSE | P193: 0 | Q193: 1.381184947e-18 | R193: 1.381184947e-18 | S193: 9167751856849560 | T193: 0 | U193: FALSE | V193: 0 | W193: 4.480386865e-15 | X193: 4.480386865e-15 | Y193: 2.901368593e+12 | Z193: 0 | AA193: FALSE | AB193: 0 | AC193: 1.2918168e-11 | AD193: 1.2918168e-11 | AE193: 1005620484 | AF193: 0 | AG193: FALSE | AH193: 0 | AI193: 4.083740239e-08 | AJ193: 4.083740239e-08 | AK193: 318109.7131 | AL193: 0 | AM193: FALSE | AN193: 0 | AO193: 0.0001291392053 | AP193: 0.0001291392053 | AQ193: 100.5951239 | AR193: 0 | AS193: TRUE | AT193: 0.1139770782 | AU193: 0.4083740239 | AV193: 0
B194: 10 | C194: 5 | D194: 485.7166793 | F194: 185 | G194: 19 | H194: 6 | I194: 1272.174463 | J194: 1 | K194: 0.1038495078 | L194: 0.1038495078 | M194: 2.770661797e+19 | N194: 0 | O194: FALSE | P194: 0 | Q194: 1.202297329e-18 | R194: 1.202297329e-18 | S194: 8743325564000677 | T194: 0 | U194: FALSE | V194: 0 | W194: 3.900098369e-15 | X194: 3.900098369e-15 | Y194: 2.767048082e+12 | Z194: 0 | AA194: FALSE | AB194: 0 | AC194: 1.124503921e-11 | AD194: 1.124503921e-11 | AE194: 959064711 | AF194: 0 | AG194: FALSE | AH194: 0 | AI194: 3.554824422e-08 | AJ194: 3.554824422e-08 | AK194: 303382.6428 | AL194: 0 | AM194: FALSE | AN194: 0 | AO194: 0.0001124134185 | AP194: 0.0001124134185 | AQ194: 95.93801538 | AR194: 0 | AS194: TRUE | AT194: 0.1038495078 | AU194: 0.3554824422 | AV194: 0
B195: 10 | C195: 6 | D195: 583.2999095 | F195: 186 | G195: 20 | H195: 5 | I195: 1277.526511 | J195: 1 | K195: 0.5344038374 | L195: 0.5344038374 | M195: 1.497087157e+20 | N195: 0 | O195: FALSE | P195: 0 | Q195: 5.892214719e-18 | R195: 5.892214719e-18 | S195: 4.724329916e+16 | T195: 0 | U195: FALSE | V195: 0 | W195: 1.911358902e-14 | X195: 1.911358902e-14 | Y195: 1.495134539e+13 | Z195: 0 | AA195: FALSE | AB195: 0 | AC195: 5.510965046e-11 | AD195: 5.510965046e-11 | AE195: 5182167898 | AF195: 0 | AG195: FALSE | AH195: 0 | AI195: 1.742147161e-07 | AJ195: 1.742147161e-07 | AK195: 1639284.372 | AL195: 0 | AM195: FALSE | AN195: 0 | AO195: 0.0005509153049 | AP195: 0.0005509153049 | AQ195: 518.3872347 | AR195: 0 | AS195: TRUE | AT195: 0.5344038374 | AU195: 1.742147161 | AV195: 0
B196: 10 | C196: 7 | D196: 698.6255452 | F196: 187 | G196: 1 | H196: 12 | I196: 1280.092562 | J196: 1 | K196: 0.2890287158 | L196: 0.2890287158 | M196: 8.288017703e+19 | N196: 0 | O196: FALSE | P196: 0 | Q196: 3.113277477e-18 | R196: 3.113277477e-18 | S196: 2.615434231e+16 | T196: 0 | U196: FALSE | V196: 0 | W196: 1.009907293e-14 | X196: 1.009907293e-14 | Y196: 8.27720782e+12 | Z196: 0 | AA196: FALSE | AB196: 0 | AC196: 2.911836071e-11 | AD196: 2.911836071e-11 | AE196: 2868897717 | AF196: 0 | AG196: FALSE | AH196: 0 | AI196: 9.205006569e-08 | AJ196: 9.205006569e-08 | AK196: 907523.5084 | AL196: 0 | AM196: FALSE | AN196: 0 | AO196: 0.0002910878664 | AP196: 0.0002910878664 | AQ196: 286.9841317 | AR196: 0 | AS196: TRUE | AT196: 0.2890287158 | AU196: 0.9205006569 | AV196: 0
B197: 10 | C197: 8 | D197: 831.6935864 | F197: 188 | G197: 9 | H197: 11 | I197: 1287.204187 | J197: 1 | K197: 0.8877334144 | L197: 0.8877334144 | M197: 2.714982355e+20 | N197: 0 | O197: FALSE | P197: 0 | Q197: 8.96570894e-18 | R197: 8.96570894e-18 | S197: 8.567618994e+16 | T197: 0 | U197: FALSE | V197: 0 | W197: 2.908361017e-14 | X197: 2.908361017e-14 | Y197: 2.711441262e+13 | Z197: 0 | AA197: FALSE | AB197: 0 | AC197: 8.385591996e-11 | AD197: 8.385591996e-11 | AE197: 9397912699 | AF197: 0 | AG197: FALSE | AH197: 0 | AI197: 2.65088513e-07 | AJ197: 2.65088513e-07 | AK197: 2972858.409 | AL197: 0 | AM197: FALSE | AN197: 0 | AO197: 0.0008382834825 | AP197: 0.0008382834825 | AQ197: 940.1003735 | AR197: 0 | AS197: TRUE | AT197: 0.8877334144 | AU197: 2.65088513 | AV197: 0
B198: 10 | C198: 9 | D198: 982.5040331 | F198: 189 | G198: 2 | H198: 12 | I198: 1288.01066 | J198: 1 | K198: 0.5033408992 | L198: 0.5033408992 | M198: 1.550633989e+20 | N198: 0 | O198: FALSE | P198: 0 | Q198: 5.046632212e-18 | R198: 5.046632212e-18 | S198: 4.89330665e+16 | T198: 0 | U198: FALSE | V198: 0 | W198: 1.637062779e-14 | X198: 1.637062779e-14 | Y198: 1.54861153e+13 | Z198: 0 | AA198: FALSE | AB198: 0 | AC198: 4.720095083e-11 | AD198: 4.720095083e-11 | AE198: 5367520280 | AF198: 0 | AG198: FALSE | AH198: 0 | AI198: 1.492134351e-07 | AJ198: 1.492134351e-07 | AK198: 1697917.22 | AL198: 0 | AM198: FALSE | AN198: 0 | AO198: 0.0004718543123 | AP198: 0.0004718543123 | AQ198: 536.9285693 | AR198: 0 | AS198: TRUE | AT198: 0.5033408992 | AU198: 1.492134351 | AV198: 0
B199: 10 | C199: 10 | D199: 1151.056885 | F199: 190 | G199: 18 | H199: 7 | I199: 1289.843553 | J199: 1 | K199: 0.02667351155 | L199: 0.02667351155 | M199: 8.354254838e+18 | N199: 0 | O199: FALSE | P199: 0 | Q199: 2.630505308e-19 | R199: 2.630505308e-19 | S199: 2.63633656e+15 | T199: 0 | U199: FALSE | V199: 0 | W199: 8.53302192e-16 | X199: 8.53302192e-16 | Y199: 8.343358563e+11 | Z199: 0 | AA199: FALSE | AB199: 0 | AC199: 2.460301176e-12 | AD199: 2.460301176e-12 | AE199: 289182570.5 | AF199: 0 | AG199: FALSE | AH199: 0 | AI199: 7.777597344e-09 | AJ199: 7.777597344e-09 | AK199: 91477.63594 | AL199: 0 | AM199: FALSE | AN199: 0 | AO199: 2.459492233e-05 | AP199: 2.459492233e-05 | AQ199: 28.92776845 | AR199: 0 | AS199: TRUE | AT199: 0.02667351155 | AU199: 0.07777597344 | AV199: 0
B200: 10 | C200: 11 | D200: 1337.352143 | F200: 191 | G200: 3 | H200: 12 | I200: 1301.20749 | J200: 1 | K200: 0.587534916 | L200: 0.587534916 | M200: 2.037762216e+20 | N200: 0 | O200: FALSE | P200: 0 | Q200: 5.232393168e-18 | R200: 5.232393168e-18 | S200: 6.430528077e+16 | T200: 0 | U200: FALSE | V200: 0 | W200: 1.697321251e-14 | X200: 1.697321251e-14 | Y200: 2.035104406e+13 | Z200: 0 | AA200: FALSE | AB200: 0 | AC200: 4.893836568e-11 | AD200: 4.893836568e-11 | AE200: 7053714867 | AF200: 0 | AG200: FALSE | AH200: 0 | AI200: 1.547058167e-07 | AJ200: 1.547058167e-07 | AK200: 2231314.147 | AL200: 0 | AM200: FALSE | AN200: 0 | AO200: 0.0004892227481 | AP200: 0.0004892227481 | AQ200: 705.6034881 | AR200: 0 | AS200: TRUE | AT200: 0.587534916 | AU200: 1.547058167 | AV200: 0
B201: 10 | C201: 12 | D201: 1541.389806 | F201: 192 | G201: 15 | H201: 9 | I201: 1312.424796 | J201: 1 | K201: 0.8819441055 | L201: 0.8819441055 | M201: 3.379900551e+20 | N201: 0 | O201: FALSE | P201: 0 | Q201: 7.108283088e-18 | R201: 7.108283088e-18 | S201: 1.06658889e+17 | T201: 0 | U201: FALSE | V201: 0 | W201: 2.305835888e-14 | X201: 2.305835888e-14 | Y201: 3.375492219e+13 | Z201: 0 | AA201: FALSE | AB201: 0 | AC201: 6.648348967e-11 | AD201: 6.648348967e-11 | AE201: 1.169952734e+10 | AF201: 0 | AG201: FALSE | AH201: 0 | AI201: 2.101701278e-07 | AJ201: 2.101701278e-07 | AK201: 3700932.256 | AL201: 0 | AM201: FALSE | AN201: 0 | AO201: 0.0006646163 | AP201: 0.0006646163 | AQ201: 1170.33754 | AR201: 0 | AS201: TRUE | AT201: 0.8819441055 | AU201: 2.101701278 | AV201: 0
... 208 more rows

Sheet 計算表s-2 (hidden)
B1: ヤング率 | C1: 辺長ｘ | D1: 辺長ｙ | E1: 板厚 | F1: ポアソン比 | G1: 密度 | H1: 曲げ剛性 | I1: 面密度 | J1: 加振点ｘ | K1: 加振点ｙ | L1: 縮退重み | M1: 周波数重み
B2: =床衝撃音計算シート!D7 -> 29000000000 | C2: =床衝撃音計算シート!D9 -> 11 | D2: =床衝撃音計算シート!F9 -> 6 | E2: =(床衝撃音計算シート!L9)/1000 -> 0.2 | F2: =床衝撃音計算シート!L7 -> 0.16 | G2: =床衝撃音計算シート!G7 -> 2400 | H2: =B2*E2^3/12/(1-F2^2) -> 19841269.84 | I2: =G2*E2 -> 480 | J2: =床衝撃音計算シート!D19 -> 1.8 | K2: =床衝撃音計算シート!F19 -> 2.7 | L2: 1 | M2: 0
B4: 周波数 | C4: 31.5Hz | D4: 63Hz | E4: 125Hz | F4: 250Hz | G4: 500Hz | H4: 1000Hz | I4: (2000Hz) | J4: (4000Hz)
B5: モード数１ | C5: =M8 -> 1.674100122 | D5: =S8 -> 3.616553385 | E5: =Y8 -> 6.885404613 | F5: =AE8 -> 16.26223904 | G5: =AK8 -> 29.75173609 | H5: =AQ8 -> 48.41396502 | I5: =H6*I7/H7 -> 63.69727199 | J5: =H6*J7/H7 -> 128.6378528
B6: モード数２ | C6: =C5*($D$7^2+$C$7^2)/2/$D$7^2 -> 1.086089749 | D6: =D5*($D$7^2+$C$7^2)/2/$D$7^2 -> 2.34627637 | E6: 4.466977373 | F6: 10.55029557 | G6: 19.30174614 | H6: 31.40905995 | I6: 41.32426324 | J6: 83.45513591
C7: =MIN(C2,D2) -> 6 | D7: =MAX(C2,D2) -> 11 | H7: =0.354*SQRT(I2/H2)*C2*D2*1000-0.139*SQRT(SQRT(I2/H2*1000^2))*(C2+D2) -> 109.6760758 | I7: =0.354*SQRT(I2/H2)*C2*D2*2000-0.139*SQRT(SQRT(I2/H2*2000^2))*(C2+D2) -> 222.4220287 | J7: =0.354*SQRT(I2/H2)*C2*D2*4000-0.139*SQRT(SQRT(I2/H2*4000^2))*(C2+D2) -> 449.185519
M8: =M9+O9+Q9 -> 1.674100122 | S8: =S9+U9+W9 -> 3.616553385 | Y8: =Y9+AA9+AC9 -> 6.885404613 | AE8: =AE9+AG9+AI9 -> 16.26223904 | AK8: =AK9+AM9+AO9 -> 29.75173609 | AQ8: =AQ9+AS9+AU9 -> 48.41396502
B9: m | C9: n | D9: fi | F9: No. | G9: m | H9: n | I9: fi | J9: 縮退ﾁｪｯｸ | K9: 周波数重み | L9: 重み | M9: =SUM(N10:N409) -> 0.1732355491 | O9: =SUM(P10:P409) -> 1.139237235 | Q9: =SUM(R10:R409) -> 0.3616273387 | S9: =SUM(T10:T409) -> 0.05131428033 | U9: =SUM(V10:V409) -> 2.692467318 | W9: =SUM(X10:X409) -> 0.8727717876 | Y9: =SUM(Z10:Z409) -> 0.3093618462 | AA9: =SUM(AB10:AB409) -> 5.167401025 | AC9: =SUM(AD10:AD409) -> 1.408641742 | AE9: =SUM(AF10:AF409) -> 0.5900591704 | AG9: =SUM(AH10:AH409) -> 13.48440153 | AI9: =SUM(AJ10:AJ409) -> 2.187778343 | AK9: =SUM(AL10:AL409) -> 2.549447181 | AM9: =SUM(AN10:AN409) -> 23.12928333 | AO9: =SUM(AP10:AP409) -> 4.073005571 | AQ9: =SUM(AR10:AR409) -> 3.815959423 | AS9: =SUM(AT10:AT409) -> 39.69925319 | AU9: =SUM(AV10:AV409) -> 4.89875241
B10: 1 | C10: 1 | D10: =3.1416/2*SQRT($H$2/$I$2)*(B10^2/$C$2^2+C10^2/$D$2^2) -> 11.51056885 | F10: 1 | G10: 1 | H10: 1 | I10: 11.51056885 | J10: =1 -> 1 | K10: =ABS(SIN(G10*3.1416*$J$2/$C$2)*SIN(H10*3.1416*$K$2/$D$2))*(1/F10^$M$2)+(1-1/F10^$M$2) -> 0.4856801645 | L10: =$J10*$K10 -> 0.4856801645 | M10: =10^(LOG10($I10/22.27)/LOG10(2)*70/20)*$L10 -> 0.0002258665301 | N10: =IF($I10<22.27,M10,0) -> 0.0002258665301 | O10: =AND($I10>22.27,$I10<44.45) -> FALSE | P10: =IF($O10=TRUE,$L10,0) -> 0 | Q10: =10^(LOG10(44.45/$I10)/LOG10(2)*70/20)*$L10 -> 3225784.622 | R10: =IF($I10>44.45,Q10,0) -> 0 | S10: =10^(LOG10($I10/44.548)/LOG10(2)*70/20)*$L10 -> 7.127627808e-08 | T10: =IF($I10<44.528,S10,0) -> 7.127627808e-08 | U10: =AND($I10>44.548,$I10<89.095) -> FALSE | V10: =IF($U10=TRUE,$L10,0) -> 0 | W10: =10^(LOG10(89.095/$I10)/LOG10(2)*70/20)*$L10 -> 1.046403169e+10 | X10: =IF($I10>89.095,W10,0) -> 0 | Y10: =10^(LOG10($I10/89.09)/LOG10(2)*70/20)*$L10 -> 2.255719373e-11 | Z10: =IF($I10<89.09,Y10,0) -> 2.255719373e-11 | AA10: =AND($I10>89.09,$I10<176.78) -> FALSE | AB10: =IF($AA10=TRUE,$L10,0) -> 0 | AC10: =10^(LOG10(176.78/$I10)/LOG10(2)*70/20)*$L10 -> 3.017063557e+13 | AD10: =IF($I10>176.78,AC10,0) -> 0 | AE10: =10^(LOG10($I10/176.78)/LOG10(2)*70/20)*$L10 -> 7.818371001e-15 | AF10: =IF($I10<176.78,AE10,0) -> 7.818371001e-15 | AG10: =AND($I10>176.78,$I10<353.55) -> FALSE | AH10: =IF($AG10=TRUE,$L10,0) -> 0 | AI10: =10^(LOG10(353.55/$I10)/LOG10(2)*70/20)*$L10 -> 9.537655687e+16 | AJ10: =IF($I10>353.55,AI10,0) -> 0 | AK10: =10^(LOG10($I10/353.55)/LOG10(2)*70/20)*$L10 -> 2.47319918e-18 | AL10: =IF($I10<353.55,AK10,0) -> 2.47319918e-18 | AM10: =AND($I10>353.55,$I10<707.1) -> FALSE | AN10: =IF($AM10=TRUE,$L10,0) -> 0 | AO10: =10^(LOG10(707.1/$I10)/LOG10(2)*70/20)*$L10 -> 3.016071551e+20 | AP10: =IF($I10>707.1,AO10,0) -> 0 | AQ10: =10^(LOG10($I10/707.1)/LOG10(2)*70/20)*$L10 -> 7.820942515e-22 | AR10: =IF($I10<707.1,AQ10,0) -> 7.820942515e-22 | AS10: =AND($I10>707.1,$I10<1414.2) -> FALSE | AT10: =IF($AS10=TRUE,$L10,0) -> 0 | AU10: =10^(LOG10(1414.2/$I10)/LOG10(2)*70/20)*$L10 -> 9.537655687e+23 | AV10: =IF($I10>1414.2,AU10,0) -> 0
B11: 1 | C11: 2 | D11: 38.12417709 | F11: 2 | G11: 2 | H11: 1 | I11: 19.42866717 | J11: =IF(ABS(I11-I10)>0.0001,1,$L$2) -> 1 | K11: 0.8458076218 | L11: 0.8458076218 | M11: 0.1730096826 | N11: 0.1730096826 | O11: FALSE | P11: 0 | Q11: 12772.01126 | R11: 0 | S11: 5.459634166e-05 | T11: 5.459634166e-05 | U11: FALSE | V11: 0 | W11: 41430766.82 | X11: 0 | Y11: 1.727840298e-08 | Z11: 1.727840298e-08 | AA11: FALSE | AB11: 0 | AC11: 1.194561145e+11 | AD11: 0 | AE11: 5.988730976e-12 | AF11: 5.988730976e-12 | AG11: FALSE | AH11: 0 | AI11: 3.776291974e+14 | AJ11: 0 | AK11: 1.894425902e-15 | AL11: 1.894425902e-15 | AM11: FALSE | AN11: 0 | AO11: 1.194168375e+18 | AP11: 0 | AQ11: 5.99070071e-19 | AR11: 5.99070071e-19 | AS11: FALSE | AT11: 0 | AU11: 3.776291974e+21 | AV11: 0
B12: 1 | C12: 3 | D12: 82.48019082 | F12: 3 | G12: 3 | H12: 1 | I12: 32.6254977 | J12: 1 | K12: 0.9872861729 | L12: 0.9872861729 | M12: 83.67337506 | N12: 0 | O12: TRUE | P12: 0.9872861729 | Q12: 35.98200301 | R12: 0 | S12: 0.02640465033 | T12: 0.02640465033 | U12: FALSE | V12: 0 | W12: 116721.0039 | X12: 0 | Y12: 8.356424168e-06 | Z12: 8.356424168e-06 | AA12: FALSE | AB12: 0 | AC12: 336538246.4 | AD12: 0 | AE12: 2.896354271e-09 | AF12: 2.896354271e-09 | AG12: FALSE | AH12: 0 | AI12: 1.063877462e+12 | AJ12: 0 | AK12: 9.162088888e-13 | AL12: 9.162088888e-13 | AM12: FALSE | AN12: 0 | AO12: 3364275930707065 | AP12: 0 | AQ12: 2.897306901e-16 | AR12: 2.897306901e-16 | AS12: FALSE | AT12: 0 | AU12: 1.063877462e+19 | AV12: 0
B13: 1 | C13: 4 | D13: 144.57861 | F13: 4 | G13: 1 | H13: 2 | I13: 38.12417709 | J13: 1 | K13: 0.1519510618 | L13: 0.1519510618 | M13: 78.76258778 | N13: 0 | O13: TRUE | P13: 0.1519510618 | Q13: 0.9054698935 | R13: 0 | S13: 0.02485496238 | T13: 0.02485496238 | U13: FALSE | V13: 0 | W13: 2937.22823 | X13: 0 | Y13: 7.865985943e-06 | Z13: 7.865985943e-06 | AA13: FALSE | AB13: 0 | AC13: 8468823.985 | AD13: 0 | AE13: 2.726367346e-09 | AF13: 2.726367346e-09 | AG13: FALSE | AH13: 0 | AI13: 2.677196742e+10 | AJ13: 0 | AK13: 8.62436623e-13 | AL13: 8.62436623e-13 | AM13: FALSE | AN13: 0 | AO13: 8.466039449e+13 | AP13: 0 | AQ13: 2.727264066e-16 | AR13: 2.727264066e-16 | AS13: FALSE | AT13: 0 | AU13: 2.677196742e+17 | AV13: 0
B14: 1 | C14: 5 | D14: 224.4194348 | F14: 5 | G14: 2 | H14: 2 | I14: 46.04227541 | J14: 1 | K14: 0.2646214022 | L14: 0.2646214022 | M14: 1230.627114 | N14: 0 | O14: FALSE | P14: 0 | Q14: 0.1757559218 | R14: 0.1757559218 | S14: 0.3883466946 | T14: 0 | U14: TRUE | V14: 0.2646214022 | W14: 570.1296738 | X14: 0 | Y14: 0.0001229022034 | Z14: 0.0001229022034 | AA14: FALSE | AB14: 0 | AC14: 1643838.162 | AD14: 0 | AE14: 4.259816333e-08 | AF14: 4.259816333e-08 | AG14: FALSE | AH14: 0 | AI14: 5196563513 | AJ14: 0 | AK14: 1.347515264e-11 | AL14: 1.347515264e-11 | AM14: FALSE | AN14: 0 | AO14: 1.643297671e+13 | AP14: 0 | AQ14: 4.261217415e-15 | AR14: 4.261217415e-15 | AS14: FALSE | AT14: 0 | AU14: 5.196563513e+16 | AV14: 0
B15: 1 | C15: 6 | D15: 322.002665 | F15: 6 | G15: 4 | H15: 1 | I15: 51.10106045 | J15: 1 | K15: 0.873542335 | L15: 0.873542335 | M15: 13651.01079 | N15: 0 | O15: FALSE | P15: 0 | Q15: 0.1726591578 | R15: 0.1726591578 | S15: 4.307823918 | T15: 0 | U15: TRUE | V15: 0.873542335 | W15: 560.0841685 | X15: 0 | Y15: 0.001363320607 | Z15: 0.001363320607 | AA15: FALSE | AB15: 0 | AC15: 1614874.251 | AD15: 0 | AE15: 4.725298024e-07 | AF15: 4.725298024e-07 | AG15: FALSE | AH15: 0 | AI15: 5105001700 | AJ15: 0 | AK15: 1.494761914e-10 | AL15: 1.494761914e-10 | AM15: FALSE | AN15: 0 | AO15: 1.614343283e+13 | AP15: 0 | AQ15: 4.726852207e-14 | AR15: 4.726852207e-14 | AS15: FALSE | AT15: 0 | AU15: 5.1050017e+16 | AV15: 0
B16: 1 | C16: 7 | D16: 437.3283007 | F16: 7 | G16: 3 | H16: 2 | I16: 59.23910594 | J16: 1 | K16: 0.3088847212 | L16: 0.3088847212 | M16: 26907.01423 | N16: 0 | O16: FALSE | P16: 0 | Q16: 0.01095251505 | R16: 0.01095251505 | S16: 8.490996109 | T16: 0 | U16: TRUE | V16: 0.3088847212 | W16: 35.52855442 | X16: 0 | Y16: 0.002687191999 | Z16: 0.002687191999 | AA16: FALSE | AB16: 0 | AC16: 102438.4386 | AD16: 0 | AE16: 9.313864238e-07 | AF16: 9.313864238e-07 | AG16: FALSE | AH16: 0 | AI16: 323832275.4 | AJ16: 0 | AK16: 2.946271211e-10 | AL16: 2.946271211e-10 | AM16: FALSE | AN16: 0 | AO16: 1.02404757e+12 | AP16: 0 | AQ16: 9.31692763e-14 | AR16: 9.31692763e-14 | AS16: FALSE | AT16: 0 | AU16: 3238322754226822 | AV16: 0
B17: 1 | C17: 8 | D17: 570.3963419 | F17: 8 | G17: 5 | H17: 1 | I17: 74.85535541 | J17: 1 | K17: 0.5339799172 | L17: 0.5339799172 | M17: 706380.7307 | N17: 0 | O17: FALSE | P17: 0 | Q17: 0.001246802076 | R17: 0.001246802076 | S17: 222.9112448 | T17: 0 | U17: TRUE | V17: 0.5339799172 | W17: 4.044466064 | X17: 0 | Y17: 0.07054594136 | Z17: 0.07054594136 | AA17: FALSE | AB17: 0 | AC17: 11661.29035 | AD17: 0 | AE17: 2.445137231e-05 | AF17: 2.445137231e-05 | AG17: FALSE | AH17: 0 | AI17: 36864113.1 | AJ17: 0 | AK17: 7.734746015e-09 | AL17: 7.734746015e-09 | AM17: FALSE | AN17: 0 | AO17: 1.165745613e+11 | AP17: 0 | AQ17: 2.445941453e-12 | AR17: 2.445941453e-12 | AS17: FALSE | AT17: 0 | AU17: 3.68641131e+14 | AV17: 0
B18: 1 | C18: 9 | D18: 721.2067886 | F18: 9 | G18: 4 | H18: 2 | I18: 77.71466869 | J18: 1 | K18: 0.2732985512 | L18: 0.2732985512 | M18: 559031.3255 | N18: 0 | O18: FALSE | P18: 0 | Q18: 0.0004126910283 | R18: 0.0004126910283 | S18: 176.4124689 | T18: 0 | U18: TRUE | V18: 0.2732985512 | W18: 1.338716778 | X18: 0 | Y18: 0.0558302193 | Z18: 0.0558302193 | AA18: FALSE | AB18: 0 | AC18: 3859.882812 | AD18: 0 | AE18: 1.935087196e-05 | AF18: 1.935087196e-05 | AG18: FALSE | AH18: 0 | AI18: 12202007.87 | AJ18: 0 | AK18: 6.121295683e-09 | AL18: 6.121295683e-09 | AM18: FALSE | AN18: 0 | AO18: 3.858613688e+10 | AP18: 0 | AQ18: 1.935723659e-12 | AR18: 1.935723659e-12 | AS18: FALSE | AT18: 0 | AU18: 1.220200787e+14 | AV18: 0
B19: 1 | C19: 10 | D19: 889.7596408 | F19: 10 | G19: 1 | H19: 3 | I19: 82.48019082 | J19: 1 | K19: 0.4381403907 | L19: 0.4381403907 | M19: 1790295.353 | N19: 0 | O19: FALSE | P19: 0 | Q19: 0.0003311985381 | R19: 0.0003311985381 | S19: 564.9601532 | T19: 0 | U19: TRUE | V19: 0.4381403907 | W19: 1.074365589 | X19: 0 | Y19: 0.178796031 | Z19: 0.178796031 | AA19: FALSE | AB19: 0 | AC19: 3097.686785 | AD19: 0 | AE19: 6.197108207e-05 | AF19: 6.197108207e-05 | AG19: FALSE | AH19: 0 | AI19: 9792524.891 | AJ19: 0 | AK19: 1.960342242e-08 | AL19: 1.960342242e-08 | AM19: FALSE | AN19: 0 | AO19: 3.09666827e+10 | AP19: 0 | AQ19: 6.199146477e-12 | AR19: 6.199146477e-12 | AS19: FALSE | AT19: 0 | AU19: 9.792524891e+13 | AV19: 0
B20: 1 | C20: 11 | D20: 1076.054898 | F20: 11 | G20: 2 | H20: 3 | I20: 90.39828914 | J20: 1 | K20: 0.7630175349 | L20: 0.7630175349 | M20: 9051346.817 | N20: 0 | O20: FALSE | P20: 0 | Q20: 0.0001986745987 | R20: 0.0001986745987 | S20: 2856.316571 | T20: 0 | U20: FALSE | V20: 0 | W20: 0.6444749231 | X20: 0.6444749231 | Y20: 0.9039541341 | Z20: 0 | AA20: TRUE | AB20: 0.7630175349 | AC20: 1858.195638 | AD20: 0 | AE20: 0.0003133124126 | AF20: 0.0003133124126 | AG20: FALSE | AH20: 0 | AI20: 5874198.492 | AJ20: 0 | AK20: 9.911067175e-08 | AL20: 9.911067175e-08 | AM20: FALSE | AN20: 0 | AO20: 1.857584666e+10 | AP20: 0 | AQ20: 3.134154631e-11 | AR20: 3.134154631e-11 | AS20: FALSE | AT20: 0 | AU20: 5.874198492e+13 | AV20: 0
B21: 1 | C21: 12 | D21: 1280.092562 | F21: 12 | G21: 5 | H21: 2 | I21: 101.4689636 | J21: 1 | K21: 0.1670622383 | L21: 0.1670622383 | M21: 7592870.353 | N21: 0 | O21: FALSE | P21: 0 | Q21: 1.135369231e-05 | R21: 1.135369231e-05 | S21: 2396.067883 | T21: 0 | U21: FALSE | V21: 0 | W21: 0.03682992201 | X21: 0.03682992201 | Y21: 0.7582967135 | Z21: 0 | AA21: TRUE | AB21: 0.1670622383 | AC21: 106.1906336 | AD21: 0 | AE21: 0.0002628272429 | AF21: 0.0002628272429 | AG21: FALSE | AH21: 0 | AI21: 335693.8565 | AJ21: 0 | AK21: 8.314060839e-08 | AL21: 8.314060839e-08 | AM21: FALSE | AN21: 0 | AO21: 1061557183 | AP21: 0 | AQ21: 2.629136886e-11 | AR21: 2.629136886e-11 | AS21: FALSE | AT21: 0 | AU21: 3.356938565e+12 | AV21: 0
B22: 1 | C22: 13 | D22: 1501.87263 | F22: 13 | G22: 3 | H22: 3 | I22: 103.5951197 | J22: 1 | K22: 0.8906477577 | L22: 0.8906477577 | M22: 51516339.55 | N22: 0 | O22: FALSE | P22: 0 | Q22: 4.756127342e-05 | R22: 4.756127342e-05 | S22: 16256.91483 | T22: 0 | U22: FALSE | V22: 0 | W22: 0.1542826724 | X22: 0.1542826724 | Y22: 5.14491479 | Z22: 0 | AA22: TRUE | AB22: 0.8906477577 | AC22: 444.8387031 | AD22: 0 | AE22: 0.001783238335 | AF22: 0.001783238335 | AG22: FALSE | AH22: 0 | AI22: 1406240.971 | AJ22: 0 | AK22: 5.640949487e-07 | AL22: 5.640949487e-07 | AM22: FALSE | AN22: 0 | AO22: 4446924407 | AP22: 0 | AQ22: 1.783824854e-10 | AR22: 1.783824854e-10 | AS22: FALSE | AT22: 0 | AU22: 1.406240971e+13 | AV22: 0
B23: 1 | C23: 14 | D23: 1741.395104 | F23: 14 | G23: 6 | H23: 1 | I23: 103.8883826 | J23: 1 | K23: 0.05637886997 | L23: 0.05637886997 | M23: 3369996.183 | N23: 0 | O23: FALSE | P23: 0 | Q23: 2.913331053e-06 | R23: 2.913331053e-06 | S23: 1063.463387 | T23: 0 | U23: FALSE | V23: 0 | W23: 0.009450472371 | X23: 0.009450472371 | Y23: 0.336560077 | Z23: 0 | AA23: TRUE | AB23: 0.05637886997 | AC23: 27.24826973 | AD23: 0 | AE23: 0.0001166524337 | AF23: 0.0001166524337 | AG23: FALSE | AH23: 0 | AI23: 86138.26321 | AJ23: 0 | AK23: 3.690087146e-08 | AL23: 3.690087146e-08 | AM23: FALSE | AN23: 0 | AO23: 272393105.4 | AP23: 0 | AQ23: 1.166908015e-11 | AR23: 1.166908015e-11 | AS23: FALSE | AT23: 0 | AU23: 8.613826321e+11 | AV23: 0
B24: 1 | C24: 15 | D24: 1998.659984 | F24: 15 | G24: 4 | H24: 3 | I24: 122.0706824 | J24: 1 | K24: 0.7880374944 | L24: 0.7880374944 | M24: 307219225.7 | N24: 0 | O24: FALSE | P24: 0 | Q24: 6.243554197e-06 | R24: 6.243554197e-06 | S24: 96948.59594 | T24: 0 | U24: FALSE | V24: 0 | W24: 0.02025328923 | X24: 0.02025328923 | Y24: 30.68185263 | Z24: 0 | AA24: TRUE | AB24: 0.7880374944 | AC24: 58.39571466 | AD24: 0 | AE24: 0.01063439494 | AF24: 0.01063439494 | AG24: FALSE | AH24: 0 | AI24: 184602.7468 | AJ24: 0 | AK24: 3.363997033e-06 | AL24: 3.363997033e-06 | AM24: FALSE | AN24: 0 | AO24: 583765142.4 | AP24: 0 | AQ24: 1.063789267e-09 | AR24: 1.063789267e-09 | AS24: FALSE | AT24: 0 | AU24: 1.846027468e+12 | AV24: 0
B25: 1 | C25: 16 | D25: 2273.667269 | F25: 16 | G25: 6 | H25: 2 | I25: 130.5019908 | J25: 1 | K25: 0.01763882855 | L25: 0.01763882855 | M25: 14949062.97 | N25: 0 | O25: FALSE | P25: 0 | Q25: 6.428535103e-08 | R25: 6.428535103e-08 | S25: 4717.447817 | T25: 0 | U25: FALSE | V25: 0 | W25: 0.0002085334357 | X25: 0.0002085334357 | Y25: 1.492956523 | Z25: 0 | AA25: TRUE | AB25: 0.01763882855 | AC25: 0.6012583374 | AD25: 0 | AE25: 0.000517461885 | AF25: 0.000517461885 | AG25: FALSE | AH25: 0 | AI25: 1900.720649 | AJ25: 0 | AK25: 1.636896368e-07 | AL25: 1.636896368e-07 | AM25: FALSE | AN25: 0 | AO25: 6010606.445 | AP25: 0 | AQ25: 5.176320817e-11 | AR25: 5.176320817e-11 | AS25: FALSE | AT25: 0 | AU25: 1.900720649e+10 | AV25: 0
B26: 1 | C26: 17 | D26: 2566.41696 | F26: 17 | G26: 7 | H26: 1 | I26: 138.200142 | J26: 1 | K26: 0.4357966241 | L26: 0.4357966241 | M26: 719173344.3 | N26: 0 | O26: FALSE | P26: 0 | Q26: 8.156815789e-07 | R26: 8.156815789e-07 | S26: 226948.1859 | T26: 0 | U26: FALSE | V26: 0 | W26: 0.002645966451 | X26: 0.002645966451 | Y26: 71.8235342 | Z26: 0 | AA26: TRUE | AB26: 0.4357966241 | AC26: 7.629037441 | AD26: 0 | AE26: 0.02489418869 | AF26: 0.02489418869 | AG26: FALSE | AH26: 0 | AI26: 24117.20236 | AJ26: 0 | AK26: 7.874822906e-06 | AL26: 7.874822906e-06 | AM26: FALSE | AN26: 0 | AO26: 76265290.25 | AP26: 0 | AQ26: 2.490237655e-09 | AR26: 2.490237655e-09 | AS26: FALSE | AT26: 0 | AU26: 2.411720236e+11 | AV26: 0
B27: 1 | C27: 18 | D27: 2876.909056 | F27: 18 | G27: 1 | H27: 4 | I27: 144.57861 | J27: 1 | K27: 0.2890287158 | L27: 0.2890287158 | M27: 805978232.1 | N27: 0 | O27: FALSE | P27: 0 | Q27: 3.201438676e-07 | R27: 3.201438676e-07 | S27: 254341.0419 | T27: 0 | U27: FALSE | V27: 0 | W27: 0.001038505656 | X27: 0.001038505656 | Y27: 80.49270121 | Z27: 0 | AA27: TRUE | AB27: 0.2890287158 | AC27: 2.99429289 | AD27: 0 | AE27: 0.02789894029 | AF27: 0.02789894029 | AG27: FALSE | AH27: 0 | AI27: 9465.672193 | AJ27: 0 | AK27: 8.825321315e-06 | AL27: 8.825321315e-06 | AM27: FALSE | AN27: 0 | AO27: 29933083.71 | AP27: 0 | AQ27: 2.790811644e-09 | AR27: 2.790811644e-09 | AS27: FALSE | AT27: 0 | AU27: 9.465672193e+10 | AV27: 0
B28: 1 | C28: 19 | D28: 3205.143558 | F28: 19 | G28: 5 | H28: 3 | I28: 145.8249774 | J28: 1 | K28: 0.4817124244 | L28: 0.4817124244 | M28: 1484271002 | N28: 0 | O28: FALSE | P28: 0 | Q28: 4.828908833e-07 | R28: 4.828908833e-07 | S28: 468388.6214 | T28: 0 | U28: FALSE | V28: 0 | W28: 0.001566436106 | X28: 0.001566436106 | Y28: 148.2335099 | Z28: 0 | AA28: TRUE | AB28: 0.4817124244 | AC28: 4.51645927 | AD28: 0 | AE28: 0.0513780477 | AF28: 0.0513780477 | AG28: FALSE | AH28: 0 | AI28: 14277.60225 | AJ28: 0 | AK28: 1.625250905e-05 | AL28: 1.625250905e-05 | AM28: FALSE | AN28: 0 | AO28: 45149742.65 | AP28: 0 | AQ28: 5.139494628e-09 | AR28: 5.139494628e-09 | AS28: FALSE | AT28: 0 | AU28: 1.427760225e+11 | AV28: 0
B29: 1 | C29: 20 | D29: 3551.120465 | F29: 20 | G29: 2 | H29: 4 | I29: 152.4967084 | J29: 1 | K29: 0.5033408992 | L29: 0.5033408992 | M29: 2609026307 | N29: 0 | O29: FALSE | P29: 0 | Q29: 2.999386942e-07 | R29: 2.999386942e-07 | S29: 823325.5477 | T29: 0 | U29: FALSE | V29: 0 | W29: 0.0009729626641 | X29: 0.0009729626641 | Y29: 260.5623411 | Z29: 0 | AA29: TRUE | AB29: 0.5033408992 | AC29: 2.805314705 | AD29: 0 | AE29: 0.09031145788 | AF29: 0.09031145788 | AG29: FALSE | AH29: 0 | AI29: 8868.267189 | AJ29: 0 | AK29: 2.856838382e-05 | AL29: 2.856838382e-05 | AM29: FALSE | AN29: 0 | AO29: 28043923.22 | AP29: 0 | AQ29: 9.034116193e-09 | AR29: 9.034116193e-09 | AS29: FALSE | AT29: 0 | AU29: 8.868267189e+10 | AV29: 0
B30: 2 | C30: 1 | D30: 19.42866717 | F30: 21 | G30: 7 | H30: 2 | I30: 164.8137502 | J30: 1 | K30: 0.1363443776 | L30: 0.1363443776 | M30: 1743645714 | N30: 0 | O30: FALSE | P30: 0 | Q30: 3.293083435e-08 | R30: 3.293083435e-08 | S30: 550239.0137 | T30: 0 | U30: FALSE | V30: 0 | W30: 0.0001068234041 | X30: 0.0001068234041 | Y30: 174.1371514 | Z30: 0 | AA30: TRUE | AB30: 0.1363443776 | AC30: 0.308000787 | AD30: 0 | AE30: 0.06035630456 | AF30: 0.06035630456 | AG30: FALSE | AH30: 0 | AI30: 973.6637634 | AJ30: 0 | AK30: 1.909261698e-05 | AL30: 1.909261698e-05 | AM30: FALSE | AN30: 0 | AO30: 3078995.168 | AP30: 0 | AQ30: 6.037615615e-09 | AR30: 6.037615615e-09 | AS30: FALSE | AT30: 0 | AU30: 9736637634 | AV30: 0
B31: 2 | C31: 2 | D31: 46.04227541 | F31: 22 | G31: 3 | H31: 4 | I31: 165.6935389 | J31: 1 | K31: 0.587534916 | L31: 0.587534916 | M31: 7993505414 | N31: 0 | O31: FALSE | P31: 0 | Q31: 1.333879511e-07 | R31: 1.333879511e-07 | S31: 2522495.54 | T31: 0 | U31: FALSE | V31: 0 | W31: 0.0004326934097 | X31: 0.0004326934097 | Y31: 798.3079658 | Z31: 0 | AA31: TRUE | AB31: 0.587534916 | AC31: 1.247572214 | AD31: 0 | AE31: 0.2766952275 | AF31: 0.2766952275 | AG31: FALSE | AH31: 0 | AI31: 3943.872576 | AJ31: 0 | AK31: 8.752749256e-05 | AL31: 8.752749256e-05 | AM31: FALSE | AN31: 0 | AO31: 12471620.14 | AP31: 0 | AQ31: 2.767862344e-08 | AR31: 2.767862344e-08 | AS31: FALSE | AT31: 0 | AU31: 3.943872576e+10 | AV31: 0
B32: 2 | C32: 3 | D32: 90.39828914 | F32: 23 | G32: 6 | H32: 3 | I32: 174.8580045 | J32: 1 | K32: 0.05086034374 | L32: 0.05086034374 | M32: 1293944387 | N32: 0 | O32: FALSE | P32: 0 | Q32: 6.174893679e-09 | R32: 6.174893679e-09 | S32: 408327.608 | T32: 0 | U32: FALSE | V32: 0 | W32: 2.003056332e-05 | X32: 2.003056332e-05 | Y32: 129.2256724 | Z32: 0 | AA32: TRUE | AB32: 0.05086034374 | AC32: 0.05775353556 | AD32: 0 | AE32: 0.04478989104 | AF32: 0.04478989104 | AG32: FALSE | AH32: 0 | AI32: 182.5726659 | AJ32: 0 | AK32: 1.416846576e-05 | AL32: 1.416846576e-05 | AM32: FALSE | AN32: 0 | AO32: 577345.4629 | AP32: 0 | AQ32: 4.480462274e-09 | AR32: 4.480462274e-09 | AS32: FALSE | AT32: 0 | AU32: 1825726659 | AV32: 0
B33: 2 | C33: 4 | D33: 152.4967084 | F33: 24 | G33: 8 | H33: 1 | I33: 177.7906336 | J33: 1 | K33: 0.8153147565 | L33: 0.8153147565 | M33: 2.516783201e+10 | N33: 0 | O33: FALSE | P33: 0 | Q33: 8.158142974e-08 | R33: 8.158142974e-08 | S33: 7942165.634 | T33: 0 | U33: FALSE | V33: 0 | W33: 0.0002646396973 | X33: 0.0002646396973 | Y33: 2513.500615 | Z33: 0 | AA33: FALSE | AB33: 0 | AC33: 0.7630278752 | AD33: 0.7630278752 | AE33: 0.8711846234 | AF33: 0 | AG33: TRUE | AH33: 0.8153147565 | AI33: 2412.112644 | AJ33: 0 | AK33: 0.0002755833787 | AL33: 0.0002755833787 | AM33: FALSE | AN33: 0 | AO33: 7627769.928 | AP33: 0 | AQ33: 8.714711618e-08 | AR33: 8.714711618e-08 | AS33: FALSE | AT33: 0 | AU33: 2.412112644e+10 | AV33: 0
B34: 2 | C34: 5 | D34: 232.3375331 | F34: 25 | G34: 4 | H34: 4 | I34: 184.1691016 | J34: 1 | K34: 0.5198458527 | L34: 0.5198458527 | M34: 2.417553516e+10 | N34: 0 | O34: FALSE | P34: 0 | Q34: 3.452705875e-08 | R34: 3.452705875e-08 | S34: 7629028.374 | T34: 0 | U34: FALSE | V34: 0 | W34: 0.0001120013513 | X34: 0.0001120013513 | Y34: 2414.400353 | Z34: 0 | AA34: FALSE | AB34: 0 | AC34: 0.3229302105 | AD34: 0.3229302105 | AE34: 0.8368362632 | AF34: 0 | AG34: TRUE | AH34: 0.5198458527 | AI34: 1020.859223 | AJ34: 0 | AK34: 0.0002647179009 | AL34: 0.0002647179009 | AM34: FALSE | AN34: 0 | AO34: 3228240.315 | AP34: 0 | AQ34: 8.371115043e-08 | AR34: 8.371115043e-08 | AS34: FALSE | AT34: 0 | AU34: 1.020859223e+10 | AV34: 0
B35: 2 | C35: 6 | D35: 329.9207633 | F35: 26 | G35: 8 | H35: 2 | I35: 204.4042418 | J35: 1 | K35: 0.2550813312 | L35: 0.2550813312 | M35: 3.986204062e+10 | N35: 0 | O35: FALSE | P35: 0 | Q35: 5.04178516e-09 | R35: 5.04178516e-09 | S35: 12579189.53 | T35: 0 | U35: FALSE | V35: 0 | W35: 1.635490457e-05 | X35: 1.635490457e-05 | Y35: 3981.004942 | Z35: 0 | AA35: FALSE | AB35: 0 | AC35: 0.04715561654 | AD35: 0.04715561654 | AE35: 1.379824723 | AF35: 0 | AG35: TRUE | AH35: 0.2550813312 | AI35: 149.0701226 | AJ35: 0 | AK35: 0.0004364824045 | AL35: 0.0004364824045 | AM35: FALSE | AN35: 0 | AO35: 471401.1184 | AP35: 0 | AQ35: 1.380278557e-07 | AR35: 1.380278557e-07 | AS35: FALSE | AT35: 0 | AU35: 1490701226 | AV35: 0
B36: 2 | C36: 7 | D36: 445.246399 | F36: 27 | G36: 5 | H36: 4 | I36: 207.9233966 | J36: 1 | K36: 0.3177719433 | L36: 0.3177719433 | M36: 6.056068826e+10 | N36: 0 | O36: FALSE | P36: 0 | Q36: 5.150232213e-09 | R36: 5.150232213e-09 | S36: 19111023.02 | T36: 0 | U36: FALSE | V36: 0 | W36: 1.670669291e-05 | X36: 1.670669291e-05 | Y36: 6048.170026 | Z36: 0 | AA36: FALSE | AB36: 0 | AC36: 0.04816991753 | AD36: 0.04816991753 | AE36: 2.096308509 | AF36: 0 | AG36: TRUE | AH36: 0.3177719433 | AI36: 152.2765693 | AJ36: 0 | AK36: 0.0006631289924 | AL36: 0.0006631289924 | AM36: FALSE | AN36: 0 | AO36: 481540.7933 | AP36: 0 | AQ36: 2.096997999e-07 | AR36: 2.096997999e-07 | AS36: FALSE | AT36: 0 | AU36: 1522765693 | AV36: 0
B37: 2 | C37: 8 | D37: 578.3144402 | F37: 28 | G37: 7 | H37: 3 | I37: 209.1697639 | J37: 1 | K37: 0.3931395949 | L37: 0.3931395949 | M37: 8.031557785e+10 | N37: 0 | O37: FALSE | P37: 0 | Q37: 5.944020474e-09 | R37: 5.944020474e-09 | S37: 25345036.55 | T37: 0 | U37: FALSE | V37: 0 | W37: 1.928164024e-05 | X37: 1.928164024e-05 | Y37: 8021.082397 | Z37: 0 | AA37: FALSE | AB37: 0 | AC37: 0.05559418763 | AD37: 0.05559418763 | AE37: 2.780124105 | AF37: 0 | AG37: TRUE | AH37: 0.3931395949 | AI37: 175.7464534 | AJ37: 0 | AK37: 0.0008794415939 | AL37: 0.0008794415939 | AM37: FALSE | AN37: 0 | AO37: 555759.0834 | AP37: 0 | AQ37: 2.781038506e-07 | AR37: 2.781038506e-07 | AS37: FALSE | AT37: 0 | AU37: 1757464534 | AV37: 0
B38: 2 | C38: 9 | D38: 729.1248869 | F38: 29 | G38: 9 | H38: 1 | I38: 222.6598574 | J38: 1 | K38: 0.9840666636 | L38: 0.9840666636 | M38: 4.157790359e+11 | N38: 0 | O38: FALSE | P38: 0 | Q38: 7.194041935e-09 | R38: 7.194041935e-09 | S38: 131206612 | T38: 0 | U38: FALSE | V38: 0 | W38: 2.333654958e-05 | X38: 2.333654958e-05 | Y38: 41523.67442 | Z38: 0 | AA38: FALSE | AB38: 0 | AC38: 0.06728558876 | AD38: 0.06728558876 | AE38: 14.39219328 | AF38: 0 | AG38: TRUE | AH38: 0.9840666636 | AI38: 212.7057538 | AJ38: 0 | AK38: 0.004552708053 | AL38: 0.004552708053 | AM38: FALSE | AN38: 0 | AO38: 672634.6536 | AP38: 0 | AQ38: 1.439692697e-06 | AR38: 1.439692697e-06 | AS38: FALSE | AT38: 0 | AU38: 2127057538 | AV38: 0
B39: 2 | C39: 10 | D39: 897.6777391 | F39: 30 | G39: 1 | H39: 5 | I39: 224.4194348 | J39: 1 | K39: 0.3477141731 | L39: 0.3477141731 | M39: 1.609929797e+11 | N39: 0 | O39: FALSE | P39: 0 | Q39: 2.319660147e-09 | R39: 2.319660147e-09 | S39: 50804253.22 | T39: 0 | U39: FALSE | V39: 0 | W39: 7.524680078e-06 | X39: 7.524680078e-06 | Y39: 16078.3 | Z39: 0 | AA39: FALSE | AB39: 0 | AC39: 0.02169568931 | AD39: 0.02169568931 | AE39: 5.572772749 | AF39: 0 | AG39: TRUE | AH39: 0.3477141731 | AI39: 68.5852355 | AJ39: 0 | AK39: 0.001762845098 | AL39: 0.001762845098 | AM39: FALSE | AN39: 0 | AO39: 216885.558 | AP39: 0 | AQ39: 5.574605671e-07 | AR39: 5.574605671e-07 | AS39: FALSE | AT39: 0 | AU39: 685852355 | AV39: 0
B40: 2 | C40: 11 | D40: 1083.972997 | F40: 31 | G40: 2 | H40: 5 | I40: 232.3375331 | J40: 1 | K40: 0.6055410933 | L40: 0.6055410933 | M40: 4.195795549e+11 | N40: 0 | O40: FALSE | P40: 0 | Q40: 2.699351475e-09 | R40: 2.699351475e-09 | S40: 132405934.7 | T40: 0 | U40: FALSE | V40: 0 | W40: 8.756350061e-06 | X40: 8.756350061e-06 | Y40: 41903.23063 | Z40: 0 | AA40: FALSE | AB40: 0 | AC40: 0.02524692724 | AD40: 0.02524692724 | AE40: 14.52374826 | AF40: 0 | AG40: TRUE | AH40: 0.6055410933 | AI40: 79.81154345 | AJ40: 0 | AK40: 0.004594323074 | AL40: 0.004594323074 | AM40: FALSE | AN40: 0 | AO40: 252386.2609 | AP40: 0 | AQ40: 1.452852522e-06 | AR40: 1.452852522e-06 | AS40: FALSE | AT40: 0 | AU40: 798115434.5 | AV40: 0
B41: 2 | C41: 12 | D41: 1288.01066 | F41: 32 | G41: 6 | H41: 4 | I41: 236.9564238 | J41: 1 | K41: 0.03355111774 | L41: 0.03355111774 | M41: 2.922645053e+10 | N41: 0 | O41: FALSE | P41: 0 | Q41: 1.189664288e-10 | R41: 1.189664288e-10 | S41: 9222936.28 | T41: 0 | U41: FALSE | V41: 0 | W41: 3.859118404e-07 | X41: 3.859118404e-07 | Y41: 2918.83311 | Z41: 0 | AA41: FALSE | AB41: 0 | AC41: 0.001112688288 | AD41: 0.001112688288 | AE41: 1.011673722 | AF41: 0 | AG41: TRUE | AH41: 0.03355111774 | AI41: 3.517472395 | AJ41: 0 | AK41: 0.0003200245447 | AL41: 0.0003200245447 | AM41: FALSE | AN41: 0 | AO41: 11123.22437 | AP41: 0 | AQ41: 1.012006469e-07 | AR41: 1.012006469e-07 | AS41: FALSE | AT41: 0 | AU41: 35174723.95 | AV41: 0
B42: 2 | C42: 13 | D42: 1509.790729 | F42: 33 | G42: 3 | H42: 5 | I42: 245.5343636 | J42: 1 | K42: 0.706830174 | L42: 0.706830174 | M42: 9.30990577e+11 | N42: 0 | O42: FALSE | P42: 0 | Q42: 1.657568137e-09 | R42: 1.657568137e-09 | S42: 293790953.6 | T42: 0 | U42: FALSE | V42: 0 | W42: 5.376938493e-06 | X42: 5.376938493e-06 | Y42: 92977.63061 | Z42: 0 | AA42: FALSE | AB42: 0 | AC42: 0.01550316901 | AD42: 0.01550316901 | AE42: 32.2262432 | AF42: 0 | AG42: TRUE | AH42: 0.706830174 | AI42: 49.00920557 | AJ42: 0 | AK42: 0.01019418473 | AL42: 0.01019418473 | AM42: FALSE | AN42: 0 | AO42: 154980.7159 | AP42: 0 | AQ42: 3.223684262e-06 | AR42: 3.223684262e-06 | AS42: FALSE | AT42: 0 | AU42: 490092055.7 | AV42: 0
B43: 2 | C43: 14 | D43: 1749.313203 | F43: 34 | G43: 8 | H43: 3 | I43: 248.7602555 | J43: 1 | K43: 0.7355093991 | L43: 0.7355093991 | M43: 1.127527441e+12 | N43: 0 | O43: FALSE | P43: 0 | Q43: 1.481957834e-09 | R43: 1.481957834e-09 | S43: 355811723.9 | T43: 0 | U43: FALSE | V43: 0 | W43: 4.807281187e-06 | X43: 4.807281187e-06 | Y43: 112605.6832 | Z43: 0 | AA43: FALSE | AB43: 0 | AC43: 0.01386069281 | AD43: 0.01386069281 | AE43: 39.02936768 | AF43: 0 | AG43: TRUE | AH43: 0.7355093991 | AI43: 43.81694755 | AJ43: 0 | AK43: 0.01234622917 | AL43: 0.01234622917 | AM43: FALSE | AN43: 0 | AO43: 138561.3544 | AP43: 0 | AQ43: 3.90422047e-06 | AR43: 3.90422047e-06 | AS43: FALSE | AT43: 0 | AU43: 438169475.5 | AV43: 0
B44: 2 | C44: 15 | D44: 2006.578082 | F44: 35 | G44: 9 | H44: 2 | I44: 249.2734656 | J44: 1 | K44: 0.3078774578 | L44: 0.3078774578 | M44: 4.834186402e+11 | N44: 0 | O44: FALSE | P44: 0 | Q44: 6.056460717e-10 | R44: 6.056460717e-10 | S44: 152551515.3 | T44: 0 | U44: FALSE | V44: 0 | W44: 1.964638197e-06 | X44: 1.964638197e-06 | Y44: 48278.81277 | Z44: 0 | AA44: FALSE | AB44: 0 | AC44: 0.005664583676 | AD44: 0.005664583676 | AE44: 16.7335385 | AF44: 0 | AG44: TRUE | AH44: 0.3078774578 | AI44: 17.90709665 | AJ44: 0 | AK44: 0.005293349944 | AL44: 0.005293349944 | AM44: FALSE | AN44: 0 | AO44: 56627.2117 | AP44: 0 | AQ44: 1.673904228e-06 | AR44: 1.673904228e-06 | AS44: FALSE | AT44: 0 | AU44: 179070966.5 | AV44: 0
B45: 2 | C45: 16 | D45: 2281.585368 | F45: 36 | G45: 4 | H45: 5 | I45: 264.0099264 | J45: 1 | K45: 0.6253972735 | L45: 0.6253972735 | M45: 1.914791408e+12 | N45: 0 | O45: FALSE | P45: 0 | Q45: 6.30923945e-10 | R45: 6.30923945e-10 | S45: 604247140.2 | T45: 0 | U45: FALSE | V45: 0 | W45: 2.046636377e-06 | X45: 2.046636377e-06 | Y45: 191229.3987 | Z45: 0 | AA45: FALSE | AB45: 0 | AC45: 0.005901006622 | AD45: 0.005901006622 | AE45: 66.28051359 | AF45: 0 | AG45: TRUE | AH45: 0.6253972735 | AI45: 18.65448583 | AJ45: 0 | AK45: 0.02096663254 | AL45: 0.02096663254 | AM45: FALSE | AN45: 0 | AO45: 58990.6638 | AP45: 0 | AQ45: 6.63023137e-06 | AR45: 6.63023137e-06 | AS45: FALSE | AT45: 0 | AU45: 186544858.3 | AV45: 0
B46: 2 | C46: 17 | D46: 2574.335058 | F46: 37 | G46: 7 | H46: 4 | I46: 271.2681832 | J46: 1 | K46: 0.2593429747 | L46: 0.2593429747 | M46: 1.088395716e+12 | N46: 0 | O46: FALSE | P46: 0 | Q46: 1.908748309e-10 | R46: 1.908748309e-10 | S46: 343462998.7 | T46: 0 | U46: FALSE | V46: 0 | W46: 6.191734765e-07 | X46: 6.191734765e-07 | Y46: 108697.6145 | Z46: 0 | AA46: FALSE | AB46: 0 | AC46: 0.00178524472 | AD46: 0.00178524472 | AE46: 37.67482283 | AF46: 0 | AG46: TRUE | AH46: 0.2593429747 | AI46: 5.643583283 | AJ46: 0 | AK46: 0.0119177436 | AL46: 0.0119177436 | AM46: FALSE | AN46: 0 | AO46: 17846.57734 | AP46: 0 | AQ46: 3.768721433e-06 | AR46: 3.768721433e-06 | AS46: FALSE | AT46: 0 | AU46: 56435832.83 | AV46: 0
B47: 2 | C47: 18 | D47: 2884.827154 | F47: 38 | G47: 10 | H47: 1 | I47: 272.8078134 | J47: 1 | K47: 0.898428454 | L47: 0.898428454 | M47: 4.026926963e+12 | N47: 0 | O47: FALSE | P47: 0 | Q47: 6.191270177e-10 | R47: 6.191270177e-10 | S47: 1270769803 | T47: 0 | U47: FALSE | V47: 0 | W47: 2.008368658e-06 | X47: 2.008368658e-06 | Y47: 402167.4729 | Z47: 0 | AA47: FALSE | AB47: 0 | AC47: 0.00579067043 | AD47: 0.00579067043 | AE47: 139.3920957 | AF47: 0 | AG47: TRUE | AH47: 0.898428454 | AI47: 18.30568687 | AJ47: 0 | AK47: 0.04409414913 | AL47: 0.04409414913 | AM47: FALSE | AN47: 0 | AO47: 57887.66466 | AP47: 0 | AQ47: 1.394379427e-05 | AR47: 1.394379427e-05 | AS47: FALSE | AT47: 0 | AU47: 183056868.7 | AV47: 0
B48: 2 | C48: 19 | D48: 3213.061656 | F48: 39 | G48: 5 | H48: 5 | I48: 287.7642213 | J48: 1 | K48: 0.3822935316 | L48: 0.3822935316 | M48: 3.187095867e+12 | N48: 0 | O48: FALSE | P48: 0 | Q48: 1.416397938e-10 | R48: 1.416397938e-10 | S48: 1005745876 | T48: 0 | U48: FALSE | V48: 0 | W48: 4.594613293e-07 | X48: 4.594613293e-07 | Y48: 318293.9007 | Z48: 0 | AA48: FALSE | AB48: 0 | AC48: 0.001324751371 | AD48: 0.001324751371 | AE48: 110.3213384 | AF48: 0 | AG48: TRUE | AH48: 0.3822935316 | AI48: 4.187854253 | AJ48: 0 | AK48: 0.03489814485 | AL48: 0.03489814485 | AM48: FALSE | AN48: 0 | AO48: 13243.15795 | AP48: 0 | AQ48: 1.103576238e-05 | AR48: 1.103576238e-05 | AS48: FALSE | AT48: 0 | AU48: 41878542.53 | AV48: 0
B49: 2 | C49: 20 | D49: 3559.038563 | F49: 40 | G49: 9 | H49: 3 | I49: 293.6294793 | J49: 1 | K49: 0.8877433833 | L49: 0.8877433833 | M49: 9.357701369e+12 | N49: 0 | O49: FALSE | P49: 0 | Q49: 2.601310655e-10 | R49: 2.601310655e-10 | S49: 2952992303 | T49: 0 | U49: FALSE | V49: 0 | W49: 8.43831821e-07 | X49: 8.43831821e-07 | Y49: 934549.6321 | Z49: 0 | AA49: FALSE | AB49: 0 | AC49: 0.002432995534 | AD49: 0.002432995534 | AE49: 323.9168768 | AF49: 0 | AG49: TRUE | AH49: 0.8877433833 | AI49: 7.69127771 | AJ49: 0 | AK49: 0.1024652007 | AL49: 0.1024652007 | AM49: FALSE | AN49: 0 | AO49: 24321.95568 | AP49: 0 | AQ49: 3.240234153e-05 | AR49: 3.240234153e-05 | AS49: FALSE | AT49: 0 | AU49: 76912777.1 | AV49: 0
B50: 3 | C50: 1 | D50: 32.6254977 | F50: 41 | G50: 10 | H50: 2 | I50: 299.4214216 | J50: 1 | K50: 0.2810844821 | L50: 0.2810844821 | M50: 3.718354482e+12 | N50: 0 | O50: FALSE | P50: 0 | Q50: 6.563106676e-11 | R50: 6.563106676e-11 | S50: 1173394163 | T50: 0 | U50: FALSE | V50: 0 | W50: 2.12898765e-07 | X50: 2.12898765e-07 | Y50: 371350.4713 | Z50: 0 | AA50: FALSE | AB50: 0 | AC50: 0.0006138447632 | AD50: 0.0006138447632 | AE50: 128.7108579 | AF50: 0 | AG50: TRUE | AH50: 0.2810844821 | AI50: 1.940509335 | AJ50: 0 | AK50: 0.04071533419 | AL50: 0.04071533419 | AM50: FALSE | AN50: 0 | AO50: 6136.429319 | AP50: 0 | AQ50: 1.287531917e-05 | AR50: 1.287531917e-05 | AS50: FALSE | AT50: 0 | AU50: 19405093.35 | AV50: 0
B51: 3 | C51: 2 | D51: 59.23910594 | F51: 42 | G51: 8 | H51: 4 | I51: 310.8586748 | J51: 1 | K51: 0.4851945668 | L51: 0.4851945668 | M51: 9.92463958e+12 | N51: 0 | O51: FALSE | P51: 0 | Q51: 7.326619327e-11 | R51: 7.326619327e-11 | S51: 3131899933 | T51: 0 | U51: FALSE | V51: 0 | W51: 2.376661364e-07 | X51: 2.376661364e-07 | Y51: 991169.5087 | Z51: 0 | AA51: FALSE | AB51: 0 | AC51: 0.0006852557985 | AD51: 0.0006852557985 | AE51: 343.5414457 | AF51: 0 | AG51: TRUE | AH51: 0.4851945668 | AI51: 2.166256607 | AJ51: 0 | AK51: 0.1086730755 | AL51: 0.1086730755 | AM51: FALSE | AN51: 0 | AO51: 6850.304874 | AP51: 0 | AQ51: 3.436544388e-05 | AR51: 3.436544388e-05 | AS51: FALSE | AT51: 0 | AU51: 21662566.07 | AV51: 0
B52: 3 | C52: 3 | D52: 103.5951197 | F52: 43 | G52: 6 | H52: 5 | I52: 316.7972485 | J52: 1 | K52: 0.04036346053 | L52: 0.04036346053 | M52: 1.028822822e+12 | N52: 0 | O52: FALSE | P52: 0 | Q52: 4.891282086e-12 | R52: 4.891282086e-12 | S52: 324663692 | T52: 0 | U52: FALSE | V52: 0 | W52: 1.58666919e-08 | X52: 1.58666919e-08 | Y52: 102748.0951 | Z52: 0 | AA52: FALSE | AB52: 0 | AC52: 4.574796726e-05 | AD52: 4.574796726e-05 | AE52: 35.61270682 | AF52: 0 | AG52: TRUE | AH52: 0.04036346053 | AI52: 0.1446202083 | AJ52: 0 | AK52: 0.01126543078 | AL52: 0.01126543078 | AM52: FALSE | AN52: 0 | AO52: 457.329254 | AP52: 0 | AQ52: 3.562442008e-06 | AR52: 3.562442008e-06 | AS52: FALSE | AT52: 0 | AU52: 1446202.083 | AV52: 0
B53: 3 | C53: 4 | D53: 165.6935389 | F53: 44 | G53: 1 | H53: 6 | I53: 322.002665 | J53: 1 | K53: 0.3978154064 | L53: 0.3978154064 | M53: 1.225543347e+13 | N53: 0 | O53: FALSE | P53: 0 | Q53: 3.988605034e-11 | R53: 3.988605034e-11 | S53: 3867424198 | T53: 0 | U53: FALSE | V53: 0 | W53: 1.293852329e-07 | X53: 1.293852329e-07 | Y53: 1223944.897 | Z53: 0 | AA53: FALSE | AB53: 0 | AC53: 0.0003730526462 | AD53: 0.0003730526462 | AE53: 424.2218872 | AF53: 0 | AG53: TRUE | AH53: 0.3978154064 | AI53: 1.179308167 | AJ53: 0 | AK53: 0.1341948628 | AL53: 0.1341948628 | AM53: FALSE | AN53: 0 | AO53: 3729.29987 | AP53: 0 | AQ53: 4.243614166e-05 | AR53: 4.243614166e-05 | AS53: FALSE | AT53: 0 | AU53: 11793081.67 | AV53: 0
B54: 3 | C54: 5 | D54: 245.5343636 | F54: 45 | G54: 11 | H54: 1 | I54: 328.2345016 | J54: 1 | K54: 0.580538378 | L54: 0.580538378 | M54: 2.234950647e+13 | N54: 0 | O54: FALSE | P54: 0 | Q54: 4.657795815e-11 | R54: 4.657795815e-11 | S54: 7052791918 | T54: 0 | U54: FALSE | V54: 0 | W54: 1.510929238e-07 | X54: 1.510929238e-07 | Y54: 2232035.649 | Z54: 0 | AA54: FALSE | AB54: 0 | AC54: 0.0004356417944 | AD54: 0.0004356417944 | AE54: 773.6282714 | AF54: 0 | AG54: TRUE | AH54: 0.580538378 | AI54: 1.377167355 | AJ54: 0 | AK54: 0.2447232046 | AL54: 0.2447232046 | AM54: FALSE | AN54: 0 | AO54: 4354.98556 | AP54: 0 | AQ54: 7.738827229e-05 | AR54: 7.738827229e-05 | AS54: FALSE | AT54: 0 | AU54: 13771673.55 | AV54: 0
B55: 3 | C55: 6 | D55: 343.1175938 | F55: 46 | G55: 2 | H55: 6 | I55: 329.9207633 | J55: 1 | K55: 0.6927919388 | L55: 0.6927919388 | M55: 2.8308328e+13 | N55: 0 | O55: FALSE | P55: 0 | Q55: 5.236944189e-11 | R55: 5.236944189e-11 | S55: 8933206073 | T55: 0 | U55: FALSE | V55: 0 | W55: 1.698797544e-07 | X55: 1.698797544e-07 | Y55: 2827140.606 | Z55: 0 | AA55: FALSE | AB55: 0 | AC55: 0.000489809312 | AD55: 0.000489809312 | AE55: 979.8929066 | AF55: 0 | AG55: TRUE | AH55: 0.6927919388 | AI55: 1.548403765 | AJ55: 0 | AK55: 0.3099712629 | AL55: 0.3099712629 | AM55: FALSE | AN55: 0 | AO55: 4896.482634 | AP55: 0 | AQ55: 9.802152e-05 | AR55: 9.802152e-05 | AS55: FALSE | AT55: 0 | AU55: 15484037.65 | AV55: 0
B56: 3 | C56: 7 | D56: 458.4432295 | F56: 47 | G56: 3 | H56: 6 | I56: 343.1175938 | J56: 1 | K56: 0.8086755004 | L56: 0.8086755004 | M56: 5.213483802e+13 | N56: 0 | O56: FALSE | P56: 0 | Q56: 3.8744232e-11 | R56: 3.8744232e-11 | S56: 1.645209324e+10 | T56: 0 | U56: FALSE | V56: 0 | W56: 1.256813206e-07 | X56: 1.256813206e-07 | Y56: 5206683.968 | Z56: 0 | AA56: FALSE | AB56: 0 | AC56: 0.0003623732646 | AD56: 0.0003623732646 | AE56: 1804.647663 | AF56: 0 | AG56: TRUE | AH56: 0.8086755004 | AI56: 1.145548101 | AJ56: 0 | AK56: 0.5708673993 | AL56: 0.5708673993 | AM56: FALSE | AN56: 0 | AO56: 3622.541168 | AP56: 0 | AQ56: 0.0001805241224 | AR56: 0.0001805241224 | AS56: FALSE | AT56: 0 | AU56: 11455481.01 | AV56: 0
B57: 3 | C57: 8 | D57: 591.5112707 | F57: 48 | G57: 10 | H57: 3 | I57: 343.7774354 | J57: 1 | K57: 0.8104876884 | L57: 0.8104876884 | M57: 5.343198237e+13 | N57: 0 | O57: FALSE | P57: 0 | Q57: 3.79732764e-11 | R57: 3.79732764e-11 | S57: 1.686143065e+10 | T57: 0 | U57: FALSE | V57: 0 | W57: 1.231804395e-07 | X57: 1.231804395e-07 | Y57: 5336229.218 | Z57: 0 | AA57: FALSE | AB57: 0 | AC57: 0.0003551625474 | AD57: 0.0003551625474 | AE57: 1849.548321 | AF57: 0 | AG57: TRUE | AH57: 0.8104876884 | AI57: 1.122753308 | AJ57: 0 | AK57: 0.585070904 | AL57: 0.585070904 | AM57: FALSE | AN57: 0 | AO57: 3550.457705 | AP57: 0 | AQ57: 0.0001850156649 | AR57: 0.0001850156649 | AS57: FALSE | AT57: 0 | AU57: 11227533.08 | AV57: 0
B58: 3 | C58: 9 | D58: 742.3217174 | F58: 49 | G58: 7 | H58: 5 | I58: 351.1090079 | J58: 1 | K58: 0.3120009295 | L58: 0.3120009295 | M58: 2.628846939e+13 | N58: 0 | O58: FALSE | P58: 0 | Q58: 1.143754955e-11 | R58: 1.143754955e-11 | S58: 8295803073 | T58: 0 | U58: FALSE | V58: 0 | W58: 3.710194414e-08 | X58: 3.710194414e-08 | Y58: 2625418.191 | Z58: 0 | AA58: FALSE | AB58: 0 | AC58: 0.0001069749471 | AD58: 0.0001069749471 | AE58: 909.9754915 | AF58: 0 | AG58: TRUE | AH58: 0.3120009295 | AI58: 0.3381732578 | AJ58: 0 | AK58: 0.2878541628 | AL58: 0.2878541628 | AM58: FALSE | AN58: 0 | AO58: 1069.397739 | AP58: 0 | AQ58: 9.102747885e-05 | AR58: 9.102747885e-05 | AS58: FALSE | AT58: 0 | AU58: 3381732.578 | AV58: 0
B59: 3 | C59: 10 | D59: 910.8745696 | F59: 50 | G59: 11 | H59: 2 | I59: 354.8481099 | J59: 1 | K59: 0.1816286301 | L59: 0.1816286301 | M59: 1.730943379e+13 | N59: 0 | O59: FALSE | P59: 0 | Q59: 5.886704911e-12 | R59: 5.886704911e-12 | S59: 5462305617 | T59: 0 | U59: FALSE | V59: 0 | W59: 1.909571591e-08 | X59: 1.909571591e-08 | Y59: 1728685.747 | Z59: 0 | AA59: FALSE | AB59: 0 | AC59: 5.505811745e-05 | AD59: 5.505811745e-05 | AE59: 599.1661319 | AF59: 0 | AG59: FALSE | AH59: 0 | AI59: 0.174051808 | AJ59: 0.174051808 | AK59: 0.1895352863 | AL59: 0 | AM59: TRUE | AN59: 0.1816286301 | AO59: 550.4001442 | AP59: 0 | AQ59: 5.993632016e-05 | AR59: 5.993632016e-05 | AS59: FALSE | AT59: 0 | AU59: 1740518.08 | AV59: 0
B60: 3 | C60: 11 | D60: 1097.169827 | F60: 51 | G60: 9 | H60: 4 | I60: 355.7278986 | J60: 1 | K60: 0.5856189831 | L60: 0.5856189831 | M60: 57440400716637 | N60: 0 | O60: FALSE | P60: 0 | Q60: 1.84416317e-11 | R60: 1.84416317e-11 | S60: 1.812635972e+10 | T60: 0 | U60: FALSE | V60: 0 | W60: 5.982228856e-08 | X60: 5.982228856e-08 | Y60: 5736548.244 | Z60: 0 | AA60: FALSE | AB60: 0 | AC60: 0.0001724838496 | AD60: 0.0001724838496 | AE60: 1988.299741 | AF60: 0 | AG60: FALSE | AH60: 0 | AI60: 0.5452624837 | AJ60: 0.5452624837 | AK60: 0.6289623871 | AL60: 0 | AM60: TRUE | AN60: 0.5856189831 | AO60: 1724.271371 | AP60: 0 | AQ60: 0.0001988953706 | AR60: 0.0001988953706 | AS60: FALSE | AT60: 0 | AU60: 5452624.837 | AV60: 0
B61: 3 | C61: 12 | D61: 1301.20749 | F61: 52 | G61: 4 | H61: 6 | I61: 361.5931566 | J61: 1 | K61: 0.7155091445 | L61: 0.7155091445 | M61: 84877753416825 | N61: 0 | O61: FALSE | P61: 0 | Q61: 1.863043582e-11 | R61: 1.863043582e-11 | S61: 2.678471375e+10 | T61: 0 | U61: FALSE | V61: 0 | W61: 6.043474491e-08 | X61: 6.043474491e-08 | Y61: 8476704.919 | Z61: 0 | AA61: FALSE | AB61: 0 | AC61: 0.000174249727 | AD61: 0.000174249727 | AE61: 2938.043833 | AF61: 0 | AG61: FALSE | AH61: 0 | AI61: 0.5508448424 | AJ61: 0.5508448424 | AK61: 0.9293966221 | AL61: 0 | AM61: TRUE | AN61: 0.7155091445 | AO61: 1741.924339 | AP61: 0 | AQ61: 0.0002939010175 | AR61: 0.0002939010175 | AS61: FALSE | AT61: 0 | AU61: 5508448.424 | AV61: 0
B62: 3 | C62: 13 | D62: 1522.987559 | F62: 53 | G62: 5 | H62: 6 | I62: 385.3474515 | J62: 1 | K62: 0.437377215 | L62: 0.437377215 | M62: 1.087197658e+14 | N62: 0 | O62: FALSE | P62: 0 | Q62: 5.434884451e-12 | R62: 5.434884451e-12 | S62: 3.430849295e+10 | T62: 0 | U62: FALSE | V62: 0 | W62: 1.763006827e-08 | X62: 1.763006827e-08 | Y62: 10857796.49 | Z62: 0 | AA62: FALSE | AB62: 0 | AC62: 5.083225861e-05 | AD62: 5.083225861e-05 | AE62: 3763.335202 | AF62: 0 | AG62: FALSE | AH62: 0 | AI62: 0.1606928629 | AJ62: 0.1606928629 | AK62: 1.190462506 | AL62: 0 | AM62: TRUE | AN62: 0.437377215 | AO62: 508.1554504 | AP62: 0 | AQ62: 0.0003764572988 | AR62: 0.0003764572988 | AS62: FALSE | AT62: 0 | AU62: 1606928.629 | AV62: 0
B63: 3 | C63: 14 | D63: 1762.510033 | F63: 54 | G63: 12 | H63: 1 | I63: 388.9399221 | J63: 1 | K63: 0.1125738902 | L63: 0.1125738902 | M63: 3.117067389e+13 | N63: 0 | O63: FALSE | P63: 0 | Q63: 1.255786096e-12 | R63: 1.255786096e-12 | S63: 9836471206 | T63: 0 | U63: FALSE | V63: 0 | W63: 4.073609071e-09 | X63: 4.073609071e-09 | Y63: 3113001.865 | Z63: 0 | AA63: FALSE | AB63: 0 | AC63: 1.174531753e-05 | AD63: 1.174531753e-05 | AE63: 1078.973023 | AF63: 0 | AG63: FALSE | AH63: 0 | AI63: 0.037129743 | AJ63: 0.037129743 | AK63: 0.341313452 | AL63: 0 | AM63: TRUE | AN63: 0.1125738902 | AO63: 117.4145568 | AP63: 0 | AQ63: 0.0001079327904 | AR63: 0.0001079327904 | AS63: FALSE | AT63: 0 | AU63: 371297.43 | AV63: 0
B64: 3 | C64: 15 | D64: 2019.774913 | F64: 55 | G64: 8 | H64: 5 | I64: 390.6994995 | J64: 1 | K64: 0.5837102625 | L64: 0.5837102625 | M64: 1.703327402e+14 | N64: 0 | O64: FALSE | P64: 0 | Q64: 6.178499816e-12 | R64: 6.178499816e-12 | S64: 5.375158395e+10 | T64: 0 | U64: FALSE | V64: 0 | W64: 2.004226116e-08 | X64: 2.004226116e-08 | Y64: 17011057.89 | Z64: 0 | AA64: FALSE | AB64: 0 | AC64: 5.778726362e-05 | AD64: 5.778726362e-05 | AE64: 5896.068601 | AF64: 0 | AG64: FALSE | AH64: 0 | AI64: 0.1826792884 | AJ64: 0.1826792884 | AK64: 1.865113849 | AL64: 0 | AM64: TRUE | AN64: 0.5837102625 | AO64: 577.6826325 | AP64: 0 | AQ64: 0.0005898007858 | AR64: 0.0005898007858 | AS64: FALSE | AT64: 0 | AU64: 1826792.884 | AV64: 0
B65: 3 | C65: 16 | D65: 2294.782198 | F65: 56 | G65: 11 | H65: 3 | I65: 399.2041236 | J65: 1 | K65: 0.523713609 | L65: 0.523713609 | M65: 1.96304348e+14 | N65: 0 | O65: FALSE | P65: 0 | Q65: 4.31563109e-12 | R65: 4.31563109e-12 | S65: 6.194739561e+10 | T65: 0 | U65: FALSE | V65: 0 | W65: 1.399935388e-08 | X65: 1.399935388e-08 | Y65: 19604831.25 | Z65: 0 | AA65: FALSE | AB65: 0 | AC65: 4.036392634e-05 | AD65: 4.036392634e-05 | AE65: 6795.075927 | AF65: 0 | AG65: FALSE | AH65: 0 | AI65: 0.1275999741 | AJ65: 0.1275999741 | AK65: 2.149498432 | AL65: 0 | AM65: TRUE | AN65: 0.523713609 | AO65: 403.5065474 | AP65: 0 | AQ65: 0.0006797310873 | AR65: 0.0006797310873 | AS65: FALSE | AT65: 0 | AU65: 1275999.741 | AV65: 0
B66: 3 | C66: 17 | D66: 2587.531889 | F66: 57 | G66: 10 | H66: 4 | I66: 405.8758546 | J66: 1 | K66: 0.5346556052 | L66: 0.5346556052 | M66: 2.429975041e+14 | N66: 0 | O66: FALSE | P66: 0 | Q66: 3.633565127e-12 | R66: 3.633565127e-12 | S66: 7.668226748e+10 | T66: 0 | U66: FALSE | V66: 0 | W66: 1.178681936e-08 | X66: 1.178681936e-08 | Y66: 24268056.77 | Z66: 0 | AA66: FALSE | AB66: 0 | AC66: 3.398459046e-05 | AD66: 3.398459046e-05 | AE66: 8411.359747 | AF66: 0 | AG66: FALSE | AH66: 0 | AI66: 0.1074333756 | AJ66: 0.1074333756 | AK66: 2.660780363 | AL66: 0 | AM66: TRUE | AN66: 0.5346556052 | AO66: 339.7341637 | AP66: 0 | AQ66: 0.0008414126299 | AR66: 0.0008414126299 | AS66: FALSE | AT66: 0 | AU66: 1074333.756 | AV66: 0
B67: 3 | C67: 18 | D67: 2898.023985 | F67: 58 | G67: 6 | H67: 6 | I67: 414.3804787 | J67: 1 | K67: 0.04617932686 | L67: 0.04617932686 | M67: 2.671078282e+13 | N67: 0 | O67: FALSE | P67: 0 | Q67: 2.466011476e-13 | R67: 2.466011476e-13 | S67: 8429071732 | T67: 0 | U67: FALSE | V67: 0 | W67: 7.999425021e-10 | X67: 7.999425021e-10 | Y67: 2667594.452 | Z67: 0 | AA67: FALSE | AB67: 0 | AC67: 2.306450748e-06 | AD67: 2.306450748e-06 | AE67: 924.5938729 | AF67: 0 | AG67: FALSE | AH67: 0 | AI67: 0.007291239537 | AJ67: 0.007291239537 | AK67: 0.2924784214 | AL67: 0 | AM67: TRUE | AN67: 0.04617932686 | AO67: 23.0569239 | AP67: 0 | AQ67: 9.24897978e-05 | AR67: 9.24897978e-05 | AS67: FALSE | AT67: 0 | AU67: 72912.39537 | AV67: 0
B68: 3 | C68: 19 | D68: 3226.258486 | F68: 59 | G68: 12 | H68: 2 | I68: 415.5535303 | J68: 1 | K68: 0.03522013743 | L68: 0.03522013743 | M68: 2.105251999e+13 | N68: 0 | O68: FALSE | P68: 0 | Q68: 1.819971208e-13 | R68: 1.819971208e-13 | S68: 6643504324 | T68: 0 | U68: FALSE | V68: 0 | W68: 5.903753231e-10 | X68: 5.903753231e-10 | Y68: 2102506.165 | Z68: 0 | AA68: FALSE | AB68: 0 | AC68: 1.702211849e-06 | AD68: 1.702211849e-06 | AE68: 728.7330785 | AF68: 0 | AG68: FALSE | AH68: 0 | AI68: 0.005381096624 | AJ68: 0.005381096624 | AK68: 0.2305214285 | AL68: 0 | AM68: TRUE | AN68: 0.03522013743 | AO68: 17.01652164 | AP68: 0 | AQ68: 7.289727637e-05 | AR68: 7.289727637e-05 | AS68: FALSE | AT68: 0 | AU68: 53810.96624 | AV68: 0
B69: 3 | C69: 20 | D69: 3572.235394 | F69: 60 | G69: 9 | H69: 5 | I69: 435.5687233 | J69: 1 | K69: 0.704525223 | L69: 0.704525223 | M69: 727680428133894 | N69: 0 | O69: FALSE | P69: 0 | Q69: 2.106875685e-12 | R69: 2.106875685e-12 | S69: 2.296327505e+11 | T69: 0 | U69: FALSE | V69: 0 | W69: 6.834434569e-09 | X69: 6.834434569e-09 | Y69: 72673133.02 | Z69: 0 | AA69: FALSE | AB69: 0 | AC69: 1.970552469e-05 | AD69: 1.970552469e-05 | AE69: 25188.66144 | AF69: 0 | AG69: FALSE | AH69: 0 | AI69: 0.06229385163 | AJ69: 0.06229385163 | AK69: 7.967973994 | AL69: 0 | AM69: TRUE | AN69: 0.704525223 | AO69: 196.9904554 | AP69: 0 | AQ69: 0.002519694616 | AR69: 0.002519694616 | AS69: FALSE | AT69: 0 | AU69: 622938.5163 | AV69: 0
B70: 4 | C70: 1 | D70: 51.10106045 | F70: 61 | G70: 1 | H70: 7 | I70: 437.3283007 | J70: 1 | K70: 0.2232526904 | L70: 0.2232526904 | M70: 2.416562725e+14 | N70: 0 | O70: FALSE | P70: 0 | Q70: 6.370622095e-13 | R70: 6.370622095e-13 | S70: 7.625901751e+10 | T70: 0 | U70: FALSE | V70: 0 | W70: 2.06654812e-09 | X70: 2.06654812e-09 | Y70: 24134108.54 | Z70: 0 | AA70: FALSE | AB70: 0 | AC70: 5.958417567e-06 | AD70: 5.958417567e-06 | AE70: 8364.933006 | AF70: 0 | AG70: FALSE | AH70: 0 | AI70: 0.01883597548 | AJ70: 0.01883597548 | AK70: 2.646094109 | AL70: 0 | AM70: TRUE | AN70: 0.2232526904 | AO70: 59.56458448 | AP70: 0 | AQ70: 0.0008367684289 | AR70: 0.0008367684289 | AS70: FALSE | AT70: 0 | AU70: 188359.7548 | AV70: 0
B71: 4 | C71: 2 | D71: 77.71466869 | F71: 62 | G71: 2 | H71: 7 | I71: 445.246399 | J71: 1 | K71: 0.3887925448 | L71: 0.3887925448 | M71: 5.184711663e+14 | N71: 0 | O71: FALSE | P71: 0 | Q71: 9.00529121e-13 | R71: 9.00529121e-13 | S71: 1.636129754e+11 | T71: 0 | U71: FALSE | V71: 0 | W71: 2.921200998e-09 | X71: 2.921200998e-09 | Y71: 51779493.56 | Z71: 0 | AA71: FALSE | AB71: 0 | AC71: 8.422613136e-06 | AD71: 8.422613136e-06 | AE71: 17946.88186 | AF71: 0 | AG71: FALSE | AH71: 0 | AI71: 0.02662588393 | AJ71: 0.02662588393 | AK71: 5.677169002 | AL71: 0 | AM71: TRUE | AN71: 0.3887925448 | AO71: 84.19843793 | AP71: 0 | AQ71: 0.001795278471 | AR71: 0.001795278471 | AS71: FALSE | AT71: 0 | AU71: 266258.8393 | AV71: 0
B72: 4 | C72: 3 | D72: 122.0706824 | F72: 63 | G72: 7 | H72: 6 | I72: 448.6922381 | J72: 1 | K72: 0.3569563342 | L72: 0.3569563342 | M72: 520654667952659 | N72: 0 | O72: FALSE | P72: 0 | Q72: 7.559045034e-13 | R72: 7.559045034e-13 | S72: 1.643020189e+11 | T72: 0 | U72: FALSE | V72: 0 | W72: 2.452057283e-09 | X72: 2.452057283e-09 | Y72: 51997558.93 | Z72: 0 | AA72: FALSE | AB72: 0 | AC72: 7.069944827e-06 | AD72: 7.069944827e-06 | AE72: 18022.46378 | AF72: 0 | AG72: FALSE | AH72: 0 | AI72: 0.02234977759 | AJ72: 0.02234977759 | AK72: 5.701077964 | AL72: 0 | AM72: TRUE | AN72: 0.3569563342 | AO72: 70.67620239 | AP72: 0 | AQ72: 0.001802839149 | AR72: 0.001802839149 | AS72: FALSE | AT72: 0 | AU72: 223497.7759 | AV72: 0
B73: 4 | C73: 4 | D73: 184.1691016 | F73: 64 | G73: 13 | H73: 1 | I73: 454.9240747 | J73: 1 | K73: 0.3844919645 | L73: 0.3844919645 | M73: 6.583705448e+14 | N73: 0 | O73: FALSE | P73: 0 | Q73: 6.935705701e-13 | R73: 6.935705701e-13 | S73: 2.077607603e+11 | T73: 0 | U73: FALSE | V73: 0 | W73: 2.249853996e-09 | X73: 2.249853996e-09 | Y73: 65751184.62 | Z73: 0 | AA73: FALSE | AB73: 0 | AC73: 6.486938022e-06 | AD73: 6.486938022e-06 | AE73: 22789.4995 | AF73: 0 | AG73: FALSE | AH73: 0 | AI73: 0.02050675438 | AJ73: 0.02050675438 | AK73: 7.209042838 | AL73: 0 | AM73: TRUE | AN73: 0.3844919645 | AO73: 64.84805126 | AP73: 0 | AQ73: 0.002279699512 | AR73: 0.002279699512 | AS73: FALSE | AT73: 0 | AU73: 205067.5438 | AV73: 0
B74: 4 | C74: 5 | D74: =3.1416/2*SQRT($H$2/$I$2)*(B74^2/$C$2^2+C74^2/$D$2^2) -> 264.0099264 | F74: 65 | G74: 3 | H74: 7 | I74: 458.4432295 | J74: 1 | K74: =ABS(SIN(G74*3.1416*$J$2/$C$2)*SIN(H74*3.1416*$K$2/$D$2))*(1/F74^$M$2)+(1-1/F74^$M$2) -> 0.4538260163 | L74: =$J74*$K74 -> 0.4538260163 | M74: =10^(LOG10($I74/22.27)/LOG10(2)*70/20)*$L74 -> 8.499298605e+14 | N74: =IF($I74<22.27,M74,0) -> 0 | O74: =AND($I74>22.27,$I74<44.45) -> FALSE | P74: =IF($O74=TRUE,$L74,0) -> 0 | Q74: =10^(LOG10(44.45/$I74)/LOG10(2)*70/20)*$L74 -> 7.484834528e-13 | R74: =IF($I74>44.45,Q74,0) -> 7.484834528e-13 | S74: =10^(LOG10($I74/44.548)/LOG10(2)*70/20)*$L74 -> 2.68210775e+11 | T74: =IF($I74<44.528,S74,0) -> 0 | U74: =AND($I74>44.548,$I74<89.095) -> FALSE | V74: =IF($U74=TRUE,$L74,0) -> 0 | W74: =10^(LOG10(89.095/$I74)/LOG10(2)*70/20)*$L74 -> 2.427984346e-09 | X74: =IF($I74>89.095,W74,0) -> 2.427984346e-09 | Y74: =10^(LOG10($I74/89.09)/LOG10(2)*70/20)*$L74 -> 84882131.53 | Z74: =IF($I74<89.09,Y74,0) -> 0 | AA74: =AND($I74>89.09,$I74<176.78) -> FALSE | AB74: =IF($AA74=TRUE,$L74,0) -> 0 | AC74: =10^(LOG10(176.78/$I74)/LOG10(2)*70/20)*$L74 -> 7.000536034e-06 | AD74: =IF($I74>176.78,AC74,0) -> 7.000536034e-06 | AE74: =10^(LOG10($I74/176.78)/LOG10(2)*70/20)*$L74 -> 29420.32611 | AF74: =IF($I74<176.78,AE74,0) -> 0 | AG74: =AND($I74>176.78,$I74<353.55) -> FALSE | AH74: =IF($AG74=TRUE,$L74,0) -> 0 | AI74: =10^(LOG10(353.55/$I74)/LOG10(2)*70/20)*$L74 -> 0.02213035989 | AJ74: =IF($I74>353.55,AI74,0) -> 0.02213035989 | AK74: =10^(LOG10($I74/353.55)/LOG10(2)*70/20)*$L74 -> 9.306583994 | AL74: =IF($I74<353.55,AK74,0) -> 0 | AM74: =AND($I74>353.55,$I74<707.1) -> TRUE | AN74: =IF($AM74=TRUE,$L74,0) -> 0.4538260163 | AO74: =10^(LOG10(707.1/$I74)/LOG10(2)*70/20)*$L74 -> 69.98234268 | AP74: =IF($I74>707.1,AO74,0) -> 0 | AQ74: =10^(LOG10($I74/707.1)/LOG10(2)*70/20)*$L74 -> 0.002943000266 | AR74: =IF($I74<707.1,AQ74,0) -> 0.002943000266 | AS74: =AND($I74>707.1,$I74<1414.2) -> FALSE | AT74: =IF($AS74=TRUE,$L74,0) -> 0 | AU74: =10^(LOG10(1414.2/$I74)/LOG10(2)*70/20)*$L74 -> 221303.5989 | AV74: =IF($I74>1414.2,AU74,0) -> 0
B75: 4 | C75: 6 | D75: 361.5931566 | F75: 66 | G75: 12 | H75: 3 | I75: 459.909544 | J75: =IF(ABS(I75-I74)>0.0001,1,$L$2) -> 1 | K75: 0.1015548335 | L75: 0.1015548335 | M75: 1.973871861e+14 | N75: 0 | O75: FALSE | P75: 0 | Q75: 1.613870764e-13 | R75: 1.613870764e-13 | S75: 6.228910481e+10 | T75: 0 | U75: FALSE | V75: 0 | W75: 5.235189818e-10 | X75: 5.235189818e-10 | Y75: 19712973.83 | Z75: 0 | AA75: FALSE | AB75: 0 | AC75: 1.509446922e-06 | AD75: 1.509446922e-06 | AE75: 6832.558375 | AF75: 0 | AG75: FALSE | AH75: 0 | AI75: 0.004771720828 | AJ75: 0.004771720828 | AK75: 2.161355322 | AL75: 0 | AM75: TRUE | AN75: 0.1015548335 | AO75: 15.08950618 | AP75: 0 | AQ75: 0.0006834805649 | AR75: 0.0006834805649 | AS75: FALSE | AT75: 0 | AU75: 47717.20828 | AV75: 0
B76: 4 | C76: 7 | D76: 476.9187923 | F76: 67 | G76: 11 | H76: 4 | I76: 461.3025428 | J76: 1 | K76: 0.3454789265 | L76: 0.3454789265 | M76: 6.95521881e+14 | N76: 0 | O76: FALSE | P76: 0 | Q76: 5.30052441e-13 | R76: 5.30052441e-13 | S76: 2.19484538e+11 | T76: 0 | U76: FALSE | V76: 0 | W76: 1.719422152e-09 | X76: 1.719422152e-09 | Y76: 69461472.68 | Z76: 0 | AA76: FALSE | AB76: 0 | AC76: 4.957559448e-06 | AD76: 4.957559448e-06 | AE76: 24075.49318 | AF76: 0 | AG76: FALSE | AH76: 0 | AI76: 0.01567202486 | AJ76: 0.01567202486 | AK76: 7.615843502 | AL76: 0 | AM76: TRUE | AN76: 0.3454789265 | AO76: 49.5592941 | AP76: 0 | AQ76: 0.002408341177 | AR76: 0.002408341177 | AS76: FALSE | AT76: 0 | AU76: 156720.2486 | AV76: 0
B77: 4 | C77: 8 | D77: 609.9868335 | F77: 68 | G77: 4 | H77: 7 | I77: 476.9187923 | J77: 1 | K77: 0.4015413655 | L77: 0.4015413655 | M77: 1190490349162707 | N77: 0 | O77: FALSE | P77: 0 | Q77: 4.183321255e-13 | R77: 4.183321255e-13 | S77: 3.756808109e+11 | T77: 0 | U77: FALSE | V77: 0 | W77: 1.357015774e-09 | X77: 1.357015774e-09 | Y77: 118893761.8 | Z77: 0 | AA77: FALSE | AB77: 0 | AC77: 3.912643771e-06 | AD77: 3.912643771e-06 | AE77: 41208.82903 | AF77: 0 | AG77: FALSE | AH77: 0 | AI77: 0.01236879781 | AJ77: 0.01236879781 | AK77: 13.03566205 | AL77: 0 | AM77: TRUE | AN77: 0.4015413655 | AO77: 39.11357299 | AP77: 0 | AQ77: 0.004122238289 | AR77: 0.004122238289 | AS77: FALSE | AT77: 0 | AU77: 123687.9781 | AV77: 0
B78: 4 | C78: 9 | D78: 760.7972802 | F78: 69 | G78: 13 | H78: 2 | I78: 481.537683 | J78: 1 | K78: 0.1202930787 | L78: 0.1202930787 | M78: 3.989366838e+14 | N78: 0 | O78: FALSE | P78: 0 | Q78: 1.12037606e-13 | R78: 1.12037606e-13 | S78: 1.258917025e+11 | T78: 0 | U78: FALSE | V78: 0 | W78: 3.634356276e-10 | X78: 3.634356276e-10 | Y78: 39841635.93 | Z78: 0 | AA78: FALSE | AB78: 0 | AC78: 1.047883283e-06 | AD78: 1.047883283e-06 | AE78: 13809.19518 | AF78: 0 | AG78: FALSE | AH78: 0 | AI78: 0.003312608357 | AJ78: 0.003312608357 | AK78: 4.36828723 | AL78: 0 | AM78: TRUE | AN78: 0.1202930787 | AO78: 10.4753874 | AP78: 0 | AQ78: 0.001381373712 | AR78: 0.001381373712 | AS78: FALSE | AT78: 0 | AU78: 33126.08357 | AV78: 0
B79: 4 | C79: 10 | D79: 929.3501323 | F79: 70 | G79: 10 | H79: 5 | I79: 485.7166793 | J79: 1 | K79: 0.6432140527 | L79: 0.6432140527 | M79: 2358582128179332 | N79: 0 | O79: FALSE | P79: 0 | Q79: 5.418094284e-13 | R79: 5.418094284e-13 | S79: 7.442933469e+11 | T79: 0 | U79: FALSE | V79: 0 | W79: 1.757560312e-09 | X79: 1.757560312e-09 | Y79: 235550588 | Z79: 0 | AA79: FALSE | AB79: 0 | AC79: 5.067522085e-06 | AD79: 5.067522085e-06 | AE79: 81642.33145 | AF79: 0 | AG79: FALSE | AH79: 0 | AI79: 0.01601964291 | AJ79: 0.01601964291 | AK79: 25.82606366 | AL79: 0 | AM79: TRUE | AN79: 0.6432140527 | AO79: 50.65855891 | AP79: 0 | AQ79: 0.008166918415 | AR79: 0.008166918415 | AS79: FALSE | AT79: 0 | AU79: 160196.4291 | AV79: 0
B80: 4 | C80: 11 | D80: 1115.64539 | F80: 71 | G80: 8 | H80: 6 | I80: 488.2827297 | J80: 1 | K80: 0.6678155603 | L80: 0.6678155603 | M80: 2603502762482379 | N80: 0 | O80: FALSE | P80: 0 | Q80: 5.291046015e-13 | R80: 5.291046015e-13 | S80: 8.215824929e+11 | T80: 0 | U80: FALSE | V80: 0 | W80: 1.716347482e-09 | X80: 1.716347482e-09 | Y80: 260010707 | Z80: 0 | AA80: FALSE | AB80: 0 | AC80: 4.948694343e-06 | AD80: 4.948694343e-06 | AE80: 90120.26035 | AF80: 0 | AG80: FALSE | AH80: 0 | AI80: 0.01564400015 | AJ80: 0.01564400015 | AK80: 28.50790196 | AL80: 0 | AM80: TRUE | AN80: 0.6678155603 | AO80: 49.47067219 | AP80: 0 | AQ80: 0.009014990151 | AR80: 0.009014990151 | AS80: FALSE | AT80: 0 | AU80: 156440.0015 | AV80: 0
B81: 4 | C81: 12 | D81: 1319.683053 | F81: 72 | G81: 5 | H81: 7 | I81: 500.6730872 | J81: 1 | K81: 0.2454546466 | L81: 0.2454546466 | M81: 1280575872088085 | N81: 0 | O81: FALSE | P81: 0 | Q81: 1.453194395e-13 | R81: 1.453194395e-13 | S81: 4.041089307e+11 | T81: 0 | U81: FALSE | V81: 0 | W81: 4.713976282e-10 | X81: 4.713976282e-10 | Y81: 127890564.5 | Z81: 0 | AA81: FALSE | AB81: 0 | AC81: 1.359166952e-06 | AD81: 1.359166952e-06 | AE81: 44327.13983 | AF81: 0 | AG81: FALSE | AH81: 0 | AI81: 0.004296650091 | AJ81: 0.004296650091 | AK81: 14.02208284 | AL81: 0 | AM81: TRUE | AN81: 0.2454546466 | AO81: 13.5872006 | AP81: 0 | AQ81: 0.004434171932 | AR81: 0.004434171932 | AS81: FALSE | AT81: 0 | AU81: 42966.50091 | AV81: 0
B82: 4 | C82: 13 | D82: 1541.463122 | F82: 73 | G82: 12 | H82: 4 | I82: 522.0079633 | J82: 1 | K82: 0.06699282634 | L82: 0.06699282634 | M82: 5.677701197e+14 | N82: 0 | O82: FALSE | P82: 0 | Q82: 2.441577878e-14 | R82: 2.441577878e-14 | S82: 1.791701538e+11 | T82: 0 | U82: FALSE | V82: 0 | W82: 7.920165564e-11 | X82: 7.920165564e-11 | Y82: 56702958.93 | Z82: 0 | AA82: FALSE | AB82: 0 | AC82: 2.283598101e-07 | AD82: 2.283598101e-07 | AE82: 19653.36536 | AF82: 0 | AG82: FALSE | AH82: 0 | AI82: 0.0007218996884 | AJ82: 0.0007218996884 | AK82: 6.216983957 | AL82: 0 | AM82: TRUE | AN82: 0.06699282634 | AO82: 2.282847257 | AP82: 0 | AQ82: 0.001965982948 | AR82: 0.001965982948 | AS82: FALSE | AT82: 0 | AU82: 7218.996884 | AV82: 0
B83: 4 | C83: 14 | D83: 1780.985596 | F83: 74 | G83: 13 | H83: 3 | I83: 525.8936967 | J83: 1 | K83: 0.3468567833 | L83: 0.3468567833 | M83: 3204367277377505 | N83: 0 | O83: FALSE | P83: 0 | Q83: 1.159697202e-13 | R83: 1.159697202e-13 | S83: 1.011196183e+12 | T83: 0 | U83: FALSE | V83: 0 | W83: 3.761909022e-10 | X83: 3.761909022e-10 | Y83: 320018789 | Z83: 0 | AA83: FALSE | AB83: 0 | AC83: 1.084660192e-06 | AD83: 1.084660192e-06 | AE83: 110919.1884 | AF83: 0 | AG83: FALSE | AH83: 0 | AI83: 0.003428868915 | AJ83: 0.003428868915 | AK83: 35.08726378 | AL83: 0 | AM83: TRUE | AN83: 0.3468567833 | AO83: 10.84303557 | AP83: 0 | AQ83: 0.01109556704 | AR83: 0.01109556704 | AS83: FALSE | AT83: 0 | AU83: 34288.68915 | AV83: 0
B84: 4 | C84: 15 | D84: 2038.250476 | F84: 75 | G84: 14 | H84: 1 | I84: 526.1869596 | J84: 1 | K84: 0.7821631753 | L84: 0.7821631753 | M84: 7272847412564432 | N84: 0 | O84: FALSE | P84: 0 | Q84: 2.598225063e-13 | R84: 2.598225063e-13 | S84: 2.295078843e+12 | T84: 0 | U84: FALSE | V84: 0 | W84: 8.428308946e-10 | X84: 8.428308946e-10 | Y84: 726336159.5 | Z84: 0 | AA84: FALSE | AB84: 0 | AC84: 2.430109592e-06 | AD84: 2.430109592e-06 | AE84: 251749.6473 | AF84: 0 | AG84: FALSE | AH84: 0 | AI84: 0.007682154562 | AJ84: 0.007682154562 | AK84: 79.63641291 | AL84: 0 | AM84: TRUE | AN84: 0.7821631753 | AO84: 24.29310575 | AP84: 0 | AQ84: 0.02518324495 | AR84: 0.02518324495 | AS84: FALSE | AT84: 0 | AU84: 76821.54562 | AV84: 0
B85: 4 | C85: 16 | D85: 2313.257761 | F85: 76 | G85: 6 | H85: 7 | I85: 529.7061144 | J85: 1 | K85: 0.02591568551 | L85: 0.02591568551 | M85: 2.60392305e+14 | N85: 0 | O85: FALSE | P85: 0 | Q85: 7.966797335e-15 | R85: 7.966797335e-15 | S85: 8.217151222e+10 | T85: 0 | U85: FALSE | V85: 0 | W85: 2.584326901e-11 | X85: 2.584326901e-11 | Y85: 26005268.09 | Z85: 0 | AA85: FALSE | AB85: 0 | AC85: 7.451313935e-08 | AD85: 7.451313935e-08 | AE85: 9013.48086 | AF85: 0 | AG85: FALSE | AH85: 0 | AI85: 0.0002355537608 | AJ85: 0.0002355537608 | AK85: 2.851250403 | AL85: 0 | AM85: TRUE | AN85: 0.02591568551 | AO85: 0.7448863954 | AP85: 0 | AQ85: 0.0009016445454 | AR85: 0.0009016445454 | AS85: FALSE | AT85: 0 | AU85: 2355.537608 | AV85: 0
B86: 4 | C86: 17 | D86: 2606.007451 | F86: 77 | G86: 9 | H86: 6 | I86: 533.1519535 | J86: 1 | K86: 0.806038435 | L86: 0.806038435 | M86: 8732977429898732 | N86: 0 | O86: FALSE | P86: 0 | Q86: 2.297924088e-13 | R86: 2.297924088e-13 | S86: 2.755849339e+12 | T86: 0 | U86: FALSE | V86: 0 | W86: 7.454171091e-10 | X86: 7.454171091e-10 | Y86: 872158719.6 | Z86: 0 | AA86: FALSE | AB86: 0 | AC86: 2.149239282e-06 | AD86: 2.149239282e-06 | AE86: 302292.0548 | AF86: 0 | AG86: FALSE | AH86: 0 | AI86: 0.006794256691 | AJ86: 0.006794256691 | AK86: 95.62458238 | AL86: 0 | AM86: TRUE | AN86: 0.806038435 | AO86: 21.48532615 | AP86: 0 | AQ86: 0.03023914806 | AR86: 0.03023914806 | AS86: FALSE | AT86: 0 | AU86: 67942.56691 | AV86: 0
B87: 4 | C87: 18 | D87: 2916.499548 | F87: 78 | G87: 11 | H87: 5 | I87: 541.1433675 | J87: 1 | K87: 0.415626243 | L87: 0.415626243 | M87: 5353451411294531 | N87: 0 | O87: FALSE | P87: 0 | Q87: 9.966864885e-14 | R87: 9.966864885e-14 | S87: 1.68937864e+12 | T87: 0 | U87: FALSE | V87: 0 | W87: 3.233123168e-10 | X87: 3.233123168e-10 | Y87: 534646902 | Z87: 0 | AA87: FALSE | AB87: 0 | AC87: 9.321969179e-07 | AD87: 9.321969179e-07 | AE87: 185309.7457 | AF87: 0 | AG87: FALSE | AH87: 0 | AI87: 0.002946896234 | AJ87: 0.002946896234 | AK87: 58.61936088 | AL87: 0 | AM87: TRUE | AN87: 0.415626243 | AO87: 9.318904129 | AP87: 0 | AQ87: 0.01853706954 | AR87: 0.01853706954 | AS87: FALSE | AT87: 0 | AU87: 29468.96234 | AV87: 0
B88: 4 | C88: 19 | D88: 3244.734049 | F88: 79 | G88: 14 | H88: 2 | I88: 552.8005678 | J88: 1 | K88: 0.244709448 | L88: 0.244709448 | M88: 4.038317471e+15 | N88: 0 | O88: FALSE | P88: 0 | Q88: 4.580232564e-14 | R88: 4.580232564e-14 | S88: 1.274364284e+12 | T88: 0 | U88: FALSE | V88: 0 | W88: 1.485768713e-10 | X88: 1.485768713e-10 | Y88: 403305038 | Z88: 0 | AA88: FALSE | AB88: 0 | AC88: 4.283873343e-07 | AD88: 4.283873343e-07 | AE88: 139786.3782 | AF88: 0 | AG88: FALSE | AH88: 0 | AI88: 0.00135423428 | AJ88: 0.00135423428 | AK88: 44.2188732 | AL88: 0 | AM88: TRUE | AN88: 0.244709448 | AO88: 4.282464811 | AP88: 0 | AQ88: 0.01398323549 | AR88: 0.01398323549 | AS88: FALSE | AT88: 0 | AU88: 13542.3428 | AV88: 0
B89: 4 | C89: 20 | D89: 3590.710956 | F89: 80 | G89: 7 | H89: 7 | I89: 564.0178738 | J89: 1 | K89: 0.2003227142 | L89: 0.2003227142 | M89: 4.175573795e+15 | N89: 0 | O89: FALSE | P89: 0 | Q89: 2.968456859e-14 | R89: 2.968456859e-14 | S89: 1.317678006e+12 | T89: 0 | U89: FALSE | V89: 0 | W89: 9.62929342e-11 | X89: 9.62929342e-11 | Y89: 417012768.4 | Z89: 0 | AA89: FALSE | AB89: 0 | AC89: 2.776385922e-07 | AD89: 2.776385922e-07 | AE89: 144537.5065 | AF89: 0 | AG89: FALSE | AH89: 0 | AI89: 0.0008776816423 | AJ89: 0.0008776816423 | AK89: 45.72180606 | AL89: 0 | AM89: TRUE | AN89: 0.2003227142 | AO89: 2.77547305 | AP89: 0 | AQ89: 0.01445850459 | AR89: 0.01445850459 | AS89: FALSE | AT89: 0 | AU89: 8776.816423 | AV89: 0
B90: 5 | C90: 1 | D90: 74.85535541 | F90: 81 | G90: 1 | H90: 8 | I90: 570.3963419 | J90: 1 | K90: 0.4676627789 | L90: 0.4676627789 | M90: 1.110969759e+16 | N90: 0 | O90: FALSE | P90: 0 | Q90: 6.080648339e-14 | R90: 6.080648339e-14 | S90: 3.505866471e+12 | T90: 0 | U90: FALSE | V90: 0 | W90: 1.972484352e-10 | X90: 1.972484352e-10 | Y90: 1109520745 | Z90: 0 | AA90: FALSE | AB90: 0 | AC90: 5.687206264e-07 | AD90: 5.687206264e-07 | AE90: 384562.2343 | AF90: 0 | AG90: FALSE | AH90: 0 | AI90: 0.001797861203 | AJ90: 0.001797861203 | AK90: 121.6492543 | AL90: 0 | AM90: TRUE | AN90: 0.4676627789 | AO90: 5.685336319 | AP90: 0 | AQ90: 0.03846887193 | AR90: 0.03846887193 | AS90: FALSE | AT90: 0 | AU90: 17978.61203 | AV90: 0
B91: 5 | C91: 2 | D91: 101.4689636 | F91: 82 | G91: 2 | H91: 8 | I91: 578.3144402 | J91: 1 | K91: 0.8144305073 | L91: 0.8144305073 | M91: 2.271100498e+16 | N91: 0 | O91: FALSE | P91: 0 | Q91: 9.021073625e-14 | R91: 9.021073625e-14 | S91: 7.166869327e+12 | T91: 0 | U91: FALSE | V91: 0 | W91: 2.926320611e-10 | X91: 2.926320611e-10 | Y91: 2268138351 | Z91: 0 | AA91: FALSE | AB91: 0 | AC91: 8.437374366e-07 | AD91: 8.437374366e-07 | AE91: 786141.5442 | AF91: 0 | AG91: FALSE | AH91: 0 | AI91: 0.002667254769 | AJ91: 0.002667254769 | AK91: 248.6815504 | AL91: 0 | AM91: TRUE | AN91: 0.8144305073 | AO91: 8.43460017 | AP91: 0 | AQ91: 0.07864001114 | AR91: 0.07864001114 | AS91: FALSE | AT91: 0 | AU91: 26672.54769 | AV91: 0
B92: 5 | C92: 3 | D92: 145.8249774 | F92: 83 | G92: 10 | H92: 6 | I92: 583.2999095 | J92: 1 | K92: 0.7358930973 | L92: 0.7358930973 | M92: 2.267462348e+16 | N92: 0 | O92: FALSE | P92: 0 | Q92: 7.376933825e-14 | R92: 7.376933825e-14 | S92: 7.155388483e+12 | T92: 0 | U92: FALSE | V92: 0 | W92: 2.392982742e-10 | X92: 2.392982742e-10 | Y92: 2264504945 | Z92: 0 | AA92: FALSE | AB92: 0 | AC92: 6.899616935e-07 | AD92: 6.899616935e-07 | AE92: 784882.1981 | AF92: 0 | AG92: FALSE | AH92: 0 | AI92: 0.002181133061 | AJ92: 0.002181133061 | AK92: 248.2831792 | AL92: 0 | AM92: TRUE | AN92: 0.7358930973 | AO92: 6.897348351 | AP92: 0 | AQ92: 0.07851403511 | AR92: 0.07851403511 | AS92: FALSE | AT92: 0 | AU92: 21811.33061 | AV92: 0
B93: 5 | C93: 4 | D93: 207.9233966 | F93: 84 | G93: 13 | H93: 4 | I93: 587.9921159 | J93: 1 | K93: 0.2288115243 | L93: 0.2288115243 | M93: 7738550319120248 | N93: 0 | O93: FALSE | P93: 0 | Q93: 2.089693976e-14 | R93: 2.089693976e-14 | S93: 2.442039837e+12 | T93: 0 | U93: FALSE | V93: 0 | W93: 6.778699308e-11 | X93: 6.778699308e-11 | Y93: 772845709.5 | Z93: 0 | AA93: FALSE | AB93: 0 | AC93: 1.954482484e-07 | AD93: 1.954482484e-07 | AE93: 267869.9556 | AF93: 0 | AG93: FALSE | AH93: 0 | AI93: 0.000617858412 | AJ93: 0.000617858412 | AK93: 84.73577866 | AL93: 0 | AM93: TRUE | AN93: 0.2288115243 | AO93: 1.953839853 | AP93: 0 | AQ93: 0.02679580599 | AR93: 0.02679580599 | AS93: FALSE | AT93: 0 | AU93: 6178.58412 | AV93: 0
B94: 5 | C94: 5 | D94: 287.7642213 | F94: 85 | G94: 3 | H94: 8 | I94: 591.5112707 | J94: 1 | K94: 0.950660597 | L94: 0.950660597 | M94: 3.44618173e+16 | N94: 0 | O94: FALSE | P94: 0 | Q94: 8.100266823e-14 | R94: 8.100266823e-14 | S94: 1.087505117e+13 | T94: 0 | U94: FALSE | V94: 0 | W94: 2.627622691e-10 | X94: 2.627622691e-10 | Y94: 3441686950 | Z94: 0 | AA94: FALSE | AB94: 0 | AC94: 7.576147418e-07 | AD94: 7.576147418e-07 | AE94: 1192895.968 | AF94: 0 | AG94: FALSE | AH94: 0 | AI94: 0.002395000441 | AJ94: 0.002395000441 | AK94: 377.3508994 | AL94: 0 | AM94: TRUE | AN94: 0.950660597 | AO94: 7.573656392 | AP94: 0 | AQ94: 0.1193288319 | AR94: 0.1193288319 | AS94: FALSE | AT94: 0 | AU94: 23950.00441 | AV94: 0
B95: 5 | C95: 6 | D95: 385.3474515 | F95: 86 | G95: 14 | H95: 3 | I95: 597.1565816 | J95: 1 | K95: 0.7056027901 | L95: 0.7056027901 | M95: 2.856509175e+16 | N95: 0 | O95: FALSE | P95: 0 | Q95: 5.383583691e-14 | R95: 5.383583691e-14 | S95: 9.014232529e+12 | T95: 0 | U95: FALSE | V95: 0 | W95: 1.746365518e-10 | X95: 1.746365518e-10 | Y95: 2852783492 | Z95: 0 | AA95: FALSE | AB95: 0 | AC95: 5.035244464e-07 | AD95: 5.035244464e-07 | AE95: 988780.7851 | AF95: 0 | AG95: FALSE | AH95: 0 | AI95: 0.001591760568 | AJ95: 0.001591760568 | AK95: 312.7827813 | AL95: 0 | AM95: TRUE | AN95: 0.7056027901 | AO95: 5.033588883 | AP95: 0 | AQ95: 0.09891060017 | AR95: 0.09891060017 | AS95: FALSE | AT95: 0 | AU95: 15917.60568 | AV95: 0
B96: 5 | C96: 7 | D96: 500.6730872 | F96: 87 | G96: 12 | H96: 5 | I96: 601.848788 | J96: 1 | K96: 0.08059529708 | L96: 0.08059529708 | M96: 3573602915993202 | N96: 0 | O96: FALSE | P96: 0 | Q96: 5.614351773e-15 | R96: 5.614351773e-15 | S96: 1.127715182e+12 | T96: 0 | U96: FALSE | V96: 0 | W96: 1.821223725e-11 | X96: 1.821223725e-11 | Y96: 356894194.3 | Z96: 0 | AA96: FALSE | AB96: 0 | AC96: 5.251080936e-08 | AD96: 5.251080936e-08 | AE96: 123700.2817 | AF96: 0 | AG96: FALSE | AH96: 0 | AI96: 0.0001659991611 | AJ96: 0.0001659991611 | AK96: 39.13032974 | AL96: 0 | AM96: TRUE | AN96: 0.08059529708 | AO96: 0.5249354388 | AP96: 0 | AQ96: 0.01237409676 | AR96: 0.01237409676 | AS96: FALSE | AT96: 0 | AU96: 1659.991611 | AV96: 0
B97: 5 | C97: 8 | D97: 633.7411284 | F97: 88 | G97: 15 | H97: 1 | I97: 602.7285767 | J97: 1 | K97: 0.9776381438 | L97: 0.9776381438 | M97: 4.409107154e+16 | N97: 0 | O97: FALSE | P97: 0 | Q97: 6.695640618e-14 | R97: 6.695640618e-14 | S97: 1.391373691e+13 | T97: 0 | U97: FALSE | V97: 0 | W97: 2.171979961e-10 | X97: 2.171979961e-10 | Y97: 4403356451 | Z97: 0 | AA97: FALSE | AB97: 0 | AC97: 6.262406102e-07 | AD97: 6.262406102e-07 | AE97: 1526212.648 | AF97: 0 | AG97: FALSE | AH97: 0 | AI97: 0.001979695556 | AJ97: 0.001979695556 | AK97: 482.7895568 | AL97: 0 | AM97: TRUE | AN97: 0.9776381438 | AO97: 6.260347032 | AP97: 0 | AQ97: 0.152671463 | AR97: 0.152671463 | AS97: FALSE | AT97: 0 | AU97: 19796.95556 | AV97: 0
B98: 5 | C98: 9 | D98: 784.5515751 | F98: 89 | G98: 8 | H98: 7 | I98: 603.6083654 | J98: 1 | K98: 0.3747758838 | L98: 0.3747758838 | M98: 1.719132365e+16 | N98: 0 | O98: FALSE | P98: 0 | Q98: 2.523599721e-14 | R98: 2.523599721e-14 | S98: 5.425033821e+12 | T98: 0 | U98: FALSE | V98: 0 | W98: 8.186233904e-11 | X98: 8.186233904e-11 | Y98: 1716890138 | Z98: 0 | AA98: FALSE | AB98: 0 | AC98: 2.360312805e-07 | AD98: 2.360312805e-07 | AE98: 595077.7488 | AF98: 0 | AG98: FALSE | AH98: 0 | AI98: 0.0007461510314 | AJ98: 0.0007461510314 | AK98: 188.2420008 | AL98: 0 | AM98: TRUE | AN98: 0.3747758838 | AO98: 2.359536738 | AP98: 0 | AQ98: 0.05952734739 | AR98: 0.05952734739 | AS98: FALSE | AT98: 0 | AU98: 7461.510314 | AV98: 0
B99: 5 | C99: 10 | D99: 953.1044273 | F99: 90 | G99: 4 | H99: 8 | I99: 609.9868335 | J99: 1 | K99: 0.8411363397 | L99: 0.8411363397 | M99: 4.359961294e+16 | N99: 0 | O99: FALSE | P99: 0 | Q99: 5.012295558e-14 | R99: 5.012295558e-14 | S99: 1.375864824e+13 | T99: 0 | U99: FALSE | V99: 0 | W99: 1.625924409e-10 | X99: 1.625924409e-10 | Y99: 4354274690 | Z99: 0 | AA99: FALSE | AB99: 0 | AC99: 4.687980147e-07 | AD99: 4.687980147e-07 | AE99: 1509200.807 | AF99: 0 | AG99: FALSE | AH99: 0 | AI99: 0.001481982055 | AJ99: 0.001481982055 | AK99: 477.4081707 | AL99: 0 | AM99: TRUE | AN99: 0.8411363397 | AO99: 4.686438746 | AP99: 0 | AQ99: 0.1509697193 | AR99: 0.1509697193 | AS99: FALSE | AT99: 0 | AU99: 14819.82055 | AV99: 0
B100: 5 | C100: 11 | D100: 1139.399685 | F100: 91 | G100: 15 | H100: 2 | I100: 629.3421849 | J100: 1 | K100: 0.3058662157 | L100: 0.3058662157 | M100: 2.279715565e+16 | N100: 0 | O100: FALSE | P100: 0 | Q100: 1.267561e-14 | R100: 1.267561e-14 | S100: 7.194055732e+12 | T100: 0 | U100: FALSE | V100: 0 | W100: 4.111805351e-11 | X100: 4.111805351e-11 | Y100: 2276742181 | Z100: 0 | AA100: FALSE | AB100: 0 | AC100: 1.185544774e-07 | AD100: 1.185544774e-07 | AE100: 789123.65 | AF100: 0 | AG100: FALSE | AH100: 0 | AI100: 0.0003747789081 | AJ100: 0.0003747789081 | AK100: 249.6248852 | AL100: 0 | AM100: TRUE | AN100: 0.3058662157 | AO100: 1.185154968 | AP100: 0 | AQ100: 0.0789383198 | AR100: 0.0789383198 | AS100: FALSE | AT100: 0 | AU100: 3747.789081 | AV100: 0
B101: 5 | C101: 12 | D101: 1343.437348 | F101: 92 | G101: 5 | H101: 8 | I101: 633.7411284 | J101: 1 | K101: 0.5141707448 | L101: 0.5141707448 | M101: 4.155545133e+16 | N101: 0 | O101: FALSE | P101: 0 | Q101: 1.965048324e-14 | R101: 1.965048324e-14 | S101: 1.311357598e+13 | T101: 0 | U101: FALSE | V101: 0 | W101: 6.374364794e-11 | X101: 6.374364794e-11 | Y101: 4150125145 | Z101: 0 | AA101: FALSE | AB101: 0 | AC101: 1.8379019e-07 | AD101: 1.8379019e-07 | AE101: 1438442.143 | AF101: 0 | AG101: FALSE | AH101: 0 | AI101: 0.0005810045158 | AJ101: 0.0005810045158 | AK101: 455.024957 | AL101: 0 | AM101: TRUE | AN101: 0.5141707448 | AO101: 1.837297601 | AP101: 0 | AQ101: 0.1438915256 | AR101: 0.1438915256 | AS101: FALSE | AT101: 0 | AU101: 5810.045158 | AV101: 0
B102: 5 | C102: 13 | D102: 1565.217417 | F102: 93 | G102: 11 | H102: 6 | I102: 638.7265977 | J102: 1 | K102: 0.4755127503 | L102: 0.4755127503 | M102: 4.20968785e+16 | N102: 0 | O102: FALSE | P102: 0 | Q102: 1.659055644e-14 | R102: 1.659055644e-14 | S102: 1.328443314e+13 | T102: 0 | U102: FALSE | V102: 0 | W102: 5.381763776e-11 | X102: 5.381763776e-11 | Y102: 4204197245 | Z102: 0 | AA102: FALSE | AB102: 0 | AC102: 1.551708161e-07 | AD102: 1.551708161e-07 | AE102: 1457183.647 | AF102: 0 | AG102: FALSE | AH102: 0 | AI102: 0.000490531866 | AJ102: 0.000490531866 | AK102: 460.9534902 | AL102: 0 | AM102: TRUE | AN102: 0.4755127503 | AO102: 1.551197961 | AP102: 0 | AQ102: 0.1457662925 | AR102: 0.1457662925 | AS102: FALSE | AT102: 0 | AU102: 4905.31866 | AV102: 0
B103: 5 | C103: 14 | D103: 1804.739891 | F103: 94 | G103: 9 | H103: 7 | I103: 648.4775892 | J103: 1 | K103: 0.4523461039 | L103: 0.4523461039 | M103: 4.775977175e+16 | N103: 0 | O103: FALSE | P103: 0 | Q103: 1.32332336e-14 | R103: 1.32332336e-14 | S103: 1.507146176e+13 | T103: 0 | U103: FALSE | V103: 0 | W103: 4.292691295e-11 | X103: 4.292691295e-11 | Y103: 4769747970 | Z103: 0 | AA103: FALSE | AB103: 0 | AC103: 1.237699087e-07 | AD103: 1.237699087e-07 | AE103: 1653204.723 | AF103: 0 | AG103: FALSE | AH103: 0 | AI103: 0.0003912661274 | AJ103: 0.0003912661274 | AK103: 522.9611853 | AL103: 0 | AM103: TRUE | AN103: 0.4523461039 | AO103: 1.237292134 | AP103: 0 | AQ103: 0.1653748473 | AR103: 0.1653748473 | AS103: FALSE | AT103: 0 | AU103: 3912.661274 | AV103: 0
B104: 5 | C104: 15 | D104: 2062.004771 | F104: 95 | G104: 14 | H104: 4 | I104: 659.2550008 | J104: 1 | K104: 0.4654660301 | L104: 0.4654660301 | M104: 5.952631583e+16 | N104: 0 | O104: FALSE | P104: 0 | Q104: 1.124225656e-14 | R104: 1.124225656e-14 | S104: 1.878460805e+13 | T104: 0 | U104: FALSE | V104: 0 | W104: 3.646843873e-11 | X104: 3.646843873e-11 | Y104: 5944867694 | Z104: 0 | AA104: FALSE | AB104: 0 | AC104: 1.051483795e-07 | AD104: 1.051483795e-07 | AE104: 2060503.702 | AF104: 0 | AG104: FALSE | AH104: 0 | AI104: 0.0003323990432 | AJ104: 0.0003323990432 | AK104: 651.8027943 | AL104: 0 | AM104: TRUE | AN104: 0.4654660301 | AO104: 1.051138069 | AP104: 0 | AQ104: 0.2061181415 | AR104: 0.2061181415 | AS104: FALSE | AT104: 0 | AU104: 3323.990432 | AV104: 0
B105: 5 | C105: 16 | D105: 2337.012056 | F105: 96 | G105: 6 | H105: 8 | I105: 662.7741556 | J105: 1 | K105: 0.05428737042 | L105: 0.05428737042 | M105: 7385882567579581 | N105: 0 | O105: FALSE | P105: 0 | Q105: 1.232485239e-15 | R105: 1.232485239e-15 | S105: 2.330749135e+12 | T105: 0 | U105: FALSE | V105: 0 | W105: 3.998024079e-12 | X105: 3.998024079e-12 | Y105: 737624932 | Z105: 0 | AA105: FALSE | AB105: 0 | AC105: 1.152738553e-08 | AD105: 1.152738553e-08 | AE105: 255662.3598 | AF105: 0 | AG105: FALSE | AH105: 0 | AI105: 3.644080813e-05 | AJ105: 3.644080813e-05 | AK105: 80.87412818 | AL105: 0 | AM105: TRUE | AN105: 0.05428737042 | AO105: 0.1152359535 | AP105: 0 | AQ105: 0.02557464488 | AR105: 0.02557464488 | AS105: FALSE | AT105: 0 | AU105: 364.4080813 | AV105: 0
B106: 5 | C106: 17 | D106: 2629.761746 | F106: 97 | G106: 13 | H106: 5 | I106: 667.8329406 | J106: 1 | K106: 0.2752702607 | L106: 0.2752702607 | M106: 4.091264594e+16 | N106: 0 | O106: FALSE | P106: 0 | Q106: 5.720678406e-15 | R106: 5.720678406e-15 | S106: 1.291072709e+13 | T106: 0 | U106: FALSE | V106: 0 | W106: 1.855714721e-11 | X106: 1.855714721e-11 | Y106: 4085928446 | Z106: 0 | AA106: FALSE | AB106: 0 | AC106: 5.350527814e-08 | AD106: 5.350527814e-08 | AE106: 1416191.431 | AF106: 0 | AG106: FALSE | AH106: 0 | AI106: 0.0001691429135 | AJ106: 0.0001691429135 | AK106: 447.9863499 | AL106: 0 | AM106: TRUE | AN106: 0.2752702607 | AO106: 0.5348768568 | AP106: 0 | AQ106: 0.1416657226 | AR106: 0.1416657226 | AS106: FALSE | AT106: 0 | AU106: 1691.429135 | AV106: 0
B107: 5 | C107: 18 | D107: 2940.253843 | F107: 98 | G107: 15 | H107: 3 | I107: 673.6981987 | J107: 1 | K107: 0.8819441055 | L107: 0.8819441055 | M107: 1.451083778e+17 | N107: 0 | O107: FALSE | P107: 0 | Q107: 1.655679037e-14 | R107: 1.655679037e-14 | S107: 4.579157913e+13 | T107: 0 | U107: FALSE | V107: 0 | W107: 5.370810497e-11 | X107: 5.370810497e-11 | Y107: 1.449191161e+10 | Z107: 0 | AA107: FALSE | AB107: 0 | AC107: 1.548550034e-07 | AD107: 1.548550034e-07 | AE107: 5022927.179 | AF107: 0 | AG107: FALSE | AH107: 0 | AI107: 0.0004895335069 | AJ107: 0.0004895335069 | AK107: 1588.911472 | AL107: 0 | AM107: TRUE | AN107: 0.8819441055 | AO107: 1.548040873 | AP107: 0 | AQ107: 0.5024579253 | AR107: 0.5024579253 | AS107: FALSE | AT107: 0 | AU107: 4895.335069 | AV107: 0
B108: 5 | C108: 19 | D108: 3268.488344 | F108: 99 | G108: 16 | H108: 1 | I108: 684.548926 | J108: 1 | K108: 0.920384826 | L108: 0.920384826 | M108: 1.823476325e+17 | N108: 0 | O108: FALSE | P108: 0 | Q108: 1.434912055e-14 | R108: 1.434912055e-14 | S108: 5.754310103e+13 | T108: 0 | U108: FALSE | V108: 0 | W108: 4.654670714e-11 | X108: 4.654670714e-11 | Y108: 1.821098004e+10 | Z108: 0 | AA108: FALSE | AB108: 0 | AC108: 1.342067551e-07 | AD108: 1.342067551e-07 | AE108: 6311964.156 | AF108: 0 | AG108: FALSE | AH108: 0 | AI108: 0.0004242594818 | AJ108: 0.0004242594818 | AK108: 1996.674828 | AL108: 0 | AM108: TRUE | AN108: 0.920384826 | AO108: 1.341626282 | AP108: 0 | AQ108: 0.6314040203 | AR108: 0.6314040203 | AS108: FALSE | AT108: 0 | AU108: 4242.594818 | AV108: 0
B109: 5 | C109: 20 | D109: 3614.465251 | F109: 100 | G109: 7 | H109: 8 | I109: 697.085915 | J109: 1 | K109: 0.4196297793 | L109: 0.4196297793 | M109: 1.026684133e+17 | N109: 0 | O109: FALSE | P109: 0 | Q109: 5.297637823e-15 | R109: 5.297637823e-15 | S109: 3.2398879e+13 | T109: 0 | U109: FALSE | V109: 0 | W109: 1.718485781e-11 | X109: 1.718485781e-11 | Y109: 1.025345051e+10 | Z109: 0 | AA109: FALSE | AB109: 0 | AC109: 4.954859635e-08 | AD109: 4.954859635e-08 | AE109: 3553867.61 | AF109: 0 | AG109: FALSE | AH109: 0 | AI109: 0.0001566349011 | AJ109: 0.0001566349011 | AK109: 1124.201251 | AL109: 0 | AM109: TRUE | AN109: 0.4196297793 | AO109: 0.4953230485 | AP109: 0 | AQ109: 0.3555036501 | AR109: 0.3555036501 | AS109: FALSE | AT109: 0 | AU109: 1566.349011 | AV109: 0
B110: 6 | C110: 1 | D110: 103.8883826 | F110: 101 | G110: 10 | H110: 7 | I110: 698.6255452 | J110: 1 | K110: 0.4129807724 | L110: 0.4129807724 | M110: 1.036670156e+17 | N110: 0 | O110: FALSE | P110: 0 | Q110: 5.081659735e-15 | R110: 5.081659735e-15 | S110: 3.271400605e+13 | T110: 0 | U110: FALSE | V110: 0 | W110: 1.648425258e-11 | X110: 1.648425258e-11 | Y110: 1.035318049e+10 | Z110: 0 | AA110: FALSE | AB110: 0 | AC110: 4.752856186e-08 | AD110: 4.752856186e-08 | AE110: 3588434.232 | AF110: 0 | AG110: FALSE | AH110: 0 | AI110: 0.0001502490915 | AJ110: 0.0001502490915 | AK110: 1135.135772 | AL110: 0 | AM110: TRUE | AN110: 0.4129807724 | AO110: 0.4751293454 | AP110: 0 | AQ110: 0.3589614492 | AR110: 0.3589614492 | AS110: FALSE | AT110: 0 | AU110: 1502.490915 | AV110: 0
B111: 6 | C111: 2 | D111: 130.5019908 | F111: 102 | G111: 12 | H111: 6 | I111: 699.4320182 | J111: 1 | K111: 0.09220806439 | L111: 0.09220806439 | M111: 2.345876937e+16 | N111: 0 | O111: FALSE | P111: 0 | Q111: 1.119487113e-15 | R111: 1.119487113e-15 | S111: 7.402839935e+12 | T111: 0 | U111: FALSE | V111: 0 | W111: 3.631472649e-12 | X111: 3.631472649e-12 | Y111: 2342817260 | Z111: 0 | AA111: FALSE | AB111: 0 | AC111: 1.047051855e-08 | AD111: 1.047051855e-08 | AE111: 812025.4119 | AF111: 0 | AG111: FALSE | AH111: 0 | AI111: 3.309980016e-05 | AJ111: 3.309980016e-05 | AK111: 256.8694403 | AL111: 0 | AM111: TRUE | AN111: 0.09220806439 | AO111: 0.1046707586 | AP111: 0 | AQ111: 0.08122924925 | AR111: 0.08122924925 | AS111: FALSE | AT111: 0 | AU111: 330.9980016 | AV111: 0
B112: 6 | C112: 3 | D112: 174.8580045 | F112: 103 | G112: 16 | H112: 2 | I112: 711.1625342 | J112: 1 | K112: 0.2879538053 | L112: 0.2879538053 | M112: 8.888803916e+16 | N112: 0 | O112: FALSE | P112: 0 | Q112: 2.881302338e-15 | R112: 2.881302338e-15 | S112: 2.805023212e+13 | T112: 0 | U112: FALSE | V112: 0 | W112: 9.346575327e-12 | X112: 9.346575327e-12 | Y112: 8877210441 | Z112: 0 | AA112: FALSE | AB112: 0 | AC112: 2.694870643e-08 | AD112: 2.694870643e-08 | AE112: 3076859.893 | AF112: 0 | AG112: FALSE | AH112: 0 | AI112: 8.519127235e-05 | AJ112: 8.519127235e-05 | AK112: 973.3085528 | AL112: 0 | AM112: FALSE | AN112: 0 | AO112: 0.2693984574 | AP112: 0.2693984574 | AQ112: 0.3077871893 | AR112: 0 | AS112: TRUE | AT112: 0.2879538053 | AU112: 851.9127235 | AV112: 0
B113: 6 | C113: 4 | D113: 236.9564238 | F113: 104 | G113: 1 | H113: 9 | I113: 721.2067886 | J113: 1 | K113: 0.07693859114 | L113: 0.07693859114 | M113: 2.795648243e+16 | N113: 0 | O113: FALSE | P113: 0 | Q113: 6.540221333e-16 | R113: 6.540221333e-16 | S113: 8.822174826e+12 | T113: 0 | U113: FALSE | V113: 0 | W113: 2.121563938e-12 | X113: 2.121563938e-12 | Y113: 2792001940 | Z113: 0 | AA113: FALSE | AB113: 0 | AC113: 6.117043061e-09 | AD113: 6.117043061e-09 | AE113: 967713.7708 | AF113: 0 | AG113: FALSE | AH113: 0 | AI113: 1.933742841e-05 | AJ113: 1.933742841e-05 | AK113: 306.1186152 | AL113: 0 | AM113: FALSE | AN113: 0 | AO113: 0.06115031786 | AP113: 0.06115031786 | AQ113: 0.09680320583 | AR113: 0 | AS113: TRUE | AT113: 0.07693859114 | AU113: 193.3742841 | AV113: 0
B114: 6 | C114: 5 | D114: 316.7972485 | F114: 105 | G114: 2 | H114: 9 | I114: 729.1248869 | J114: 1 | K114: 0.1339878619 | L114: 0.1339878619 | M114: 5.527632273e+16 | N114: 0 | O114: FALSE | P114: 0 | Q114: 1.003178655e-15 | R114: 1.003178655e-15 | S114: 1.744344569e+13 | T114: 0 | U114: FALSE | V114: 0 | W114: 3.254182925e-12 | X114: 3.254182925e-12 | Y114: 5520422702 | Z114: 0 | AA114: FALSE | AB114: 0 | AC114: 9.382690159e-09 | AD114: 9.382690159e-09 | AE114: 1913390.171 | AF114: 0 | AG114: FALSE | AH114: 0 | AI114: 2.966091581e-05 | AJ114: 2.966091581e-05 | AK114: 605.2661099 | AL114: 0 | AM114: FALSE | AN114: 0 | AO114: 0.09379605144 | AP114: 0.09379605144 | AQ114: 0.1914019498 | AR114: 0 | AS114: TRUE | AT114: 0.1339878619 | AU114: 296.6091581 | AV114: 0
B115: 6 | C115: 6 | D115: 414.3804787 | F115: 106 | G115: 15 | H115: 4 | I115: 735.7966179 | J115: 1 | K115: 0.581793365 | L115: 0.581793365 | M115: 2.668310099e+17 | N115: 0 | O115: FALSE | P115: 0 | Q115: 3.918210296e-15 | R115: 3.918210296e-15 | S115: 8.420336228e+13 | T115: 0 | U115: FALSE | V115: 0 | W115: 1.271017178e-11 | X115: 1.271017178e-11 | Y115: 2.66482988e+10 | Z115: 0 | AA115: FALSE | AB115: 0 | AC115: 3.664686542e-08 | AD115: 3.664686542e-08 | AE115: 9236356.661 | AF115: 0 | AG115: FALSE | AH115: 0 | AI115: 0.0001158494602 | AJ115: 0.0001158494602 | AK115: 2921.753101 | AL115: 0 | AM115: FALSE | AN115: 0 | AO115: 0.3663481598 | AP115: 0.3663481598 | AQ115: 0.9239394561 | AR115: 0 | AS115: TRUE | AT115: 0.581793365 | AU115: 1158.494602 | AV115: 0
